Workbook

Sheet 01.BALANCE ENERGIA Sep-19 Def
B1: Mes | C1: 2019-09-01
B3: Total | C3: =+SUM(C9:C437) -> 2.226512879e-05 | D3: =+SUM(D9:D437) -> 2.226512879e-05
B4: Positivo | C4: =+SUMIF(C$9:C$437,">0") -> 3.241380393e+10 | D4: =+SUMIF(D$9:D$437,">0") -> 3.241380393e+10
B5: Negativo | C5: =+SUMIF(C$9:C$437,"<0") -> -3.241380393e+10 | D5: =+SUMIF(D$9:D$437,"<0") -> -3.241380393e+10 | J5: CUADRO DE PAGOS 01.BALANCE ENERGIA Sep-19 Def (Valores en $)
F6: ="Balance Energía "& TEXT(C1,"mmm-yy") -> Balance Energía sep-yy
C7: Datos | K7: Reciben
B8: Empresa | C8: Energía SEN | D8: TOTAL | F8: Empresa | G8: Paga | H8: Recibe | J8: Pagan | K8: GMETROPOLITANA | L8: IMELSA_ENERGIA | M8: PEHUENCHE | N8: GUACOLDA | O8: ARAUCO BIO | P8: SGA | Q8: GESAN | R8: PUNTILLA | S8: EL MANZANO | T8: ESPINOS | U8: PARQUE_EOLICO_LEBU | V8: ORAFTI | W8: ALTO_MANGA_ENERGY | X8: GENPAC | Y8: MONTE REDONDO | Z8: PANGUIPULLI | AA8: HIDROPALOMA | AB8: SWO | AC8: BARRICK | AD8: CARRAN | AE8: DONGO | AF8: HIDROLIRCAY | AG8: LOS MORROS | AH8: DIUTO | AI8: LICAN | AJ8: ENERGIA PACIFICO | AK8: DONGUIL | AL8: PEHUI | AM8: COMASA | AN8: ENERBOSCH | AO8: HIDROMUCHI | AP8: BE FORESTALES | AQ8: ALLIPEN | AR8: EL CANELO | AS8: CARBOMET | AT8: HIDROENERSUR | AU8: RUCATAYO | AV8: KALTEMP | AW8: ESTANCILLA SPA | AX8: MAPOCHO TREBAL | AY8: UCUQUER | AZ8: TAMM | BA8: TALINAY | BB8: ROBLERIA | BC8: GENERHOM | BD8: ARRAYAN | BE8: SUBSOLE | BF8: SANTAMARTA | BG8: RIO HUASCO | BH8: SANTA IRENE | BI8: CONTRA | BJ8: COLMITO | BK8: COMMONPLACE | BL8: AMANECER SOLAR | BM8: SAN_ANDRES_SPA | BN8: ENERGIA_LEON | BO8: ENERGIAS_DEL_FUTURO | BP8: ARRAYAN_EOLICO | BQ8: BIOCRUZ | BR8: HBS | BS8: LOS_PADRES | BT8: LOS_CURUROS | BU8: LOMAS_COLORADAS | BV8: PAMA | BW8: RIO_PUMA | BX8: GM_HOLDINGS | BY8: PH_PUNTA_SIERRA | BZ8: UCUQUER_DOS | CA8: EBCO_ATACAMA | CB8: ATRIA_ENERGIA | CC8: EOLICA_TALTAL | CD8: PV_SALVADOR | CE8: COLLIL | CF8: MARIA_ELENA | CG8: LAS_FLORES | CH8: BESALCO | CI8: LLEUQUEREO | CJ8: CURILEUFU | CK8: BIOBIO_NEGRETE | CL8: LUZ_DEL_NORTE | CM8: RAKI | CN8: TRAILELFU | CO8: GR_PAN_DE_AZUCAR | CP8: PUCLARO | CQ8: HUAJACHE | CR8: EL_MIRADOR | CS8: RIO_MULCHEN | CT8: EGP_SUR | CU8: EL_MORADO | CV8: CAREN | CW8: CHUNGUNGO | CX8: SPVP4 | CY8: RENOVALIA_6 | CZ8: RENOVALIA_7 | DA8: AGSA | DB8: TILTIL_SOLAR | DC8: BELLAVISTA | DD8: MALLARAUCO | DE8: M_VILLARRICA | DF8: CHANLEUFU | DG8: RASO_POWER | DH8: LOS_LOROS | DI8: ALTOS_DEL_PAICO | DJ8: EL_AGRIO | DK8: LA_MONTAÑA_1 | DL8: SAN_JUAN_LAP | DM8: DIVISADERO | DN8: CUMPEO | DO8: SAFIRA_ENERGIA_CHILE | DP8: TEATINOS | DQ8: GR_HUINGAN | DR8: GR_COIGUE | DS8: HORMIGA_SOLAR | DT8: GESTEL | DU8: CUZCUZ | DV8: GR_ARAUCARIA | DW8: EL_ARROYO | DX8: LOS_PINOS_BIO | DY8: EL_BOCO | DZ8: SANTIAGO_SOLAR | EA8: GENERADORA_PIUTEL | EB8: HIDRORIÑINAHUE | EC8: GR_CANELO | ED8: LA_LEONERA | EE8: CABO_LEONES | EF8: CHILE_GENERACION | EG8: RIO_COLORADO | EH8: LAS_TURCAS | EI8: GR_GUAYACAN | EJ8: DOS_VALLES | EK8: SOCER | EL8: COYANCO | EM8: GR_ESPINO | EN8: LA_MONTAÑA_2 | EO8: HIDROMUNILQUE | EP8: SAN_FRANCISCO | EQ8: QUINTA_SOLAR | ER8: VALLE_DE_LA_LUNA_II | ES8: GR_LINGUE | ET8: QUELTEHUE | EU8: CHESTER_SOLAR_IV | EV8: CHESTER_SOLAR_V | EW8: PV_CHANCON | EX8: PITIO | EY8: CH _SANTA_ELENA | EZ8: AMPARO | FA8: PARRONAL | FB8: EL_PELICANO | FC8: GR_TIACA | FD8: GR_BOLDO | FE8: PV_PORTEZUELO | FF8: LA_CALERA | FG8: CATAN_SOLAR | FH8: SOLAR_E | FI8: GORRIONES | FJ8: PV_EL_PICURIO | FK8: CHINCOL | FL8: VILLA_PRAT_ENERGY | FM8: PS_SANTALAURA | FN8: PV_LIBERTADORES | FO8: PFV_OCOA | FP8: PV_LAS_PALOMAS | FQ8: PALACIOS | FR8: MINICENTRALES_ARAUCANIA | FS8: LA_ACACIA | FT8: GR_LITRE | FU8: GR_LAUREL | FV8: PATOS | FW8: TACORA_ENERGY | FX8: CH_CONVENTO_VIEJO | FY8: MINICENTRAL_ARRAYAN | FZ8: GR_TINEO | GA8: PV_RODEO | GB8: PV_LA_FRONTERA | GC8: EL_CERNICALO | GD8: FOTOVOLT_SOLAR_I | GE8: ABASTIBLE | GF8: SINERGIA_SOLAR_SPA | GG8: VALLE_SOLAR_OESTE_2 | GH8: PILPEN | GI8: HIDROELECTRICA SAN ANDRES | GJ8: AASA_ENERGIA | GK8: LA_MANGA_ENERGY | GL8: EL_QUEULE | GM8: LOA_SOLAR | GN8: PIQUERO | GO8: PARQUE_SOLAR | GP8: DIEGO_DE_ALMAGRO_SOLAR | GQ8: PFALICAHUE_SOLAR | GR8: LUNA_ENERGY | GS8: CALLE_LARGA_SPA | GT8: NUOVOSOL_SPA | GU8: APOLO_DEL_NORTE_SPA | GV8: SOLAR_UNO | GW8: COCHRANE | GX8: GENERACION_SOLAR_SPA | GY8: CERRO_DOMINADOR_CSP | GZ8: NORACID | HA8: ANDINA | HB8: ANGAMOS | HC8: HELIO_ATACAMA_TRES | HD8: PLANTA_SOLAR_SPIII | HE8: VALLE_DE_LOS_VIENTOS | HF8: CALAMA_SOLAR_1 | HG8: PUERTO_SECO | HH8: ENERNUEVAS | HI8: CAVANCHA | HJ8: SPS_LA_HUAYCA | HK8: PMGD_PICA_PILOT | HL8: FV_NORTE_GRANDE_5 | HM8: POZO_ALMONTE_SOLAR_1 | HN8: POZO_ALMONTE_SOLAR_3 | HO8: SOLAR_TI_CUATRO | HP8: SOLAR_LOS_PERALES_I | HQ8: VITUCO | HR8: POBLACION_SOLAR | HS8: LUCE_SOLAR_SPA | HT8: GR_LILEN_SPA | HU8: PFV LAS PERDICES | HV8: PARQUE SOLAR VILLA SECA | HW8: LAS LECHUZAS | HX8: GENERADORA AZUL | HY8: PFV_JOSE_SOLER_MALLAFRE | HZ8: TUCUQUERE_SPA | IA8: PFV_LAS_CODORNICES | IB8: SANTA_CATALINA_SOLAR | IC8: PARSOSY_ILLAPEL5_SPA | ID8: JOAQUIN_SOLAR_SPA | IE8: ANGELA_SOLAR_SPA | IF8: CANENCIA_ENERGIA_SPA | IG8: JAURURO_SOLAR | IH8: GR_BELLOTO_SPA | II8: MARCHIHUE_VII_SPA | IJ8: RANGUIL_SUR_SPA | IK8: PARQUE_SOLAR_H6 | IL8: RLA_SOLAR | IM8: ACOTANGO_DE_VERANO | IN8: HIDROPALMAR | IO8: AUSTRIAN_SOLAR | IP8: SOLAR_TI_DIEZ | IQ8: EL_NOGAL | IR8: TRICAHUE_SOLAR | IS8: GR_MOLLE | IT8: REDEN_CABILDO_SOLAR | IU8: REDEN_TALHUEN_SOLAR | IV8: SANTA_CLARA | IW8: LAUREL_SPA | IX8: REDEN_LALAJUELA | IY8: CUMBRES | IZ8: SANTA_ADRIANA | JA8: GR_CHAQUIHUE | JB8: ISABEL_SOLAR_SPA | JC8: CRUCERO_SPA | JD8: ALTOS_TILTIL | JE8: FV_ARIZTIA | JF8: HIDROANGOL | JG8: DUQUECO | JH8: CTNG | JI8: COLBUN_TRANSMISION | JJ8: MINERA_ESCONDIDA | JK8: ZALDIVAR_TRANSMISION | JL8: Total
A9: =+MATCH(B9,RUT[EMPRESA],0) -> 108 | B9: ENEL_GENERACION | C9: -3662379907 | D9: =+C9 -> -3662379907 | F9: =IFERROR(INDEX($B$9:$B$511,MATCH(0,INDEX(COUNTIF($F$8:F8,$B$9:$B$511),0,0),0)),"") -> ENEL_GENERACION | G9: =IF(SUMIF($B$9:$B$400,F9,$D$9:$D$400)<-0.00001,SUMIF($B$9:$B$400,F9,$D$9:$D$400),"") -> -3662379907 | H9: =IF(SUMIF($B$9:$B$400,F9,$D$9:$D$400)>0.00001,SUMIF($B$9:$B$400,F9,$D$9:$D$400),"") ->  | J9: ENEL_GENERACION | K9: =$JL9*K$63/$JL$63 -> 12938505.93 | L9: 2788824.454 | M9: 33998532.25 | N9: 362397450.4 | O9: 46674222.95 | P9: 5967320.916 | Q9: 875977.5584 | R9: 9731455.97 | S9: 4535664.375 | T9: 26572857.2 | U9: =$JL9*U$63/$JL$63 -> 3646232.907 | V9: 5484735.186 | W9: 2389920.749 | X9: 10810352.27 | Y9: 6574329.743 | Z9: 71545915.17 | AA9: 3506827.884 | AB9: 1422.622026 | AC9: 814698.0249 | AD9: 1055702.926 | AE9: =$JL9*AE$63/$JL$63 -> 5355376.489 | AF9: 7513641.882 | AG9: 787381.7528 | AH9: 7183925.565 | AI9: 18957635.79 | AJ9: 16342304.43 | AK9: 584562.5961 | AL9: 1922263.879 | AM9: 55988462.19 | AN9: 14031204.15 | AO9: =$JL9*AO$63/$JL$63 -> 993746.9337 | AP9: 90032459.87 | AQ9: 2878819.944 | AR9: 4358690.157 | AS9: 6877400.117 | AT9: 36617942.39 | AU9: 11280023.93 | AV9: 568042.1311 | AW9: 65615.90874 | AX9: 2268283.975 | AY9: =$JL9*AY$63/$JL$63 -> 9677089.418 | AZ9: 21524.94492 | BA9: 3564423.337 | BB9: 44571.17323 | BC9: 8808405.752 | BD9: 65797.25493 | BE9: 44.63036987 | BF9: 18247543.53 | BG9: 6840219.945 | BH9: 476347.7703 | BI9: =$JL9*BI$63/$JL$63 -> 762924.0842 | BJ9: 10156477.62 | BK9: 2430546.201 | BL9: 62051544.04 | BM9: 28080129.47 | BN9: 4978069.91 | BO9: 38635.77677 | BP9: 5186751.642 | BQ9: 3765519.105 | BR9: 336441.4672 | BS9: =$JL9*BS$63/$JL$63 -> 4427434.246 | BT9: 21730625.74 | BU9: 1681586.4 | BV9: 1799488.761 | BW9: 826401.1248 | BX9: 428337655.4 | BY9: 48758912.96 | BZ9: 6730860.18 | CA9: 846780.9607 | CB9: 1743493.159 | CC9: =$JL9*CC$63/$JL$63 -> 24604437.57 | CD9: 43137930.56 | CE9: 8729410 | CF9: 387602.6631 | CG9: 5498838.995 | CH9: 3136421.998 | CI9: 3364079.981 | CJ9: 536303.6077 | CK9: 3695641.052 | CL9: 61679423.98 | CM9: =$JL9*CM$63/$JL$63 -> 130827.2169 | CN9: 2350479.897 | CO9: 3013023.155 | CP9: 3541978.275 | CQ9: 230352.9367 | CR9: 4958312.856 | CS9: 1790774.496 | CT9: 16314028.64 | CU9: 10674066.39 | CV9: 9823308.4 | CW9: =$JL9*CW$63/$JL$63 -> 12091828.41 | CX9: 563699.7235 | CY9: 1418836.744 | CZ9: 1570764.738 | DA9: 21657120.97 | DB9: 1219513.445 | DC9: 1411782.547 | DD9: 10572114.86 | DE9: 547162.1202 | DF9: 5708490.619 | DG9: =$JL9*DG$63/$JL$63 -> 93113.07507 | DH9: 25096245.87 | DI9: 112463.8995 | DJ9: 5889662.827 | DK9: 1407387.144 | DL9: 10413460.99 | DM9: 2461293.151 | DN9: 8996521.621 | DO9: 10086781.42 | DP9: 168903.3523 | DQ9: =$JL9*DQ$63/$JL$63 -> 5609603.24 | DR9: 2213212.401 | DS9: 2084694.455 | DT9: 802293.37 | DU9: 2608764.38 | DV9: 7831614.69 | DW9: 7196066.53 | DX9: 5441497.808 | DY9: 2582403.043 | DZ9: 40125729.27 | EA9: =$JL9*EA$63/$JL$63 -> 622066.2303 | EB9: 2547840.359 | EC9: 8556343.635 | ED9: 3122257.92 | EE9: 41505585.09 | EF9: 84393.09172 | EG9: 7995590.226 | EH9: 2894230.597 | EI9: 2413731.97 | EJ9: 2230763.927 | EK9: =$JL9*EK$63/$JL$63 -> 12830284.87 | EL9: 3357709.499 | EM9: 2595283.119 | EN9: 746388.582 | EO9: 2280188.85 | EP9: 2996230.404 | EQ9: 3023878.203 | ER9: 2697517.991 | ES9: 5339550.63 | ET9: 2859996.334 | EU9: =$JL9*EU$63/$JL$63 -> 7262367.195 | EV9: 2390739.048 | EW9: 2221350.548 | EX9: 2429650.819 | EY9: 3509839.964 | EZ9: 2792945.287 | FA9: 2411545.388 | FB9: 332218.8539 | FC9: 2416069.209 | FD9: 2797412.657 | FE9: =$JL9*FE$63/$JL$63 -> 2316554.621 | FF9: 53270.92246 | FG9: 3102398.422 | FH9: 22247681.29 | FI9: 2446002.284 | FJ9: 2325204.945 | FK9: 2479017.382 | FL9: 2409331.993 | FM9: 2402018.756 | FN9: 6226613.894 | FO9: =$JL9*FO$63/$JL$63 -> 3116089.166 | FP9: 2509521.726 | FQ9: 649645.6521 | FR9: 5457199.604 | FS9: 5429497.858 | FT9: 8290506.907 | FU9: 2902597.186 | FV9: 2738877.596 | FW9: 2810907.801 | FX9: 0.2255876251 | FY9: =$JL9*FY$63/$JL$63 -> 1081741.794 | FZ9: 1829358.639 | GA9: 2438895.94 | GB9: 3565911.908 | GC9: 2558562.87 | GD9: 666198.163 | GE9: 845618.8868 | GF9: 10762314.47 | GG9: 10809899.33 | GH9: 2958610.619 | GI9: =$JL9*GI$63/$JL$63 -> 6809576.417 | GJ9: 77606.76579 | GK9: 1197274.075 | GL9: 26270.13678 | GM9: 8170969.109 | GN9: 2928206.447 | GO9: 2432734.938 | GP9: 10311248.24 | GQ9: 2659829.398 | GR9: 1994766.851 | GS9: =$JL9*GS$63/$JL$63 -> 3586902.694 | GT9: 12214988.29 | GU9: 11851382.1 | GV9: 7564434.191 | GW9: 492890986 | GX9: 38786582.05 | GY9: 260986.7612 | GZ9: 33441939.4 | HA9: 11964285.31 | HB9: 287546473.9 | HC9: =$JL9*HC$63/$JL$63 -> 83692907.88 | HD9: 19239300.34 | HE9: 7104236.626 | HF9: 9517241.553 | HG9: 13890042.89 | HH9: 3686001.909 | HI9: 4405995.532 | HJ9: 13195722.48 | HK9: 236470.0036 | HL9: 38184171.77 | HM9: =$JL9*HM$63/$JL$63 -> 13059403.76 | HN9: 200658.947 | HO9: 2402793.685 | HP9: 1102218.731 | HQ9: 1327708.905 | HR9: 2192107.924 | HS9: 1398629.808 | HT9: 1153238.568 | HU9: 2180627.743 | HV9: 1770109.163 | HW9: =$JL9*HW$63/$JL$63 -> 2536318.591 | HX9: 50237.63914 | HY9: 1119476.036 | HZ9: 1853104.306 | IA9: 2169607.695 | IB9: 5482100.787 | IC9: 2732474.622 | ID9: 2653011.817 | IE9: 1964681.534 | IF9: 3134631.619 | IG9: =$JL9*IG$63/$JL$63 -> 1466411.126 | IH9: 2753123.33 | II9: 1692726.022 | IJ9: 1114984.653 | IK9: 2069320.302 | IL9: 1695033.625 | IM9: 686647.7314 | IN9: 14583801.29 | IO9: 55316786.52 | IP9: 2718019.504 | IQ9: =$JL9*IQ$63/$JL$63 -> 11305031.74 | IR9: 5224026.485 | IS9: 5903568.512 | IT9: 2410564.418 | IU9: 3659193.878 | IV9: 3159192.58 | IW9: 3546532.342 | IX9: 6647424.391 | IY9: 16752124.13 | IZ9: 2164852.028 | JA9: =$JL9*JA$63/$JL$63 -> 7977333.436 | JB9: 1872140.406 | JC9: 2035714.855 | JD9: 1574369.798 | JE9: 2148636.214 | JF9: 23319424.82 | JG9: 37850219.97 | JH9: 1872018.563 | JI9: 3269629.608 | JJ9: 6902105.367 | JK9: 6727002.912 | JL9: 3662379907
A10: =+MATCH(B10,RUT[EMPRESA],0) -> 331 | B10: GASATACAMA | C10: 0 | D10: =+C10 -> 0 | F10: =IFERROR(INDEX($B$9:$B$511,MATCH(0,INDEX(COUNTIF($F$8:F9,$B$9:$B$511),0,0),0)),"") -> GASATACAMA | G10: =IF(SUMIF($B$9:$B$400,F10,$D$9:$D$400)<-0.00001,SUMIF($B$9:$B$400,F10,$D$9:$D$400),"") ->  | H10: =IF(SUMIF($B$9:$B$400,F10,$D$9:$D$400)>0.00001,SUMIF($B$9:$B$400,F10,$D$9:$D$400),"") ->  | J10: AES_GENER | K10: 7218773.403 | L10: 1555967.273 | M10: 18968782.15 | N10: 202192207.5 | O10: 26040923.2 | P10: 3329344.033 | Q10: 488733.6709 | R10: 5429465.805 | S10: 2530580.697 | T10: 14825779.4 | U10: 2034340.693 | V10: 3060095.245 | W10: 1333407.151 | X10: 6031413.814 | Y10: 3668012.129 | Z10: 39917572.57 | AA10: 1956562.526 | AB10: 793.7227142 | AC10: 454544.0149 | AD10: 589007.7451 | AE10: 2987922.219 | AF10: 4192082.027 | AG10: 439303.4625 | AH10: 4008123.586 | AI10: 10577023.17 | AJ10: 9117852.799 | AK10: 326144.6834 | AL10: 1072487.614 | AM10: 31237611.5 | AN10: 7828421.91 | AO10: 554440.6728 | AP10: 50231760.15 | AQ10: 1606178.407 | AR10: 2431841.57 | AS10: 3837104.014 | AT10: 20430228.18 | AU10: 6293457.463 | AV10: 316927.4296 | AW10: 36609.04739 | AX10: 1265542.414 | AY10: 5399133.105 | AZ10: 12009.40052 | BA10: 1988696.726 | BB10: 24867.56983 | BC10: 4914468.911 | BD10: 36710.22577 | BE10: 24.90059738 | BF10: 10180841.79 | BG10: 3816360.101 | BH10: 265768.4459 | BI10: 425657.809 | BJ10: 5666597.895 | BK10: 1356073.287 | BL10: 34620383.38 | BM10: 15666730.98 | BN10: 2777411.77 | BO10: 21556.0374 | BP10: 2893841.452 | BQ10: 2100893.975 | BR10: 187710.6003 | BS10: 2470195.921 | BT10: 12124155.91 | BU10: 938206.5628 | BV10: 1003987.762 | BW10: 461073.5189 | BX10: 238982189.3 | BY10: 27204033.13 | BZ10: 3755345.068 | CA10: 472444.0294 | CB10: 972746.1662 | CC10: 13727540.14 | CD10: 24067921.55 | CE10: 4870394.855 | CF10: 216254.9378 | CG10: 3067964.175 | CH10: 1749902.177 | CI10: 1876919.269 | CJ10: 299219.5729 | CK10: 2061906.952 | CL10: 34412766.64 | CM10: 72992.35619 | CN10: 1311401.939 | CO10: 1681054.33 | CP10: 1976173.965 | CQ10: 128520.6856 | CR10: 2766388.728 | CS10: 999125.8163 | CT10: 9102076.904 | CU10: 5955375.912 | CV10: 5480712.98 | CW10: 6746387.085 | CX10: 314504.6725 | CY10: 791610.7938 | CZ10: 876375.8945 | DA10: 12083145.43 | DB10: 680402.4565 | DC10: 787675.0495 | DD10: 5898494.151 | DE10: 305277.8567 | DF10: 3184934.989 | DG10: 51950.52607 | DH10: 14001934.47 | DI10: 62746.92078 | DJ10: 3286016.298 | DK10: 785222.725 | DL10: 5809976.486 | DM10: 1373227.916 | DN10: 5019424.293 | DO10: 5627712.338 | DP10: 94236.15319 | DQ10: 3129762.809 | DR10: 1234816.361 | DS10: 1163112.415 | DT10: 447623.0927 | DU10: 1455506.456 | DV10: 4369488.419 | DW10: 4014897.388 | DX10: 3035971.839 | DY10: 1440798.69 | DZ10: 22387325.77 | EA10: 347069.0652 | EB10: 1421515.151 | EC10: 4773836.035 | ED10: 1741999.621 | EE10: 23157187.96 | EF10: 47085.39062 | EG10: 4460975.198 | EH10: 1614776.464 | EI10: 1346692.132 | EJ10: 1244608.874 | EK10: 7158393.685 | EL10: 1873364.989 | EM10: 1447984.864 | EN10: 416432.1655 | EO10: 1272184.494 | EP10: 1671685.159 | EQ10: 1687110.681 | ER10: 1505024.709 | ES10: 2979092.507 | ET10: 1595676.16 | EU10: 4051888.481 | EV10: 1333863.704 | EW10: 1239356.873 | EX10: 1355573.727 | EY10: 1958243.055 | EZ10: 1558266.407 | FA10: 1345472.174 | FB10: 185354.68 | FC10: 1347996.147 | FD10: 1560758.885 | FE10: 1292474.028 | FF10: 29721.41607 | FG10: 1730919.423 | FH10: 12412636.42 | FI10: 1364696.691 | FJ10: 1297300.299 | FK10: 1383116.786 | FL10: 1344237.256 | FM10: 1340156.986 | FN10: 3474011.219 | FO10: 1738557.892 | FP10: 1400136.058 | FQ10: 362456.4366 | FR10: 3044732.333 | FS10: 3029276.714 | FT10: 4625517.897 | FU10: 1619444.43 | FV10: 1528100.451 | FW10: 1568288.222 | FX10: 0.1258619779 | FY10: 603535.5962 | FZ10: 1020653.046 | GA10: 1360731.853 | GB10: 1989527.243 | GC10: 1427497.556 | GD10: 371691.5697 | GE10: 471795.6742 | GF10: 6004612.114 | GG10: 6031161.108 | GH10: 1650695.973 | GI10: 3799263.175 | GJ10: 43299.09958 | GK10: 667994.4573 | GL10: 14656.88277 | GM10: 4558824.24 | GN10: 1633732.591 | GO10: 1357294.448 | GP10: 5752948.984 | GQ10: 1483997.134 | GR10: 1112939.157 | GS10: 2001238.621 | GT10: 6815101.61 | GU10: 6612235.012 | GV10: 4220420.551 | GW10: 274998393.1 | GX10: 21640176.1 | GY10: 145612.1982 | GZ10: 18658242.61 | HA10: 6675227.035 | HB10: 160430643.9 | HC10: 46694737.44 | HD10: 10734172.11 | HE10: 3963662.781 | HF10: 5309949.275 | HG10: 7749663.886 | HH10: 2056528.991 | HI10: 2458234.631 | HJ10: 7362282.089 | HK10: 131933.5773 | HL10: 21304073.67 | HM10: 7286225.858 | HN10: 111953.5345 | HO10: 1340589.342 | HP10: 614960.2824 | HQ10: 740767.889 | HR10: 1223041.552 | HS10: 780336.7489 | HT10: 643425.7516 | HU10: 1216636.421 | HV10: 987596.0188 | HW10: 1415086.818 | HX10: 28029.05801 | HY10: 624588.6409 | HZ10: 1033901.453 | IA10: 1210488.012 | IB10: 3058625.436 | IC10: 1524528.043 | ID10: 1480193.404 | IE10: 1096153.673 | IF10: 1748903.272 | IG10: 818153.9424 | IH10: 1536048.565 | II10: 944421.6856 | IJ10: 622082.766 | IK10: 1154534.723 | IL10: 945709.1656 | IM10: 383100.986 | IN10: 8136732.122 | IO10: 30862863.87 | IP10: 1516463.107 | IQ10: 6307410.055 | IR10: 2914638.185 | IS10: 3293774.689 | IT10: 1344924.862 | IU10: 2041572 | IV10: 1762606.555 | IW10: 1978714.813 | IX10: 3708793.785 | IY10: 9346503.277 | IZ10: 1207834.685 | JA10: 4450789.198 | JB10: 1044522.253 | JC10: 1135785.255 | JD10: 878387.2637 | JE10: 1198787.405 | JF10: 13010593.69 | JG10: 21117752.13 | JH10: 1044454.274 | JI10: 1824222.625 | JJ10: 3850887.8 | JK10: 3753192.985 | JL10: 2043349580
A11: =+MATCH(B11,RUT[EMPRESA],0) -> 4 | B11: AES_GENER | C11: -2043349580 | D11: -2043349580 | F11: =IFERROR(INDEX($B$9:$B$511,MATCH(0,INDEX(COUNTIF($F$8:F10,$B$9:$B$511),0,0),0)),"") -> AES_GENER | G11: -2043349580 | J11: COLBUN | K11: 20040126.1 | L11: 4319539.986 | M11: 52659470.66 | N11: 561308287.2 | O11: 72292528.87 | P11: 9242633.134 | Q11: 1356779.587 | R11: 15072807.15 | S11: 7025176.361 | T11: 41158029.52 | U11: 5647558.352 | V11: 8495168.247 | W11: 3701688.079 | X11: 16743882.46 | Y11: 10182813.82 | Z11: 110815666.8 | AA11: 5431637.421 | AB11: 2203.463441 | AC11: 1261865.26 | AD11: 1635151.684 | AE11: 8294807.817 | AF11: 11637690.75 | AG11: 1219555.774 | AH11: 11127001.45 | AI11: 29363004.81 | AJ11: 25312183.89 | AK11: 905414.2882 | AL11: 2977346.127 | AM11: 86719119.53 | AN11: 21732578.86 | AO11: 1539189.607 | AP11: 139449010.4 | AQ11: 4458931.735 | AR11: 6751065.451 | AS11: 10652231.9 | AT11: 56716609.07 | AU11: 17471345.08 | AV11: 879826.1559 | AW11: 101630.8291 | AX11: 3513287.943 | AY11: 14988600.17 | AZ11: 33339.44527 | BA11: 5520845.569 | BB11: 69035.16809 | BC11: 13643117.91 | BD11: 101911.7117 | BE11: 69.12685628 | BF11: 28263160.78 | BG11: 10594644.46 | BH11: 737803.0689 | BI11: 1181673.907 | BJ11: 15731112.48 | BK11: 3764611.82 | BL11: 96110074.36 | BM11: 43492605.59 | BN11: 7710407.156 | BO11: 59841.98195 | BP11: 8033629.037 | BQ11: 5832317.741 | BR11: 521105.7183 | BS11: 6857541.438 | BT11: 33658019.12 | BU11: 2604566.839 | BV11: 2787182.839 | BW11: 1279991.897 | BX11: 663441410.7 | BY11: 75521452.74 | BZ11: 10425259.88 | CA11: 1311557.712 | CB11: 2700452.659 | CC11: 38109193.92 | CD11: 66815254.6 | CE11: 13520763.38 | CF11: 600348.0066 | CG11: 8517013.281 | CH11: 4857925.07 | CI11: 5210538.79 | CJ11: 830667.156 | CK11: 5724085.385 | CL11: 95533706.97 | CM11: 202634.9825 | CN11: 3640599.137 | CO11: 4666795.71 | CP11: 5486080.978 | CQ11: 356787.8643 | CR11: 7679805.952 | CS11: 2773685.532 | CT11: 25268388.24 | CU11: 16532792.71 | CV11: 15215075.07 | CW11: 18728728.6 | CX11: 873100.3101 | CY11: 2197600.513 | CZ11: 2432917.957 | DA11: 33544169.43 | DB11: 1888873.672 | DC11: 2186674.444 | DD11: 16374882.54 | DE11: 847485.6327 | DF11: 8841737.404 | DG11: 144220.4978 | DH11: 38870943.41 | DI11: 174192.5026 | DJ11: 9122350.475 | DK11: 2179866.516 | DL11: 16129147.56 | DM11: 3812234.996 | DN11: 13934485.84 | DO11: 15623161.8 | DP11: 261610.1501 | DQ11: 8688573.232 | DR11: 3427988.968 | DS11: 3228930.757 | DT11: 1242652.002 | DU11: 4040649.47 | DV11: 12130190.83 | DW11: 11145806.28 | DX11: 8428198.96 | DY11: 3999819.059 | DZ11: 62149731.87 | EA11: 963502.7231 | EB11: 3946285.787 | EC11: 13252705.24 | ED11: 4835986.686 | EE11: 64286955.81 | EF11: 130714.3351 | EG11: 12384168.4 | EH11: 4482800.907 | EI11: 3738568.68 | EJ11: 3455174.085 | EK11: 19872505.22 | EL11: 5200671.71 | EM11: 4019768.685 | EN11: 1156062.484 | EO11: 3531727.104 | EP11: 4640785.84 | EQ11: 4683608.82 | ER11: 4178117.704 | ES11: 8270295.543 | ET11: 4429776.318 | EU11: 11248497.71 | EV11: 3702955.522 | EW11: 3440593.939 | EX11: 3763224.985 | EY11: 5436302.757 | EZ11: 4325922.64 | FA11: 3735181.939 | FB11: 514565.419 | FC11: 3742188.772 | FD11: 4332842.037 | FE11: 3588053.131 | FF11: 82509.99066 | FG11: 4805226.811 | FH11: 34458873.45 | FI11: 3788551.358 | FJ11: 3601451.401 | FK11: 3839687.612 | FL11: 3731753.667 | FM11: 3720426.378 | FN11: 9644245.499 | FO11: 4826432.059 | FP11: 3886935.022 | FQ11: 1006219.795 | FR11: 8452519.077 | FS11: 8409612.54 | FT11: 12840957.43 | FU11: 4495759.705 | FV11: 4242178.555 | FW11: 4353744.325 | FX11: 0.3494069932 | FY11: 1675482.631 | FZ11: 2833447.54 | GA11: 3777544.521 | GB11: 5523151.179 | GC11: 3962893.616 | GD11: 1031857.562 | GE11: 1309757.805 | GF11: 16669477.93 | GG11: 16743180.92 | GH11: 4582517.502 | GI11: 10547181.48 | GJ11: 120203.1657 | GK11: 1854427.672 | GL11: 40689.15349 | GM11: 12655808.34 | GN11: 4535425.246 | GO11: 3768001.9 | GP11: 15970832.81 | GQ11: 4119742.791 | GR11: 3089644.156 | GS11: 5555663.279 | GT11: 18919487.84 | GU11: 18356307.37 | GV11: 11716361.68 | GW11: 763426439.2 | GX11: 60075560.45 | GY11: 404235.8238 | GZ11: 51797378 | HA11: 18531180.31 | HB11: 445373494.1 | HC11: 129629838 | HD11: 29799267.93 | HE11: 11003573.25 | HF11: 14741015.84 | HG11: 21513937.73 | HH11: 5709155.559 | HI11: 6824335.555 | HJ11: 20438522.34 | HK11: 366262.4353 | HL11: 59142502.34 | HM11: 20227381.7 | HN11: 310795.5913 | HO11: 3721626.647 | HP11: 1707198.844 | HQ11: 2056454.896 | HR11: 3395300.776 | HS11: 2166302.497 | HT11: 1786222.185 | HU11: 3377519.412 | HV11: 2741677.519 | HW11: 3928440.011 | HX11: 77811.81449 | HY11: 1733928.249 | HZ11: 2870226.606 | IA11: 3360450.737 | IB11: 8491087.893 | IC11: 4232261.15 | ID11: 4109183.211 | IE11: 3043045.765 | IF11: 4855151.997 | IG11: 2271287.276 | IH11: 4264243.414 | II11: 2621820.719 | IJ11: 1726971.658 | IK11: 3205118.119 | IL11: 2625394.908 | IM11: 1063531.384 | IN11: 22588482.65 | IO11: 85678778 | IP11: 4209871.981 | IQ11: 17510079.04 | IR11: 8091363.104 | IS11: 9143888.64 | IT11: 3733662.539 | IU11: 5667633.273 | IV11: 4893193.851 | IW11: 5493134.658 | IX11: 10296028.28 | IY11: 25946943.31 | IZ11: 3353084.803 | JA11: 12355890.92 | JB11: 2899711.141 | JC11: 3153067.489 | JD11: 2438501.743 | JE11: 3327968.538 | JF11: 36118870.01 | JG11: 58625252.8 | JH11: 2899522.423 | JI11: 5064246.984 | JJ11: 10690497.24 | JK11: 10419285.45 | JL11: 5672568034
A12: =+MATCH(B12,RUT[EMPRESA],0) -> 338 | B12: GMETROPOLITANA | C12: 114511930.8 | D12: 114511930.8 | F12: =IFERROR(INDEX($B$9:$B$511,MATCH(0,INDEX(COUNTIF($F$8:F11,$B$9:$B$511),0,0),0)),"") -> GMETROPOLITANA | H12: 114511930.8 | J12: TECNORED | K12: 204644.5069 | L12: 44110.00838 | M12: 537744.6904 | N12: 5731932.877 | O12: 738232.3268 | P12: 94383.34323 | Q12: 13855.07696 | R12: 153919.5498 | S12: 71739.25678 | T12: 420294.9928 | U12: 57671.38331 | V12: 86750.42802 | W12: 37800.66691 | X12: 170984.1322 | Y12: 103984.2216 | Z12: 1131620.498 | AA12: 55466.45545 | AB12: 22.50119021 | AC12: 12885.83678 | AD12: 16697.73974 | AE12: 84704.3999 | AF12: 118841.0428 | AG12: 12453.78341 | AH12: 113626.0177 | AI12: 299847.2968 | AJ12: 258481.377 | AK12: 9245.853025 | AL12: 30403.87705 | AM12: 885552.8834 | AN12: 221927.3901 | AO12: 15717.80021 | AP12: 1424016.687 | AQ12: 45533.44033 | AR12: 68940.10812 | AS12: 108777.7957 | AT12: 579175.1228 | AU12: 178412.7894 | AV12: 8984.553735 | AW12: 1037.827347 | AX12: 35876.77418 | AY12: 153059.6502 | AZ12: 340.4536629 | BA12: 56377.42564 | BB12: 704.9690137 | BC12: 139319.9385 | BD12: 1040.695646 | BE12: 0.7059053093 | BF12: 288615.9783 | BG12: 108189.728 | BH12: 7534.251254 | BI12: 12066.94373 | BJ12: 160641.991 | BK12: 38443.22764 | BL12: 981450.8489 | BM12: 444135.0708 | BN12: 78736.65376 | BO12: 611.0906101 | BP12: 82037.31077 | BQ12: 59558.09769 | BR12: 5321.394797 | BS12: 70027.41295 | BT12: 343706.8555 | BU12: 26597.15282 | BV12: 28461.97947 | BW12: 13070.94123 | BX12: 6774889.522 | BY12: 771205.2498 | BZ12: 106460.0171 | CA12: 13393.28305 | CB12: 27576.31365 | CC12: 389161.084 | CD12: 682299.8399 | CE12: 138070.4862 | CF12: 6130.596242 | CG12: 86973.50377 | CH12: 49607.85553 | CI12: 53208.65427 | CJ12: 8482.554934 | CK12: 58452.85728 | CL12: 975565.1364 | CM12: 2069.255247 | CN12: 37176.84267 | CO12: 47656.09268 | CP12: 56022.41876 | CQ12: 3643.424008 | CR12: 78424.16231 | CS12: 28324.14852 | CT12: 258034.1473 | CU12: 168828.539 | CV12: 155372.3524 | CW12: 191252.8599 | CX12: 8915.871163 | CY12: 22441.31953 | CZ12: 24844.31949 | DA12: 342544.2523 | DB12: 19288.68208 | DC12: 22329.74539 | DD12: 167216.0019 | DE12: 8654.300802 | DF12: 90289.50126 | DG12: 1472.741863 | DH12: 396939.8698 | DI12: 1778.808108 | DJ12: 93155.04828 | DK12: 22260.22461 | DL12: 164706.6207 | DM12: 38929.543 | DN12: 142295.3114 | DO12: 159539.627 | DP12: 2671.494175 | DQ12: 88725.42895 | DR12: 35005.72344 | DS12: 32972.99325 | DT12: 12689.63603 | DU12: 41262.05165 | DV12: 123870.3243 | DW12: 113818.0478 | DX12: 86066.55524 | DY12: 40845.10221 | DZ12: 634656.7465 | EA12: 9839.036873 | EB12: 40298.43449 | EC12: 135333.1469 | ED12: 49383.82651 | EE12: 656481.5164 | EF12: 1334.820475 | EG12: 126463.8767 | EH12: 45777.18606 | EI12: 38177.28193 | EJ12: 35283.33072 | EK12: 202932.8064 | EL12: 53107.89424 | EM12: 41048.82255 | EN12: 11805.4066 | EO12: 36065.07005 | EP12: 47390.48671 | EQ12: 47827.78375 | ER12: 42665.84117 | ES12: 84454.087 | ET12: 45235.71287 | EU12: 114866.7057 | EV12: 37813.6097 | EW12: 35134.44209 | EX12: 38429.06564 | EY12: 55514.09664 | EZ12: 44175.18637 | FA12: 38142.69741 | FB12: 5254.606977 | FC12: 38214.24935 | FD12: 44245.84544 | FE12: 36640.25665 | FF12: 842.5703643 | FG12: 49069.71474 | FH12: 351884.9696 | FI12: 38687.69191 | FJ12: 36777.07626 | FK12: 39209.88191 | FL12: 38107.6888 | FM12: 37992.0175 | FN12: 98484.50327 | FO12: 49286.25717 | FP12: 39692.36006 | FQ12: 10275.2524 | FR12: 86314.90589 | FS12: 85876.7556 | FT12: 131128.4863 | FU12: 45909.5179 | FV12: 43320.01376 | FW12: 44459.29412 | FX12: 0.003568052489 | FY12: 17109.58879 | FZ12: 28934.42245 | GA12: 38575.29298 | GB12: 56400.96993 | GC12: 40468.02928 | GD12: 10537.05855 | GE12: 13374.90287 | GF12: 170224.3327 | GG12: 170976.9682 | GH12: 46795.46574 | GI12: 107705.0484 | GJ12: 1227.483173 | GK12: 18936.92857 | GL12: 415.5069539 | GM12: 129237.7924 | GN12: 46314.57199 | GO12: 38477.84624 | GP12: 163089.952 | GQ12: 42069.73189 | GR12: 31550.63504 | GS12: 56732.97495 | GT12: 193200.8432 | GU12: 187449.7921 | GV12: 119644.4097 | GW12: 7795910.385 | GX12: 613475.8525 | GY12: 4127.950114 | GZ12: 528941.2265 | HA12: 189235.5486 | HB12: 4548037.204 | HC12: 1323745.875 | HD12: 304302.3013 | HE12: 112365.6015 | HF12: 150531.384 | HG12: 219694.6844 | HH12: 58300.39782 | HI12: 69688.32319 | HJ12: 208712.8247 | HK12: 3740.175839 | HL12: 603947.708 | HM12: 206556.7119 | HN12: 3173.762989 | HO12: 38004.27433 | HP12: 17433.46642 | HQ12: 20999.97754 | HR12: 34671.9202 | HS12: 22121.71241 | HT12: 18240.43204 | HU12: 34490.34158 | HV12: 27997.29109 | HW12: 40116.19812 | HX12: 794.5938227 | HY12: 17706.42009 | HZ12: 29310.00062 | IA12: 34316.04076 | IB12: 86708.76051 | IC12: 43218.73982 | ID12: 41961.90023 | IE12: 31074.78451 | IF12: 49579.53763 | IG12: 23193.78941 | IH12: 43545.33431 | II12: 26773.34491 | IJ12: 17635.38122 | IK12: 32729.82483 | IL12: 26809.84359 | IM12: 10860.5033 | IN12: 230667.655 | IO12: 874929.1888 | IP12: 42990.10751 | IQ12: 178808.3305 | IR12: 82626.8759 | IS12: 93374.99037 | IT12: 38127.1817 | IU12: 57876.38314 | IV12: 49968.01106 | IW12: 56094.44909 | IX12: 105140.338 | IY12: 264963.3736 | IZ12: 34240.82177 | JA12: 126175.1145 | JB12: 29611.08895 | JC12: 32198.29746 | JD12: 24901.33966 | JE12: 33984.34106 | JF12: 368836.4188 | JG12: 598665.6915 | JH12: 29609.16181 | JI12: 51714.76075 | JJ12: 109168.5513 | JK12: 106399.0078 | JL12: 57926775.62
A13: =+MATCH(B13,RUT[EMPRESA],0) -> 177 | B13: IMELSA_ENERGIA | C13: 24682422.73 | D13: 24682422.73 | F13: =IFERROR(INDEX($B$9:$B$511,MATCH(0,INDEX(COUNTIF($F$8:F12,$B$9:$B$511),0,0),0)),"") -> IMELSA_ENERGIA | H13: 24682422.73 | J13: NUEVA ENERGIA | K13: 437012.3077 | L13: 94195.62172 | M13: 1148337.924 | N13: 12240373.57 | O13: 1576473.357 | P13: 201552.8453 | Q13: 29587.10815 | R13: 328690.6582 | S13: 153197.0666 | T13: 897527.5589 | U13: 123155.5378 | V13: 185252.98 | W13: 80722.20912 | X13: 365131.5705 | Y13: 222055.2379 | Z13: 2416542.192 | AA13: 118446.9794 | AB13: 48.05062794 | AC13: 27517.32432 | AD13: 35657.53066 | AE13: 180883.7473 | AF13: 253781.5413 | AG13: 26594.6871 | AH13: 242645.0091 | AI13: 640315.0572 | AJ13: 551979.3558 | AK13: 19744.2464 | AL13: 64926.58256 | AM13: 1891072.06 | AN13: 473919.3951 | AO13: 33564.89868 | AP13: 3040945.629 | AQ13: 97235.31865 | AR13: 147219.5672 | AS13: 232291.774 | AT13: 1236811.39 | AU13: 380995.2489 | AV13: 19186.24947 | AW13: 2216.249685 | AX13: 76613.79294 | AY13: 326854.3679 | AZ13: 727.0287543 | BA13: 120392.3294 | BB13: 1505.440533 | BC13: 297513.619 | BD13: 2222.374853 | BE13: 1.507439965 | BF13: 616330.908 | BG13: 231035.9727 | BH13: 16089.1713 | BI13: 25768.60237 | BJ13: 343046.233 | BK13: 82094.37859 | BL13: 2095859.336 | BM13: 948437.3422 | BN13: 168139.8015 | BO13: 1304.965972 | BP13: 175188.2572 | BQ13: 127184.5607 | BR13: 11363.68161 | BS13: 149541.4746 | BT13: 733975.851 | BU13: 56797.43527 | BV13: 60779.71757 | BW13: 27912.60942 | BX13: 14467576.72 | BY13: 1646886.061 | BZ13: 227342.226 | CA13: 28600.96086 | CB13: 58888.40432 | CC13: 831042.0152 | CD13: 1457031.181 | CE13: 294845.4504 | CF13: 13091.70743 | CG13: 185729.3517 | CH13: 105936.1121 | CI13: 113625.5116 | CJ13: 18114.24584 | CK13: 124824.3524 | CL13: 2083290.571 | CM13: 4418.833539 | CN13: 79390.05085 | CO13: 101768.1801 | CP13: 119634.2227 | CQ13: 7780.424492 | CR13: 167472.4852 | CS13: 60485.38363 | CT13: 551024.3099 | CU13: 360528.3648 | CV13: 331793.0753 | CW13: 408414.8406 | CX13: 19039.57986 | CY13: 47922.77586 | CZ13: 53054.3114 | DA13: 731493.1463 | DB13: 41190.41159 | DC13: 47684.51257 | DD13: 357084.8393 | DE13: 18481.00407 | DF13: 192810.5665 | DG13: 3144.996805 | DH13: 847653.3828 | DI13: 3798.592243 | DJ13: 198929.8577 | DK13: 47536.053 | DL13: 351726.1299 | DM13: 83132.89071 | DN13: 303867.44 | DO13: 340692.1673 | DP13: 5704.897006 | DQ13: 189470.5362 | DR13: 74753.68978 | DS13: 70412.85442 | DT13: 27098.34342 | DU13: 88113.89412 | DV13: 264521.4236 | DW13: 243055.0836 | DX13: 183792.5899 | DY13: 87223.5109 | DZ13: 1355290.761 | EA13: 21010.973 | EB13: 86056.11811 | EC13: 288999.943 | ED13: 105457.7048 | EE13: 1401896.913 | EF13: 2850.46975 | EG13: 270059.8782 | EH13: 97755.83045 | EI13: 81526.45937 | EJ13: 75346.51194 | EK13: 433357.0219 | EL13: 113410.3415 | EM13: 87658.54968 | EN13: 25210.09755 | EO13: 77015.89321 | EP13: 101200.9864 | EQ13: 102134.8213 | ER13: 91111.64523 | ES13: 180349.2115 | ET13: 96599.53045 | EU13: 245294.4616 | EV13: 80749.84807 | EW13: 75028.56467 | EX13: 82064.13607 | EY13: 118548.7158 | EZ13: 94334.80738 | FA13: 81452.60516 | FB13: 11221.05819 | FC13: 81605.40221 | FD13: 94485.69775 | FE13: 78244.18724 | FF13: 1799.284158 | FG13: 104786.9283 | FH13: 751439.9725 | FI13: 82616.42483 | FJ13: 78536.36149 | FK13: 83731.54618 | FL13: 81377.84531 | FM13: 81130.83266 | FN13: 210310.7516 | FO13: 105249.3483 | FP13: 84761.86405 | FQ13: 21942.49839 | FR13: 184322.9353 | FS13: 183387.2783 | FT13: 280021.0143 | FU13: 98038.4212 | FV13: 92508.6115 | FW13: 94941.5111 | FX13: 0.007619470838 | FY13: 36537.02214 | FZ13: 61788.60562 | GA13: 82376.40023 | GB13: 120442.6075 | GC13: 86418.28277 | GD13: 22501.5777 | GE13: 28561.71053 | GF13: 363509.041 | GG13: 365116.2721 | GH13: 99930.33668 | GI13: 230000.9537 | GJ13: 2621.254107 | GK13: 40439.25235 | GL13: 887.3028431 | GM13: 275983.4934 | GN13: 98903.40226 | GO13: 82168.3056 | GP13: 348273.7816 | GQ13: 89838.67144 | GR13: 67375.45042 | GS13: 121151.5945 | GT13: 412574.7015 | GU13: 400293.5014 | GV13: 255497.1076 | GW13: 16647936.66 | GX13: 1310059.586 | GY13: 8815.115699 | GZ13: 1129538.386 | HA13: 404106.9317 | HB13: 9712199.288 | HC13: 2826820.268 | HD13: 649828.5879 | HE13: 239953.4273 | HF13: 321455.33 | HG13: 469151.5178 | HH13: 124498.7798 | HI13: 148817.3585 | HJ13: 445700.0803 | HK13: 7987.035175 | HL13: 1289712.515 | HM13: 441095.765 | HN13: 6777.477242 | HO13: 81157.00675 | HP13: 37228.65328 | HQ13: 44844.83258 | HR13: 74040.86281 | HS13: 47240.26429 | HT13: 38951.90455 | HU13: 73653.10702 | HV13: 59787.38924 | HW13: 85666.9577 | HX13: 1696.831669 | HY13: 37811.53779 | HZ13: 62590.64172 | IA13: 73280.89276 | IB13: 185164.0003 | IC13: 92292.34399 | ID13: 89608.40011 | IE13: 66359.28565 | IF13: 105875.6401 | IG13: 49529.65309 | IH13: 92989.77689 | II13: 57173.68828 | IJ13: 37659.83637 | IK13: 69893.57544 | IL13: 57251.63013 | IM13: 23192.28443 | IN13: 492583.9728 | IO13: 1868385.473 | IP13: 91804.10644 | IQ13: 381839.9152 | IR13: 176447.2561 | IS13: 199399.5375 | IT13: 81419.47181 | IU13: 123593.3089 | IV13: 106705.2136 | IW13: 119788.0413 | IX13: 224524.0902 | IY13: 565821.4682 | IZ13: 73120.26483 | JA13: 269443.235 | JB13: 63233.60697 | JC13: 68758.51442 | JD13: 53176.07628 | JE13: 72572.55784 | JF13: 787639.2921 | JG13: 1278432.924 | JH13: 63229.49162 | JI13: 110435.3461 | JJ13: 233126.2211 | JK13: 227211.9425 | JL13: 123700920.6
A14: =+MATCH(B14,RUT[EMPRESA],0) -> 56 | B14: COLBUN | C14: -5672568034 | D14: -5672568034 | F14: =IFERROR(INDEX($B$9:$B$511,MATCH(0,INDEX(COUNTIF($F$8:F13,$B$9:$B$511),0,0),0)),"") -> COLBUN | G14: -5672568034 | J14: PACIFIC HYDRO | K14: 69844.43136 | L14: 15054.58661 | M14: 183530.3214 | N14: 1956287.996 | O14: 251956.0279 | P14: 32212.69429 | Q14: 4728.687745 | R14: 52532.18664 | S14: 24484.34933 | T14: 143445.1636 | U14: 19683.03491 | V14: 29607.60788 | W14: 12901.23114 | X14: 58356.267 | Y14: 35489.43942 | Z14: 386217.9905 | AA14: 18930.50099 | AB14: 7.679574982 | AC14: 4397.889569 | AD14: 5698.878289 | AE14: 28909.30587 | AF14: 40560.01886 | AG14: 4250.431315 | AH14: 38780.14962 | AI14: 102336.7998 | AJ14: 88218.76078 | AK14: 3155.576257 | AL14: 10376.73347 | AM14: 302236.002 | AN14: 75743.01702 | AO14: 5364.428463 | AP14: 486011.7541 | AQ14: 15540.39879 | AR14: 23529.01 | AS14: 37125.46896 | AT14: 197670.3784 | AU14: 60891.6409 | AV14: 3066.395752 | AW14: 354.2067266 | AX14: 12244.6135 | AY14: 52238.70601 | AZ14: 116.195606 | BA14: 19241.41183 | BB14: 240.6033792 | BC14: 47549.39203 | BD14: 355.1856667 | BE14: 0.2409229335 | BF14: 98503.5914 | BG14: 36924.76356 | BH14: 2571.412752 | BI14: 4118.404328 | BJ14: 54826.53155 | BK14: 13120.5348 | BL14: 334965.6313 | BM14: 151581.6962 | BN14: 26872.53566 | BO14: 208.563019 | BP14: 27999.03798 | BQ14: 20326.96372 | BR14: 1816.172832 | BS14: 23900.10322 | BT14: 117305.9089 | BU14: 9077.512233 | BV14: 9713.970835 | BW14: 4461.065052 | BX14: 2312245.334 | BY14: 263209.5674 | BZ14: 36334.41947 | CA14: 4571.079149 | CB14: 9411.696287 | CC14: 132819.273 | CD14: 232866.472 | CE14: 47122.95845 | CF14: 2092.350364 | CG14: 29683.74283 | CH14: 16930.98199 | CI14: 18159.9216 | CJ14: 2895.065374 | CK14: 19949.74916 | CL14: 332956.8589 | CM14: 706.2293449 | CN14: 12688.32218 | CO14: 16264.85237 | CP14: 19120.24926 | CQ14: 1243.48746 | CR14: 26765.88346 | CS14: 9666.929629 | CT14: 88066.12288 | CU14: 57620.57082 | CV14: 53028.02293 | CW14: 65273.91058 | CX14: 3042.954639 | CY14: 7659.141334 | CZ14: 8479.276546 | DA14: 116909.1166 | DB14: 6583.157555 | DC14: 7621.061482 | DD14: 57070.21773 | DE14: 2953.681619 | DF14: 30815.4808 | DG14: 502.6414807 | DH14: 135474.1445 | DI14: 607.1007853 | DJ14: 31793.48166 | DK14: 7597.334292 | DL14: 56213.775 | DM14: 13286.51248 | DN14: 48564.87605 | DO14: 54450.29871 | DP14: 911.771317 | DQ14: 30281.66857 | DR14: 11947.32703 | DS14: 11253.56355 | DT14: 4330.926964 | DU14: 14082.58926 | DV14: 42276.49448 | DW14: 38845.68879 | DX14: 29374.20457 | DY14: 13940.28592 | DZ14: 216606.0563 | EA14: 3358.027762 | EB14: 13753.7102 | EC14: 46188.71443 | ED14: 16854.5217 | EE14: 224054.7714 | EF14: 455.5694091 | EG14: 43161.66454 | EH14: 15623.58833 | EI14: 13029.76849 | EJ14: 12042.07339 | EK14: 69260.23417 | EL14: 18125.53257 | EM14: 14009.81494 | EN14: 4029.14265 | EO14: 12308.8782 | EP14: 16174.20202 | EQ14: 16323.44992 | ER14: 14561.69755 | ES14: 28823.87498 | ET14: 15438.78549 | EU14: 39203.59195 | EV14: 12905.64847 | EW14: 11991.25824 | EX14: 13115.70136 | EY14: 18946.76076 | EZ14: 15076.83162 | FA14: 13017.96492 | FB14: 1793.37839 | FC14: 13042.38534 | FD14: 15100.94731 | FE14: 12505.18731 | FF14: 287.5662234 | FG14: 16747.31648 | FH14: 120097.0697 | FI14: 13203.96957 | FJ14: 12551.88335 | FK14: 13382.19114 | FL14: 13006.01661 | FM14: 12966.53841 | FN14: 33612.4054 | FO14: 16821.22163 | FP14: 13546.85919 | FQ14: 3506.906547 | FR14: 29458.96575 | FS14: 29309.42664 | FT14: 44753.67895 | FU14: 15668.75271 | FV14: 14784.9643 | FW14: 15173.79657 | FX14: 0.001217763433 | FY14: 5839.440881 | FZ14: 9875.213919 | GA14: 13165.60822 | GB14: 19249.44741 | GC14: 13811.59229 | GD14: 3596.26004 | GE14: 4564.80606 | GF14: 58096.95016 | GG14: 58353.82197 | GH14: 15971.12351 | GI14: 36759.34417 | GJ14: 418.9355753 | GK14: 6463.105352 | GL14: 141.8110232 | GM14: 44108.39196 | GN14: 15806.99621 | GO14: 13132.35 | GP14: 55662.01181 | GQ14: 14358.24761 | GR14: 10768.11783 | GS14: 19362.75953 | GT14: 65938.75026 | GU14: 63975.93727 | GV14: 40834.20507 | GW14: 2660716.068 | GX14: 209377.0936 | GY14: 1408.854471 | GZ14: 180525.7309 | HA14: 64585.40951 | HB14: 1552228.678 | HC14: 451789.6881 | HD14: 103857.2768 | HE14: 38349.9741 | HF14: 51375.81787 | HG14: 74981.0026 | HH14: 19897.71529 | HI14: 23784.3731 | HJ14: 71232.93354 | HK14: 1276.508511 | HL14: 206125.1723 | HM14: 70497.06001 | HN14: 1083.19385 | HO14: 12970.72162 | HP14: 5949.97915 | HQ14: 7167.216519 | HR14: 11833.40119 | HS14: 7550.060578 | HT14: 6225.3936 | HU14: 11771.42906 | HV14: 9555.374368 | HW14: 13691.51358 | HX14: 271.1920029 | HY14: 6043.137251 | HZ14: 10003.39739 | IA14: 11711.94082 | IB14: 29593.38691 | IC14: 14750.39987 | ID14: 14321.44505 | IE14: 10605.71176 | IF14: 16921.31719 | IG14: 7915.956587 | IH14: 14861.86539 | II14: 9137.645956 | IJ14: 6018.891939 | IK14: 11170.57105 | IL14: 9150.102824 | IM14: 3706.650566 | IN14: 78726.03786 | IO14: 298610.1733 | IP14: 14672.36848 | IQ14: 61026.63764 | IR14: 28200.25443 | IS14: 31868.5471 | IT14: 13012.66946 | IU14: 19753.00061 | IV14: 17053.90177 | IW14: 19144.83295 | IX14: 35884.01775 | IY14: 90431.0428 | IZ14: 11686.26885 | JA14: 43063.11104 | JB14: 10106.15775 | JC14: 10989.16268 | JD14: 8498.737322 | JE14: 11598.73291 | JF14: 125882.5381 | JG14: 204322.4391 | JH14: 10105.50003 | JI14: 17650.06114 | JJ14: 37258.83244 | JK14: 36313.59723 | JL14: 19770199.38
A15: =+MATCH(B15,RUT[EMPRESA],0) -> 244 | B15: PEHUENCHE | C15: 300903179.4 | D15: 300903179.4 | F15: =IFERROR(INDEX($B$9:$B$511,MATCH(0,INDEX(COUNTIF($F$8:F14,$B$9:$B$511),0,0),0)),"") -> PEHUENCHE | H15: 300903179.4 | J15: ELECTRICA CENIZAS | K15: 970199.122 | L15: 209121.1343 | M15: 2549393.748 | N15: 27174520 | O15: 3499885.564 | P15: 447461.9824 | Q15: 65685.53297 | R15: 729717.1781 | S15: 340108.6352 | T15: 1992576.489 | U15: 273414.2553 | V15: 411275.0955 | W15: 179209.1779 | X15: 810618.6551 | Y15: 492978.7858 | Z15: 5364899.506 | AA15: 262960.9131 | AB15: 106.6758904 | AC15: 61090.46227 | AD15: 79162.31267 | AE15: 401575.081 | AF15: 563413.488 | AG15: 59042.14051 | AH15: 538689.5761 | AI15: 1421546.019 | AJ15: 1225434.334 | AK15: 43833.66368 | AL15: 144141.7376 | AM15: 4198317.576 | AN15: 1052135.542 | AO15: 74516.51741 | AP15: 6751120.568 | AQ15: 215869.4827 | AR15: 326838.1516 | AS15: 515704.6409 | AT15: 2745811.281 | AU15: 845837.1754 | AV15: 42594.8699 | AW15: 4920.235565 | AX15: 170088.1951 | AY15: 725640.4801 | AZ15: 1614.056736 | BA15: 267279.7315 | BB15: 3342.187526 | BC15: 660501.8826 | BD15: 4933.833883 | BE15: 3.34662641 | BF15: 1368299.463 | BG15: 512916.6706 | BH15: 35719.13101 | BI15: 57208.1723 | BJ15: 761587.5989 | BK15: 182255.494 | BL15: 4652960.231 | BM15: 2105599.912 | BN15: 373282.5939 | BO15: 2897.119412 | BP15: 388930.6784 | BQ15: 282358.9794 | BR15: 25228.20006 | BS15: 331992.955 | BT15: 1629479.796 | BU15: 126094.4391 | BV15: 134935.3956 | BW15: 61968.02397 | BX15: 32119073.05 | BY15: 3656206.891 | BZ15: 504716.2842 | CA15: 63496.21424 | CB15: 130736.5426 | CC15: 1844973.744 | CD15: 3234715.242 | CE15: 654578.3541 | CF15: 29064.54311 | CG15: 412332.6753 | CH15: 235185.8773 | CI15: 252256.9037 | CJ15: 40214.94383 | CK15: 277119.1452 | CL15: 4625056.657 | CM15: 9810.13199 | CN15: 176251.6897 | CO15: 225932.765 | CP15: 265596.6794 | CQ15: 17273.10851 | CR15: 371801.1032 | CS15: 134281.9529 | CT15: 1223314.063 | CU15: 800399.2035 | CV15: 736604.7699 | CW15: 906710.6641 | CX15: 42269.2527 | CY15: 106392.0495 | CZ15: 117784.4318 | DA15: 1623968.011 | DB15: 91445.71093 | DC15: 105863.0876 | DD15: 792754.3264 | DE15: 41029.1738 | DF15: 428053.4875 | DG15: 6982.12175 | DH15: 1881852.189 | DI15: 8433.151182 | DJ15: 441638.759 | DK15: 105533.4966 | DL15: 780857.6016 | DM15: 184561.0665 | DN15: 674607.8275 | DO15: 756361.4016 | DP15: 12665.28647 | DQ15: 420638.3772 | DR15: 165958.6307 | DS15: 156321.6604 | DT15: 60160.29419 | DU15: 195619.2565 | DV15: 587256.8082 | DW15: 539599.9713 | DX15: 408032.9231 | DY15: 193642.541 | DZ15: 3008844.106 | EA15: 46645.88892 | EB15: 191050.844 | EC15: 641600.9024 | ED15: 234123.7781 | EE15: 3112313.155 | EF15: 6328.250257 | EG15: 599552.5803 | EH15: 217025.0568 | EI15: 180994.672 | EJ15: 167274.739 | EK15: 962084.1216 | EL15: 251779.2105 | EM15: 194608.3587 | EN15: 55968.25095 | EO15: 170980.8869 | EP15: 224673.5537 | EQ15: 226746.7352 | ER15: 202274.4821 | ES15: 400388.3725 | ET15: 214457.9866 | EU15: 544571.5536 | EV15: 179270.5384 | EW15: 166568.873 | EX15: 182188.3534 | EY15: 263186.7751 | EZ15: 209430.1366 | FA15: 180830.7103 | FB15: 24911.56569 | FC15: 181169.9309 | FD15: 209765.1242 | FE15: 173707.7891 | FF15: 3994.541755 | FG15: 232634.6057 | FH15: 1668251.417 | FI15: 183414.4747 | FJ15: 174356.4372 | FK15: 185890.1252 | FL15: 180664.738 | FM15: 180116.3519 | FN15: 466905.1716 | FO15: 233661.2117 | FP15: 188177.5058 | FQ15: 48713.94306 | FR15: 409210.3286 | FS15: 407133.102 | FT15: 621667.0274 | FU15: 217652.4288 | FV15: 205375.8489 | FW15: 210777.063 | FX15: 0.01691577969 | FY15: 81114.84775 | FZ15: 137175.2005 | GA15: 182881.6026 | GB15: 267391.3526 | GC15: 191854.8759 | GD15: 49955.13981 | GE15: 63409.07565 | GF15: 807016.5215 | GG15: 810584.6915 | GH15: 221852.6188 | GI15: 510618.8532 | GJ15: 5819.374851 | GK15: 89778.08276 | GL15: 1969.876876 | GM15: 612703.4371 | GN15: 219572.7497 | GO15: 182419.6174 | GP15: 773193.1371 | GQ15: 199448.3877 | GR15: 149578.4025 | GS15: 268965.3552 | GT15: 915945.858 | GU15: 888680.7003 | GV15: 567222.1699 | GW15: 36959630.76 | GX15: 2908427.607 | GY15: 19570.19828 | GZ15: 2507657.407 | HA15: 897146.7931 | HB15: 21561789.12 | HC15: 6275746.687 | HD15: 1442666.749 | HE15: 532714.0686 | HF15: 713654.2231 | HG15: 1041550.507 | HH15: 276396.3502 | HI15: 330385.3644 | HJ15: 989486.6095 | HK15: 17731.79926 | HL15: 2863255.628 | HM15: 979264.6945 | HN15: 15046.49264 | HO15: 180174.4603 | HP15: 82650.31921 | HQ15: 99558.79143 | HR15: 164376.103 | HS15: 104876.8241 | HT15: 86476.06241 | HU15: 163515.2569 | HV15: 132732.3545 | HW15: 190186.8796 | HX15: 3767.089774 | HY15: 83944.36523 | HZ15: 138955.779 | IA15: 162688.9142 | IB15: 411077.554 | IC15: 204895.7193 | ID15: 198937.1686 | IE15: 147322.4427 | IF15: 235051.625 | IG15: 109959.4339 | IH15: 206444.0711 | II15: 126929.7482 | IJ15: 83607.57704 | IK15: 155168.8233 | IL15: 127102.7848 | IM15: 51488.55901 | IN15: 1093572.262 | IO15: 4147951.703 | IP15: 203811.7964 | IQ15: 847712.3961 | IR15: 391725.7476 | IS15: 442681.4824 | IT15: 180757.1519 | IU15: 274386.139 | IV15: 236893.3386 | IW15: 265938.168 | IX15: 498459.8177 | IY15: 1256164.831 | IZ15: 162332.3085 | JA15: 598183.5875 | JB15: 140383.2086 | JC15: 152648.9052 | JD15: 118054.7587 | JE15: 161116.3591 | JF15: 1748616.541 | JG15: 2838214.117 | JH15: 140374.0722 | JI15: 245174.504 | JJ15: 517557.1741 | JK15: 504427.0454 | JL15: 274625044.7
A16: =+MATCH(B16,RUT[EMPRESA],0) -> 156 | B16: GUACOLDA | C16: 3207389785 | D16: 3207389785 | F16: =IFERROR(INDEX($B$9:$B$511,MATCH(0,INDEX(COUNTIF($F$8:F15,$B$9:$B$511),0,0),0)),"") -> GUACOLDA | H16: 3207389785 | J16: ENLASA | K16: 22306.27767 | L16: 4807.99661 | M16: 58614.24069 | N16: 624781.4237 | O16: 80467.41895 | P16: 10287.7966 | Q16: 1510.205178 | R16: 16777.2508 | S16: 7819.588252 | T16: 45812.20848 | U16: 6286.188228 | V16: 9455.807856 | W16: 4120.277574 | X16: 18637.29249 | Y16: 11334.29358 | Z16: 123346.7804 | AA16: 6045.850807 | AB16: 2.452632639 | AC16: 1404.557872 | AD16: 1820.055788 | AE16: 9232.790527 | AF16: 12953.68902 | AG16: 1357.464 | AH16: 12385.25061 | AI16: 32683.39407 | AJ16: 28174.50347 | AK16: 1007.799174 | AL16: 3314.026524 | AM16: 96525.37864 | AN16: 24190.11418 | AO16: 1713.242252 | AP16: 155218.0028 | AQ16: 4963.150876 | AR16: 7514.480687 | AS16: 11856.79378 | AT16: 63130.16317 | AU16: 19447.01708 | AV16: 979.3175173 | AW16: 113.1233148 | AX16: 3910.573018 | AY16: 16683.52163 | AZ16: 37.10949322 | BA16: 6145.146674 | BB16: 76.84171352 | BC16: 15185.89129 | BD16: 113.4359598 | BE16: 0.07694376987 | BF16: 31459.17891 | BG16: 11792.69432 | BH16: 821.2343595 | BI16: 1315.298424 | BJ16: 17509.99776 | BK16: 4190.316776 | BL16: 106978.2693 | BM16: 48410.78006 | BN16: 8582.305427 | BO16: 66.60895541 | BP16: 8942.077467 | BQ16: 6491.840339 | BR16: 580.03272 | BS16: 7632.997054 | BT16: 37464.09163 | BU16: 2899.093092 | BV16: 3102.359437 | BW16: 1424.734282 | BX16: 738463.8327 | BY16: 84061.47181 | BZ16: 11604.15561 | CA16: 1459.869581 | CB16: 3005.821748 | CC16: 42418.60841 | CD16: 74370.77065 | CE16: 15049.70082 | CF16: 668.235782 | CG16: 9480.123141 | CH16: 5407.262659 | CI16: 5799.750186 | CJ16: 924.5995831 | CK16: 6371.368992 | CL16: 106336.7258 | CM16: 225.5490891 | CN16: 4052.280651 | CO16: 5194.520255 | CP16: 6106.450878 | CQ16: 397.1336873 | CR16: 8548.243818 | CS16: 3087.335846 | CT16: 28125.75537 | CU16: 18402.33255 | CV16: 16935.60647 | CW16: 20846.58642 | CX16: 971.8311081 | CY16: 2446.106726 | CZ16: 2708.034033 | DA16: 37337.36774 | DB16: 2102.468837 | DC16: 2433.94513 | DD16: 18226.5658 | DE16: 943.3199049 | DF16: 9841.567296 | DG16: 160.5290532 | DH16: 43266.49707 | DI16: 193.8903135 | DJ16: 10153.91229 | DK16: 2426.367357 | DL16: 17953.04293 | DM16: 4243.325214 | DN16: 15510.20732 | DO16: 17389.83995 | DP16: 291.1932101 | DQ16: 9671.083212 | DR16: 3815.628375 | DS16: 3594.060521 | DT16: 1383.171966 | DU16: 4497.568958 | DV16: 13501.88135 | DW16: 12406.18191 | DX16: 9381.265634 | DY16: 4452.121415 | DZ16: 69177.66732 | EA16: 1072.45629 | EB16: 4392.534563 | EC16: 14751.33049 | ED16: 5382.843466 | EE16: 71556.57005 | EF16: 145.4956042 | EG16: 13784.57889 | EH16: 4989.719191 | EI16: 4161.32866 | EJ16: 3845.887604 | EK16: 22119.7021 | EL16: 5788.76733 | EM16: 4474.326959 | EN16: 1286.790844 | EO16: 3931.097292 | EP16: 5165.569171 | EQ16: 5213.234605 | ER16: 4650.582197 | ES16: 9205.506388 | ET16: 4930.698544 | EU16: 12520.48576 | EV16: 4121.68834 | EW16: 3829.658725 | EX16: 4188.773117 | EY16: 6051.043701 | EZ16: 4815.101018 | FA16: 4157.558943 | FB16: 572.7528389 | FC16: 4165.358113 | FD16: 4822.802867 | FE16: 3993.792706 | FF16: 91.84027851 | FG16: 5348.605243 | FH16: 38355.50713 | FI16: 4216.963414 | FJ16: 4008.706062 | FK16: 4273.882191 | FL16: 4153.743 | FM16: 4141.134813 | FN16: 10734.82357 | FO16: 5372.208396 | FP16: 4326.472372 | FQ16: 1120.003838 | FR16: 9408.335887 | FS16: 9360.577449 | FT16: 14293.02194 | FU16: 5004.143379 | FV16: 4721.887094 | FW16: 4846.0688 | FX16: 0.000388918182 | FY16: 1864.947387 | FZ16: 3153.855783 | GA16: 4204.711916 | GB16: 6147.713005 | GC16: 4411.020417 | GD16: 1148.540742 | GE16: 1457.86614 | GF16: 18554.47424 | GG16: 18636.51162 | GH16: 5100.711808 | GI16: 11739.86418 | GJ16: 133.7958243 | GK16: 2064.12766 | GL16: 45.29031163 | GM16: 14086.93606 | GN16: 5048.294327 | GO16: 4194.090209 | GP16: 17776.82583 | GQ16: 4585.606208 | GR16: 3439.023293 | GS16: 6183.901596 | GT16: 21058.91685 | GU16: 20432.05154 | GV16: 13041.25611 | GW16: 849755.2386 | GX16: 66868.94713 | GY16: 449.9470954 | GZ16: 57654.66198 | HA16: 20626.69923 | HB16: 495736.6425 | HC16: 144288.4713 | HD16: 33168.99013 | HE16: 12247.86507 | HF16: 16407.94029 | HG16: 23946.74896 | HH16: 6354.75089 | HI16: 7596.036226 | HJ16: 22749.72484 | HK16: 407.6796494 | HL16: 65830.37816 | HM16: 22514.70826 | HN16: 345.9405756 | HO16: 4142.470809 | HP16: 1900.250091 | HQ16: 2289.000264 | HR16: 3779.243779 | HS16: 2411.269509 | HT16: 1988.209447 | HU16: 3759.451685 | HV16: 3051.708344 | HW16: 4372.670775 | HX16: 86.61082928 | HY16: 1930.002076 | HZ16: 3194.793853 | IA16: 3740.452873 | IB16: 9451.266092 | IC16: 4710.848221 | ID16: 4573.852543 | IE16: 3387.155524 | IF16: 5404.176004 | IG16: 2528.12604 | IH16: 4746.447063 | II16: 2918.298052 | IJ16: 1922.25883 | IK16: 3567.555133 | IL16: 2922.276413 | IM16: 1183.796262 | IN16: 25142.80418 | IO16: 95367.39456 | IP16: 4685.92727 | IQ16: 19490.13111 | IR16: 9006.340142 | IS16: 10177.88601 | IT16: 4155.867728 | IU16: 6308.533236 | IV16: 5446.519658 | IW16: 6114.302194 | IX16: 11460.31041 | IY16: 28881.04194 | IZ16: 3732.253994 | JA16: 13753.10377 | JB16: 3227.61252 | JC16: 3509.618581 | JD16: 2714.249238 | JE16: 3704.297564 | JF16: 40203.21727 | JG16: 65254.63768 | JH16: 3227.402461 | JI16: 5636.9156 | JJ16: 11899.38619 | JK16: 11597.50559 | JL16: 6314026.022
A17: =+MATCH(B17,RUT[EMPRESA],0) -> 19 | B17: ARAUCO BIO | C17: 413089070.5 | D17: 413089070.5 | F17: =IFERROR(INDEX($B$9:$B$511,MATCH(0,INDEX(COUNTIF($F$8:F16,$B$9:$B$511),0,0),0)),"") -> ARAUCO BIO | H17: 413089070.5 | J17: GAS SUR | K17: 12683.99145 | L17: 2733.965245 | M17: 33329.74416 | N17: 355268.6986 | O17: 45756.09025 | P17: 5849.937226 | Q17: 858.7461275 | R17: 9540.027652 | S17: 4446.442926 | T17: 26050.14021 | U17: 3574.507541 | V17: 5376.844483 | W17: 2342.908409 | X17: 10597.70088 | Y17: 6445.00553 | Z17: 70138.52923 | AA17: 3437.844767 | AB17: 1.394637504 | AC17: 798.6720291 | AD17: 1034.936102 | AE17: 5250.030411 | AF17: 7365.840378 | AG17: 771.8930978 | AH17: 7042.609939 | AI17: 18584.71849 | AJ17: 16020.83353 | AK17: 573.0636143 | AL17: 1884.450859 | AM17: 54887.10827 | AN17: 13755.19511 | AO17: 974.1988511 | AP17: 88261.42351 | AQ17: 2822.190426 | AR17: 4272.949983 | AS17: 6742.11418 | AT17: 35897.62765 | AU17: 11058.13359 | AV17: 556.8681248 | AW17: 64.32517248 | AX17: 2223.664363 | AY17: 9486.730548 | AZ17: 21.10152585 | BA17: 3494.307255 | BB17: 43.69440979 | BC17: 8635.134834 | BD17: 64.50295139 | BE17: 0.04375244197 | BF17: 17888.59451 | BG17: 6705.665382 | BH17: 466.9774918 | BI17: 747.916538 | BJ17: 9956.68866 | BK17: 2382.734715 | BL17: 60830.92271 | BM17: 27527.76279 | BN17: 4880.145862 | BO17: 37.87576904 | BP17: 5084.722598 | BQ17: 3691.44725 | BR17: 329.8232978 | BS17: 4340.341801 | BT17: 21303.16071 | BU17: 1648.507767 | BV17: 1764.090861 | BW17: 810.1449163 | BX17: 419911.7881 | BY17: 47799.77214 | BZ17: 6598.456843 | CA17: 830.1238586 | CB17: 1709.196753 | CC17: 24120.44154 | CD17: 42289.36056 | CE17: 8557.693015 | CF17: 379.9780973 | CG17: 5390.670854 | CH17: 3074.725167 | CI17: 3297.904871 | CJ17: 525.7539327 | CK17: 3622.943775 | CL17: 60466.12265 | CM17: 128.2537033 | CN17: 2304.243402 | CO17: 2953.753714 | CP17: 3472.303712 | CQ17: 225.821644 | CR17: 4860.777451 | CS17: 1755.548015 | CT17: 15993.11396 | CU17: 10464.0959 | CV17: 9630.073244 | CW17: 11853.969 | CX17: 552.6111371 | CY17: 1390.926683 | CZ17: 1539.866087 | DA17: 21231.10186 | DB17: 1195.524289 | DC17: 1384.011249 | DD17: 10364.14987 | DE17: 536.3988464 | DF17: 5596.198403 | DG17: 91.28143966 | DH17: 24602.57543 | DI17: 110.2516124 | DJ17: 5773.806756 | DK17: 1379.702309 | DL17: 10208.61689 | DM17: 2412.876838 | DN17: 8819.55026 | DO17: 9888.363468 | DP17: 165.5808397 | DQ17: 5499.256246 | DR17: 2169.676107 | DS17: 2043.686249 | DT17: 786.5113872 | DU17: 2557.447148 | DV17: 7677.558315 | DW17: 7054.512078 | DX17: 5334.45763 | DY17: 2531.604368 | DZ17: 39336.41256 | EA17: 609.8295113 | EB17: 2497.721569 | EC17: 8388.031053 | ED17: 3060.839712 | EE17: 40689.12511 | EF17: 82.73298786 | EG17: 7838.308273 | EH17: 2837.297935 | EI17: 2366.251238 | EJ17: 2186.882375 | EK17: 12577.89922 | EL17: 3291.659703 | EM17: 2544.231079 | EN17: 731.7063072 | EO17: 2235.335056 | EP17: 2937.291294 | EQ17: 2964.395232 | ER17: 2644.45488 | ES17: 5234.515864 | ET17: 2803.737097 | EU17: 7119.508537 | EV17: 2343.710611 | EW17: 2177.654167 | EX17: 2381.856946 | EY17: 3440.797596 | EZ17: 2738.005016 | FA17: 2364.107668 | FB17: 325.6837479 | FC17: 2368.542501 | FD17: 2742.384509 | FE17: 2270.985473 | FF17: 52.2230255 | FG17: 3041.370873 | FH17: 21810.04522 | FI17: 2397.88676 | FJ17: 2279.465636 | FK17: 2430.252415 | FL17: 2361.937814 | FM17: 2354.768436 | FN17: 6104.129629 | FO17: 3054.792305 | FP17: 2460.156706 | FQ17: 636.8664159 | FR17: 5349.850555 | FS17: 5322.693732 | FT17: 8127.423623 | FU17: 2845.499943 | FV17: 2685.000896 | FW17: 2755.614188 | FX17: 0.0002211500713 | FY17: 1060.462757 | FZ17: 1793.373166 | GA17: 2390.920206 | GB17: 3495.766544 | GC17: 2508.233157 | GD17: 653.0933208 | GE17: 828.984644 | GF17: 10550.60805 | GG17: 10597.25686 | GH17: 2900.411531 | GI17: 6675.624646 | GJ17: 76.08015633 | GK17: 1173.722392 | GL17: 25.75337463 | GM17: 8010.237263 | GN17: 2870.605443 | GO17: 2384.880397 | GP17: 10108.41478 | GQ17: 2607.507662 | GR17: 1955.527619 | GS17: 3516.344418 | GT17: 11974.70619 | GU17: 11618.25253 | GV17: 7415.633546 | GW17: 483195.2844 | GX17: 38023.60781 | GY17: 255.8528678 | GZ17: 32784.10009 | HA17: 11728.93481 | HB17: 281890.1221 | HC17: 82046.57739 | HD17: 18860.84238 | HE17: 6964.488568 | HF17: 9330.027065 | HG17: 13616.81064 | HH17: 3613.494244 | HI17: 4319.32481 | HJ17: 12936.14828 | HK17: 231.8183816 | HL17: 37433.0476 | HM17: 12802.51109 | HN17: 196.7117674 | HO17: 2355.528121 | HP17: 1080.536891 | HQ17: 1301.591427 | HR17: 2148.986778 | HS17: 1371.117239 | HT17: 1130.553112 | HU17: 2137.732424 | HV17: 1735.289192 | HW17: 2486.426447 | HX17: 49.24941017 | HY17: 1097.454726 | HZ17: 1816.65173 | IA17: 2126.929153 | IB17: 5374.261905 | IC17: 2678.723876 | ID17: 2600.82419 | IE17: 1926.034112 | IF17: 3072.970007 | IG17: 1437.565225 | IH17: 2698.966401 | II17: 1659.42826 | IJ17: 1093.051693 | IK17: 2028.614522 | IL17: 1661.690471 | IM17: 673.140624 | IN17: 14296.92206 | IO17: 54228.64519 | IP17: 2664.553106 | IQ17: 11082.64947 | IR17: 5121.264205 | IS17: 5787.438901 | IT17: 2363.145995 | IU17: 3587.213556 | IV17: 3097.047827 | IW17: 3476.768196 | IX17: 6516.662326 | IY17: 16422.59163 | IZ17: 2122.267035 | JA17: 7820.410615 | JB17: 1835.313369 | JC17: 1995.670131 | JD17: 1543.400232 | JE17: 2106.370203 | JF17: 22860.70638 | JG17: 37105.665 | JH17: 1835.193923 | JI17: 3205.312439 | JJ17: 6766.333451 | JK17: 6594.675452 | JL17: 3590336.912
A18: =+MATCH(B18,RUT[EMPRESA],0) -> 289 | B18: SGA | C18: 52813628.04 | D18: 52813628.04 | F18: =IFERROR(INDEX($B$9:$B$511,MATCH(0,INDEX(COUNTIF($F$8:F17,$B$9:$B$511),0,0),0)),"") -> SGA | H18: 52813628.04 | J18: NORVIND | K18: 1028989.692 | L18: 221793.1214 | M18: 2703877.821 | N18: 28821197.97 | O18: 3711966.015 | P18: 474576.5659 | Q18: 69665.83954 | R18: 773935.4092 | S18: 360717.9928 | T18: 2113319.443 | U18: 289982.1738 | V18: 436196.884 | W18: 190068.6083 | X18: 859739.2241 | Y18: 522851.5235 | Z18: 5689993.08 | AA18: 278895.3967 | AB18: 113.1400649 | AC18: 64792.32411 | AD18: 83959.26351 | AE18: 425909.0836 | AF18: 597554.3149 | AG18: 62619.88144 | AH18: 571332.2229 | AI18: 1507686.585 | AJ18: 1299691.239 | AK18: 46489.82572 | AL18: 152876.2074 | AM18: 4452720.49 | AN18: 1115891.163 | AO18: 79031.9498 | AP18: 7160214.143 | AQ18: 228950.3953 | AR18: 346643.3657 | AS18: 546954.4835 | AT18: 2912197.549 | AU18: 897091.8598 | AV18: 45175.9655 | AW18: 5218.384108 | AX18: 180394.9267 | AY18: 769611.678 | AZ18: 1711.862757 | BA18: 283475.92 | BB18: 3544.712045 | BC18: 700525.9162 | BD18: 5232.806434 | BE18: 3.549419909 | BF18: 1451213.479 | BG18: 543997.5722 | BH18: 37883.58162 | BI18: 60674.78136 | BJ18: 807737.0626 | BK18: 193299.5201 | BL18: 4934912.851 | BM18: 2233191.678 | BN18: 395902.1738 | BO18: 3072.674407 | BP18: 412498.4757 | BQ18: 299468.9159 | BR18: 26756.93806 | BS18: 352110.5316 | BT18: 1728220.399 | BU18: 133735.3077 | BV18: 143111.9943 | BW18: 65723.06289 | BX18: 34065373.12 | BY18: 3877759.851 | BZ18: 535300.272 | CA18: 67343.85598 | CB18: 138658.7059 | CC18: 1956772.504 | CD18: 3430727.328 | CE18: 694243.4432 | CF18: 30825.74967 | CG18: 437318.5493 | CH18: 249437.2938 | CI18: 267542.7629 | CJ18: 42651.82449 | CK18: 293911.5667 | CL18: 4905318.421 | CM18: 10404.59063 | CN18: 186931.9068 | CO18: 239623.4763 | CP18: 281690.881 | CQ18: 18319.79663 | CR18: 394330.9101 | CS18: 142418.9552 | CT18: 1297442.486 | CU18: 848900.5105 | CV18: 781240.3642 | CW18: 961654.0625 | CX18: 44830.61707 | CY18: 112839.0242 | CZ18: 124921.7438 | DA18: 1722374.62 | DB18: 96986.99144 | DC18: 112278.0092 | DD18: 840792.3815 | DE18: 43515.39386 | DF18: 453991.9861 | DG18: 7405.213164 | DH18: 1995885.649 | DI18: 8944.16975 | DJ18: 468400.4761 | DK18: 111928.4462 | DL18: 828174.758 | DM18: 195744.802 | DN18: 715486.6305 | DO18: 802194.1766 | DP18: 13432.75718 | DQ18: 446127.5468 | DR18: 176015.1256 | DS18: 165794.1896 | DT18: 63805.79119 | DU18: 207473.0784 | DV18: 622842.4543 | DW18: 572297.7848 | DX18: 432758.2476 | DY18: 205376.5811 | DZ18: 3191169.215 | EA18: 49472.46168 | EB18: 202627.8366 | EC18: 680479.6048 | ED18: 248310.8353 | EE18: 3300908.115 | EF18: 6711.719415 | EG18: 635883.3058 | EH18: 230175.993 | EI18: 191962.2968 | EJ18: 177410.9854 | EK18: 1020382.952 | EL18: 267036.1232 | EM18: 206400.9239 | EN18: 59359.72525 | EO18: 181341.7125 | EP18: 238287.9613 | EQ18: 240486.7701 | ER18: 214531.5867 | ES18: 424650.4649 | ET18: 227453.3677 | EU18: 577570.6271 | EV18: 190133.687 | EW18: 176662.3464 | EX18: 193228.311 | EY18: 279134.9452 | EZ18: 222120.8481 | FA18: 191788.3996 | FB18: 26421.11678 | FC18: 192148.1758 | FD18: 222476.1347 | FE18: 184233.855 | FF18: 4236.596589 | FG18: 246731.4244 | FH18: 1769341.441 | FI18: 194528.7308 | FJ18: 184921.8089 | FK18: 197154.3968 | FL18: 191612.37 | FM18: 191030.7537 | FN18: 495197.9423 | FO18: 247820.239 | FP18: 199580.3845 | FQ18: 51665.83245 | FR18: 434006.9997 | FS18: 431803.9006 | FT18: 659337.8088 | FU18: 230841.3815 | FV18: 217820.8851 | FW18: 223549.3934 | FX18: 0.01794081497 | FY18: 86030.11519 | FZ18: 145487.5232 | GA18: 193963.5686 | GB18: 283594.3049 | GC18: 203480.59 | GD18: 52982.24124 | GE18: 67251.43711 | GF18: 855918.8142 | GG18: 859703.2025 | GH18: 235296.0879 | GI18: 541560.5154 | GJ18: 6172.007993 | GK18: 95218.31101 | GL18: 2089.244315 | GM18: 649831.0571 | GN18: 232878.0669 | GO18: 193473.5887 | GP18: 820045.8546 | GQ18: 211534.2411 | GR18: 158642.3146 | GS18: 285263.6864 | GT18: 971448.8759 | GU18: 942531.5479 | GV18: 601593.7891 | GW18: 39199251.18 | GX18: 3084667.838 | GY18: 20756.08176 | GZ18: 2659612.408 | HA18: 951510.6554 | HB18: 22868355.83 | HC18: 6656034.318 | HD18: 1530087.155 | HE18: 564994.6213 | HF18: 756899.0969 | HG18: 1104664.714 | HH18: 293144.9728 | HI18: 350405.5267 | HJ18: 1049445.932 | HK18: 18806.28239 | HL18: 3036758.6 | HM18: 1038604.606 | HN18: 15958.25586 | HO18: 191092.3833 | HP18: 87658.63068 | HQ18: 105591.6954 | HR18: 174336.7024 | HS18: 111231.9817 | HT18: 91716.20013 | HU18: 173423.6922 | HV18: 140775.4568 | HW18: 201711.5191 | HX18: 3995.361838 | HY18: 89031.09122 | HZ18: 147375.9984 | IA18: 172547.276 | IB18: 435987.3722 | IC18: 217311.6614 | ID18: 210992.044 | IE18: 156249.6518 | IF18: 249294.9063 | IG18: 116622.5793 | IH18: 218953.8377 | II18: 134621.2335 | IJ18: 88673.89488 | IK18: 164571.4947 | IL18: 134804.7554 | IM18: 54608.58011 | IN18: 1159838.8 | IO18: 4399302.627 | IP18: 216162.0567 | IQ18: 899080.7121 | IR18: 415462.9161 | IS18: 469506.3848 | IT18: 191710.3838 | IU18: 291012.9501 | IV18: 251248.2212 | IW18: 282053.0626 | IX18: 528664.6861 | IY18: 1332283.893 | IZ18: 172169.0613 | JA18: 634431.3571 | JB18: 148889.9251 | JC18: 161898.8787 | JD18: 125208.4516 | JE18: 170879.4298 | JF18: 1854576.401 | JG18: 3010199.663 | JH18: 148880.2351 | JI18: 260031.1954 | JJ18: 548919.2735 | JK18: 534993.5064 | JL18: 291266332.6
A19: =+MATCH(B19,RUT[EMPRESA],0) -> 306 | B19: TECNORED | C19: -57926775.62 | D19: -57926775.62 | F19: =IFERROR(INDEX($B$9:$B$511,MATCH(0,INDEX(COUNTIF($F$8:F18,$B$9:$B$511),0,0),0)),"") -> TECNORED | G19: -57926775.62 | J19: EMELDA | K19: =$JL19*K$63/$JL$63 -> 22727.86316 | L19: 4898.867063 | M19: 59722.04152 | N19: 636589.7039 | O19: 81988.24175 | P19: 10482.23449 | Q19: 1538.747841 | R19: 17094.33846 | S19: 7967.377361 | T19: 46678.05272 | U19: =$JL19*U$63/$JL$63 -> 6404.996293 | V19: 9634.521283 | W19: 4198.150236 | X19: 18989.53467 | Y19: 11548.51012 | Z19: 125678.0171 | AA19: 6160.116529 | AB19: 2.498987048 | AC19: 1431.103817 | AD19: 1854.454584 | AE19: =$JL19*AE$63/$JL$63 -> 9407.288958 | AF19: 13198.5119 | AG19: 1383.119877 | AH19: 12619.33008 | AI19: 33301.10558 | AJ19: 28706.99759 | AK19: 1026.846435 | AL19: 3376.661155 | AM19: 98349.6946 | AN19: 24647.30391 | AO19: =$JL19*AO$63/$JL$63 -> 1745.622287 | AP19: 158151.601 | AQ19: 5056.953723 | AR19: 7656.503305 | AS19: 12080.8855 | AT19: 64323.3143 | AU19: 19814.56295 | AV19: 997.8264794 | AW19: 115.2613294 | AX19: 3984.482293 | AY19: =$JL19*AY$63/$JL$63 -> 16998.83783 | AZ19: 37.81085738 | BA19: 6261.289074 | BB19: 78.294011 | BC19: 15472.90248 | BD19: 115.5798833 | BE19: 0.0783979962 | BF19: 32053.75292 | BG19: 12015.57457 | BH19: 836.7555724 | BI19: =$JL19*BI$63/$JL$63 -> 1340.157378 | BJ19: 17840.93423 | BK19: 4269.513169 | BL19: 109000.1434 | BM19: 49325.73694 | BN19: 8744.509782 | BO19: 67.86785522 | BP19: 9111.081462 | BQ19: 6614.5352 | BR19: 590.9952561 | BS19: =$JL19*BS$63/$JL$63 -> 7777.259615 | BT19: 38172.15764 | BU19: 2953.88554 | BV19: 3160.993591 | BW19: 1451.661558 | BX19: 752420.6943 | BY19: 85650.2217 | BZ19: 11823.4725 | CA19: 1487.460909 | CB19: 3062.631353 | CC19: =$JL19*CC$63/$JL$63 -> 43220.31409 | CD19: 75776.36766 | CE19: 15334.13803 | CF19: 680.8653435 | CG19: 9659.296124 | CH19: 5509.459156 | CI19: 5909.364641 | CJ19: 942.074384 | CK19: 6491.786962 | CL19: 108346.4749 | CM19: =$JL19*CM$63/$JL$63 -> 229.8119348 | CN19: 4128.86818 | CO19: 5292.695951 | CP19: 6221.861933 | CQ19: 404.6394576 | CR19: 8709.804413 | CS19: 3145.686055 | CT19: 28657.32816 | CU19: 18750.13402 | CV19: 17255.68703 | CW19: =$JL19*CW$63/$JL$63 -> 21240.58395 | CX19: 990.1985781 | CY19: 2492.337796 | CZ19: 2759.215492 | DA19: 38043.03869 | DB19: 2142.2052 | DC19: 2479.946348 | DD19: 18571.0453 | DE19: 961.1485173 | DF19: 10027.57152 | DG19: =$JL19*DG$63/$JL$63 -> 163.5630296 | DH19: 44084.22772 | DI19: 197.5548129 | DJ19: 10345.81979 | DK19: 2472.225355 | DL19: 18292.35289 | DM19: 4323.523458 | DN19: 15803.34803 | DO19: 17718.50545 | DP19: 296.6967204 | DQ19: =$JL19*DQ$63/$JL$63 -> 9853.865313 | DR19: 3887.74321 | DS19: 3661.987755 | DT19: 1409.31372 | DU19: 4582.572373 | DV19: 13757.06499 | DW19: 12640.65698 | DX19: 9558.570223 | DY19: 4536.265879 | DZ19: 70485.11542 | EA19: =$JL19*EA$63/$JL$63 -> 1092.725561 | EB19: 4475.552843 | EC19: 15030.12854 | ED19: 5484.578444 | EE19: 72908.97907 | EF19: 148.2454504 | EG19: 14045.10547 | EH19: 5084.024176 | EI19: 4239.977181 | EJ19: 3918.574334 | EK19: =$JL19*EK$63/$JL$63 -> 22537.76134 | EL19: 5898.174211 | EM19: 4558.891103 | EN19: 1311.111008 | EO19: 4005.394473 | EP19: 5263.197695 | EQ19: 5311.763999 | ER19: 4738.47754 | ES19: 9379.489152 | ET19: 5023.888047 | EU19: =$JL19*EU$63/$JL$63 -> 12757.12116 | EV19: 4199.587665 | EW19: 3902.038731 | EX19: 4267.940335 | EY19: 6165.407569 | EZ19: 4906.105744 | FA19: 4236.136217 | FB19: 583.5777863 | FC19: 4244.082791 | FD19: 4913.953157 | FE19: =$JL19*FE$63/$JL$63 -> 4069.274822 | FF19: 93.57604674 | FG19: 5449.693123 | FH19: 39080.42077 | FI19: 4296.663424 | FJ19: 4084.470037 | FK19: 4354.657958 | FL19: 4232.248153 | FM19: 4219.401674 | FN19: 10937.71022 | FO19: =$JL19*FO$63/$JL$63 -> 5473.742372 | FP19: 4408.242086 | FQ19: 1141.171752 | FR19: 9586.152101 | FS19: 9537.491034 | FT19: 14563.15802 | FU19: 5098.720979 | FV19: 4811.13009 | FW19: 4937.658812 | FX19: 0.0003962686805 | FY19: =$JL19*FY$63/$JL$63 -> 1900.194628 | FZ19: 3213.46321 | GA19: 4284.180374 | GB19: 6263.903908 | GC19: 4494.388077 | GD19: 1170.247999 | GE19: 1485.419603 | GF19: 18905.15117 | GG19: 18988.73904 | GH19: 5197.114537 | GI19: =$JL19*GI$63/$JL$63 -> 11961.74595 | GJ19: 136.3245464 | GK19: 2103.139379 | GL19: 46.14629209 | GM19: 14353.17715 | GN19: 5143.706373 | GO19: 4273.357918 | GP19: 18112.80531 | GQ19: 4672.273515 | GR19: 3504.020345 | GS19: =$JL19*GS$63/$JL$63 -> 6300.776458 | GT19: 21456.92739 | GU19: 20818.21441 | GV19: 13287.734 | GW19: 865815.4921 | GX19: 68132.76075 | GY19: 458.4510317 | GZ19: 58744.32691 | HA19: 21016.54092 | HB19: 505105.9947 | HC19: =$JL19*HC$63/$JL$63 -> 147015.503 | HD19: 33795.87934 | HE19: 12479.34798 | HF19: 16718.04803 | HG19: 24399.33912 | HH19: 6474.854781 | HI19: 7739.600233 | HJ19: 23179.69141 | HK19: 415.384737 | HL19: 67074.56296 | HM19: =$JL19*HM$63/$JL$63 -> 22940.23306 | HN19: 352.4788034 | HO19: 4220.76292 | HP19: 1936.164548 | HQ19: 2332.262044 | HR19: 3850.67095 | HS19: 2456.842161 | HT19: 2025.786324 | HU19: 3830.504789 | HV19: 3109.385198 | HW19: =$JL19*HW$63/$JL$63 -> 4455.313632 | HX19: 88.24776166 | HY19: 1966.478842 | HZ19: 3255.175003 | IA19: 3811.146902 | IB19: 9629.89368 | IC19: 4799.882584 | ID19: 4660.297707 | IE19: 3451.172283 | IF19: 5506.314164 | IG19: =$JL19*IG$63/$JL$63 -> 2575.907264 | IH19: 4836.154239 | II19: 2973.453471 | IJ19: 1958.589249 | IK19: 3634.981419 | IL19: 2977.507023 | IM19: 1206.169844 | IN19: 25617.99961 | IO19: 97169.82478 | IP19: 4774.49063 | IQ19: =$JL19*IQ$63/$JL$63 -> 19858.49183 | IR19: 9176.558693 | IS19: 10370.24661 | IT19: 4234.413038 | IU19: 6427.763619 | IV19: 5549.458107 | IW19: 6229.861638 | IX19: 11676.90865 | IY19: 29426.88953 | IZ19: 3802.793065 | JA19: =$JL19*JA$63/$JL$63 -> 14013.03548 | JB19: 3288.613938 | JC19: 3575.949874 | JD19: 2765.548164 | JE19: 3774.308262 | JF19: 40963.05237 | JG19: 66487.94107 | JH19: 3288.399909 | JI19: 5743.452505 | JJ19: 12124.2829 | JK19: 11816.6968 | JL19: 6433360.218
A20: =+MATCH(B20,RUT[EMPRESA],0) -> 231 | B20: NUEVA ENERGIA | C20: -123700920.6 | D20: -123700920.6 | F20: =IFERROR(INDEX($B$9:$B$511,MATCH(0,INDEX(COUNTIF($F$8:F19,$B$9:$B$511),0,0),0)),"") -> NUEVA ENERGIA | G20: -123700920.6 | J20: NUEVA DEGAN | K20: 18157.47902 | L20: 3913.745666 | M20: 47712.43599 | N20: 508576.8123 | O20: 65501.08866 | P20: 8374.344373 | Q20: 1229.318456 | R20: 13656.80926 | S20: 6365.20408 | T20: 37291.48478 | U20: 5117.004843 | V20: 7697.099233 | W20: 3353.937161 | X20: 15170.89728 | Y20: 9226.200847 | Z20: 100405.2138 | AA20: 4921.368361 | AB20: 1.996461549 | AC20: 1143.320749 | AD20: 1481.5392 | AE20: 7515.561438 | AF20: 10544.401 | AG20: 1104.98598 | AH20: 10081.68783 | AI20: 26604.53039 | AJ20: 22934.25928 | AK20: 820.3561626 | AL20: 2697.642698 | AM20: 78572.3895 | AN20: 19690.93621 | AO20: 1394.592173 | AP20: 126348.6302 | AQ20: 4040.042414 | AR20: 6116.84421 | AS20: 9651.519967 | AT20: 51388.43111 | AU20: 15830.01924 | AV20: 797.1718785 | AW20: 92.08323532 | AX20: 3183.236064 | AY20: 13580.51301 | AZ20: 30.20740863 | BA20: 5002.195949 | BB20: 62.54973697 | BC20: 12361.43056 | BD20: 92.33773067 | BE20: 0.06263281161 | BF20: 25608.00997 | BG20: 9599.342521 | BH20: 668.4909905 | BI20: 1070.662882 | BJ20: 14253.27084 | BK20: 3410.949602 | BL20: 87081.12166 | BM20: 39406.74174 | BN20: 6986.061638 | BO20: 54.22019434 | BP20: 7278.918804 | BQ20: 5284.407219 | BR20: 472.1510285 | BS20: 6213.317431 | BT20: 30496.05442 | BU20: 2359.883741 | BV20: 2525.344086 | BW20: 1159.7445 | BX20: 601115.1545 | BY20: 68426.67491 | BZ20: 9445.870579 | CA20: 1188.344899 | CB20: 2446.761676 | CC20: 34529.06861 | CD20: 60538.37075 | CE20: 12250.57049 | CF20: 543.9489892 | CG20: 7716.89206 | CH20: 4401.55277 | CI20: 4721.040591 | CJ20: 752.6310655 | CK20: 5186.34263 | CL20: 86558.90045 | CM20: 183.5986673 | CN20: 3298.587151 | CO20: 4228.378842 | CP20: 4970.697278 | CQ20: 323.2698302 | CR20: 6958.335231 | CS20: 2513.114769 | CT20: 22894.57796 | CU20: 14979.63811 | CV20: 13785.71198 | CW20: 16969.27928 | CX20: 791.0778847 | CY20: 1991.149407 | CZ20: 2204.360219 | DA20: 30392.90021 | DB20: 1711.425562 | DC20: 1981.249776 | DD20: 14836.56264 | DE20: 767.8695493 | DF20: 8011.110341 | DG20: 130.6718655 | DH20: 35219.2564 | DI20: 157.8281841 | DJ20: 8265.361533 | DK20: 1975.081411 | DL20: 14613.91296 | DM20: 3454.098872 | DN20: 12625.42626 | DO20: 14155.46146 | DP20: 237.0334791 | DQ20: 7872.335005 | DR20: 3105.950405 | DS20: 2925.592494 | DT20: 1125.912459 | DU20: 3661.055206 | DV20: 10990.63371 | DW20: 10098.72606 | DX20: 7636.4213 | DY20: 3624.060562 | DZ20: 56311.1453 | EA20: 872.9875448 | EB20: 3575.556413 | EC20: 12007.69477 | ED20: 4381.675363 | EE20: 58247.59015 | EF20: 118.4345241 | EG20: 11220.75165 | EH20: 4061.669224 | EI20: 3387.353056 | EJ20: 3130.581647 | EK20: 18005.6051 | EL20: 4712.100463 | EM20: 3642.136043 | EN20: 1047.457496 | EO20: 3199.942978 | EP20: 4204.81244 | EQ20: 4243.612464 | ER20: 3785.609141 | ES20: 7493.351942 | ET20: 4013.625971 | EU20: 10191.77026 | EV20: 3355.085535 | EW20: 3117.371216 | EX20: 3409.693052 | EY20: 4925.595417 | EZ20: 3919.528709 | FA20: 3384.284478 | FB20: 466.2251502 | FC20: 3390.633062 | FD20: 3925.798072 | FE20: 3250.97752 | FF20: 74.7586825 | FG20: 4353.80519 | FH20: 31221.67339 | FI20: 3432.640167 | FJ20: 3263.117105 | FK20: 3478.972483 | FL20: 3381.178271 | FM20: 3370.915112 | FN20: 8738.227717 | FO20: 4373.018335 | FP20: 3521.781289 | FQ20: 911.6916097 | FR20: 7658.456691 | FS20: 7619.58096 | FT20: 11634.62814 | FU20: 4073.410623 | FV20: 3843.651868 | FW20: 3944.736717 | FX20: 0.0003165823467 | FY20: 1518.081302 | FZ20: 2567.262502 | GA20: 3422.667355 | GB20: 5004.284962 | GC20: 3590.604038 | GD20: 934.9208658 | GE20: 1186.714083 | GF20: 15103.4826 | GG20: 15170.26165 | GH20: 4152.018055 | GI20: 9556.338389 | GJ20: 108.9108147 | GK20: 1680.215553 | GL20: 36.86665679 | GM20: 11466.87268 | GN20: 4109.349829 | GO20: 3414.021205 | GP20: 14470.4709 | GQ20: 3732.718194 | GR20: 2799.391015 | GS20: 5033.742749 | GT20: 17142.11786 | GU20: 16631.84475 | GV20: 10615.68127 | GW20: 691707.2021 | GX20: 54431.82957 | GY20: 366.2603446 | GZ20: 46931.33165 | HA20: 16790.28944 | HB20: 403533.3828 | HC20: 117451.9088 | HD20: 26999.80926 | HE20: 9969.854957 | HF20: 13356.1877 | HG20: 19492.83508 | HH20: 5172.815369 | HI20: 6183.231037 | HJ20: 18518.44838 | HK20: 331.8543233 | HL20: 53586.42656 | HM20: 18327.1431 | HN20: 281.5982495 | HO20: 3372.002623 | HP20: 1546.817971 | HQ20: 1863.263557 | HR20: 3076.333068 | HS20: 1962.791649 | HT20: 1618.417553 | HU20: 3060.222154 | HV20: 2484.113712 | HW20: 3559.387139 | HX20: 70.50187121 | HY20: 1571.036312 | HZ20: 2600.5864 | IA20: 3044.756977 | IB20: 7693.402203 | IC20: 3834.666142 | ID20: 3723.150622 | IE20: 2757.170258 | IF20: 4399.04021 | IG20: 2057.91375 | IH20: 3863.643869 | II20: 2375.516724 | IJ20: 1564.733251 | IK20: 2904.016907 | IL20: 2378.75514 | IM20: 963.619126 | IN20: 20466.43309 | IO20: 77629.78169 | IP20: 3814.380299 | IQ20: 15865.11439 | IR20: 7331.229109 | IS20: 8284.876319 | IT20: 3382.907816 | IU20: 5135.193848 | IV20: 4433.508265 | IW20: 4977.088309 | IX20: 9328.779502 | IY20: 23509.38694 | IZ20: 3038.083028 | JA20: 11195.13066 | JB20: 2627.301044 | JC20: 2856.856114 | JD20: 2209.419443 | JE20: 3015.326281 | JF20: 32725.72345 | JG20: 53117.76945 | JH20: 2627.130054 | JI20: 4588.492004 | JJ20: 9686.190513 | JK20: 9440.457415 | JL20: 5139665.018
A21: =+MATCH(B21,RUT[EMPRESA],0) -> 102 | B21: ELEKTRAGEN | C21: 0 | D21: 0 | F21: =IFERROR(INDEX($B$9:$B$511,MATCH(0,INDEX(COUNTIF($F$8:F20,$B$9:$B$511),0,0),0)),"") -> ELEKTRAGEN | J21: INACAL | K21: 2315.264799 | L21: 499.0427119 | M21: 6083.824928 | N21: 64848.75954 | O21: 8352.060584 | P21: 1067.814795 | Q21: 156.7507111 | R21: 1741.383245 | S21: 811.6288018 | T21: 4755.046772 | U21: 652.4705975 | V21: 981.4590938 | W21: 427.6613861 | X21: 1934.444997 | Y21: 1176.435232 | Z21: 12802.69451 | AA21: 627.5249396 | AB21: 0.2545693233 | AC21: 145.7851215 | AD21: 188.9114428 | AE21: 958.3111631 | AF21: 1344.519271 | AG21: 140.8970452 | AH21: 1285.518596 | AI21: 3392.350481 | AJ21: 2924.353273 | AK21: 104.6038243 | AL21: 343.9771111 | AM21: 10018.7855 | AN21: 2510.796318 | AO21: 177.824805 | AP21: 16110.74618 | AQ21: 515.1468426 | AR21: 779.9603712 | AS21: 1230.667782 | AT21: 6552.552007 | AU21: 2018.489806 | AV21: 101.6475903 | AW21: 11.74155691 | AX21: 405.8952454 | AY21: 1731.65469 | AZ21: 3.851754408 | BA21: 637.8312861 | BB21: 7.975732975 | BC21: 1576.209176 | BD21: 11.77400768 | BE21: 0.007986325844 | BF21: 3265.283907 | BG21: 1224.014622 | BH21: 85.23945734 | BI21: 136.5204982 | BJ21: 1817.438213 | BK21: 434.9310571 | BL21: 11103.73612 | BM21: 5024.763728 | BN21: 890.7945081 | BO21: 6.913630862 | BP21: 928.1368003 | BQ21: 673.8161174 | BR21: 60.20409852 | BS21: 792.2616963 | BT21: 3888.559706 | BU21: 300.90938 | BV21: 322.0072709 | BW21: 147.8793181 | BX21: 76648.34725 | BY21: 8725.102837 | BZ21: 1204.445376 | CA21: 151.5261624 | CB21: 311.9872077 | CC21: 4402.810379 | CD21: 7719.263154 | CE21: 1562.073379 | CF21: 69.35907488 | CG21: 983.9828822 | CH21: 561.2431206 | CI21: 601.9810944 | CJ21: 95.96817985 | CK21: 661.3118765 | CL21: 11037.14756 | CM21: 23.41071307 | CN21: 420.6036921 | CO21: 539.1616687 | CP21: 633.8148825 | CQ21: 41.22021881 | CR21: 887.2591067 | CS21: 320.4479075 | CT21: 2919.293497 | CU21: 1910.057491 | CV21: 1757.819664 | CW21: 2163.757146 | CX21: 100.8705436 | CY21: 253.8919707 | CZ21: 281.0785359 | DA21: 3875.406487 | DB21: 218.2243116 | DC21: 252.6296662 | DD21: 1891.813901 | DE21: 97.91124282 | DF21: 1021.498731 | DG21: 16.66200303 | DH21: 4490.816401 | DI21: 20.12471217 | DJ21: 1053.918365 | DK21: 251.8431364 | DL21: 1863.423783 | DM21: 440.4330315 | DN21: 1609.871335 | DO21: 1804.966515 | DP21: 30.22419961 | DQ21: 1003.803452 | DR21: 396.0405313 | DS21: 373.0430479 | DT21: 143.565386 | DU21: 466.8220866 | DV21: 1401.418518 | DW21: 1287.691146 | DX21: 973.722035 | DY21: 462.1048901 | DZ21: 7180.248554 | EA21: 111.3148653 | EB21: 455.9201136 | EC21: 1531.104235 | ED21: 558.7085473 | EE21: 7427.165132 | EF21: 15.10161649 | EG21: 1430.760916 | EH21: 517.9044827 | EI21: 431.9222554 | EJ21: 399.1812673 | EK21: 2295.899315 | EL21: 600.8411364 | EM21: 464.4096993 | EN21: 133.5615734 | EO21: 408.0255484 | EP21: 536.1567108 | EQ21: 541.1041118 | ER21: 482.7039908 | ES21: 955.4792246 | ET21: 511.7784751 | EU21: 1299.555235 | EV21: 427.8078156 | EW21: 397.4968018 | EX21: 434.770834 | EY21: 628.0639326 | EZ21: 499.7801091 | FA21: 431.5309802 | FB21: 59.44848826 | FC21: 432.3404898 | FD21: 500.5795172 | FE21: 414.5329759 | FF21: 9.532498745 | FG21: 555.1548144 | FH21: 3981.083567 | FI21: 437.6968265 | FJ21: 416.0808974 | FK21: 443.604672 | FL21: 431.134907 | FM21: 429.8262489 | FN21: 1114.213653 | FO21: 557.6046874 | FP21: 449.0632338 | FQ21: 116.2500306 | FR21: 976.5317734 | FS21: 971.574719 | FT21: 1483.534413 | FU21: 519.4016314 | FV21: 490.1050337 | FW21: 502.9943888 | FX21: 4.036749608e-05 | FY21: 193.5709355 | FZ21: 327.3522989 | GA21: 436.4251907 | GB21: 638.0976567 | GC21: 457.8388401 | GD21: 119.211999 | GE21: 151.3182165 | GF21: 1925.848933 | GG21: 1934.363947 | GH21: 529.4248853 | GI21: 1218.531155 | GJ21: 13.88724586 | GK21: 214.2447153 | GL21: 4.700876846 | GM21: 1462.143871 | GN21: 523.9842487 | GO21: 435.3227179 | GP21: 1845.13345 | GQ21: 475.9598526 | GR21: 356.951065 | GS21: 641.8538267 | GT21: 2185.795838 | GU21: 2120.730782 | GV21: 1353.608237 | GW21: 88199.76243 | GX21: 6940.616525 | GY21: 46.7019503 | GZ21: 5984.226115 | HA21: 2140.934105 | HB21: 51454.64495 | HC21: 14976.32296 | HD21: 3442.752591 | HE21: 1271.258758 | HF21: 1703.050914 | HG21: 2485.536392 | HH21: 659.5870121 | HI21: 788.4253725 | HJ21: 2361.292093 | HK21: 42.31482972 | HL21: 6832.81897 | HM21: 2336.898709 | HN21: 35.90666488 | HO21: 429.9649177 | HP21: 197.2351555 | HQ21: 237.5852131 | HR21: 392.2640171 | HS21: 250.2760656 | HT21: 206.3648365 | HU21: 390.2097103 | HV21: 316.7499754 | HW21: 453.8583653 | HX21: 8.989711648 | HY21: 200.3232424 | HZ21: 331.6014377 | IA21: 388.2377417 | IB21: 980.9876845 | IC21: 488.9592615 | ID21: 474.739889 | IE21: 351.5674855 | IF21: 560.9227434 | IG21: 262.4051092 | IH21: 492.6542189 | II21: 302.9027457 | IJ21: 199.5195374 | IK21: 370.2919392 | IL21: 303.3156769 | IM21: 122.8713215 | IN21: 2609.680123 | IO21: 9898.593337 | IP21: 486.3726085 | IQ21: 2022.964797 | IR21: 934.8069006 | IS21: 1056.406701 | IT21: 431.3554417 | IU21: 654.7898823 | IV21: 565.3177739 | IW21: 634.6298045 | IX21: 1189.515063 | IY21: 2997.687948 | IZ21: 387.3867447 | JA21: 1427.493977 | JB21: 335.0078287 | JC21: 364.2784545 | JD21: 281.7236389 | JE21: 384.4850261 | JF21: 4172.865375 | JG21: 6773.060381 | JH21: 334.9860258 | JI21: 585.0797902 | JJ21: 1235.088632 | JK21: 1203.755142 | JL21: 655360.0023
A22: =+MATCH(B22,RUT[EMPRESA],0) -> 138 | B22: GESAN | C22: 7752817.989 | D22: 7752817.989 | F22: =IFERROR(INDEX($B$9:$B$511,MATCH(0,INDEX(COUNTIF($F$8:F21,$B$9:$B$511),0,0),0)),"") -> GESAN | H22: 7752817.989 | J22: CHACAYES | K22: 1119722.423 | L22: 241350.0671 | M22: 2942296.36 | N22: 31362550.93 | O22: 4039274.264 | P22: 516423.0763 | Q22: 75808.73088 | R22: 842178.3409 | S22: 392524.8503 | T22: 2299664.598 | U22: 315551.793 | V22: 474659.2076 | W22: 206828.1968 | X22: 935548.0376 | Y22: 568954.7517 | Z22: 6191716.873 | AA22: 303487.4224 | AB22: 123.1163622 | AC22: 70505.48582 | AD22: 91362.49925 | AE22: 463464.2647 | AF22: 650244.5753 | AG22: 68141.48471 | AH22: 621710.3105 | AI22: 1640629.142 | AJ22: 1414293.49 | AK22: 50589.1368 | AL22: 166356.2995 | AM22: 4845345.891 | AN22: 1214286.564 | AO22: 86000.71217 | AP22: 7791576.914 | AQ22: 249138.4446 | AR22: 377209.1716 | AS22: 595183.0268 | AT22: 3168984.997 | AU22: 976194.2988 | AV22: 49159.42496 | AW22: 5678.523062 | AX22: 196301.5237 | AY22: 837473.3581 | AZ22: 1862.808859 | BA22: 308471.8403 | BB22: 3857.27242 | BC22: 762295.8542 | BD22: 5694.2171 | BE22: 3.862395407 | BF22: 1579176.434 | BG22: 591965.3854 | BH22: 41224.02404 | BI22: 66024.87247 | BJ22: 878960.5064 | BK22: 210343.9993 | BL22: 5370056.297 | BM22: 2430106.751 | BN22: 430811.45 | BO22: 3343.612146 | BP22: 448871.1561 | BQ22: 325875.0429 | BR22: 29116.27176 | BS22: 383158.4132 | BT22: 1880608.861 | BU22: 145527.6218 | BV22: 155731.112 | BW22: 71518.2939 | BX22: 37069139.2 | BY22: 4219687.223 | BZ22: 582501.1875 | CA22: 73282.0029 | CB22: 150885.1481 | CC22: 2129313.895 | CD22: 3733236.927 | CE22: 755459.4146 | CF22: 33543.85703 | CG22: 475879.7775 | CH22: 271431.8066 | CI22: 291133.7529 | CJ22: 46412.71398 | CK22: 319827.666 | CL22: 5337852.333 | CM22: 11322.03123 | CN22: 203414.912 | CO22: 260752.6407 | CP22: 306529.4028 | CQ22: 19935.17256 | CR22: 429101.6377 | CS22: 154976.9632 | CT22: 1411846.451 | CU22: 923753.604 | CV22: 850127.4213 | CW22: 1046449.372 | CX22: 48783.62491 | CY22: 122788.7768 | CZ22: 135936.9086 | DA22: 1874247.622 | DB22: 105538.9669 | DC22: 122178.2934 | DD22: 914930.5284 | DE22: 47352.42989 | DF22: 494023.4199 | DG22: 8058.179097 | DH22: 2171875.902 | DI22: 9732.83552 | DJ22: 509702.4004 | DK22: 121797.9071 | DL22: 901200.3268 | DM22: 213004.8975 | DN22: 778575.7523 | DO22: 872928.8681 | DP22: 14617.21097 | DQ22: 485465.5217 | DR22: 191535.527 | DS22: 180413.3444 | DT22: 69431.96386 | DU22: 225767.3326 | DV22: 677762.5349 | DW22: 622761.0123 | DX22: 470917.3642 | DY22: 223485.9734 | DZ22: 3472555.413 | EA22: 53834.77122 | EB22: 220494.8543 | EC22: 740481.9287 | ED22: 270206.0208 | EE22: 3591970.708 | EF22: 7303.535482 | EG22: 691953.2834 | EH22: 250472.1113 | EI22: 208888.8643 | EJ22: 193054.4688 | EK22: 1110356.77 | EL22: 290582.4395 | EM22: 224600.6392 | EN22: 64593.85929 | EO22: 197331.7937 | EP22: 259299.3647 | EQ22: 261692.0568 | ER22: 233448.2356 | ES22: 462094.6654 | ET22: 247509.4143 | EU22: 628498.7954 | EV22: 206899.014 | EW22: 192239.8174 | EX22: 210266.5112 | EY22: 303748.0935 | EZ22: 241706.6917 | FA22: 208699.6334 | FB22: 28750.83894 | FC22: 209091.1334 | FD22: 242093.3062 | FE22: 200478.9554 | FF22: 4610.164936 | FG22: 268487.3429 | FH22: 1925355.813 | FI22: 211681.5975 | FJ22: 201227.5706 | FK22: 214538.7856 | FL22: 208508.0821 | FM22: 207875.1809 | FN22: 538862.7739 | FO22: 269672.1654 | FP22: 217178.6884 | FQ22: 56221.54579 | FR22: 472276.227 | FS22: 469878.8662 | FT22: 717475.9227 | FU22: 251196.1714 | FV22: 237027.5729 | FW22: 243261.2011 | FX22: 0.01952277361 | FY22: 93615.95142 | FZ22: 158316.1069 | GA22: 211066.6012 | GB22: 308600.664 | GC22: 221422.8004 | GD22: 57654.03094 | GE22: 73181.43485 | GF22: 931390.7573 | GG22: 935508.8397 | GH22: 256043.6783 | GI22: 589313.4374 | GJ22: 6716.234184 | GK22: 103614.3304 | GL22: 2273.46661 | GM22: 707130.8988 | GN22: 253412.4446 | GO22: 210533.4166 | GP22: 892354.6449 | GQ22: 230186.5945 | GR22: 172630.8419 | GS22: 310417.2458 | GT22: 1057107.858 | GU22: 1025640.7 | GV22: 654640.2363 | GW22: 42655704.77 | GX22: 3356663.116 | GY22: 22586.28084 | GZ22: 2894127.777 | HA22: 1035411.554 | HB22: 24884807.89 | HC22: 7242940.266 | HD22: 1665004.917 | HE22: 614813.8812 | HF22: 823639.8259 | HG22: 1202070.205 | HH22: 318993.4766 | HI22: 381303.0669 | HJ22: 1141982.423 | HK22: 20464.55494 | HL22: 3304529.408 | HM22: 1130185.146 | HN22: 17365.39934 | HO22: 207942.2448 | HP22: 95388.06375 | HQ22: 114902.4037 | HR22: 189709.1063 | HS22: 121040.0308 | HT22: 99803.41555 | HU22: 188715.59 | HV22: 153188.5468 | HW22: 219497.739 | HX22: 4347.658944 | HY22: 96881.54309 | HZ22: 160371.1012 | IA22: 187761.8945 | IB22: 474431.2218 | IC22: 236473.4476 | ID22: 229596.5883 | IE22: 170027.2025 | IF22: 271276.8638 | IG22: 126905.9525 | IH22: 238260.4253 | II22: 146491.6655 | IJ22: 96492.85041 | IK22: 179082.8365 | IL22: 146691.3698 | IM22: 59423.77471 | IN22: 1262109.35 | IO22: 4787217.826 | IP22: 235222.4748 | IQ22: 978358.5211 | IR22: 452096.9906 | IS22: 510905.8243 | IT22: 208614.7384 | IU22: 316673.4596 | IV22: 273402.4151 | IW22: 306923.5203 | IX22: 575280.4988 | IY22: 1449760.051 | IZ22: 187350.3301 | JA22: 690373.3068 | JB22: 162018.5207 | JC22: 176174.5585 | JD22: 136248.8972 | JE22: 185946.9834 | JF22: 2018106.495 | JG22: 3275628.596 | JH22: 162007.9763 | JI22: 282959.8415 | JJ22: 597321.0653 | JK22: 582167.3724 | JL22: 316949184.5
A23: =+MATCH(B23,RUT[EMPRESA],0) -> 237 | B23: PACIFIC HYDRO | C23: -19770199.38 | D23: -19770199.38 | F23: =IFERROR(INDEX($B$9:$B$511,MATCH(0,INDEX(COUNTIF($F$8:F22,$B$9:$B$511),0,0),0)),"") -> PACIFIC HYDRO | G23: -19770199.38 | J23: LA ARENA SPA | K23: 423349.158 | L23: 91250.60424 | M23: 1112435.244 | N23: 11857679.42 | O23: 1527185.062 | P23: 195251.314 | Q23: 28662.06992 | R23: 318414.1749 | S23: 148407.3744 | T23: 869466.4421 | U23: 119305.0912 | V23: 179461.0626 | W23: 78198.43665 | X23: 353715.7654 | Y23: 215112.7012 | Z23: 2340989.222 | AA23: 114743.7455 | AB23: 46.54832947 | AC23: 26656.9977 | AD23: 34542.70123 | AE23: 175228.4336 | AF23: 245847.0847 | AG23: 25763.20665 | AH23: 235058.7351 | AI23: 620295.6657 | AJ23: 534721.7719 | AK23: 19126.94434 | AL23: 62896.65891 | AM23: 1831947.865 | AN23: 459102.3487 | AO23: 32515.4952 | AP23: 2945870.742 | AQ23: 94195.26533 | AR23: 142616.761 | AS23: 225029.193 | AT23: 1198142.595 | AU23: 369083.4673 | AV23: 18586.39314 | AW23: 2146.958842 | AX23: 74218.46973 | AY23: 316635.2961 | AZ23: 704.2982669 | BA23: 116628.2742 | BB23: 1458.373073 | BC23: 288211.883 | BD23: 2152.892507 | BE23: 1.460309993 | BF23: 597061.3786 | BG23: 223812.6542 | BH23: 15586.14484 | BI23: 24962.94938 | BJ23: 332320.924 | BK23: 79527.70537 | BL23: 2030332.486 | BM23: 918784.5357 | BN23: 162882.926 | BO23: 1264.16633 | BP23: 169711.0124 | BQ23: 123208.1471 | BR23: 11008.39715 | BS23: 144866.0742 | BT23: 711028.1633 | BU23: 55021.66867 | BV23: 58879.44527 | BW23: 27039.92425 | BX23: 14015249.26 | BY23: 1595396.32 | BZ23: 220234.3922 | CA23: 27706.75444 | CB23: 57047.26376 | CC23: 805059.5628 | CD23: 1411477.235 | CE23: 285627.1344 | CF23: 12682.3964 | CG23: 179922.5405 | CH23: 102624.0293 | CI23: 110073.0204 | CJ23: 17547.9056 | CK23: 120921.7305 | CL23: 2018156.682 | CM23: 4280.679113 | CN23: 76907.92819 | CO23: 98586.4073 | CP23: 115893.8697 | CQ23: 7537.170234 | CR23: 162236.4733 | CS23: 58594.31366 | CT23: 533796.5854 | CU23: 349256.4785 | CV23: 321419.5952 | CW23: 395645.788 | CX23: 18444.30914 | CY23: 46424.47467 | CZ23: 51395.57322 | DA23: 708623.0801 | DB23: 39902.59715 | DC23: 46193.66066 | DD23: 345920.6146 | DE23: 17903.19717 | DF23: 186782.3618 | DG23: 3046.668768 | DH23: 821151.5775 | DI23: 3679.829605 | DJ23: 192710.3339 | DK23: 46049.84267 | DL23: 340729.4447 | DM23: 80533.7485 | DN23: 294367.0523 | DO23: 330040.4579 | DP23: 5526.533924 | DQ23: 183546.7573 | DR23: 72416.52252 | DS23: 68211.40298 | DT23: 26251.1162 | DU23: 85359.0213 | DV23: 256251.1856 | DW23: 235455.9887 | DX23: 178046.3314 | DY23: 84496.47583 | DZ23: 1312917.719 | EA23: 20354.06686 | EB23: 83365.58147 | EC23: 279964.3863 | ED23: 102160.5793 | EE23: 1358066.734 | EF23: 2761.350074 | EG23: 261616.4808 | EH23: 94699.50338 | EI23: 78977.5421 | EJ23: 72990.81015 | EK23: 419808.1543 | EL23: 109864.5776 | EM23: 84917.91316 | EN23: 24421.90616 | EO23: 74607.99837 | EP23: 98036.94686 | EQ23: 98941.58552 | ER23: 88263.048 | ES23: 174710.6099 | ET23: 93579.35499 | EU23: 237625.3528 | EV23: 78225.21147 | EW23: 72682.80347 | EX23: 79498.40839 | EY23: 114842.301 | EZ23: 91385.43828 | FA23: 78905.99693 | FB23: 10870.23284 | FC23: 79054.0168 | FD23: 91531.61108 | FE23: 75797.8899 | FF23: 1743.029704 | FG23: 101510.7746 | FH23: 727946.2707 | FI23: 80033.42989 | FJ23: 76080.92935 | FK23: 81113.68707 | FL23: 78833.57444 | FM23: 78594.28462 | FN23: 203735.4052 | FO23: 101958.7371 | FP23: 82111.79214 | FQ23: 21256.46819 | FR23: 178560.0957 | FS23: 177653.6919 | FT23: 271266.183 | FU23: 94973.25895 | FV23: 89616.33825 | FW23: 91973.17346 | FX23: 0.007381248781 | FY23: 35394.6955 | FZ23: 59856.79053 | GA23: 79800.90963 | GB23: 116676.9804 | GC23: 83716.42308 | GD23: 21798.06794 | GE23: 27668.73127 | GF23: 352143.9642 | GG23: 353700.9453 | GH23: 96806.02387 | GI23: 222809.995 | GJ23: 2539.300837 | GK23: 39174.92283 | GL23: 859.5614011 | GM23: 267354.8948 | GN23: 95811.19646 | GO23: 79599.32106 | GP23: 337385.0338 | GQ23: 87029.87362 | GR23: 65268.96314 | GS23: 117363.801 | GT23: 399675.5912 | GU23: 387778.3618 | GV23: 247509.0139 | GW23: 16127440.45 | GX23: 1269100.693 | GY23: 8539.511915 | GZ23: 1094223.472 | HA23: 391472.5656 | HB23: 9408548.268 | HC23: 2738439.992 | HD23: 629511.7567 | HE23: 232451.3054 | HF23: 311405.0586 | HG23: 454483.5386 | HH23: 120606.3368 | HI23: 144164.5974 | HJ23: 431765.3082 | HK23: 7737.321253 | HL23: 1249389.771 | HM23: 427304.9464 | HN23: 6565.580037 | HO23: 78619.64038 | HP23: 36064.70285 | HQ23: 43442.763 | HR23: 71725.98202 | HS23: 45763.30176 | HT23: 37734.07682 | HU23: 71350.34938 | HV23: 57918.14199 | HW23: 82988.58813 | HX23: 1643.780382 | HY23: 36629.36353 | HZ23: 60633.75105 | IA23: 70989.77236 | IB23: 179374.8648 | IC23: 89406.83232 | ID23: 86806.8017 | IE23: 64284.56867 | IF23: 102565.4479 | IG23: 47981.11303 | IH23: 90082.46005 | II23: 55386.15815 | IJ23: 36482.40504 | IK23: 67708.35922 | IL23: 55461.66316 | IM23: 22467.17978 | IN23: 477183.3801 | IO23: 1809970.573 | IP23: 88933.85947 | IQ23: 369901.7252 | IR23: 170930.6488 | IS23: 193165.3292 | IT23: 78873.89949 | IU23: 119729.1755 | IV23: 103369.0849 | IW23: 116042.8792 | IX23: 217504.3651 | IY23: 548131.1119 | IZ23: 70834.16646 | JA23: 261019.1169 | JB23: 61256.61405 | JC23: 66608.78578 | JD23: 51513.53113 | JE23: 70303.58347 | JF23: 763013.8219 | JG23: 1238462.836 | JH23: 61252.62736 | JI23: 106982.5951 | JJ23: 225837.5512 | JK23: 220108.182 | JL23: 119833422.6
A24: =+MATCH(B24,RUT[EMPRESA],0) -> 100 | B24: ELECTRICA CENIZAS | C24: -274625044.7 | D24: -274625044.7 | F24: =IFERROR(INDEX($B$9:$B$511,MATCH(0,INDEX(COUNTIF($F$8:F23,$B$9:$B$511),0,0),0)),"") -> ELECTRICA CENIZAS | G24: -274625044.7 | J24: CARDONES SA | K24: 6129.01493 | L24: 1321.075772 | M24: 16105.22211 | N24: 171668.9234 | O24: 22109.74056 | P24: 2826.74052 | Q24: 414.9535937 | R24: 4609.824291 | S24: 2148.559874 | T24: 12587.6542 | U24: 1727.233116 | V24: 2598.137994 | W24: 1132.11371 | X24: 5120.901191 | Y24: 3114.282697 | Z24: 33891.54703 | AA24: 1661.196476 | AB24: 0.6739009655 | AC24: 385.9252671 | AD24: 500.0901209 | AE24: 2536.860332 | AF24: 3559.2381 | AG24: 372.9854547 | AH24: 3403.050342 | AI24: 8980.297527 | AJ24: 7741.406028 | AK24: 276.90932 | AL24: 910.583036 | AM24: 26521.92784 | AN24: 6646.629848 | AO24: 470.7413534 | AP24: 42648.68708 | AQ24: 1363.706947 | AR24: 2064.726576 | AS24: 3257.848179 | AT24: 17346.04573 | AU24: 5343.386279 | AV24: 269.0835187 | AW24: 31.08248251 | AX24: 1074.49395 | AY24: 4584.070667 | AZ24: 10.19644072 | BA24: 1688.479641 | BB24: 21.11351864 | BC24: 4172.572215 | BD24: 31.16838682 | BE24: 0.02114156029 | BF24: 8643.924371 | BG24: 3240.235804 | BH24: 225.6475834 | BI24: 361.3997727 | BJ24: 4811.158512 | BK24: 1151.358127 | BL24: 29394.03064 | BM24: 13301.65427 | BN24: 2358.128903 | BO24: 18.30190084 | BP24: 2456.98216 | BQ24: 1783.7394 | BR24: 159.3734846 | BS24: 2097.290888 | BT24: 10293.87244 | BU24: 796.5732833 | BV24: 852.424039 | BW24: 391.469066 | BX24: 202905.0262 | BY24: 23097.26541 | BZ24: 3188.431705 | CA24: 401.1230646 | CB24: 825.8987286 | CC24: 11655.20703 | CD24: 20434.58664 | CE24: 4135.151655 | CF24: 183.6087197 | CG24: 2604.819017 | CH24: 1485.733929 | CI24: 1593.576302 | CJ24: 254.0488705 | CK24: 1750.637926 | CL24: 29217.75609 | CM24: 61.97330431 | CN24: 1113.430442 | CO24: 1427.279471 | CP24: 1677.847337 | CQ24: 109.1189814 | CR24: 2348.769918 | CS24: 848.2960613 | CT24: 7728.011689 | CU24: 5056.342102 | CV24: 4653.335104 | CW24: 5727.940864 | CX24: 267.0265052 | CY24: 672.1078642 | CZ24: 744.0766792 | DA24: 10259.05297 | DB24: 577.6877291 | DC24: 668.7662667 | DD24: 5008.047309 | DE24: 259.1925854 | DF24: 2704.131715 | DG24: 44.10798513 | DH24: 11888.17831 | DI24: 53.27453749 | DJ24: 2789.953615 | DK24: 666.6841493 | DL24: 4932.892424 | DM24: 1165.923063 | DN24: 4261.683352 | DO24: 4778.143185 | DP24: 80.01010111 | DQ24: 2657.288422 | DR24: 1048.406355 | DS24: 987.5269607 | DT24: 380.0491393 | DU24: 1235.780693 | DV24: 3709.862917 | DW24: 3408.80156 | DX24: 2577.656298 | DY24: 1223.293237 | DZ24: 19007.69649 | EA24: 294.674921 | EB24: 1206.920774 | EC24: 4053.16952 | ED24: 1479.024356 | EE24: 19661.33896 | EF24: 39.97729891 | EG24: 3787.538694 | EH24: 1371.007026 | EI24: 1143.393167 | EJ24: 1056.720574 | EK24: 6077.750238 | EL24: 1590.558582 | EM24: 1229.394574 | EN24: 353.5668482 | EO24: 1080.13333 | EP24: 1419.324687 | EQ24: 1432.421545 | ER24: 1277.823586 | ES24: 2529.363568 | ET24: 1354.790137 | EU24: 3440.208413 | EV24: 1132.501341 | EW24: 1052.261424 | EX24: 1150.933981 | EY24: 1662.623309 | EZ24: 1323.027825 | FA24: 1142.357376 | FB24: 157.3732181 | FC24: 1144.500326 | FD24: 1325.144034 | FE24: 1097.359922 | FF24: 25.23461989 | FG24: 1469.616844 | FH24: 10538.80344 | FI24: 1158.679727 | FJ24: 1101.45761 | FK24: 1174.319093 | FL24: 1141.308883 | FM24: 1137.844578 | FN24: 2949.568499 | FO24: 1476.102196 | FP24: 1188.769106 | FQ24: 307.7393883 | FR24: 2585.094293 | FS24: 2571.971881 | FT24: 3927.241745 | FU24: 1374.970308 | FV24: 1297.415773 | FW24: 1331.53673 | FX24: 0.0001068616369 | FY24: 512.4248225 | FZ24: 866.573503 | GA24: 1155.313427 | GB24: 1689.184782 | GC24: 1212.000065 | GD24: 315.5803698 | GE24: 400.5725862 | GF24: 5098.145522 | GG24: 5120.686634 | GH24: 1401.504065 | GI24: 3225.719859 | GJ24: 36.76259289 | GK24: 567.1528629 | GL24: 12.44425449 | GM24: 3870.616277 | GN24: 1387.101504 | GO24: 1152.394939 | GP24: 4884.473892 | GQ24: 1259.970369 | GR24: 944.9279444 | GS24: 1699.12819 | GT24: 5786.282127 | GU24: 5614.04062 | GV24: 3583.298592 | GW24: 233484.1618 | GX24: 18373.33783 | GY24: 123.6303298 | GZ24: 15841.56215 | HA24: 5667.523258 | HB24: 136211.7574 | HC24: 39645.61941 | HD24: 9113.722994 | HE24: 3365.301417 | HF24: 4508.350182 | HG24: 6579.761271 | HH24: 1746.07183 | HI24: 2087.135295 | HJ24: 6250.859298 | HK24: 112.0166571 | HL24: 18087.974 | HM24: 6186.284647 | HN24: 95.05283598 | HO24: 1138.211664 | HP24: 522.1248184 | HQ24: 628.940292 | HR24: 1038.409092 | HS24: 662.5357686 | HT24: 546.2930914 | HU24: 1032.97089 | HV24: 838.5068219 | HW24: 1201.462873 | HX24: 23.79774311 | HY24: 530.2996633 | HZ24: 877.8219077 | IA24: 1027.750656 | IB24: 2596.89007 | IC24: 1294.382662 | ID24: 1256.740857 | IE24: 930.6764257 | IF24: 1484.88582 | IG24: 694.6440133 | IH24: 1304.164027 | II24: 801.8501605 | IJ24: 528.1720796 | IK24: 980.2441714 | IL24: 802.9432802 | IM24: 325.267401 | IN24: 6908.397019 | IO24: 26203.75276 | IP24: 1287.535223 | IQ24: 5355.232564 | IR24: 2474.639382 | IS24: 2796.540786 | IT24: 1141.892687 | IU24: 1733.372773 | IV24: 1496.520432 | IW24: 1680.004615 | IX24: 3148.907884 | IY24: 7935.539036 | IZ24: 1025.49788 | JA24: 3778.89039 | JB24: 886.8393737 | JC24: 964.3251553 | JD24: 745.7844086 | JE24: 1017.816393 | JF24: 11046.49205 | JG24: 17929.77988 | JH24: 886.7816566 | JI24: 1548.834834 | JJ24: 3269.551142 | JK24: 3186.604504 | JL24: 1734882.006
A25: =+MATCH(B25,RUT[EMPRESA],0) -> 261 | B25: PUNTILLA | C25: 86128013.42 | D25: 86128013.42 | F25: =IFERROR(INDEX($B$9:$B$511,MATCH(0,INDEX(COUNTIF($F$8:F24,$B$9:$B$511),0,0),0)),"") -> PUNTILLA | H25: 86128013.42 | J25: CAPULLO | K25: 26715.7962 | L25: 5758.444301 | M25: 70201.1394 | N25: 748288.5952 | O25: 96374.26722 | P25: 12321.49448 | Q25: 1808.743455 | R25: 20093.78794 | S25: 9365.36921 | T25: 54868.39369 | U25: 7528.845737 | V25: 11325.0377 | W25: 4934.776549 | X25: 22321.52379 | Y25: 13574.86363 | Z25: 147730.0469 | AA25: 7240.998268 | AB25: 2.937470549 | AC25: 1682.211726 | AD25: 2179.845522 | AE25: 11057.93417 | AF25: 15514.38213 | AG25: 1625.808308 | AH25: 14833.57447 | AI25: 39144.26727 | AJ25: 33744.05644 | AK25: 1207.021527 | AL25: 3969.145301 | AM25: 115606.5741 | AN25: 28972.03065 | AO25: 2051.917021 | AP25: 185901.5919 | AQ25: 5944.269557 | AR25: 8999.947795 | AS25: 14200.65198 | AT25: 75609.77219 | AU25: 23291.31524 | AV25: 1172.909599 | AW25: 135.4856005 | AX25: 4683.617468 | AY25: 19981.53033 | AZ25: 44.44532039 | BA25: 7359.923003 | BB25: 92.03183014 | BC25: 18187.84751 | BD25: 135.8600492 | BE25: 0.09215406105 | BF25: 37678.04851 | BG25: 14123.8813 | BH25: 983.5764668 | BI25: 1575.307416 | BJ25: 20971.38476 | BK25: 5018.661143 | BL25: 128125.7985 | BM25: 57980.65248 | BN25: 10278.86078 | BO25: 79.77625419 | BP25: 10709.75277 | BQ25: 7775.151282 | BR25: 694.6939405 | BS25: 9141.89255 | BT25: 44870.01603 | BU25: 3472.187576 | BV25: 3715.635736 | BW25: 1706.376621 | BX25: 884443.8119 | BY25: 100678.7946 | BZ25: 13898.07214 | CA25: 1748.457487 | CB25: 3600.014418 | CC25: 50803.94469 | CD25: 89072.42978 | CE25: 18024.73483 | CF25: 800.3330375 | CG25: 11354.15964 | CH25: 6476.173627 | CI25: 6946.248327 | CJ25: 1107.374991 | CK25: 7630.865086 | CL25: 127357.4344 | CM25: 270.13577 | CN25: 4853.337953 | CO25: 6221.376176 | CP25: 7313.577799 | CQ25: 475.6393159 | CR25: 10238.06585 | CS25: 3697.642272 | CT25: 33685.67179 | CU25: 22040.11683 | CV25: 20283.44745 | CW25: 24967.55229 | CX25: 1163.943272 | CY25: 2929.65459 | CZ25: 3243.359846 | DA25: 44718.24128 | DB25: 2518.086155 | DC25: 2915.088883 | DD25: 21829.6044 | DE25: 1129.795957 | DF25: 11787.0543 | DG25: 192.262534 | DH25: 51819.4445 | DI25: 232.2186685 | DJ25: 12161.14384 | DK25: 2906.01313 | DL25: 21502.01136 | DM25: 5082.148321 | DN25: 18576.27452 | DO25: 20827.47407 | DP25: 348.7564608 | DQ25: 11582.86882 | DR25: 4569.904111 | DS25: 4304.536589 | DT25: 1656.598241 | DU25: 5386.651122 | DV25: 16170.94146 | DW25: 14858.64348 | DX25: 11235.75993 | DY25: 5332.219482 | DZ25: 82852.75064 | EA25: 1284.460101 | EB25: 5260.853465 | EC25: 17667.38246 | ED25: 6446.927234 | EE25: 85701.9163 | EF25: 174.2572636 | EG25: 16509.52282 | EH25: 5976.089913 | EI25: 4983.942638 | EJ25: 4606.145003 | EK25: 26492.33826 | EL25: 6933.094373 | EM25: 5358.814631 | EN25: 1541.16444 | EO25: 4708.198993 | EP25: 6186.702024 | EQ25: 6243.789989 | ER25: 5569.912111 | ES25: 11025.25648 | ET25: 5905.402029 | EU25: 14995.54299 | EV25: 4936.466196 | EW25: 4586.707988 | EX25: 5016.812332 | EY25: 7247.217697 | EZ25: 5766.953114 | FA25: 4979.427721 | FB25: 685.9749682 | FC25: 4988.768636 | FD25: 5776.177468 | FE25: 4783.288075 | FF25: 109.9953206 | FG25: 6405.920778 | FH25: 45937.64709 | FI25: 5050.575304 | FJ25: 4801.149512 | FK25: 5118.74582 | FL25: 4974.85744 | FM25: 4959.75686 | FN25: 12856.89002 | FO25: 6434.189816 | FP25: 5181.73206 | FQ25: 1341.406878 | FR25: 11268.18144 | FS25: 11210.98209 | FT25: 17118.4752 | FU25: 5993.365483 | FV25: 5655.312604 | FW25: 5804.042625 | FX25: 0.0004657997646 | FY25: 2233.61132 | FZ25: 3777.311911 | GA25: 5035.901922 | GB25: 7362.996647 | GC25: 5282.993613 | GD25: 1375.584974 | GE25: 1746.058004 | GF25: 22222.33398 | GG25: 22320.58856 | GH25: 6109.023618 | GI25: 14060.60767 | GJ25: 160.2446642 | GK25: 2472.16567 | GL25: 54.24332795 | GM25: 16871.65014 | GN25: 6046.244217 | GO25: 5023.18051 | GP25: 21290.95956 | GQ25: 5492.09163 | GR25: 4118.851508 | GS25: 7406.339021 | GT25: 25221.85634 | GU25: 24471.0719 | GV25: 15619.25954 | GW25: 1017735.371 | GX25: 80087.64124 | GY25: 538.8929107 | GZ25: 69051.8706 | HA25: 24704.19766 | HB25: 593734.1633 | HC25: 172811.504 | HD25: 39725.85626 | HE25: 14669.03048 | HF25: 19651.4719 | HG25: 28680.55685 | HH25: 7610.961908 | HI25: 9097.625283 | HJ25: 27246.90427 | HK25: 488.2700103 | HL25: 78843.76731 | HM25: 26965.42948 | HN25: 414.3263189 | HO25: 4961.356956 | HP25: 2275.892684 | HQ25: 2741.491227 | HR25: 4526.326985 | HS25: 2887.930731 | HT25: 2381.239899 | HU25: 4502.622379 | HV25: 3654.971904 | HW25: 5237.062991 | HX25: 103.7321106 | HY25: 2311.52606 | HZ25: 3826.342643 | IA25: 4479.86787 | IB25: 11319.59812 | IC25: 5642.09156 | ID25: 5478.014493 | IE25: 4056.730486 | IF25: 6472.4768 | IG25: 3027.887532 | IH25: 5684.727602 | II25: 3495.188985 | IJ25: 2302.252123 | IK25: 4272.7916 | IL25: 3499.95379 | IM25: 1417.809827 | IN25: 30113.04899 | IO25: 114219.6791 | IP25: 5612.24422 | IQ25: 23342.95208 | IR25: 10786.71893 | IS25: 12189.8567 | IT25: 4977.402186 | IU25: 7555.607919 | IV25: 6523.190973 | IW25: 7322.981167 | IX25: 13725.79154 | IY25: 34590.26386 | IZ25: 4470.048232 | JA25: 16471.82568 | JB25: 3865.648924 | JC25: 4203.402115 | JD25: 3250.803677 | JE25: 4436.565357 | JF25: 48150.61369 | JG25: 78154.21411 | JH25: 3865.39734 | JI25: 6751.224501 | JJ25: 14251.66409 | JK25: 13890.10754 | JL25: 7562186.523
A26: =+MATCH(B26,RUT[EMPRESA],0) -> 91 | B26: EL MANZANO | C26: 40142786.79 | D26: 40142786.79 | F26: =IFERROR(INDEX($B$9:$B$511,MATCH(0,INDEX(COUNTIF($F$8:F25,$B$9:$B$511),0,0),0)),"") -> EL MANZANO | H26: 40142786.79 | J26: ORAZUL_CHILE | K26: 20871.31586 | L26: 4498.69841 | M26: 54843.5893 | N26: 584589.2637 | O26: 75290.95362 | P26: 9625.98312 | Q26: 1413.053749 | R26: 15697.97104 | S26: 7316.554502 | T26: 42865.11123 | U26: 5881.79803 | V26: 8847.516175 | W26: 3855.220309 | X26: 17438.35632 | Y26: 10605.159 | Z26: 115411.8877 | AA26: 5656.921504 | AB26: 2.294854895 | AC26: 1314.20273 | AD26: 1702.971684 | AE26: 8638.84554 | AF26: 12120.3788 | AG26: 1270.138404 | AH26: 11588.50801 | AI26: 30580.87284 | AJ26: 26362.03897 | AK26: 942.9674995 | AL26: 3100.835351 | AM26: 90315.90551 | AN26: 22633.96526 | AO26: 1603.029457 | AP26: 145232.8358 | AQ26: 4643.87161 | AR26: 7031.074492 | AS26: 11094.04679 | AT26: 59069.0027 | AU26: 18195.99138 | AV26: 916.3180668 | AW26: 105.8460972 | AX26: 3659.006037 | AY26: 15610.27146 | AZ26: 34.72224124 | BA26: 5749.829673 | BB26: 71.89848965 | BC26: 14208.98361 | BD26: 106.1386297 | BE26: 0.07199398072 | BF26: 29435.41139 | BG26: 11034.07084 | BH26: 768.4043912 | BI26: 1230.685338 | BJ26: 16383.58042 | BK26: 3920.753892 | BL26: 100096.3622 | BM26: 45296.51682 | BN26: 8030.206117 | BO26: 62.3240044 | BP26: 8366.834038 | BQ26: 6074.220551 | BR26: 542.719242 | BS26: 7141.966707 | BT26: 35054.02835 | BU26: 2712.594568 | BV26: 2902.784798 | BW26: 1333.081192 | BX26: 690958.4885 | BY26: 78653.80122 | BZ26: 10857.66081 | CA26: 1365.956239 | CB26: 2812.457374 | CC26: 39689.82129 | CD26: 69586.50242 | CE26: 14081.55427 | CF26: 625.2482051 | CG26: 8870.267259 | CH26: 5059.413702 | CI26: 5426.652525 | CJ26: 865.1201348 | CK26: 5961.49912 | CL26: 99496.08919 | CM26: 211.0395266 | CN26: 3791.597625 | CO26: 4860.357008 | CP26: 5713.623176 | CQ26: 371.5860956 | CR26: 7998.335689 | CS26: 2888.727674 | CT26: 26316.42683 | CU26: 17218.51135 | CV26: 15846.13969 | CW26: 19505.52648 | CX26: 909.3132579 | CY26: 2288.748794 | CZ26: 2533.826329 | DA26: 34935.4566 | DB26: 1967.217115 | DC26: 2277.369553 | DD26: 17054.05166 | DE26: 882.6361791 | DF26: 9208.459728 | DG26: 150.2022267 | DH26: 40483.16531 | DI26: 181.4173586 | DJ26: 9500.711584 | DK26: 2270.279257 | DL26: 16798.12451 | DM26: 3970.352299 | DN26: 14512.4364 | DO26: 16271.15235 | DP26: 272.4607644 | DQ26: 9048.942878 | DR26: 3570.169178 | DS26: 3362.854775 | DT26: 1294.192578 | DU26: 4208.240555 | DV26: 12633.30595 | DW26: 11608.0928 | DX26: 8777.769251 | DY26: 4165.716651 | DZ26: 64727.47119 | EA26: 1003.465226 | EB26: 4109.963018 | EC26: 13802.37808 | ED26: 5036.565396 | EE26: 66953.33922 | EF26: 136.1358787 | EG26: 12897.81757 | EH26: 4668.730787 | EI26: 3893.63058 | EJ26: 3598.481833 | EK26: 20696.74269 | EL26: 5416.376196 | EM26: 4186.493713 | EN26: 1204.011648 | EO26: 3678.209985 | EP26: 4833.268346 | EQ26: 4877.867464 | ER26: 4351.410459 | ES26: 8613.316588 | ET26: 4613.506936 | EU26: 11715.04349 | EV26: 3856.54032 | EW26: 3583.296956 | EX26: 3919.309537 | EY26: 5661.780341 | EZ26: 4505.345793 | FA26: 3890.103369 | FB26: 535.9076754 | FC26: 3897.400819 | FD26: 4512.552182 | FE26: 3736.872206 | FF26: 85.93219765 | FG26: 5004.529716 | FH26: 35888.09913 | FI26: 3945.686353 | FJ26: 3750.826186 | FK26: 3998.943548 | FL26: 3886.532905 | FM26: 3874.735803 | FN26: 10044.25287 | FO26: 5026.614478 | FP26: 4048.150605 | FQ26: 1047.954043 | FR26: 8803.098076 | FS26: 8758.411935 | FT26: 13373.5525 | FU26: 4682.227067 | FV26: 4418.128316 | FW26: 4534.321418 | FX26: 0.0003638990934 | FY26: 1744.975408 | FZ26: 2950.968387 | GA26: 3934.222993 | GB26: 5752.230912 | GC26: 4127.259678 | GD26: 1074.65517 | GE26: 1364.081678 | GF26: 17360.86577 | GG26: 17437.62569 | GH26: 4772.583254 | GI26: 10984.63927 | GJ26: 125.1887452 | GK26: 1931.342423 | GL26: 42.37678798 | GM26: 13180.72412 | GN26: 4723.537787 | GO26: 3924.28458 | GP26: 16633.24345 | GQ26: 4290.614373 | GR26: 3217.791084 | GS26: 5786.091493 | GT26: 19704.19771 | GU26: 19117.65861 | GV26: 12202.31271 | GW26: 795090.5235 | GX26: 62567.27086 | GY26: 421.0020196 | GZ26: 53945.74025 | HA26: 19299.78462 | HB26: 463845.9273 | HC26: 135006.4007 | HD26: 31035.23053 | HE26: 11459.96048 | HF26: 15352.41825 | HG26: 22406.25571 | HH26: 5945.95006 | HI26: 7107.383568 | HJ26: 21286.2361 | HK26: 381.4536365 | HL26: 61595.51298 | HM26: 21066.33813 | HN26: 323.6862344 | HO26: 3875.985854 | HP26: 1778.007091 | HQ26: 2141.748983 | HR26: 3536.125202 | HS26: 2256.152653 | HT26: 1860.308026 | HU26: 3517.606333 | HV26: 2855.392087 | HW26: 4091.377066 | HX26: 81.03915865 | HY26: 1805.845132 | HZ26: 2989.272912 | IA26: 3499.829713 | IB26: 8843.266582 | IC26: 4407.799573 | ID26: 4279.616821 | IE26: 3169.259966 | IF26: 5056.525612 | IG26: 2365.491809 | IH26: 4441.108343 | II26: 2730.564074 | IJ26: 1798.600008 | IK26: 3338.054477 | IL26: 2734.286507 | IM26: 1107.642703 | IN26: 23525.36875 | IO26: 89232.41448 | IP26: 4384.481786 | IQ26: 18236.33188 | IR26: 8426.962698 | IS26: 9523.143072 | IT26: 3888.52095 | IU26: 5902.705585 | IV26: 5096.145301 | IW26: 5720.969417 | IX26: 10723.06918 | IY26: 27023.12585 | IZ26: 3492.158268 | JA26: 12868.36724 | JB26: 3019.980356 | JC26: 3283.84498 | JD26: 2539.64171 | JE26: 3466.000273 | JF26: 37616.94617 | JG26: 61056.80986 | JH26: 3019.78381 | JI26: 5274.29308 | JJ26: 11133.89923 | JK26: 10851.43859 | JL26: 5907845.021
A27: =+MATCH(B27,RUT[EMPRESA],0) -> 125 | B27: ESPINOS | C27: 235182423.7 | D27: 235182423.7 | F27: =IFERROR(INDEX($B$9:$B$511,MATCH(0,INDEX(COUNTIF($F$8:F26,$B$9:$B$511),0,0),0)),"") -> ESPINOS | H27: 235182423.7 | J27: WENKE | K27: 45.46731256 | L27: 9.800231479 | M27: 119.4745282 | N27: 1273.50393 | O27: 164.0182796 | P27: 20.96981264 | Q27: 3.078280108 | R27: 34.19739131 | S27: 15.93881634 | T27: 93.37990106 | U27: 12.81325774 | V27: 19.27395407 | W27: 8.398440611 | X27: 37.98874986 | Y27: 23.10290747 | Z27: 251.4201025 | AA27: 12.32337337 | AB27: 0.004999248033 | AC27: 2.862937184 | AD27: 3.709854535 | AE27: 18.81937358 | AF27: 26.40375216 | AG27: 2.766944843 | AH27: 25.24509327 | AI27: 66.61918745 | AJ27: 57.42862949 | AK27: 2.054216338 | AL27: 6.75504367 | AM27: 196.7495261 | AN27: 49.30717256 | AO27: 3.492134461 | AP27: 316.3838248 | AQ27: 10.11648539 | AR27: 15.31690976 | AS27: 24.16792962 | AT27: 128.6794194 | AU27: 39.639227 | AV27: 1.996161632 | AW27: 0.230581417 | AX27: 7.970995802 | AY27: 34.00634135 | AZ27: 0.07564099004 | BA27: 12.52577004 | BB27: 0.1566279349 | BC27: 30.95369277 | BD27: 0.2312186872 | BE27: 0.0001568359583 | BF27: 64.12384626 | BG27: 24.03727446 | BH27: 1.673937707 | BI27: 2.680997943 | BJ27: 35.69096345 | BK27: 8.541202857 | BL27: 218.055853 | BM27: 98.67661923 | BN27: 17.49347735 | BO27: 0.1357703082 | BP27: 18.22680759 | BQ27: 13.23244237 | BR27: 1.182291791 | BS27: 15.55848393 | BT27: 76.36377475 | BU27: 5.909276917 | BV27: 6.323598598 | BW27: 2.904063146 | BX27: 1505.224959 | BY27: 171.3441063 | BZ27: 23.65297239 | CA27: 2.975680099 | CB27: 6.126823979 | CC27: 86.4626611 | CD27: 151.5913647 | CE27: 30.67609313 | CF27: 1.36207778 | CG27: 19.32351638 | CH27: 11.02172693 | CI27: 11.82174177 | CJ27: 1.88462902 | CK27: 12.98688332 | CL27: 216.7481828 | CM27: 0.4597410236 | CN27: 8.259841182 | CO27: 10.58809002 | CP27: 12.44689566 | CQ27: 0.8094851931 | CR27: 17.42404893 | CS27: 6.292975723 | CT27: 57.3292653 | CU27: 37.50982652 | CV27: 34.5201707 | CW27: 42.49199595 | CX27: 1.980901941 | CY27: 4.985946141 | CZ27: 5.519837581 | DA27: 76.10547102 | DB27: 4.285502457 | DC27: 4.961156927 | DD27: 37.15155778 | DE27: 1.92278701 | DF27: 20.06025492 | DG27: 0.3272094406 | DH27: 88.19092877 | DI27: 0.3952103356 | DJ27: 20.6969137 | DK27: 4.945711006 | DL27: 36.59403089 | DM27: 8.64925097 | DN27: 31.61475233 | DO27: 35.44604347 | DP27: 0.5935446914 | DQ27: 19.71275395 | DR27: 7.77746832 | DS27: 7.325842325 | DT27: 2.819345882 | DU27: 9.167480857 | DV27: 27.52114308 | DW27: 25.28775794 | DX27: 19.12201323 | DY27: 9.074844262 | DZ27: 141.0061629 | EA27: 2.186008174 | EB27: 8.953387241 | EC27: 30.06791916 | ED27: 10.97195283 | EE27: 145.8551258 | EF27: 0.2965664737 | EG27: 28.09737089 | EH27: 10.17064009 | EI27: 8.482115824 | EJ27: 7.839146286 | EK27: 45.08701201 | EL27: 11.7993552 | EM27: 9.120106246 | EN27: 2.622890396 | EO27: 8.012830823 | EP27: 10.52907847 | EQ27: 10.62623584 | ER27: 9.479370669 | ES27: 18.7637598 | ET27: 10.05033718 | EU27: 25.52074567 | EV27: 8.401316203 | EW27: 7.80606665 | EX27: 8.538056387 | EY27: 12.33395815 | EZ27: 9.814712532 | FA27: 8.474431938 | FB27: 1.16745307 | FC27: 8.490329137 | FD27: 9.830411356 | FE27: 8.140624085 | FF27: 0.1871997968 | FG27: 10.9021644 | FH27: 78.18076402 | FI27: 8.595517208 | FJ27: 8.171022263 | FK27: 8.711535842 | FL27: 8.466653829 | FM27: 8.440954321 | FN27: 21.88099627 | FO27: 10.95027516 | FP27: 8.818731413 | FQ27: 2.282925252 | FR27: 19.17719105 | FS27: 19.07984411 | FT27: 29.13374008 | FU27: 10.20004119 | FV27: 9.624712805 | FW27: 9.877834753 | FX27: 7.927393715e-07 | FY27: 3.80135794 | FZ27: 6.428564585 | GA27: 8.570544745 | GB27: 12.53100104 | GC27: 8.99106731 | GD27: 2.34109257 | GE27: 2.971596445 | GF27: 37.81993984 | GG27: 37.98715819 | GH27: 10.39687847 | GI27: 23.92958978 | GJ27: 0.2727185886 | GK27: 4.207350901 | GL27: 0.09231610871 | GM27: 28.71367129 | GN27: 10.29003491 | GO27: 8.548894316 | GP27: 36.23484421 | GQ27: 9.346928868 | GR27: 7.009826976 | GS27: 12.60476494 | GT27: 42.92479314 | GU27: 41.64704157 | GV27: 26.58224184 | GW27: 1732.072361 | GX27: 136.3002543 | GY27: 0.9171357733 | GZ27: 117.5186006 | HA27: 42.04379568 | HB27: 1010.469483 | HC27: 294.1059518 | HD27: 67.6089872 | HE27: 24.9650577 | HF27: 33.44461862 | HG27: 48.81111658 | HH27: 12.95301032 | HI27: 15.48314597 | HJ27: 46.3711994 | HK27: 0.8309812295 | HL27: 134.1833193 | HM27: 45.89216062 | HN27: 0.7051372941 | HO27: 8.443677507 | HP27: 3.873316118 | HQ27: 4.665713033 | HR27: 7.703304901 | HS27: 4.914936775 | HT27: 4.052605356 | HU27: 7.662962299 | HV27: 6.220355504 | HW27: 8.912898501 | HX27: 0.1765405104 | HY27: 3.933960158 | HZ27: 6.512009435 | IA27: 7.624236657 | IB27: 19.2646965 | IC27: 9.60221206 | ID27: 9.322971148 | IE27: 6.904103909 | IF27: 11.01543535 | IG27: 5.153127678 | IH27: 9.67477386 | II27: 5.948422755 | IJ27: 3.918176951 | IK27: 7.271815885 | IL27: 5.956531924 | IM27: 2.41295457 | IN27: 51.24905881 | IO27: 194.389185 | IP27: 9.551415209 | IQ27: 39.72710715 | IR27: 18.35779543 | IS27: 20.74577978 | IT27: 8.470984703 | IU27: 12.85880399 | IV27: 11.10174522 | IW27: 12.46289914 | IX27: 23.35976998 | IY27: 58.86878035 | IZ27: 7.607524725 | JA27: 28.03321455 | JB27: 6.578904351 | JC27: 7.153722702 | JD27: 5.532506153 | JE27: 7.550540597 | JF27: 81.94698696 | JG27: 133.0097765 | JH27: 6.578476185 | JI27: 11.48983292 | JJ27: 24.25474654 | JK27: 23.63941754 | JL27: 12870.00005
A28: =+MATCH(B28,RUT[EMPRESA],0) -> 119 | B28: ENLASA | C28: -6314026.022 | D28: -6314026.022 | F28: =IFERROR(INDEX($B$9:$B$511,MATCH(0,INDEX(COUNTIF($F$8:F27,$B$9:$B$511),0,0),0)),"") -> ENLASA | G28: -6314026.022 | J28: AELA_GENERACION | K28: 779650.7099 | L28: 168049.4623 | M28: 2048689.388 | N28: 21837407.73 | O28: 2812503.333 | P28: 359579.8474 | Q28: 52784.80597 | R28: 586399.7431 | S28: 273310.8419 | T28: 1601231.787 | U28: 219715.3279 | V28: 330500.1137 | W28: 144012.2544 | X28: 651412.0612 | Y28: 396157.0894 | Z28: 4311226.029 | AA28: 211315.0361 | AB28: 85.72460209 | AC28: 49092.21333 | AD28: 63614.72801 | AE28: 322705.1951 | AF28: 452758.3214 | AG28: 47446.18472 | AH28: 432890.219 | AI28: 1142352.47 | AJ28: 984757.3833 | AK28: 35224.67319 | AL28: 115832.1065 | AM28: 3373762.359 | AN28: 845494.7064 | AO28: 59881.37319 | AP28: 5425191.41 | AQ28: 173472.426 | AR28: 262646.6992 | AS28: 414419.5559 | AT28: 2206530.253 | AU28: 679713.6168 | AV28: 34229.18017 | AW28: 3953.894684 | AX28: 136682.6449 | AY28: 583123.7141 | AZ28: 1297.053823 | BA28: 214785.6328 | BB28: 2685.777402 | BC28: 530778.4247 | BD28: 3964.822274 | BE28: 2.689344483 | BF28: 1099563.608 | BG28: 412179.1468 | BH28: 28703.84565 | BI28: 45972.41033 | BJ28: 612010.7704 | BK28: 146460.2699 | BL28: 3739112.585 | BM28: 1692057.258 | BN28: 299969.3905 | BO28: 2328.121264 | BP28: 312544.1701 | BQ28: 226903.2961 | BR28: 20273.34764 | BS28: 266789.0922 | BT28: 1309447.773 | BU28: 101329.3217 | BV28: 108433.9025 | BW28: 49797.42073 | BX28: 25810843.91 | BY28: 2938122.941 | BZ28: 405589.3273 | CA28: 51025.47238 | CB28: 105059.7098 | CC28: 1482618.42 | CD28: 2599412.819 | CE28: 526018.2851 | CF28: 23356.22776 | CG28: 331349.9834 | CH28: 188995.0547 | CI28: 202713.3086 | CJ28: 32316.67479 | CK28: 222692.5725 | CL28: 3716689.31 | CM28: 7883.408876 | CN28: 141635.6208 | CO28: 181559.2661 | CP28: 213433.1345 | CQ28: 13880.64677 | CR28: 298778.8666 | CS28: 107908.7967 | CT28: 983053.536 | CU28: 643199.7236 | CV28: 591934.6026 | CW28: 728631.4705 | CX28: 33967.51463 | CY28: 85496.50791 | CZ28: 94651.41099 | DA28: 1305018.51 | DB28: 73485.65034 | DC28: 85071.43488 | DD28: 637056.3107 | DE28: 32970.9889 | DF28: 343983.2069 | DG28: 5610.82365 | DH28: 1512253.888 | DI28: 6776.86895 | DJ28: 354900.3129 | DK28: 84806.57596 | DL28: 627496.1187 | DM28: 148313.0249 | DN28: 542113.9431 | DO28: 607811.0053 | DP28: 10177.80717 | DQ28: 338024.4343 | DR28: 133364.1325 | DS28: 125619.8761 | DT28: 48344.73151 | DU28: 157199.3715 | DV28: 471918.7814 | DW28: 433621.8113 | DX28: 327894.7083 | DY28: 155610.8855 | DZ28: 2417903.077 | EA28: 37484.57361 | EB28: 153528.2014 | EC28: 515589.6224 | ED28: 188141.5533 | EE28: 2501050.666 | EF28: 5085.373397 | EG28: 481799.6473 | EH28: 174401.0438 | EI28: 145447.0751 | EJ28: 134421.7554 | EK28: 773129.5064 | EL28: 202329.435 | EM28: 156387.0154 | EN28: 44976.01121 | EO28: 137400.0108 | EP28: 180547.3656 | EQ28: 182213.3715 | ER28: 162547.5018 | ES28: 321751.5578 | ET28: 172338.1497 | EU28: 437616.9682 | EV28: 144061.5636 | EW28: 133854.5223 | EX28: 146406.3158 | EY28: 211496.5386 | EZ28: 168297.7762 | FA28: 145315.3156 | FB28: 20018.90069 | FC28: 145587.9128 | FD28: 168566.9717 | FE28: 139591.3457 | FF28: 3210.008383 | FG28: 186944.8563 | FH28: 1340604.596 | FI28: 147391.6252 | FJ28: 140112.5984 | FK28: 149381.0547 | FL28: 145181.9405 | FM28: 144741.2582 | FN28: 375204.3681 | FO28: 187769.8355 | FP28: 151219.1906 | FQ28: 39146.45914 | FR28: 328840.8698 | FS28: 327171.6133 | FT28: 499570.7873 | FU28: 174905.1991 | FV28: 165039.756 | FW28: 169380.1644 | FX28: 0.01359349781 | FY28: 65183.78258 | FZ28: 110233.8067 | GA28: 146963.4099 | GB28: 214875.3314 | GC28: 154174.3203 | GD28: 40143.88318 | GE28: 50955.44793 | GF28: 648517.3915 | GG28: 651384.7681 | GH28: 178280.4662 | GI28: 410332.6238 | GJ28: 4676.441805 | GK28: 72145.54658 | GL28: 1582.990409 | GM28: 492367.6581 | GN28: 176448.3664 | GO28: 146592.1592 | GP28: 621336.9653 | GQ28: 160276.4561 | GR28: 120201.0031 | GS28: 216140.1978 | GT28: 736052.8598 | GU28: 714142.6158 | GV28: 455818.973 | GW28: 29700709.58 | GX28: 2337208.514 | GY28: 15726.58502 | GZ28: 2015150.12 | HA28: 720945.9565 | HB28: 17327024.75 | HC28: 5043181.599 | HD28: 1159325.06 | HE28: 428088.3092 | HF28: 573491.574 | HG28: 836988.5869 | HH28: 222111.7353 | HI28: 265497.2346 | HJ28: 795150.1089 | HK28: 14249.25004 | HL28: 2300908.373 | HM28: 786935.7917 | HN28: 12091.34125 | HO28: 144787.954 | HP28: 66417.68538 | HQ28: 80005.31092 | HR28: 132092.4153 | HS28: 84278.87485 | HT28: 69492.04747 | HU28: 131400.6406 | HV28: 106663.5416 | HW28: 152833.9207 | HX28: 3027.228277 | HY28: 67457.57902 | HZ28: 111664.6772 | IA28: 130736.5927 | IB28: 330341.3696 | IC28: 164653.9245 | ID28: 159865.6411 | IE28: 118388.1169 | IF28: 188887.1698 | IG28: 88363.25319 | IH28: 165898.1779 | II28: 102000.575 | IJ28: 67186.93648 | IK28: 124693.4577 | IL28: 102139.6269 | IM28: 41376.13678 | IN28: 878793.1995 | IO28: 3333288.411 | IP28: 163782.8855 | IQ28: 681220.5416 | IR28: 314790.2841 | IS28: 355738.244 | IT28: 145256.2042 | IU28: 220496.3323 | IV28: 190367.1684 | IW28: 213707.5542 | IX28: 400561.6392 | IY28: 1009452.369 | IZ28: 130450.0248 | JA28: 480699.5266 | JB28: 112811.7577 | JC28: 122668.455 | JD28: 94868.64533 | JE28: 129472.8895 | JF28: 1405185.901 | JG28: 2280785.048 | JH28: 112804.4157 | JI28: 197021.9018 | JJ28: 415908.2492 | JK28: 405356.8954 | JL28: 220688316.6
A29: =+MATCH(B29,RUT[EMPRESA],0) -> 241 | B29: PARQUE_EOLICO_LEBU | C29: 32270895.3 | D29: 32270895.3 | F29: =IFERROR(INDEX($B$9:$B$511,MATCH(0,INDEX(COUNTIF($F$8:F28,$B$9:$B$511),0,0),0)),"") -> PARQUE_EOLICO_LEBU | H29: 32270895.3 | J29: AGUAS DEL MELADO | K29: =$JL29*K$63/$JL$63 -> 467467.7345 | L29: 100760.123 | M29: 1228365.696 | N29: 13093406.3 | O29: 1686337.926 | P29: 215599.0811 | Q29: 31649.03636 | R29: 351597.1396 | S29: 163873.3839 | T29: 960076.3349 | U29: =$JL29*U$63/$JL$63 -> 131738.2583 | V29: 198163.2768 | W29: 86347.7471 | X29: 390577.6223 | Y29: 237530.2873 | Z29: 2584951.234 | AA29: 126701.56 | AB29: 51.39928051 | AC29: 29435.00911 | AD29: 38142.50716 | AE29: =$JL29*AE$63/$JL$63 -> 193489.5519 | AF29: 271467.5997 | AG29: 28448.07323 | AH29: 259554.9615 | AI29: 684938.6709 | AJ29: 590446.8466 | AK29: 21120.22469 | AL29: 69451.32192 | AM29: 2022861.041 | AN29: 506946.8802 | AO29: =$JL29*AO$63/$JL$63 -> 35904.03948 | AP29: 3252869.402 | AQ29: 104011.6567 | AR29: 157479.3121 | AS29: 248480.2085 | AT29: 1323004.886 | AU29: 407546.8419 | AV29: 20523.34091 | AW29: 2370.700324 | AX29: 81953.01503 | AY29: =$JL29*AY$63/$JL$63 -> 349632.8781 | AZ29: 777.6954533 | BA29: 128782.4816 | BB29: 1610.354819 | BC29: 318247.3698 | BD29: 2377.252355 | BE29: 1.612493591 | BF29: 659283.0641 | BG29: 247136.8903 | BH29: 17210.42709 | BI29: =$JL29*BI$63/$JL$63 -> 27564.41857 | BJ29: 366953.1557 | BK29: 87815.54319 | BL29: 2241919.961 | BM29: 1014534.025 | BN29: 179857.4793 | BO29: 1395.909167 | BP29: 187397.1425 | BQ29: 136048.0642 | BR29: 12155.6176 | BS29: =$JL29*BS$63/$JL$63 -> 159963.0334 | BT29: 785126.6937 | BU29: 60755.65362 | BV29: 65015.46153 | BW29: 29857.84167 | BX29: 15475823.44 | BY29: 1761657.698 | BZ29: 243185.7261 | CA29: 30594.16438 | CB29: 62992.34249 | CC29: =$JL29*CC$63/$JL$63 -> 888957.4076 | CD29: 1558571.815 | CE29: 315393.2562 | CF29: 14004.06969 | CG29: 198672.8468 | CH29: 113318.8093 | CI29: 121544.0837 | CJ29: 19376.62925 | CK29: 133523.3727 | CL29: 2228475.277 | CM29: =$JL29*CM$63/$JL$63 -> 4726.782444 | CN29: 84922.7506 | CO29: 108860.4137 | CP29: 127971.5424 | CQ29: 8322.642972 | CR29: 179143.6577 | CS29: 64700.61543 | CT29: 589425.2434 | CU29: 385653.6188 | CV29: 354915.7644 | CW29: =$JL29*CW$63/$JL$63 -> 436877.3074 | CX29: 20366.44989 | CY29: 51262.5184 | CZ29: 56751.67111 | DA29: 782470.9691 | DB29: 44060.97506 | DC29: 51007.65052 | DD29: 381970.1138 | DE29: 19768.9469 | DF29: 206247.5522 | DG29: =$JL29*DG$63/$JL$63 -> 3364.171914 | DH29: 906726.4229 | DI29: 4063.316476 | DJ29: 212793.2973 | DK29: 50848.84479 | DL29: 376237.9554 | DM29: 88926.4293 | DN29: 325043.9891 | DO29: 364435.0349 | DP29: 6102.471789 | DQ29: =$JL29*DQ$63/$JL$63 -> 202674.7549 | DR29: 79963.28111 | DS29: 75319.93254 | DT29: 28986.8294 | DU29: 94254.55929 | DV29: 282955.9453 | DW29: 259993.6141 | DX29: 196601.1119 | DY29: 93302.12519 | DZ29: 1449741.095 | EA29: =$JL29*EA$63/$JL$63 -> 22475.22959 | EB29: 92053.37669 | EC29: 309140.3749 | ED29: 112807.0616 | EE29: 1499595.234 | EF29: 3049.119242 | EG29: 288880.3753 | EH29: 104568.443 | EI29: 87208.04563 | EJ29: 80597.4171 | EK29: =$JL29*EK$63/$JL$63 -> 463557.7115 | EL29: 121313.9184 | EM29: 93767.48185 | EN29: 26966.9915 | EO29: 82383.13771 | EP29: 108253.6922 | EQ29: 109252.6062 | ER29: 97461.22394 | ES29: 192917.7642 | ET29: 103331.5604 | EU29: =$JL29*EU$63/$JL$63 -> 262389.0546 | EV29: 86377.31221 | EW29: 80257.31205 | EX29: 87783.19307 | EY29: 126810.3864 | EZ29: 100909.0086 | FA29: 87129.04451 | FB29: 12003.05474 | FC29: 87292.49 | FD29: 101070.4145 | FE29: =$JL29*FE$63/$JL$63 -> 83697.03165 | FF29: 1924.676432 | FG29: 112089.5388 | FH29: 803807.8915 | FI29: 88373.97088 | FJ29: 84009.56755 | FK29: 89566.80513 | FL29: 87049.07464 | FM29: 86784.84765 | FN29: 224967.3267 | FO29: =$JL29*FO$63/$JL$63 -> 112584.1848 | FP29: 90668.92594 | FQ29: 23471.67307 | FR29: 197168.4172 | FS29: 196167.5542 | FT29: 299535.7039 | FU29: 104870.7276 | FV29: 98955.54492 | FW29: 101557.9935 | FX29: 0.008150472443 | FY29: =$JL29*FY$63/$JL$63 -> 39083.29049 | FZ29: 66094.65907 | GA29: 88117.21894 | GB29: 128836.2636 | GC29: 92440.78063 | GD29: 24069.71467 | GE29: 30552.17869 | GF29: 388842.0186 | GG29: 390561.2578 | GH29: 106894.4908 | GI29: =$JL29*GI$63/$JL$63 -> 246029.7408 | GJ29: 2803.92954 | GK29: 43257.46747 | GL29: 949.1390577 | GM29: 295216.8077 | GN29: 105795.9892 | GO29: 87894.62217 | GP29: 372545.0126 | GQ29: 96099.5365 | GR29: 72070.8516 | GS29: =$JL29*GS$63/$JL$63 -> 129594.6599 | GT29: 441327.0693 | GU29: 428189.9914 | GV29: 273302.7239 | GW29: 17808132.86 | GX29: 1401357.756 | GY29: 9429.441902 | GZ29: 1208256.017 | HA29: 432269.18 | HB29: 10389043.33 | HC29: =$JL29*HC$63/$JL$63 -> 3023821.626 | HD29: 695115.2003 | HE29: 256675.8031 | HF29: 343857.5807 | HG29: 501846.729 | HH29: 133175.1109 | HI29: 159188.4535 | HJ29: 476760.9589 | HK29: 8543.652371 | HL29: 1379592.695 | HM29: =$JL29*HM$63/$JL$63 -> 471835.7684 | HN29: 7249.800238 | HO29: 86812.84582 | HP29: 39823.12147 | HQ29: 47970.07297 | HR29: 79200.77717 | HS29: 50532.44254 | HT29: 41666.46626 | HU29: 78785.99864 | HV29: 63953.97775 | HW29: =$JL29*HW$63/$JL$63 -> 91637.09566 | HX29: 1815.08402 | HY29: 40446.62724 | HZ29: 66952.58915 | IA29: 78387.84473 | IB29: 198068.096 | IC29: 98724.20571 | ID29: 95853.21754 | IE29: 70983.87021 | IF29: 113254.1229 | IG29: =$JL29*IG$63/$JL$63 -> 52981.37905 | IH29: 99470.24277 | II29: 61158.12773 | IJ29: 40284.35374 | IK29: 74764.46498 | IL29: 61241.50136 | IM29: 24808.55681 | IN29: 526912.194 | IO29: 1998593.424 | IP29: 98201.94284 | IQ29: =$JL29*IQ$63/$JL$63 -> 408450.3731 | IR29: 188743.8812 | IS29: 213295.7091 | IT29: 87093.60209 | IU29: 132206.5377 | IV29: 114141.5095 | IW29: 128136.0806 | IX29: 240171.1942 | IY29: 605253.617 | IZ29: 78216.02264 | JA29: =$JL29*JA$63/$JL$63 -> 288220.7581 | JB29: 67640.36271 | JC29: 73550.30145 | JD29: 56881.9218 | JE29: 77630.14589 | JF29: 842529.9449 | JG29: 1367527.029 | JH29: 67635.96055 | JI29: 118131.5952 | JJ29: 249372.8083 | JK29: 243046.3632 | JL29: 132321648.8
A30: =+MATCH(B30,RUT[EMPRESA],0) -> 234 | B30: ORAFTI | C30: 48542514.83 | D30: 48542514.83 | F30: =IFERROR(INDEX($B$9:$B$511,MATCH(0,INDEX(COUNTIF($F$8:F29,$B$9:$B$511),0,0),0)),"") -> ORAFTI | H30: 48542514.83 | J30: ENORCHILE | K30: 2128097.744 | L30: 458699.8731 | M30: 5592005.766 | N30: 59606356.45 | O30: 7676876.224 | P30: 981492.1634 | Q30: 144078.9126 | R30: 1600609.035 | S30: 746016.3619 | T30: 4370646.638 | U30: 599724.5789 | V30: 902117.4962 | W30: 393089.046 | X30: 1778063.587 | Y30: 1081331.675 | Z30: 11767718.89 | AA30: 576795.5393 | AB30: 233.9898239 | AC30: 133999.7862 | AD30: 173639.7562 | AE30: 880840.8546 | AF30: 1235827.724 | AG30: 129506.8643 | AH30: 1181596.69 | AI30: 3118111.332 | AJ30: 2687947.23 | AK30: 96147.60378 | AL30: 316169.8457 | AM30: 9208862.344 | AN30: 2307822.406 | AO30: 163449.3672 | AP30: 14808346.17 | AQ30: 473502.1385 | AR30: 716908.0216 | AS30: 1131180.041 | AT30: 6022840.735 | AU30: 1855314.176 | AV30: 93430.35308 | AW30: 10792.36413 | AX30: 373082.49 | AY30: 1591666.941 | AZ30: 3540.376837 | BA30: 586268.7161 | BB30: 7330.971109 | BC30: 1448787.712 | BD30: 10822.19156 | BE30: 7.340707645 | BF30: 3001316.877 | BG30: 1125064.726 | BH30: 78348.661 | BI30: 125484.1193 | BJ30: 1670515.685 | BK30: 399771.0334 | BL30: 10206105.06 | BM30: 4618559.552 | BN30: 818782.2766 | BO30: 6354.729812 | BP30: 853105.801 | BQ30: 619344.5173 | BR30: 55337.17193 | BS30: 728214.902 | BT30: 3574206.779 | BU30: 276583.7294 | BV30: 295976.0573 | BW30: 135924.687 | BX30: 70452060.14 | BY30: 8019761.572 | BZ30: 1107077.466 | CA30: 139276.7188 | CB30: 286766.0205 | CC30: 4046885.194 | CD30: 7095234.424 | CE30: 1435794.66 | CF30: 63752.05585 | CG30: 904437.2604 | CH30: 515871.9726 | CI30: 553316.6701 | CJ30: 88210.06873 | CK30: 607851.1249 | CL30: 10144899.55 | CM30: 21518.18042 | CN30: 386601.8991 | CO30: 495575.5952 | CP30: 582577.0004 | CQ30: 37887.95766 | CR30: 815532.6787 | CS30: 294542.7536 | CT30: 2683296.489 | CU30: 1755647.578 | CV30: 1615716.726 | CW30: 1988838.038 | CX30: 92716.12318 | CY30: 233367.2288 | CZ30: 258356.0197 | DA30: 3562116.872 | DB30: 200582.9594 | DC30: 232206.9696 | DD30: 1738878.809 | DE30: 89996.05361 | DF30: 938920.3105 | DG30: 15315.03916 | DH30: 4127776.769 | DI30: 18497.82132 | DJ30: 968719.1272 | DK30: 231484.0232 | DL30: 1712783.76 | DM30: 404828.2258 | DN30: 1479728.607 | DO30: 1659052.205 | DP30: 27780.86162 | DQ30: 922655.5262 | DR30: 364024.4354 | DS30: 342886.0789 | DT30: 131959.4951 | DU30: 429083.9777 | DV30: 1288127.21 | DW30: 1183593.61 | DX30: 895005.9047 | DY30: 424748.1215 | DZ30: 6599794.009 | EA30: 102316.1212 | EB30: 419063.3252 | EC30: 1407329.075 | ED30: 513542.2953 | EE30: 6826749.739 | EF30: 13880.79497 | EG30: 1315097.555 | EH30: 476036.8497 | EI30: 397005.4646 | EJ30: 366911.2728 | EK30: 2110297.775 | EL30: 552268.8669 | EM30: 426866.6088 | EN30: 122764.3953 | EO30: 375040.5783 | EP30: 492813.5595 | EQ30: 497361.0103 | ER30: 443681.9816 | ES30: 878237.8513 | ET30: 470406.0714 | EU30: 1194498.602 | EV30: 393223.638 | EW30: 365362.9804 | EX30: 399623.7629 | EY30: 577290.9599 | EZ30: 459377.6588 | FA30: 396645.8203 | FB30: 54642.64554 | FC30: 397389.8888 | FD30: 460112.4423 | FE30: 381021.9424 | FF30: 8761.88723 | FG30: 510275.8478 | FH30: 3659250.969 | FI30: 402313.2168 | FJ30: 382444.7292 | FK30: 407743.4694 | FL30: 396281.7659 | FM30: 395078.9003 | FN30: 1024140.117 | FO30: 512527.672 | FP30: 412760.7586 | FQ30: 106852.3254 | FR30: 897588.5026 | FS30: 893032.1787 | FT30: 1363604.819 | FU30: 477412.9682 | FV30: 450484.7208 | FW30: 462332.0946 | FX30: 0.03710416941 | FY30: 177922.5734 | FZ30: 300888.9908 | GA30: 401144.3806 | GB30: 586513.5531 | GC30: 420826.9409 | GD30: 109574.847 | GE30: 139085.5833 | GF30: 1770162.433 | GG30: 1777989.089 | GH30: 486625.9378 | GI30: 1120024.544 | GJ30: 12764.59462 | GK30: 196925.0755 | GL30: 4320.855833 | GM30: 1343943.498 | GN30: 481625.1248 | GO30: 400131.0322 | GP30: 1695972.026 | GQ30: 437483.0426 | GR30: 328094.9793 | GS30: 589966.0726 | GT30: 2009095.112 | GU30: 1949289.945 | GV30: 1244181.934 | GW30: 81069653.69 | GX30: 6379533.941 | GY30: 42926.54349 | GZ30: 5500458.565 | HA30: 1967860.023 | HB30: 47295028.15 | HC30: 13765630.23 | HD30: 3164438.913 | HE30: 1168489.624 | HF30: 1565375.506 | HG30: 2284604.504 | HH30: 606265.6993 | HI30: 724688.7083 | HJ30: 2170404.171 | HK30: 38894.07973 | HL30: 6280450.79 | HM30: 2147982.759 | HN30: 33003.95383 | HO30: 395206.359 | HP30: 181290.5762 | HQ30: 218378.7169 | HR30: 360553.2163 | HS30: 230043.6351 | HT30: 189682.2097 | HU30: 358664.9806 | HV30: 291143.7639 | HW30: 417168.2495 | HX30: 8262.979287 | HY30: 184129.0207 | HZ30: 304794.6273 | IA30: 356852.4268 | IB30: 901684.1958 | IC30: 449431.5734 | ID30: 436361.7014 | IE30: 323146.6107 | IF30: 515577.4948 | IG30: 241192.1613 | IH30: 452827.8287 | II30: 278415.9505 | IJ30: 183390.2876 | IK30: 340357.3712 | IL30: 278795.5002 | IM30: 112938.3482 | IN30: 2398712.4 | IO30: 9098386.569 | IP30: 447054.0265 | IQ30: 1859427.407 | IR30: 859236.6874 | IS30: 971006.3044 | IT30: 396484.4725 | IU30: 601856.3717 | IV30: 519617.2291 | IW30: 583326.0437 | IX30: 1093354.126 | IY30: 2755353.497 | IZ30: 356070.2248 | JA30: 1312094.718 | JB30: 307925.6441 | JC30: 334830.0193 | JD30: 258948.9723 | JE30: 353403.0824 | JF30: 3835529.048 | JG30: 6225523.113 | JH30: 307905.6038 | JI30: 537781.675 | JJ30: 1135243.508 | JK30: 1106443.031 | JL30: 602380402.9
A31: =+MATCH(B31,RUT[EMPRESA],0) -> 130 | B31: GAS SUR | C31: -3590336.912 | D31: -3590336.912 | F31: =IFERROR(INDEX($B$9:$B$511,MATCH(0,INDEX(COUNTIF($F$8:F30,$B$9:$B$511),0,0),0)),"") -> GAS SUR | G31: -3590336.912 | J31: ALBA | K31: 13409.42592 | L31: 2890.328691 | M31: 35235.96943 | N31: 375587.5515 | O31: 48373.01449 | P31: 6184.512197 | Q31: 907.8603229 | R31: 10085.64966 | S31: 4700.747964 | T31: 27540.0237 | U31: 3778.944052 | V31: 5684.361899 | W31: 2476.906174 | X31: 11203.8143 | Y31: 6813.614192 | Z31: 74149.95627 | AA31: 3634.465135 | AB31: 1.474400891 | AC31: 844.3504116 | AD31: 1094.127116 | AE31: 5550.294961 | AF31: 7787.114271 | AG31: 816.0399151 | AH31: 7445.39734 | AI31: 19647.63274 | AJ31: 16937.11172 | AK31: 605.8387937 | AL31: 1992.228099 | AM31: 58026.26206 | AN31: 14541.89483 | AO31: 1029.916125 | AP31: 93309.35172 | AQ31: 2983.599727 | AR31: 4517.332454 | AS31: 7127.715352 | AT31: 37950.71767 | AU31: 11690.5805 | AV31: 588.7170369 | AW31: 68.00411669 | AX31: 2350.842213 | AY31: 10029.30434 | AZ31: 22.30838365 | BA31: 3694.156877 | BB31: 46.19342052 | BC31: 9129.003379 | BD31: 68.19206329 | BE31: 0.04625477172 | BF31: 18911.6954 | BG31: 7089.181942 | BH31: 493.6852964 | BI31: 790.692066 | BJ31: 10526.14072 | BK31: 2519.010263 | BL31: 64310.02058 | BM31: 29102.15583 | BN31: 5159.255637 | BO31: 40.04199473 | BP31: 5375.532713 | BQ31: 3902.571884 | BR31: 348.6868541 | BS31: 4588.578606 | BT31: 22521.5506 | BU31: 1742.790734 | BV31: 1864.984362 | BW31: 856.4794667 | BX31: 443927.7678 | BY31: 50533.58051 | BZ31: 6975.841833 | CA31: 877.6010631 | CB31: 1806.9507 | CC31: 25499.95993 | CD31: 44708.01243 | CE31: 9047.132436 | CF31: 401.7101529 | CG31: 5698.979041 | CH31: 3250.577667 | CI31: 3486.521668 | CJ31: 555.8233334 | CK31: 3830.150495 | CL31: 63924.35655 | CM31: 135.5889066 | CN31: 2436.029802 | CO31: 3122.687503 | CP31: 3670.894887 | CQ31: 238.7370424 | CR31: 5138.77949 | CS31: 1855.952925 | CT31: 16907.80679 | CU31: 11062.56806 | CV31: 10180.84522 | CW31: 12531.93206 | CX31: 584.2165796 | CY31: 1470.477836 | CZ31: 1627.93552 | DA31: 22445.37049 | DB31: 1263.89981 | DC31: 1463.166889 | DD31: 10956.90582 | DE31: 567.0770608 | DF31: 5916.26131 | DG31: 96.5020914 | DH31: 26009.66847 | DI31: 116.5572236 | DJ31: 6104.027603 | DK31: 1458.611508 | DL31: 10792.47746 | DM31: 2550.876302 | DN31: 9323.966061 | DO31: 10453.90781 | DP31: 175.0508908 | DQ31: 5813.774749 | DR31: 2293.766211 | DS31: 2160.570625 | DT31: 831.4942672 | DU31: 2703.715009 | DV31: 8116.660266 | DW31: 7457.980197 | DX31: 5639.550819 | DY31: 2676.394205 | DZ31: 41586.17671 | EA31: 644.7074395 | EB31: 2640.57355 | EC31: 8867.767012 | ED31: 3235.898062 | EE31: 43016.25484 | EF31: 87.46472871 | EG31: 8286.603983 | EH31: 2999.571278 | EI31: 2501.584047 | EJ31: 2311.956556 | EK31: 13297.26595 | EL31: 3479.919321 | EM31: 2689.743074 | EN31: 773.5547248 | EO31: 2363.180387 | EP31: 3105.28355 | EQ31: 3133.93764 | ER31: 2795.698966 | ES31: 5533.893092 | ET31: 2964.090998 | EU31: 7526.693993 | EV31: 2477.754256 | EW31: 2302.20056 | EX31: 2518.082291 | EY31: 3637.586845 | EZ31: 2894.599508 | FA31: 2499.317881 | FB31: 344.3105513 | FC31: 2504.006354 | FD31: 2899.229477 | FE31: 2400.869755 | FF31: 55.20981263 | FG31: 3215.315743 | FH31: 23057.42531 | FI31: 2535.028897 | FJ31: 2409.834924 | FK31: 2569.245638 | FL31: 2497.023925 | FM31: 2489.44451 | FN31: 6453.242604 | FO31: 3229.504785 | FP31: 2600.860242 | FQ31: 673.2906636 | FR31: 5655.82411 | FS31: 5627.11411 | FT31: 8592.254682 | FU31: 3008.242384 | FV31: 2838.563928 | FW31: 2913.2158 | FX31: 0.0002337982888 | FY31: 1121.113715 | FZ31: 1895.941407 | GA31: 2527.663905 | GB31: 3695.699628 | GC31: 2651.686326 | GD31: 690.4456325 | GE31: 876.3966934 | GF31: 11154.02809 | GG31: 11203.34488 | GH31: 3066.294525 | GI31: 7057.423088 | GJ31: 80.43140235 | GK31: 1240.850999 | GL31: 27.22628524 | GM31: 8468.366093 | GN31: 3034.78374 | GO31: 2521.278663 | GP31: 10686.5445 | GQ31: 2756.63863 | GR31: 2067.369946 | GS31: 3717.454411 | GT31: 12659.57456 | GU31: 12282.73428 | GV31: 7839.755255 | GW31: 510830.6319 | GX31: 40198.28883 | GY31: 270.4858395 | GZ31: 34659.11839 | HA31: 12399.7468 | HB31: 298012.2403 | HC31: 86739.06043 | HD31: 19939.54897 | HE31: 7362.80798 | HF31: 9863.638522 | HG31: 14395.59575 | HH31: 3820.160519 | HI31: 4566.359593 | HJ31: 13676.00432 | HK31: 245.0767509 | HL31: 39573.95276 | HM31: 13534.72403 | HN31: 207.9622871 | HO31: 2490.247644 | HP31: 1142.335947 | HQ31: 1376.033237 | HR31: 2271.893599 | HS31: 1449.535432 | HT31: 1195.212742 | HU31: 2259.995576 | HV31: 1834.535441 | HW31: 2628.632427 | HX31: 52.06612756 | HY31: 1160.221362 | HZ31: 1920.55134 | IA31: 2248.574434 | IB31: 5681.631616 | IC31: 2831.927906 | ID31: 2749.572911 | IE31: 2036.18962 | IF31: 3248.722123 | IG31: 1519.783773 | IH31: 2853.328161 | II31: 1754.335802 | IJ31: 1155.566507 | IK31: 2144.636903 | IL31: 1756.727395 | IM31: 711.6394994 | IN31: 15114.60473 | IO31: 57330.13956 | IP31: 2816.946668 | IQ31: 11716.49852 | IR31: 5414.16424 | IS31: 6118.43941 | IT31: 2498.301206 | IU31: 3792.376761 | IV31: 3274.177024 | IW31: 3675.614708 | IX31: 6889.36925 | IY31: 17361.84754 | IZ31: 2243.645676 | JA31: 8267.682705 | JB31: 1940.280292 | JC31: 2109.808326 | JD31: 1631.671793 | JE31: 2226.839658 | JF31: 24168.17685 | JG31: 39227.84619 | JH31: 1940.154016 | JI31: 3388.633605 | JJ31: 7153.319794 | JK31: 6971.844173 | JL31: 3795678.751
A32: =+MATCH(B32,RUT[EMPRESA],0) -> 246 | B32: PETROPOWER | C32: 0 | D32: 0 | F32: =IFERROR(INDEX($B$9:$B$511,MATCH(0,INDEX(COUNTIF($F$8:F31,$B$9:$B$511),0,0),0)),"") -> PETROPOWER | J32: ALMEYDA | K32: 102838.0584 | L32: 22166.18313 | M32: 270227.7266 | N32: 2880413.732 | O32: 370976.8724 | P32: 47429.56411 | Q32: 6962.460098 | R32: 77347.72796 | S32: 36050.44664 | T32: 211206.8467 | U32: 28981.05194 | V32: 43593.86781 | W32: 18995.60975 | X32: 85923.0303 | Y32: 52254.20225 | Z32: 568662.49 | AA32: 27873.03051 | AB32: 11.30730919 | AC32: 6475.397042 | AD32: 8390.956398 | AE32: 42565.69675 | AF32: 59720.05937 | AG32: 6258.281372 | AH32: 57099.40239 | AI32: 150679.4112 | AJ32: 129892.1889 | AK32: 4646.230615 | AL32: 15278.57127 | AM32: 445008.4711 | AN32: 111523.0614 | AO32: 7898.516699 | AP32: 715597.5668 | AQ32: 22881.48686 | AR32: 34643.81708 | AS32: 54663.07148 | AT32: 291047.3679 | AU32: 89656.08279 | AV32: 4514.922367 | AW32: 521.5295095 | AX32: 18028.81423 | AY32: 76915.61078 | AZ32: 171.0849424 | BA32: 28330.81169 | BB32: 354.2613759 | BC32: 70011.12412 | BD32: 522.9708884 | BE32: 0.3547318837 | BF32: 145035.4436 | BG32: 54367.55539 | BH32: 3786.11565 | BI32: 6063.886503 | BJ32: 80725.89241 | BK32: 19318.50968 | BL32: 493199.1639 | BM32: 223186.9745 | BN32: 39566.78202 | BO32: 307.0855543 | BP32: 41225.4298 | BQ32: 29929.16458 | BR32: 2674.109934 | BS32: 35190.21004 | BT32: 172719.7383 | BU32: 13365.61433 | BV32: 14302.72794 | BW32: 6568.415824 | BX32: 3404520.819 | BY32: 387546.4419 | BZ32: 53498.3402 | CA32: 6730.399191 | CB32: 13857.66271 | CC32: 195561.4196 | CD32: 342869.6515 | CE32: 69383.24871 | CF32: 3080.750243 | CG32: 43705.96794 | CH32: 24928.96399 | CI32: 26738.43914 | CJ32: 4262.657682 | CK32: 29373.75863 | CL32: 490241.4727 | CM32: 1039.843165 | CN32: 18682.12528 | CO32: 23948.16316 | CP32: 28152.41346 | CQ32: 1830.895227 | CR32: 39409.74866 | CS32: 14233.46506 | CT32: 129667.4468 | CU32: 84839.80054 | CV32: 78077.79104 | CW32: 96108.48132 | CX32: 4480.407967 | CY32: 11277.22294 | CZ32: 12484.77966 | DA32: 172135.5064 | DB32: 9692.958017 | DC32: 11221.15465 | DD32: 84029.4676 | DE32: 4348.963501 | DF32: 45372.32464 | DG32: 740.0829662 | DH32: 199470.4188 | DI32: 893.8875266 | DJ32: 46812.32074 | DK32: 11186.21903 | DL32: 82768.45215 | DM32: 19562.89312 | DN32: 71506.30996 | DO32: 80171.93193 | DP32: 1342.480569 | DQ32: 44586.34625 | DR32: 17591.09338 | DS32: 16569.6048 | DT32: 6376.802147 | DU32: 20735.02651 | DV32: 62247.37638 | DW32: 57195.90142 | DX32: 43250.20772 | DY32: 20525.50088 | DZ32: 318928.0208 | EA32: 4944.317654 | EB32: 20250.78915 | EC32: 68007.67961 | ED32: 24816.38482 | EE32: 329895.4149 | EF32: 670.7746426 | EG32: 63550.68959 | EH32: 23003.97408 | EI32: 19184.86651 | EJ32: 17730.59673 | EK32: 101977.8938 | EL32: 26687.80517 | EM32: 20627.87452 | EN32: 5932.458737 | EO32: 18123.43676 | EP32: 23814.69072 | EQ32: 24034.44144 | ER32: 21440.45951 | ES32: 42439.90939 | ET32: 22731.87271 | EU32: 57722.87352 | EV32: 19002.11377 | EW32: 17655.77714 | EX32: 19311.39299 | EY32: 27896.97118 | EZ32: 22198.93641 | FA32: 19167.48708 | FB32: 2640.547685 | FC32: 19203.4434 | FD32: 22234.44404 | FE32: 18412.47981 | FF32: 423.4088744 | FG32: 24658.53722 | FH32: 176829.4082 | FI32: 19441.35799 | FJ32: 18481.23447 | FK32: 19703.76917 | FL32: 19149.89454 | FM32: 19091.76734 | FN32: 49490.48108 | FO32: 24767.35422 | FP32: 19946.22433 | FQ32: 5163.524896 | FR32: 43375.00901 | FS32: 43154.82951 | FT32: 65894.7515 | FU32: 23070.47354 | FV32: 21769.19465 | FW32: 22341.70637 | FX32: 0.001793019494 | FY32: 8597.918982 | FZ32: 14540.14022 | GA32: 19384.87522 | GB32: 28342.64318 | GC32: 20336.014 | GD32: 5295.08785 | GE32: 6721.162775 | GF32: 85541.21547 | GG32: 85919.43028 | GH32: 23515.68049 | GI32: 54123.99397 | GJ32: 616.8354485 | GK32: 9516.194671 | GL32: 208.8007591 | GM32: 64944.63909 | GN32: 23274.02152 | GO32: 19335.90624 | GP32: 81956.043 | GQ32: 21140.90238 | GR32: 15854.84066 | GS32: 28509.48251 | GT32: 97087.38286 | GU32: 94197.36181 | GV32: 60123.76768 | GW32: 3917604.726 | GX32: 308284.1875 | GY32: 2074.379524 | GZ32: 265803.8056 | HA32: 95094.74104 | HB32: 2285481.895 | HC32: 665209.4291 | HD32: 152918.1423 | HE32: 56466.01737 | HF32: 75645.10519 | HG32: 110401.081 | HH32: 29297.14462 | HI32: 35019.81048 | HJ32: 104882.4714 | HK32: 1879.515005 | HL32: 303496.0996 | HM32: 103798.9806 | HN32: 1594.88094 | HO32: 19097.92665 | HP32: 8760.674132 | HQ32: 10552.91906 | HR32: 17423.35041 | HS32: 11116.61381 | HT32: 9166.19089 | HU32: 17332.10343 | HV32: 14069.2125 | HW32: 20159.21163 | HX32: 399.2996791 | HY32: 8897.838944 | HZ32: 14728.87595 | IA32: 17244.5137 | IB32: 43572.92903 | IC32: 21718.30242 | ID32: 21086.71476 | IE32: 15615.71601 | IF32: 24914.73367 | IG32: 11655.35447 | IH32: 21882.42284 | II32: 13454.15447 | IJ32: 8862.140453 | IK32: 16447.40769 | IL32: 13472.4958 | IM32: 5457.625467 | IN32: 115915.2236 | IO32: 439669.8468 | IP32: 21603.41 | IQ32: 89854.85029 | IR32: 41521.69836 | IS32: 46922.84614 | IT32: 19159.69012 | IU32: 29084.06856 | IV32: 25109.94952 | IW32: 28188.61018 | IX32: 52835.17441 | IY32: 133149.525 | IZ32: 17206.71462 | JA32: 63405.58066 | JB32: 14880.179 | JC32: 16180.3043 | JD32: 12513.43347 | JE32: 17077.8278 | JF32: 185347.8588 | JG32: 300841.7781 | JH32: 14879.21057 | JI32: 25987.72704 | JJ32: 54859.43418 | JK32: 53467.6818 | JL32: 29109391.81
A33: =+MATCH(B33,RUT[EMPRESA],0) -> 336 | B33: ALTO_MANGA_ENERGY | C33: 21151935.22 | D33: 21151935.22 | F33: =IFERROR(INDEX($B$9:$B$511,MATCH(0,INDEX(COUNTIF($F$8:F32,$B$9:$B$511),0,0),0)),"") -> ALTO_MANGA_ENERGY | H33: 21151935.22 | J33: PUNTA_PALMERAS | K33: 10365.20715 | L33: 2234.163924 | M33: 27236.67103 | N33: 290321.3605 | O33: 37391.33345 | P33: 4780.499215 | Q33: 701.757135 | R33: 7795.997279 | S33: 3633.580343 | T33: 21287.86515 | U33: 2921.045104 | V33: 4393.893444 | W33: 1914.596923 | X33: 8660.315281 | Y33: 5266.781964 | Z33: 57316.37297 | AA33: 2809.365908 | AB33: 1.139681203 | AC33: 652.6652954 | AD33: 845.7374893 | AE33: 4290.262491 | AF33: 6019.277264 | AG33: 630.7818708 | AH33: 5755.137188 | AI33: 15187.2112 | AJ33: 13092.03486 | AK33: 468.3007787 | AL33: 1539.950858 | AM33: 44853.09292 | AN33: 11240.58206 | AO33: 796.1037294 | AP33: 72126.1869 | AQ33: 2306.260494 | AR33: 3491.803971 | AS33: 5509.575624 | AT33: 29335.11492 | AU33: 9036.575423 | AV33: 455.066017 | AW33: 52.56576689 | AX33: 1817.152105 | AY33: 7752.443519 | AZ33: 17.24391628 | BA33: 2855.506383 | BB33: 35.70655267 | BC33: 7056.529617 | BD33: 52.7110457 | BE33: 0.03575397588 | BF33: 14618.34695 | BG33: 5479.790099 | BH33: 381.6084594 | BI33: 611.188511 | BJ33: 8136.487705 | BK33: 1947.142507 | BL33: 49710.30748 | BM33: 22495.36077 | BN33: 3987.997232 | BO33: 30.95162856 | BP33: 4155.17491 | BQ33: 3016.606845 | BR33: 269.5276812 | BS33: 3546.875764 | BT33: 17408.68989 | BU33: 1347.140966 | BV33: 1441.594098 | BW33: 662.0408025 | BX33: 343146.9254 | BY33: 39061.40602 | BZ33: 5392.180554 | CA33: 678.3673569 | CB33: 1396.735284 | CC33: 19710.93832 | CD33: 34558.36313 | CE33: 6993.245082 | CF33: 310.5135877 | CG33: 4405.19219 | CH33: 2512.628885 | CI33: 2695.008687 | CJ33: 429.6398688 | CK33: 2960.626619 | CL33: 49412.19721 | CM33: 104.8074029 | CN33: 1883.000338 | CO33: 2413.77245 | CP33: 2837.525348 | CQ33: 184.5387651 | CR33: 3972.169596 | CS33: 1434.612985 | CT33: 13069.38276 | CU33: 8551.134877 | CV33: 7869.581467 | CW33: 9686.922662 | CX33: 451.5872572 | CY33: 1136.648764 | CZ33: 1258.360276 | DA33: 17349.80425 | DB33: 976.9682487 | DC33: 1130.997554 | DD33: 8469.460164 | DE33: 438.3387659 | DF33: 4573.146862 | DG33: 74.59410823 | DH33: 20104.93241 | DI33: 90.09630804 | DJ33: 4718.286299 | DK33: 1127.476339 | DL33: 8342.360465 | DM33: 1971.774292 | DN33: 7207.231712 | DO33: 8080.65317 | DP33: 135.3106954 | DQ33: 4493.926883 | DR33: 1773.033543 | DS33: 1670.076127 | DT33: 642.7277633 | DU33: 2089.915432 | DV33: 6274.00946 | DW33: 5764.863475 | DX33: 4359.255412 | DY33: 2068.797018 | DZ33: 32145.24909 | EA33: 498.345433 | EB33: 2041.108398 | EC33: 6854.599342 | ED33: 2501.281855 | EE33: 33250.66973 | EF33: 67.60841496 | EG33: 6405.372416 | EH33: 2318.60617 | EI33: 1933.672405 | EJ33: 1787.094301 | EK33: 10278.50984 | EL33: 2689.90521 | EM33: 2079.115417 | EN33: 597.9417029 | EO33: 1826.689256 | EP33: 2400.319556 | EQ33: 2422.468572 | ER33: 2161.017116 | ES33: 4277.584188 | ET33: 2291.180652 | EU33: 5817.97781 | EV33: 1915.252473 | EW33: 1779.553119 | EX33: 1946.425204 | EY33: 2811.778925 | EZ33: 2237.465177 | FA33: 1931.920705 | FB33: 266.1448903 | FC33: 1935.544798 | FD33: 2241.044046 | FE33: 1855.822353 | FF33: 42.67603612 | FG33: 2485.372151 | FH33: 17822.90989 | FI33: 1959.524578 | FJ33: 1862.752242 | FK33: 1985.973407 | FL33: 1930.147526 | FM33: 1924.288795 | FN33: 4988.222227 | FO33: 2496.339986 | FP33: 2010.410838 | FQ33: 520.4396703 | FR33: 4371.834327 | FS33: 4349.642094 | FT33: 6641.634046 | FU33: 2325.308754 | FV33: 2194.150839 | FW33: 2251.855183 | FX33: 0.0001807212114 | FY33: 866.5975686 | FZ33: 1465.523249 | GA33: 1953.831592 | GB33: 2856.698896 | GC33: 2049.698343 | GD33: 533.7001042 | GE33: 677.4364042 | GF33: 8621.831573 | GG33: 8659.952429 | GH33: 2370.181852 | GI33: 5455.241166 | GJ33: 62.17180006 | GK33: 959.1519973 | GL33: 21.04535185 | GM33: 6545.870744 | GN33: 2345.82467 | GO33: 1948.895933 | GP33: 8260.476488 | GQ33: 2130.824289 | GR33: 1598.033942 | GS33: 2873.514891 | GT33: 9785.587664 | GU33: 9494.297967 | GV33: 6059.96765 | GW33: 394861.447 | GX33: 31072.44065 | GY33: 209.0799245 | GZ33: 26790.77718 | HA33: 9584.74621 | HB33: 230357.2594 | HC33: 67047.48848 | HD33: 15412.85636 | HE33: 5691.297332 | HF33: 7624.387294 | HG33: 11127.49591 | HH33: 2952.904575 | HI33: 3529.700929 | HJ33: 10571.26671 | HK33: 189.4392279 | HL33: 30589.84186 | HM33: 10462.05999 | HN33: 160.7505197 | HO33: 1924.909601 | HP33: 883.0019122 | HQ33: 1063.645054 | HR33: 1756.126469 | HS33: 1120.460721 | HT33: 923.8745742 | HU33: 1746.929545 | HV33: 1418.057715 | HW33: 2031.878158 | HX33: 40.24603299 | HY33: 896.826966 | HZ33: 1484.546215 | IA33: 1738.10124 | IB33: 4391.782992 | IC33: 2189.021333 | ID33: 2125.362635 | IE33: 1573.932199 | IF33: 2511.194588 | IG33: 1174.761226 | IH33: 2205.563284 | II33: 1356.065063 | IJ33: 893.2288599 | IK33: 1657.759691 | IL33: 1357.913715 | IM33: 550.0825223 | IN33: 11683.27489 | IO33: 44315.00472 | IP33: 2177.441148 | IQ33: 9056.609507 | IR33: 4185.036277 | IS33: 4729.426325 | IT33: 1931.134837 | IU33: 2931.428308 | IV33: 2530.870697 | IW33: 2841.173672 | IX33: 5325.339047 | IY33: 13420.34681 | IZ33: 1734.291412 | JA33: 6390.746662 | JB33: 1499.796285 | JC33: 1630.837926 | JD33: 1261.248337 | JE33: 1721.30071 | JF33: 18681.49771 | JG33: 30322.30869 | JH33: 1499.698675 | JI33: 2619.343252 | JJ33: 5529.367324 | JK33: 5389.090446 | JL33: 2933980.678
A34: =+MATCH(B34,RUT[EMPRESA],0) -> 136 | B34: GENPAC | C34: 95676758.74 | D34: 95676758.74 | F34: =IFERROR(INDEX($B$9:$B$511,MATCH(0,INDEX(COUNTIF($F$8:F33,$B$9:$B$511),0,0),0)),"") -> GENPAC | H34: 95676758.74 | J34: ACCIONA_ENERGIA | K34: 1619720.893 | L34: 349122.0128 | M34: 4256143.119 | N34: 45367117.72 | O34: 5842963.203 | P34: 747025.5384 | Q34: 109660.2003 | R34: 1218242.866 | S34: 567802.0622 | T34: 3326551.937 | U34: 456457.6195 | V34: 686612.5206 | W34: 299184.82 | X34: 1353305.669 | Y34: 823014.5965 | Z34: 8956552.957 | AA34: 439006.0506 | AB34: 178.0924807 | AC34: 101988.8555 | AD34: 132159.3154 | AE34: 670418.6118 | AF34: 940603.405 | AG34: 98569.23837 | AH34: 899327.5103 | AI34: 2373232.19 | AJ34: 2045829.097 | AK34: 73179.10235 | AL34: 240640.6877 | AM34: 7008976.34 | AN34: 1756511.503 | AO34: 124403.2873 | AP34: 11270811.1 | AQ34: 360388.1958 | AR34: 545647.3528 | AS34: 860954.7898 | AT34: 4584056.817 | AU34: 1412102.025 | AV34: 71110.97003 | AW34: 8214.198674 | AX34: 283957.5886 | AY34: 1211436.93 | AZ34: 2694.623566 | BA34: 446216.1998 | BB34: 5579.690642 | BC34: 1102689.824 | BD34: 8236.900693 | BE34: 5.587101238 | BF34: 2284338.52 | BG34: 856300.3497 | BH34: 59632.11206 | BI34: 95507.47861 | BJ34: 1271449.662 | BK34: 304270.5613 | BL34: 7767989.814 | BM34: 3515241.451 | BN34: 623185.0786 | BO34: 4836.661602 | BP34: 649309.1275 | BQ34: 471390.5916 | BR34: 42117.78983 | BS34: 554253.1561 | BT34: 2720371.943 | BU34: 210511.2166 | BV34: 225270.9515 | BW34: 103453.9208 | BX34: 53621913.78 | BY34: 6103937.382 | BZ34: 842610.0289 | CA34: 106005.1926 | CB34: 218261.0813 | CC34: 3080133.193 | CD34: 5400268.605 | CE34: 1092800.655 | CF34: 48522.4596 | CG34: 688378.1212 | CH34: 392636.3882 | CI34: 421135.9997 | CJ34: 67137.74857 | CK34: 462642.8318 | CL34: 7721405.561 | CM34: 16377.74698 | CN34: 294247.3742 | CO34: 377188.5703 | CP34: 443406.3904 | CQ34: 28836.98212 | CR34: 620711.7704 | CS34: 224180.0467 | CT34: 2042289.362 | CU34: 1336244.574 | CV34: 1229741.512 | CW34: 1513728.649 | CX34: 70567.36102 | CY34: 177618.6161 | CZ34: 196637.8866 | DA34: 2711170.168 | DB34: 152666.1127 | DC34: 176735.5287 | DD34: 1323481.661 | DE34: 68497.08323 | DF34: 714623.5871 | DG34: 11656.46125 | DH34: 3141700.748 | DI34: 14078.91519 | DJ34: 737303.8263 | DK34: 176185.2855 | DL34: 1303620.404 | DM34: 308119.6515 | DN34: 1126239.313 | DO34: 1262724.668 | DP34: 21144.34927 | DQ34: 702244.2633 | DR34: 277063.3939 | DS34: 260974.7355 | DT34: 100435.9653 | DU34: 326580.9972 | DV34: 980409.1757 | DW34: 900847.3902 | DX34: 681199.8025 | DY34: 323280.9247 | DZ34: 5023182.922 | EA34: 77874.03546 | EB34: 318954.1575 | EC34: 1071135.154 | ED34: 390863.2427 | EE34: 5195921.669 | EF34: 10564.84068 | EG34: 1000936.631 | EH34: 362317.3951 | EI34: 302165.6535 | EJ34: 279260.6007 | EK34: 1606173.121 | EL34: 420338.504 | EM34: 324893.331 | EN34: 93437.46384 | EO34: 285447.9132 | EP34: 375086.3515 | EQ34: 378547.4713 | ER34: 337691.7142 | ES34: 668437.4345 | ET34: 358031.7417 | EU34: 909147.3109 | EV34: 299287.2596 | EW34: 278082.1766 | EX34: 304158.4719 | EY34: 439383.1211 | EZ34: 349637.8837 | FA34: 301891.9239 | FB34: 41589.17741 | FC34: 302458.2434 | FD34: 350197.1363 | FE34: 290000.4017 | FF34: 6668.778182 | FG34: 388377.11 | FH34: 2785100.103 | FI34: 306205.4478 | FJ34: 291083.302 | FK34: 310338.4786 | FL34: 301614.8377 | FM34: 300699.3221 | FN34: 779485.4109 | FO34: 390091.0006 | FP34: 314157.198 | FQ34: 81326.59528 | FR34: 683165.4489 | FS34: 679697.5758 | FT34: 1037856.095 | FU34: 363364.7755 | FV34: 342869.3612 | FW34: 351886.5405 | FX34: 0.02824043142 | FY34: 135419.0193 | FZ34: 229010.2445 | GA34: 305315.8324 | GB34: 446402.5482 | GC34: 320296.4668 | GD34: 83398.73929 | GE34: 105859.7171 | GF34: 1347292.005 | GG34: 1353248.967 | GH34: 370376.8779 | GI34: 852464.2064 | GJ34: 9715.287113 | GK34: 149882.0531 | GL34: 3288.655554 | GM34: 1022891.626 | GN34: 366570.6987 | GO34: 304544.5607 | GP34: 1290824.79 | GQ34: 332973.6269 | GR34: 249717.0509 | GS34: 449030.3025 | GT34: 1529146.552 | GU34: 1483628.118 | GV34: 946961.8952 | GW34: 61703092.45 | GX34: 4855540.324 | GY34: 32671.91065 | GZ34: 4186465.439 | HA34: 1497762.028 | HB34: 35996817.08 | HC34: 10477187.41 | HD34: 2408492.671 | HE34: 889351.5641 | HF34: 1191426.202 | HG34: 1738840.078 | HH34: 461436.1452 | HI34: 551569.3275 | HJ34: 1651920.825 | HK34: 29602.75378 | HL34: 4780126.941 | HM34: 1634855.618 | HN34: 25119.70783 | HO34: 300796.3325 | HP34: 137982.4469 | HQ34: 166210.6787 | HR34: 274421.4071 | HS34: 175088.9888 | HT34: 144369.4205 | HU34: 272984.2481 | HV34: 221593.0347 | HW34: 317511.7926 | HX34: 6289.053322 | HY34: 140142.8213 | HZ34: 231982.8716 | IA34: 271604.6915 | IB34: 686282.7305 | IC34: 342067.798 | ID34: 332120.1606 | IE34: 245950.7879 | IF34: 392412.2576 | IG34: 183574.2667 | IH34: 344652.7289 | II34: 211905.7422 | IJ34: 139580.5626 | IK34: 259050.1055 | IL34: 212194.622 | IM34: 85958.74069 | IN34: 1825688.975 | IO34: 6924891.893 | IP34: 340258.2184 | IQ34: 1415232.654 | IR34: 653975.4192 | IS34: 739044.6245 | IT34: 301769.1201 | IU34: 458080.1527 | IV34: 395486.9481 | IW34: 443976.4963 | IX34: 832165.0292 | IY34: 2097132.821 | IZ34: 271009.3481 | JA34: 998651.1349 | JB34: 234365.9264 | JC34: 254843.1712 | JD34: 197089.19 | JE34: 268979.3539 | JF34: 2919267.478 | JG34: 4738320.823 | JH34: 234350.6734 | JI34: 409312.1273 | JJ34: 864047.5433 | JK34: 842127.1527 | JL34: 458478999.2
A35: =+MATCH(B35,RUT[EMPRESA],0) -> 229 | B35: NORVIND | C35: -291266332.6 | D35: -291266332.6 | F35: =IFERROR(INDEX($B$9:$B$511,MATCH(0,INDEX(COUNTIF($F$8:F34,$B$9:$B$511),0,0),0)),"") -> NORVIND | G35: -291266332.6 | J35: JAVIERA | K35: 516027.5011 | L35: 111226.9161 | M35: 1355966.271 | N35: 14453527.45 | O35: 1861511.89 | P35: 237995.1531 | Q35: 34936.68533 | R35: 388120.4625 | S35: 180896.277 | T35: 1059807.459 | U35: 145423.0083 | V35: 218748.1466 | W35: 95317.40667 | X35: 431150.1726 | Y35: 262204.5363 | Z35: 2853471.646 | AA35: 139863.1062 | AB35: 56.73855181 | AC35: 32492.66864 | AD35: 42104.68702 | AE35: 213588.9229 | AF35: 299667.2 | AG35: 31403.2115 | AH35: 286517.0968 | AI35: 756088.9546 | AJ35: 651781.4776 | AK35: 23314.15832 | AL35: 76665.80909 | AM35: 2232992.463 | AN35: 559607.6743 | AO35: 39633.69106 | AP35: 3590772.035 | AQ35: 114816.2137 | AR35: 173837.9996 | AS35: 274291.9171 | AT35: 1460436.421 | AU35: 449882.1263 | AV35: 22655.27125 | AW35: 2616.964709 | AX35: 90466.15718 | AY35: 385952.1568 | AZ35: 858.4811564 | BA35: 142160.1904 | BB35: 1777.635784 | BC35: 351306.3743 | BD35: 2624.197354 | BE35: 1.779996729 | BF35: 727768.2863 | BG35: 272809.0572 | BH35: 18998.21748 | BI35: 30427.76428 | BJ35: 405071.6359 | BK35: 96937.67496 | BL35: 2474806.857 | BM35: 1119922.123 | BN35: 198540.7735 | BO35: 1540.913877 | BP35: 206863.6443 | BQ35: 150180.5096 | BR35: 13418.32283 | BS35: 176579.7258 | BT35: 866684.3417 | BU35: 67066.84932 | BV35: 71769.15894 | BW35: 32959.42434 | BX35: 17083426.1 | BY35: 1944655.754 | BZ35: 268447.4526 | CA35: 33772.23502 | CB35: 69535.88169 | CC35: 981300.8165 | CD35: 1720473.648 | CE35: 348155.7802 | CF35: 15458.78903 | CG35: 219310.6499 | CH35: 125090.1777 | CI35: 134169.8798 | CJ35: 21389.44109 | CK35: 147393.5574 | CL35: 2459965.562 | CM35: 5217.792699 | CN35: 93744.38391 | CO35: 120168.6514 | CP35: 141265.0122 | CQ35: 9187.185206 | CR35: 197752.8013 | CS35: 71421.60717 | CT35: 650653.752 | CU35: 425714.6718 | CV35: 391783.8205 | CW35: 482259.3915 | CX35: 22482.08264 | CY35: 56587.58309 | CZ35: 62646.9398 | DA35: 863752.7449 | DB35: 48637.95547 | DC35: 56306.23996 | DD35: 421648.5304 | DE35: 21822.51205 | DF35: 227672.203 | DG35: 3713.636466 | DH35: 1000915.647 | DI35: 4485.406997 | DJ35: 234897.9091 | DK35: 56130.93776 | DL35: 415320.925 | DM35: 98163.95807 | DN35: 358809.0151 | DO35: 402291.9369 | DP35: 6736.386354 | DQ35: 223728.2695 | DR35: 88269.73303 | DS35: 83144.04118 | DT35: 31997.93276 | DU35: 104045.5653 | DV35: 312348.9357 | DW35: 287001.3159 | DX35: 217023.7066 | DY35: 102994.1939 | DZ35: 1600337.776 | EA35: 24809.91886 | EB35: 101615.7275 | EC35: 341253.3601 | ED35: 124525.2706 | EE35: 1655370.679 | EF35: 3365.856649 | EG35: 318888.7855 | EH35: 115430.838 | EI35: 96267.07157 | EJ35: 88969.74201 | EK35: 511711.3114 | EL35: 133915.8054 | EM35: 103507.8911 | EN35: 29768.27748 | EO35: 90940.96028 | EP35: 119498.9047 | EQ35: 120601.5842 | ER35: 107585.3329 | ES35: 212957.7389 | ET35: 114065.4701 | EU35: 289645.5908 | EV35: 95350.04295 | EW35: 88594.30742 | EX35: 96901.96436 | EY35: 139983.2373 | EZ35: 111391.2676 | FA35: 96179.86394 | FB35: 13249.912 | FC35: 96360.28788 | FD35: 111569.4401 | FE35: 92391.33933 | FF35: 2124.608602 | FG35: 123733.2126 | FH35: 887306.1111 | FI35: 97554.11119 | FJ35: 92736.34094 | FK35: 98870.85507 | FL35: 96091.58694 | FM35: 95799.9125 | FN35: 248336.5563 | FO35: 124279.2417 | FP35: 100087.4623 | FQ35: 25909.87122 | FR35: 217649.9427 | FS35: 216545.1116 | FT35: 330650.9719 | FU35: 115764.5234 | FV35: 109234.8814 | FW35: 112107.668 | FX35: 0.00899712989 | FY35: 43143.19734 | FZ35: 72960.46173 | GA35: 97270.68829 | GB35: 142219.5592 | GC35: 102043.3743 | GD35: 26570.03637 | GE35: 33725.88792 | GF35: 429234.2772 | GG35: 431132.1081 | GH35: 117998.5117 | GI35: 271586.8988 | GJ35: 3095.197052 | GK35: 47750.98085 | GL35: 1047.734036 | GM35: 325883.436 | GN35: 116785.8997 | GO35: 97024.96854 | GP35: 411244.3655 | GQ35: 106082.1956 | GR35: 79557.45113 | GS35: 143056.7365 | GT35: 487171.3873 | GU35: 472669.6516 | GV35: 301692.9538 | GW35: 19658011.92 | GX35: 1546928.456 | GY35: 10408.95656 | GZ35: 1333767.632 | HA35: 477172.5795 | HB35: 11468239.77 | HC35: 3337931.159 | HD35: 767322.6049 | HE35: 283338.8563 | HF35: 379576.9311 | HG35: 553977.728 | HH35: 147009.1187 | HI35: 175724.6838 | HJ35: 526286.09 | HK35: 9431.152692 | HL35: 1522902.478 | HM35: 520849.279 | HN35: 8002.897362 | HO35: 95830.81906 | HP35: 43959.88073 | HQ35: 52953.12393 | HR35: 87428.02145 | HS35: 55781.66816 | HT35: 45994.7091 | HU35: 86970.15643 | HV35: 70597.41 | HW35: 101156.2039 | HX35: 2003.631913 | HY35: 44648.15524 | HZ35: 73907.51215 | IA35: 86530.64296 | IB35: 218643.0786 | IC35: 108979.5111 | ID35: 105810.2895 | IE35: 78357.55594 | IF35: 125018.7718 | IG35: 58484.99611 | IH35: 109803.0452 | II35: 67511.13176 | IJ35: 44469.02504 | IK35: 82530.87257 | IL35: 67603.1661 | IM35: 27385.6282 | IN35: 581646.9516 | IO35: 2206203.967 | IP35: 108402.9964 | IQ35: 450879.5148 | IR35: 208350.2799 | IS35: 235452.5107 | IT35: 96140.73983 | IU35: 145939.9317 | IV35: 125998.3387 | IW35: 141446.6424 | IX35: 265119.7762 | IY35: 668126.3506 | IZ35: 86340.97227 | JA35: 318160.6485 | JB35: 74666.73047 | JC35: 81190.58377 | JD35: 62790.72071 | JE35: 85694.23563 | JF35: 930050.5466 | JG35: 1509583.45 | JH35: 74661.87102 | JI35: 130402.9078 | JJ35: 275277.2386 | JK35: 268293.6129 | JL35: 146067000.4
A36: =+MATCH(B36,RUT[EMPRESA],0) -> 226 | B36: MONTE REDONDO | C36: 58185944.84 | D36: 58185944.84 | F36: =IFERROR(INDEX($B$9:$B$511,MATCH(0,INDEX(COUNTIF($F$8:F35,$B$9:$B$511),0,0),0)),"") -> MONTE REDONDO | H36: 58185944.84 | J36: LOS_GUINDOS | K36: 12110.05796 | L36: 2610.257007 | M36: 31821.61821 | N36: 339193.2694 | O36: 43685.68891 | P36: 5585.235461 | Q36: 819.8890241 | R36: 9108.354274 | S36: 4245.247384 | T36: 24871.40652 | U36: 3412.765899 | V36: 5133.549526 | W36: 2236.894965 | X36: 10118.16922 | Y36: 6153.377727 | Z36: 66964.85543 | AA36: 3282.28693 | AB36: 1.331532039 | AC36: 762.5331975 | AD36: 988.1066398 | AE36: 5012.47362 | AF36: 7032.546041 | AG36: 736.9659767 | AH36: 6723.941343 | AI36: 17743.78506 | AJ36: 15295.91243 | AK36: 547.1332591 | AL36: 1799.182 | AM36: 52403.54069 | AN36: 13132.79109 | AO36: 930.1176678 | AP36: 84267.7132 | AQ36: 2694.490118 | AR36: 4079.604763 | AS36: 6437.042611 | AT36: 34273.30844 | AU36: 10557.76797 | AV36: 531.6705937 | AW36: 61.41454523 | AX36: 2123.046552 | AY36: 9057.468793 | AZ36: 20.14671028 | BA36: 3336.194567 | BB36: 41.71729671 | BC36: 8244.406636 | BD36: 61.58427988 | BE36: 0.04177270301 | BF36: 17079.15975 | BG36: 6402.243073 | BH36: 445.8473904 | BI36: 714.074324 | BJ36: 9506.161934 | BK36: 2274.919185 | BL36: 58078.40554 | BM36: 26282.16867 | BN36: 4659.325848 | BO36: 36.1619416 | BP36: 4854.645762 | BQ36: 3524.414244 | BR36: 314.8992386 | BS36: 4143.947191 | BT36: 20339.22143 | BU36: 1573.915015 | BV36: 1684.26813 | BW36: 773.4869521 | BX36: 400911.3463 | BY36: 45636.89695 | BZ36: 6299.885575 | CA36: 792.5618743 | CB36: 1631.857906 | CC36: 23029.02411 | CD36: 40375.82407 | CE36: 8170.468954 | CF36: 362.7846012 | CG36: 5146.750272 | CH36: 2935.598003 | CI36: 3148.679126 | CJ36: 501.9642767 | CK36: 3459.010458 | CL36: 57730.1122 | CM36: 122.4503963 | CN36: 2199.979497 | CO36: 2820.100345 | CP36: 3315.186654 | CQ36: 215.6035194 | CR36: 4640.833831 | CS36: 1676.111836 | CT36: 15269.44713 | CU36: 9990.609683 | CV36: 9194.325425 | CW36: 11317.5929 | CX36: 527.6062289 | CY36: 1327.989127 | CZ36: 1470.189225 | DA36: 20270.42315 | DB36: 1141.428429 | DC36: 1321.386608 | DD36: 9895.186072 | DE36: 512.1275225 | DF36: 5342.977977 | DG36: 87.15107769 | DH36: 23489.34209 | DI36: 105.2628757 | DJ36: 5512.549792 | DK36: 1317.272642 | DL36: 9746.690754 | DM36: 2303.697418 | DN36: 8420.477513 | DO36: 9440.928365 | DP36: 158.0885302 | DQ36: 5250.422322 | DR36: 2071.501191 | DS36: 1951.212204 | DT36: 750.9228083 | DU36: 2441.726116 | DV36: 7330.159162 | DW36: 6735.304926 | DX36: 5093.080621 | DY36: 2417.052686 | DZ36: 37556.49297 | EA36: 582.2355489 | EB36: 2384.703038 | EC36: 8008.483968 | ED36: 2922.340845 | EE36: 38847.99711 | EF36: 78.9894318 | EG36: 7483.635401 | EH36: 2708.914032 | EI36: 2259.181562 | EJ36: 2087.928899 | EK36: 12008.76625 | EL36: 3142.716544 | EM36: 2429.108056 | EN36: 698.5975842 | EO36: 2134.189161 | EP36: 2804.382827 | EQ36: 2830.260348 | ER36: 2524.796865 | ES36: 4997.661085 | ET36: 2676.871777 | EU36: 6797.360383 | EV36: 2237.660869 | EW36: 2079.118255 | EX36: 2274.081134 | EY36: 3285.106148 | EZ36: 2614.113984 | FA36: 2257.134987 | FB36: 310.9469978 | FC36: 2261.369149 | FD36: 2618.295311 | FE36: 2168.226445 | FF36: 49.86000407 | FG36: 2903.752945 | FH36: 20823.1701 | FI36: 2289.38562 | FJ36: 2176.322892 | FK36: 2320.286773 | FL36: 2255.063315 | FM36: 2248.218342 | FN36: 5827.926001 | FO36: 2916.567075 | FP36: 2348.837935 | FQ36: 608.04907 | FR36: 5107.777037 | FS36: 5081.849024 | FT36: 7759.668672 | FU36: 2716.744911 | FV36: 2563.508229 | FW36: 2630.926365 | FX36: 0.000211143329 | FY36: 1012.478248 | FZ36: 1712.22545 | GA36: 2282.734293 | GB36: 3337.587825 | GC36: 2394.738991 | GD36: 623.5417294 | GE36: 791.4742075 | GF36: 10073.20727 | GG36: 10117.74529 | GH36: 2769.171823 | GI36: 6373.561639 | GJ36: 72.63763193 | GK36: 1120.613038 | GL36: 24.58806919 | GM36: 7647.784836 | GN36: 2740.71442 | GO36: 2276.967778 | GP36: 9651.022651 | GQ36: 2489.521459 | GR36: 1867.042633 | GS36: 3357.234579 | GT36: 11432.8669 | GU36: 11092.54229 | GV36: 7080.086135 | GW36: 461331.3499 | GX36: 36303.09087 | GY36: 244.2758708 | GZ36: 31300.6638 | HA36: 11198.21634 | HB36: 269134.9745 | HC36: 78334.08048 | HD36: 18007.41472 | HE36: 6649.354859 | HF36: 8907.855931 | HG36: 13000.66834 | HH36: 3449.988506 | HI36: 4123.881191 | HJ36: 12350.80502 | HK36: 221.3289127 | HL36: 35739.25271 | HM36: 12223.21474 | HN36: 187.8108254 | HO36: 2248.943652 | HP36: 1031.644054 | HQ36: 1242.696171 | HR36: 2051.748027 | HS36: 1309.076034 | HT36: 1079.397109 | HU36: 2041.002917 | HV36: 1656.769697 | HW36: 2373.919005 | HX36: 47.02094082 | HY36: 1047.79638 | HZ36: 1734.450691 | IA36: 2030.688479 | IB36: 5131.083806 | IC36: 2557.515235 | ID36: 2483.140405 | IE36: 1838.883668 | IF36: 2933.922261 | IG36: 1372.517339 | IH36: 2576.841814 | II36: 1584.341371 | IJ36: 1043.592579 | IK36: 1936.822452 | IL36: 1586.501219 | IM36: 642.6819192 | IN36: 13650.00563 | IO36: 51774.87218 | IP36: 2543.985673 | IQ36: 10581.17454 | IR36: 4889.533911 | IS36: 5525.5651 | IT36: 2256.216828 | IU36: 3424.896983 | IV36: 2956.910592 | IW36: 3319.449127 | IX36: 6221.79215 | IY36: 15679.49152 | IZ36: 2026.237315 | JA36: 7466.547588 | JB36: 1752.267915 | JC36: 1905.368751 | JD36: 1473.563454 | JE36: 2011.059794 | JF36: 21826.29027 | JG36: 35426.68373 | JH36: 1752.153875 | JI36: 3060.276377 | JJ36: 6460.165993 | JK36: 6296.275287 | JL36: 3427879.012
A37: =+MATCH(B37,RUT[EMPRESA],0) -> 240 | B37: PANGUIPULLI | C37: 633215375 | D37: 633215375 | F37: =IFERROR(INDEX($B$9:$B$511,MATCH(0,INDEX(COUNTIF($F$8:F36,$B$9:$B$511),0,0),0)),"") -> PANGUIPULLI | H37: 633215375 | J37: ERNC1 | K37: 242456.7129 | L37: 52260.22335 | M37: 637103.8831 | N37: 6791023.247 | O37: 874635.6598 | P37: 111822.5722 | Q37: 16415.08227 | R37: 182359.2954 | S37: 84994.53344 | T37: 497952.9817 | U37: 68327.33621 | V37: 102779.3218 | W37: 44785.10361 | X37: 202576.9041 | Y37: 123197.4068 | Z37: 1340710.241 | AA37: 65715.00339 | AB37: 26.65873958 | AC37: 15266.75538 | AD37: 19782.98442 | AE37: 100355.2486 | AF37: 140799.3258 | AG37: 14754.87143 | AH37: 134620.7195 | AI37: 355250.1411 | AJ37: 306241.0322 | AK37: 10954.21112 | AL37: 36021.60742 | AM37: 1049176.665 | AN37: 262932.9579 | AO37: 18621.98126 | AP37: 1687132.532 | AQ37: 53946.6631 | AR37: 81678.18552 | AS37: 128876.6906 | AT37: 686189.4248 | AU37: 211378.1558 | AV37: 10644.63151 | AW37: 1229.586911 | AX37: 42505.73283 | AY37: 181340.512 | AZ37: 403.3593536 | BA37: 66794.29372 | BB37: 835.2262777 | BC37: 165062.1111 | BD37: 1232.985186 | BE37: 0.8363355729 | BF37: 341943.6097 | BG37: 128179.9654 | BH37: 8926.356348 | BI37: 14296.5553 | BJ37: 190323.8434 | BK37: 45546.39041 | BL37: 1162793.716 | BM37: 526197.9956 | BN37: 93284.84085 | BO37: 724.001943 | BP37: 97195.3609 | BQ37: 70562.65918 | BR37: 6304.629966 | BS37: 82966.39189 | BT37: 407213.6391 | BU37: 31511.51401 | BV37: 33720.90504 | BW37: 15486.06163 | BX37: 8026687.198 | BY37: 913700.9962 | BZ37: 126130.6555 | CA37: 15867.9626 | CB37: 32671.59457 | CC37: 461066.4544 | CD37: 808368.5162 | CE37: 163581.7972 | CF37: 7263.347722 | CG37: 103043.6153 | CH37: 58773.90881 | CI37: 63040.02784 | CJ37: 10049.87829 | CK37: 69253.20328 | CL37: 1155820.499 | CM37: 2451.591948 | CN37: 44046.01524 | CO37: 56461.51834 | CP37: 66373.69215 | CQ37: 4316.620182 | CR37: 92914.61028 | CS37: 33557.60704 | CT37: 305711.1677 | CU37: 200023.0215 | CV37: 184080.5327 | CW37: 226590.6886 | CX37: 10563.25844 | CY37: 26587.80657 | CZ37: 29434.80932 | DA37: 405836.2216 | DB37: 22852.65568 | DC37: 26455.61686 | DD37: 198112.5356 | DE37: 10253.35767 | DF37: 106972.3103 | DG37: 1744.860668 | DH37: 470282.528 | DI37: 2107.478834 | DJ37: 110367.325 | DK37: 26373.25071 | DL37: 195139.4956 | DM37: 46122.56236 | DN37: 168587.2442 | DO37: 189017.7954 | DP37: 3165.106682 | DQ37: 105119.244 | DR37: 41473.73788 | DS37: 39065.41973 | DT37: 15034.30259 | DU37: 48886.04909 | DV37: 146757.8687 | DW37: 134848.231 | DX37: 101969.0897 | DY37: 48392.05983 | DZ37: 751922.3991 | EA37: 11656.99766 | EB37: 47744.3842 | EC37: 160338.6792 | ED37: 58508.4859 | EE37: 777779.7359 | EF37: 1581.455518 | EG37: 149830.6322 | EH37: 54235.44577 | EI37: 45231.30585 | EJ37: 41802.63871 | EK37: 240428.7412 | EL37: 62920.65036 | EM37: 48633.42161 | EN37: 13986.69391 | EO37: 42728.82017 | EP37: 56146.83631 | EQ37: 56664.93281 | ER37: 50549.21708 | ES37: 100058.6853 | ET37: 53593.92449 | EU37: 136090.6496 | EV37: 44800.43784 | EW37: 41626.2399 | EX37: 45529.6117 | EY37: 65771.44725 | EZ37: 52337.44429 | FA37: 45190.33115 | FB37: 6225.501746 | FC37: 45275.10376 | FD37: 52421.15905 | FE37: 43410.28412 | FF37: 998.2522571 | FG37: 58136.33564 | FH37: 416902.8251 | FI37: 45836.02439 | FJ37: 43572.38392 | FK37: 46454.69955 | FL37: 45148.854 | FM37: 45011.81009 | FN37: 116681.5044 | FO37: 58392.88865 | FP37: 47026.32528 | FQ37: 12173.81282 | FR37: 102263.3281 | FS37: 101744.2207 | FT37: 155357.1226 | FU37: 54392.2286 | FV37: 51324.26127 | FW37: 52674.04668 | FX37: 0.004227322253 | FY37: 20270.93089 | FZ37: 34280.64141 | GA37: 45702.85749 | GB37: 66822.18829 | GC37: 47945.31505 | GD37: 12483.99294 | GE37: 15846.18631 | GF37: 201676.7163 | GG37: 202568.4165 | GH37: 55441.8732 | GI37: 127605.7315 | GJ37: 1454.285481 | GK37: 22435.90861 | GL37: 492.2802559 | GM37: 153117.0849 | GN37: 54872.12461 | GO37: 45587.4055 | GP37: 193224.1147 | GQ37: 49842.96456 | GR37: 37380.25211 | GS37: 67215.53795 | GT37: 228898.6012 | GU37: 222084.9272 | GV37: 141751.1309 | GW37: 9236362.288 | GX37: 726827.907 | GY37: 4890.672273 | GZ37: 626673.8014 | HA37: 224200.6383 | HB37: 5388378.937 | HC37: 1568334.662 | HD37: 360528.2976 | HE37: 133127.4158 | HF37: 178345.0975 | HG37: 260287.7146 | HH37: 69072.57385 | HI37: 82564.64844 | HJ37: 247276.7346 | HK37: 4431.248869 | HL37: 715539.2454 | HM37: 244722.2363 | HN37: 3760.179804 | HO37: 45026.33161 | HP37: 20654.65146 | HQ37: 24880.14755 | HR37: 41078.25775 | HS37: 26209.14559 | HT37: 21610.72027 | HU37: 40863.12881 | HV37: 33170.3561 | HW37: 47528.47597 | HX37: 941.4110804 | HY37: 20978.03883 | HZ37: 34725.61523 | IA37: 40656.62239 | IB37: 102729.9553 | IC37: 51204.27492 | ID37: 49715.20883 | IE37: 36816.47858 | IF37: 58740.3586 | IG37: 27479.31046 | IH37: 51591.21434 | II37: 31720.26114 | IJ37: 20893.87409 | IK37: 38777.32104 | IL37: 31763.50369 | IM37: 12867.20064 | IN37: 273288.1632 | IO37: 1036590.028 | IP37: 50933.39818 | IQ37: 211846.7811 | IR37: 97893.86009 | IS37: 110627.9058 | IT37: 45171.9486 | IU37: 68570.2139 | IV37: 59200.61034 | IW37: 66459.03154 | IX37: 124567.139 | IY37: 313920.7085 | IZ37: 40567.50518 | JA37: 149488.5153 | JB37: 35082.33571 | JC37: 38147.58325 | JD37: 29502.36511 | JE37: 40263.63448 | JF37: 436986.3968 | JG37: 709281.2697 | JH37: 35080.05249 | JI37: 61270.10732 | JJ37: 129339.6462 | JK37: 126058.3735 | JL37: 68629917.4
A38: =+MATCH(B38,RUT[EMPRESA],0) -> 171 | B38: HIDROPALOMA | C38: 31037094.55 | D38: 31037094.55 | F38: =IFERROR(INDEX($B$9:$B$511,MATCH(0,INDEX(COUNTIF($F$8:F37,$B$9:$B$511),0,0),0)),"") -> HIDROPALOMA | H38: 31037094.55 | J38: ANDES_GENERACION | K38: 5654.132017 | L38: 1218.717348 | M38: 14857.37153 | N38: 158367.8238 | O38: 20396.6532 | P38: 2607.721512 | Q38: 382.8025264 | R38: 4252.649963 | S38: 1982.087058 | T38: 11612.34871 | U38: 1593.405168 | V38: 2396.831364 | W38: 1044.396277 | X38: 4724.128055 | Y38: 2872.9846 | Z38: 31265.59216 | AA38: 1532.48512 | AB38: 0.621686367 | AC38: 356.023347 | AD38: 461.3425806 | AE38: 2340.301564 | AF38: 3283.464363 | AG38: 344.0861257 | AH38: 3139.378206 | AI38: 8284.494058 | AJ38: 7141.593255 | AK38: 255.454077 | AL38: 840.0300467 | AM38: 24466.97929 | AN38: 6131.641554 | AO38: 434.2677883 | AP38: 39344.21923 | AQ38: 1258.045411 | AR38: 1904.749258 | AS38: 3005.426469 | AT38: 16002.05476 | AU38: 4929.37475 | AV38: 248.2346275 | AW38: 28.6741771 | AX38: 991.2409605 | AY38: 4228.891759 | AZ38: 9.406409121 | BA38: 1557.654355 | BB38: 19.47761966 | BC38: 3849.276666 | BD38: 28.75342545 | BE38: 0.01950348862 | BF38: 7974.18347 | BG38: 2989.17872 | BH38: 208.1641569 | BI38: 333.3981152 | BJ38: 4438.384584 | BK38: 1062.149615 | BL38: 27116.54836 | BM38: 12271.02727 | BN38: 2175.418445 | BO38: 16.88384915 | BP38: 2266.612442 | BQ38: 1645.533282 | BR38: 147.0250492 | BS38: 1934.790451 | BT38: 9496.29172 | BU38: 734.8538969 | BV38: 786.3772737 | BW38: 361.1376061 | BX38: 187183.7185 | BY38: 21307.66352 | BZ38: 2941.388461 | CA38: 370.0436022 | CB38: 761.907174 | CC38: 10752.14859 | CD38: 18851.29207 | CE38: 3814.755493 | CF38: 169.3825113 | CG38: 2402.994734 | CH38: 1370.617607 | CI38: 1470.104232 | CJ38: 234.3648807 | CK38: 1614.996547 | CL38: 26953.93176 | CM38: 57.17154357 | CN38: 1027.16061 | CO38: 1316.692266 | CP38: 1547.845854 | CQ38: 100.664321 | CR38: 2166.784605 | CS38: 782.5691363 | CT38: 7129.236724 | CU38: 4664.571076 | CV38: 4292.78951 | CW38: 5284.133618 | CX38: 246.3369937 | CY38: 620.0321973 | CZ38: 686.4247882 | DA38: 9464.170107 | DB38: 532.9278396 | DC38: 616.9495104 | DD38: 4620.018218 | DE38: 239.1100548 | DF38: 2494.612573 | DG38: 40.69044925 | DH38: 10967.069 | DI38: 49.14676691 | DJ38: 2573.784897 | DK38: 615.0287178 | DL38: 4550.686417 | DM38: 1075.586044 | DN38: 3931.483373 | DO38: 4407.927322 | DP38: 73.81082924 | DQ38: 2451.398751 | DR38: 967.1746616 | DS38: 911.0122703 | DT38: 350.6025081 | DU38: 1140.031027 | DV38: 3422.418601 | DW38: 3144.683813 | DX38: 2377.936613 | DY38: 1128.511113 | DZ38: 17534.95897 | EA38: 271.8431794 | EB38: 1113.407206 | EC38: 3739.125425 | ED38: 1364.427899 | EE38: 18137.95648 | EF38: 36.87981321 | EG38: 3494.075972 | EH38: 1264.779873 | EI38: 1054.80179 | EJ38: 974.8446853 | EK38: 5606.839371 | EL38: 1467.320329 | EM38: 1134.139711 | EN38: 326.1720945 | EO38: 996.4433953 | EP38: 1309.353827 | EQ38: 1321.435926 | ER38: 1178.816389 | ES38: 2333.385658 | ET38: 1249.819486 | EU38: 3173.657229 | EV38: 1044.753874 | EW38: 970.7310349 | EX38: 1061.758333 | EY38: 1533.8014 | EZ38: 1220.518153 | FA38: 1053.846252 | FB38: 145.1797656 | FC38: 1055.823164 | FD38: 1222.470396 | FE38: 1012.335251 | FF38: 23.27941339 | FG38: 1355.749292 | FH38: 9722.245193 | FI38: 1068.903929 | FJ38: 1016.115446 | FK38: 1083.33154 | FL38: 1052.878998 | FM38: 1049.683111 | FN38: 2721.032642 | FO38: 1361.732152 | FP38: 1096.66195 | FQ38: 283.8953973 | FR38: 2384.798304 | FS38: 2372.692631 | FT38: 3622.954674 | FU38: 1268.436075 | FV38: 1196.890552 | FW38: 1228.367779 | FX38: 9.858187804e-05 | FY38: 472.7215758 | FZ38: 799.4304215 | GA38: 1065.798454 | GB38: 1558.304861 | GC38: 1118.092948 | GD38: 291.1288508 | GE38: 369.5357754 | GF38: 4703.135521 | GG38: 4723.930122 | GH38: 1292.913966 | GI38: 2975.787486 | GJ38: 33.91418619 | GK38: 523.2092265 | GL38: 11.48005977 | GM38: 3570.716611 | GN38: 1279.627332 | GO38: 1063.106094 | GP38: 4506.019407 | GQ38: 1162.346459 | GR38: 871.7138733 | GS38: 1567.477843 | GT38: 5337.954534 | GU38: 5179.058491 | GV38: 3305.660621 | GW38: 215393.5485 | GX38: 16949.75112 | GY38: 114.051314 | GZ38: 14614.14024 | HA38: 5228.397235 | HB38: 125657.9185 | HC38: 36573.8326 | HD38: 8407.581571 | HE38: 3104.55411 | HF38: 4159.038181 | HG38: 6069.954029 | HH38: 1610.784237 | HI38: 1925.421725 | HJ38: 5766.535748 | HK38: 103.3374816 | HL38: 16686.4976 | HM38: 5706.964412 | HN38: 87.68803623 | HO38: 1050.021755 | HP38: 481.6700052 | HQ38: 580.2092967 | HR38: 957.9519973 | HS38: 611.2017583 | HT38: 503.9656933 | HU38: 952.9351537 | HV38: 773.5383781 | HW38: 1108.37219 | HX38: 21.95386743 | HY38: 489.211454 | HZ38: 809.8072872 | IA38: 948.1193886 | IB38: 2395.680131 | IC38: 1194.09245 | ID38: 1159.367174 | IE38: 858.5665782 | IF38: 1369.83521 | IG38: 640.8222204 | IH38: 1203.115943 | II38: 739.7219157 | IJ38: 487.2487178 | IK38: 904.2937597 | IL38: 740.7303393 | IM38: 300.06532 | IN38: 6373.126713 | IO38: 24173.45677 | IP38: 1187.775558 | IQ38: 4940.303172 | IR38: 2282.901563 | IS38: 2579.861687 | IT38: 1053.417568 | IU38: 1599.069117 | IV38: 1380.56836 | IW38: 1549.835984 | IX38: 2904.926989 | IY38: 7320.68462 | IZ38: 946.04116 | JA38: 3486.097748 | JB38: 818.1260699 | JC38: 889.6081667 | JD38: 688.0002009 | JE38: 938.9548432 | JF38: 10190.59752 | JG38: 16540.56053 | JH38: 818.0728247 | JI38: 1428.829383 | JJ38: 3016.222673 | JK38: 2939.702833 | JL38: 1600461.413
A39: =+MATCH(B39,RUT[EMPRESA],0) -> 106 | B39: EMELDA | C39: -6433360.218 | D39: -6433360.218 | F39: =IFERROR(INDEX($B$9:$B$511,MATCH(0,INDEX(COUNTIF($F$8:F38,$B$9:$B$511),0,0),0)),"") -> EMELDA | G39: -6433360.218 | J39: EOLICA_ESPERANZA | K39: =$JL39*K$63/$JL$63 -> 64159.7078 | L39: 13829.27542 | M39: 168592.5644 | N39: 1797063.328 | O39: 231449.0191 | P39: 29590.86376 | Q39: 4343.814076 | R39: 48256.52783 | S39: 22491.53824 | T39: 131769.9866 | U39: =$JL39*U$63/$JL$63 -> 18081.00866 | V39: 27197.80852 | W39: 11851.18419 | X39: 53606.57917 | Y39: 32600.91061 | Z39: 354783.2366 | AA39: 17389.7244 | AB39: 7.054524997 | AC39: 4039.939967 | AD39: 5235.039627 | AE39: =$JL39*AE$63/$JL$63 -> 26556.34217 | AF39: 37258.7894 | AG39: 3904.48352 | AH39: 35623.78589 | AI39: 94007.48275 | AJ39: 81038.52812 | AK39: 2898.740052 | AL39: 9532.15846 | AM39: 277636.6447 | AN39: 69578.20038 | AO39: =$JL39*AO$63/$JL$63 -> 4927.81108 | AP39: 446454.664 | AQ39: 14275.54676 | AR39: 21613.95515 | AS39: 34103.78171 | AT39: 181581.7449 | AU39: 55935.59589 | AV39: 2816.818058 | AW39: 325.3774087 | AX39: 11248.00945 | AY39: =$JL39*AY$63/$JL$63 -> 47986.93394 | AZ39: 106.7383037 | BA39: 17675.32982 | BB39: 221.0203763 | BC39: 43679.28895 | BD39: 326.2766715 | BE39: 0.2213139218 | BF39: 90486.26382 | BG39: 33919.41197 | BH39: 2362.122328 | BI39: =$JL39*BI$63/$JL$63 -> 3783.202371 | BJ39: 50364.1332 | BK39: 12052.63845 | BL39: 307702.3696 | BM39: 139244.2768 | BN39: 24685.34717 | BO39: 191.5878202 | BP39: 25720.16209 | BQ39: 18672.52732 | BR39: 1668.352308 | BS39: =$JL39*BS$63/$JL$63 -> 21954.84463 | BT39: 107758.2377 | BU39: 8338.682428 | BV39: 8923.338887 | BW39: 4097.97352 | BX39: 2124048.863 | BY39: 241786.6193 | BZ39: 33377.1167 | CA39: 4199.033435 | CB39: 8645.666834 | CC39: =$JL39*CC$63/$JL$63 -> 122008.9502 | CD39: 213913.1855 | CE39: 43287.56332 | CF39: 1922.051413 | CG39: 27267.74676 | CH39: 15552.94869 | CI39: 16681.86341 | CJ39: 2659.432468 | CK39: 18326.01471 | CL39: 305857.0936 | CM39: =$JL39*CM$63/$JL$63 -> 648.7484762 | CN39: 11655.60414 | CO39: 14941.03618 | CP39: 17564.02883 | CQ39: 1142.278497 | CR39: 24587.37552 | CS39: 8880.126422 | CT39: 80898.3136 | CU39: 52930.76221 | CV39: 48712.00739 | CW39: =$JL39*CW$63/$JL$63 -> 59961.1873 | CX39: 2795.284845 | CY39: 7035.754468 | CZ39: 7789.137874 | DA39: 107393.7409 | DB39: 6047.346323 | DC39: 7000.773982 | DD39: 52425.20302 | DE39: 2713.277865 | DF39: 28307.37119 | DG39: =$JL39*DG$63/$JL$63 -> 461.7308769 | DH39: 124447.7384 | DI39: 557.688111 | DJ39: 29205.77136 | DK39: 6978.977977 | DL39: 51638.46722 | DM39: 12205.107 | DN39: 44612.12148 | DO39: 50018.52241 | DP39: 837.5611362 | DQ39: =$JL39*DQ$63/$JL$63 -> 27817.00659 | DR39: 10974.91949 | DS39: 10337.62227 | DT39: 3978.42753 | DU39: 12936.39012 | DV39: 38835.55897 | DW39: 35683.99074 | DX39: 26983.40219 | DY39: 12805.66903 | DZ39: 198976.2248 | EA39: =$JL39*EA$63/$JL$63 -> 3084.713782 | EB39: 12634.27893 | EC39: 42429.35856 | ED39: 15482.71159 | EE39: 205818.68 | EF39: 418.4900586 | EG39: 39648.68396 | EH39: 14351.9654 | EI39: 11969.25972 | EJ39: 11061.95433 | EK39: =$JL39*EK$63/$JL$63 -> 63623.05914 | EL39: 16650.27334 | EM39: 12869.53899 | EN39: 3701.20581 | EO39: 11307.04357 | EP39: 14857.76397 | EQ39: 14994.8644 | ER39: 13376.50321 | ES39: 26477.8646 | ET39: 14182.20388 | EU39: =$JL39*EU$63/$JL$63 -> 36012.76373 | EV39: 11855.24198 | EW39: 11015.27509 | EX39: 12048.19841 | EY39: 17404.66076 | EZ39: 13849.70988 | FA39: 11958.41686 | FB39: 1647.413133 | FC39: 11980.84967 | FD39: 13871.86277 | FE39: =$JL39*FE$63/$JL$63 -> 11487.37485 | FF39: 264.1608573 | FG39: 15384.23194 | FH39: 110322.2226 | FI39: 12129.28237 | FJ39: 11530.27024 | FK39: 12292.99826 | FL39: 11947.44103 | FM39: 11911.17601 | FN39: 30876.65068 | FO39: =$JL39*FO$63/$JL$63 -> 15452.12186 | FP39: 12444.26378 | FQ39: 3221.475141 | FR39: 27061.26456 | FS39: 26923.89662 | FT39: 41111.12237 | FU39: 14393.45379 | FV39: 13581.598 | FW39: 13938.78274 | FX39: 0.00111864818 | FY39: =$JL39*FY$63/$JL$63 -> 5364.161657 | FZ39: 9071.4582 | GA39: 12094.04329 | GB39: 17682.71138 | GC39: 12687.44993 | GD39: 3303.556044 | GE39: 4193.270921 | GF39: 53368.36845 | GG39: 53604.33315 | GH39: 14671.21426 | GI39: =$JL39*GI$63/$JL$63 -> 33767.45626 | GJ39: 384.8378972 | GK39: 5937.065316 | GL39: 130.2688509 | GM39: 40518.35608 | GN39: 14520.44548 | GO39: 12063.492 | GP39: 51131.6127 | GQ39: 13189.6123 | GR39: 9891.687571 | GS39: =$JL39*GS$63/$JL$63 -> 17786.80088 | GT39: 60571.91486 | GU39: 58768.85762 | GV39: 37510.65926 | GW39: 2444157.139 | GX39: 192335.6363 | GY39: 1294.186085 | GZ39: 165832.5213 | HA39: 59328.72417 | HB39: 1425890.89 | HC39: =$JL39*HC$63/$JL$63 -> 415017.9737 | HD39: 95404.20621 | HE39: 35228.62288 | HF39: 47194.27732 | HG39: 68878.20724 | HH39: 18278.21595 | HI39: 21848.53394 | HJ39: 65435.19809 | HK39: 1172.611924 | HL39: 189348.3928 | HM39: =$JL39*HM$63/$JL$63 -> 64759.21822 | HN39: 995.0313797 | HO39: 11915.01875 | HP39: 5465.703081 | HQ39: 6583.868015 | HR39: 10870.26621 | HS39: 6935.551929 | HT39: 5718.701213 | HU39: 10813.33807 | HV39: 8777.650781 | HW39: =$JL39*HW$63/$JL$63 -> 12577.14457 | HX39: 249.1193547 | HY39: 5551.278931 | HZ39: 9189.208664 | IA39: 10758.69165 | IB39: 27184.74502 | IC39: 13549.84681 | ID39: 13155.80515 | IE39: 9742.499931 | IF39: 15544.07053 | IG39: =$JL39*IG$63/$JL$63 -> 7271.667214 | IH39: 13652.24002 | II39: 8393.921794 | IJ39: 5529.006975 | IK39: 10261.38463 | IL39: 8405.364782 | IM39: 3404.961751 | IN39: 72318.4295 | IO39: 274305.9267 | IP39: 13478.1665 | IQ39: =$JL39*IQ$63/$JL$63 -> 56059.60508 | IR39: 25905.00129 | IS39: 29274.72713 | IT39: 11953.5524 | IU39: 18145.27977 | IV39: 15665.86388 | IW39: 17586.61162 | IX39: 32963.37373 | IY39: 83070.7498 | IZ39: 10735.10916 | JA39: =$JL39*JA$63/$JL$63 -> 39558.15184 | JB39: 9283.605234 | JC39: 10094.74131 | JD39: 7807.014714 | JE39: 10654.69787 | JF39: 115636.8046 | JG39: 187692.3863 | JH39: 9283.00104 | JI39: 16213.50111 | JJ39: 34226.29057 | JK39: 33357.98921 | JL39: 18161078.71
A40: =+MATCH(B40,RUT[EMPRESA],0) -> 300 | B40: SWO | C40: 12590.8815 | D40: 12590.8815 | F40: =IFERROR(INDEX($B$9:$B$511,MATCH(0,INDEX(COUNTIF($F$8:F39,$B$9:$B$511),0,0),0)),"") -> SWO | H40: 12590.8815 | J40: KDM_ENERGIA | K40: 1173046.469 | L40: 252843.7747 | M40: 3082416.04 | N40: 32856115.83 | O40: 4231634.837 | P40: 541016.4642 | Q40: 79418.93657 | R40: 882285.0278 | S40: 411217.8878 | T40: 2409180.509 | U40: 330579.1766 | V40: 497263.6933 | W40: 216677.8846 | X40: 980101.2283 | Y40: 596049.8324 | Z40: 6486582.269 | AA40: 317940.2698 | AB40: 128.9794783 | AC40: 73863.13742 | AD40: 95713.41517 | AE40: 485535.6186 | AF40: 681210.8853 | AG40: 71386.55653 | AH40: 651317.7459 | AI40: 1718760.099 | AJ40: 1481645.764 | AK40: 52998.3209 | AL40: 174278.6121 | AM40: 5076093.657 | AN40: 1272113.996 | AO40: 90096.28608 | AP40: 8162631.738 | AQ40: 261003.0547 | AR40: 395172.8373 | AS40: 623527.1651 | AT40: 3319900.169 | AU40: 1022683.168 | AV40: 51500.52253 | AW40: 5948.948857 | AX40: 205649.9044 | AY40: 877355.9817 | AZ40: 1951.520582 | BA40: 323162.0584 | BB40: 4040.965599 | BC40: 798598.3328 | BD40: 5965.390284 | BE40: 4.046332557 | BF40: 1654380.856 | BG40: 620156.2914 | BH40: 43187.21752 | BI40: 69169.1458 | BJ40: 920818.8542 | BK40: 220361.1186 | BL40: 5625792.114 | BM40: 2545834.65 | BN40: 451327.7933 | BO40: 3502.843509 | BP40: 470247.5488 | BQ40: 341394.0461 | BR40: 30502.8631 | BS40: 401405.3969 | BT40: 1970168.266 | BU40: 152458.0195 | BV40: 163147.4259 | BW40: 74924.17801 | BX40: 38834466.43 | BY40: 4420639.523 | BZ40: 610241.3841 | CA40: 76771.87933 | CB40: 158070.6849 | CC40: 2230717.269 | CD40: 3911023.22 | CE40: 791436.3244 | CF40: 35141.3013 | CG40: 498542.3898 | CH40: 284358.0835 | CI40: 304998.2869 | CJ40: 48623.00614 | CK40: 335058.6776 | CL40: 5592054.515 | CM40: 11861.21532 | CN40: 213102.0504 | CO40: 273170.3485 | CP40: 321127.1171 | CQ40: 20884.53648 | CR40: 449536.5554 | CS40: 162357.3626 | CT40: 1479082.19 | CU40: 967745.1136 | CV40: 890612.6638 | CW40: 1096283.968 | CX40: 51106.82592 | CY40: 128636.2925 | CZ40: 142410.5719 | DA40: 1963504.088 | DB40: 110565.0025 | DC40: 127996.7363 | DD40: 958501.8606 | DE40: 49607.47373 | DF40: 517550.0788 | DG40: 8441.930199 | DH40: 2275306.188 | DI40: 10196.33804 | DJ40: 533975.7326 | DK40: 127598.235 | DL40: 944117.7916 | DM40: 223148.7356 | DN40: 815653.5212 | DO40: 914499.9738 | DP40: 15313.31995 | DQ40: 508584.6317 | DR40: 200656.9388 | DS40: 189005.0893 | DT40: 72738.49159 | DU40: 236518.9505 | DV40: 710039.3205 | DW40: 652418.4848 | DX40: 493343.6537 | DY40: 234128.9472 | DZ40: 3637927.385 | EA40: 56398.52074 | EB40: 230995.3833 | EC40: 775745.5724 | ED40: 283073.9227 | EE40: 3763029.542 | EF40: 7651.348524 | EG40: 724905.8688 | EH40: 262400.2339 | EI40: 218836.6864 | EJ40: 202248.2165 | EK40: 1163234.8 | EL40: 304420.7185 | EM40: 235296.6962 | EN40: 67669.98411 | EO40: 206729.2386 | EP40: 271647.8637 | EQ40: 274154.502 | ER40: 244565.6378 | ES40: 484100.7955 | ET40: 259296.4457 | EU40: 658429.5158 | EV40: 216752.0743 | EW40: 201394.7693 | EX40: 220279.9404 | EY40: 318213.3547 | EZ40: 253217.3826 | FA40: 218638.4438 | FB40: 30120.02743 | FC40: 219048.588 | FD40: 253622.4088 | FE40: 210026.2761 | FF40: 4829.712784 | FG40: 281273.397 | FH40: 2017046.182 | FI40: 221762.4166 | FJ40: 210810.5422 | FK40: 224755.6714 | FL40: 218437.7704 | FM40: 217774.7288 | FN40: 564524.7976 | FO40: 282514.6438 | FP40: 227521.2931 | FQ40: 58898.95962 | FR40: 494767.229 | FS40: 492255.6998 | FT40: 751643.9615 | FU40: 263158.7757 | FV40: 248315.4323 | FW40: 254845.9218 | FX40: 0.02045249803 | FY40: 98074.1825 | FZ40: 165855.5248 | GA40: 221118.1327 | GB40: 323297.0171 | GC40: 231967.5206 | GD40: 60399.66337 | GE40: 76666.52198 | GF40: 975745.9677 | GG40: 980060.1638 | GH40: 268237.1333 | GI40: 617378.0508 | GJ40: 7036.078437 | GK40: 108548.7098 | GL40: 2381.734905 | GM40: 740806.2811 | GN40: 265480.5935 | GO40: 220559.5565 | GP40: 934850.8558 | GQ40: 241148.669 | GR40: 180851.9642 | GS40: 325200.1091 | GT40: 1107450.038 | GU40: 1074484.334 | GV40: 685815.879 | GW40: 44687078.54 | GX40: 3516516 | GY40: 23661.89731 | GZ40: 3031953.545 | HA40: 1084720.501 | HB40: 26069886.1 | HC40: 7587867.61 | HD40: 1744296.71 | HE40: 644092.891 | HF40: 862863.6613 | HG40: 1259315.863 | HH40: 334184.762 | HI40: 399461.6944 | HJ40: 1196366.547 | HK40: 21439.12939 | HL40: 3461899.551 | HM40: 1184007.454 | HN40: 18192.38408 | HO40: 217844.9864 | HP40: 99930.68736 | HQ40: 120374.3501 | HR40: 198743.5392 | HS40: 126804.2667 | HT40: 104556.3095 | HU40: 197702.7091 | HV40: 160483.7773 | HW40: 229950.7828 | HX40: 4554.705584 | HY40: 101495.29 | HZ40: 168008.3833 | IA40: 196703.5962 | IB40: 497024.8502 | IC40: 247734.9181 | ID40: 240530.5652 | IE40: 178124.3328 | IF40: 284195.762 | IG40: 132949.5386 | IH40: 249606.9963 | II40: 153467.9733 | IJ40: 101088.0868 | IK40: 187611.2193 | IL40: 153677.188 | IM40: 62253.68687 | IN40: 1322214.226 | IO40: 5015197.385 | IP40: 246424.3707 | IQ40: 1024950.457 | IR40: 473627.0058 | IS40: 535236.4666 | IT40: 218549.5059 | IU40: 331754.2598 | IV40: 286422.5375 | IW40: 321540.0035 | IX40: 602676.8278 | IY40: 1518801.333 | IZ40: 196272.4321 | JA40: 723250.6497 | JB40: 169734.2571 | JC40: 184564.4417 | JD40: 142737.4182 | JE40: 194802.2544 | JF40: 2114213.889 | JG40: 3431622.409 | JH40: 169723.2105 | JI40: 296435.1129 | JJ40: 625767.0224 | JK40: 609891.6719 | JL40: 332043115.4
A41: =+MATCH(B41,RUT[EMPRESA],0) -> 131 | B41: GEN. INDUSTRIAL | C41: 0 | D41: 0 | F41: =IFERROR(INDEX($B$9:$B$511,MATCH(0,INDEX(COUNTIF($F$8:F40,$B$9:$B$511),0,0),0)),"") -> GEN. INDUSTRIAL | J41: CONEJO_SOLAR | K41: 398186.1337 | L41: 85826.85148 | M41: 1046314.326 | N41: 11152882.75 | O41: 1436412.247 | P41: 183645.9678 | Q41: 26958.45402 | R41: 299488.2754 | S41: 139586.3379 | T41: 817787.1019 | U41: 112213.8361 | V41: 168794.2572 | W41: 73550.47853 | X41: 332691.6103 | Y41: 202326.834 | Z41: 2201845.522 | AA41: 107923.6076 | AB41: 43.78159019 | AC41: 25072.55926 | AD41: 32489.5524 | AE41: 164813.2072 | AF41: 231234.4275 | AG41: 24231.89336 | AH41: 221087.3157 | AI41: 583426.5363 | AJ41: 502938.983 | AK41: 17990.07716 | AL41: 59158.20775 | AM41: 1723060.561 | AN41: 431814.2265 | AO41: 30582.83943 | AP41: 2770774.098 | AQ41: 88596.48782 | AR41: 134139.9069 | AS41: 211653.9094 | AT41: 1126927.404 | AU41: 347145.8868 | AV41: 17481.65524 | AW41: 2019.347918 | AX41: 69807.07285 | AY41: 297815.1296 | AZ41: 662.4361916 | BA41: 109696.1237 | BB41: 1371.690305 | BC41: 271081.1471 | BD41: 2024.928897 | BE41: 1.373512098 | BF41: 561573.2487 | BG41: 210509.6792 | BH41: 14659.73567 | BI41: 23479.20177 | BJ41: 312568.4353 | BK41: 74800.73819 | BL41: 1909653.599 | BM41: 864173.827 | BN41: 153201.4918 | BO41: 1189.026821 | BP41: 159623.7304 | BQ41: 115884.9021 | BR41: 10354.08012 | BS41: 136255.5255 | BT41: 668766.0764 | BU41: 51751.29112 | BV41: 55379.76922 | BW41: 25432.72543 | BX41: 13182210.98 | BY41: 1500569.165 | BZ41: 207144.1019 | CA41: 26059.92057 | CB41: 53656.48891 | CC41: 757208.4382 | CD41: 1327581.861 | CE41: 268650.0308 | CF41: 11928.58021 | CG41: 169228.3059 | CH41: 96524.26297 | CI41: 103530.501 | CJ41: 16504.89331 | CK41: 113734.3856 | CL41: 1898201.5 | CM41: 4026.244139 | CN41: 72336.6753 | CO41: 92726.62913 | CP41: 109005.3707 | CQ41: 7089.175964 | CR41: 152593.463 | CS41: 55111.58526 | CT41: 502068.7877 | CU41: 328497.3744 | CV41: 302315.0596 | CW41: 372129.3965 | CX41: 17348.01643 | CY41: 43665.09708 | CZ41: 48340.7235 | DA41: 666503.9466 | DB41: 37530.86687 | DC41: 43448.00219 | DD41: 325359.7876 | DE41: 16839.06707 | DF41: 175680.3932 | DG41: 2865.580891 | DH41: 772343.9759 | DI41: 3461.107919 | DJ41: 181256.0185 | DK41: 43312.73245 | DL41: 320477.1704 | DM41: 75746.98413 | DN41: 276870.4656 | DO41: 310423.5155 | DP41: 5198.04784 | DQ41: 172637.1065 | DR41: 68112.22977 | DS41: 64157.0541 | DT41: 24690.80254 | DU41: 80285.4524 | DV41: 241020.1294 | DW41: 221460.9573 | DX41: 167463.6148 | DY41: 79474.1749 | DZ41: 1234880.525 | EA41: 19144.26198 | EB41: 78410.49863 | EC41: 263323.8651 | ED41: 96088.35951 | EE41: 1277345.974 | EF41: 2597.220968 | EG41: 246066.5223 | EH41: 89070.75497 | EI41: 74283.27551 | EJ41: 68652.3829 | EK41: 394855.6002 | EL41: 103334.4476 | EM41: 79870.56284 | EN41: 22970.31708 | EO41: 70173.4487 | EP41: 92209.82751 | EQ41: 93060.69626 | ER41: 83016.86958 | ES41: 164326.162 | ET41: 88017.18595 | EU41: 223501.3788 | EV41: 73575.66191 | EW41: 68362.68352 | EX41: 74773.18256 | EY41: 108016.3052 | EZ41: 85953.67125 | FA41: 74215.98285 | FB41: 10224.12802 | FC41: 74355.20471 | FD41: 86091.15583 | FE41: 71292.61546 | FF41: 1639.427517 | FG41: 95477.17794 | FH41: 684678.6055 | FI41: 75276.40345 | FJ41: 71558.83161 | FK41: 76292.45232 | FL41: 74147.865 | FM41: 73922.79809 | FN41: 191625.7816 | FO41: 95898.5144 | FP41: 77231.23202 | FQ41: 19993.02639 | FR41: 167946.842 | FS41: 167094.313 | FT41: 255142.6656 | FU41: 89328.23907 | FV41: 84289.72297 | FW41: 86506.47263 | FX41: 0.006942522168 | FY41: 33290.90584 | FZ41: 56299.02304 | GA41: 75057.70374 | GB41: 109741.9349 | GC41: 78740.48693 | GD41: 20502.43453 | GE41: 26024.15742 | GF41: 331213.2337 | GG41: 332677.6711 | GH41: 91052.06811 | GI41: 209566.6161 | GJ41: 2388.369892 | GK41: 36846.44405 | GL41: 808.4707967 | GM41: 251463.8564 | GN41: 90116.37125 | GO41: 74868.09718 | GP41: 317331.5445 | GQ41: 81856.99261 | GR41: 61389.50698 | GS41: 110387.9322 | GT41: 375919.6763 | GU41: 364729.5943 | GV41: 232797.5749 | GW41: 15168857.76 | GX41: 1193667.895 | GY41: 8031.940467 | GZ41: 1029185.025 | HA41: 368204.222 | HB41: 8849323.043 | HC41: 2575672.615 | HD41: 592094.8414 | HE41: 218634.8663 | HF41: 292895.7669 | HG41: 427469.9493 | HH41: 113437.7382 | HI41: 135595.7431 | HJ41: 406102.0449 | HK41: 7277.430407 | HL41: 1175128.551 | HM41: 401906.798 | HN41: 6175.335138 | HO41: 73946.64675 | HP41: 33921.0893 | HQ41: 40860.61236 | HR41: 67462.73362 | HS41: 43043.22296 | HT41: 35491.23904 | HU41: 67109.42782 | HV41: 54475.60388 | HW41: 78055.91302 | HX41: 1546.077376 | HY41: 34452.18768 | HZ41: 57029.80259 | IA41: 66770.28278 | IB41: 168713.1828 | IC41: 84092.66966 | ID41: 81647.17964 | IE41: 60463.62294 | IF41: 96469.16355 | IG41: 45129.21198 | IH41: 84728.13943 | II41: 52094.11608 | IJ41: 34313.96411 | IK41: 63683.91025 | IL41: 52165.13322 | IM41: 21131.77571 | IN41: 448820.5578 | IO41: 1702389.555 | IP41: 83647.80937 | IQ41: 347915.5091 | IR41: 160770.8741 | IS41: 181683.9698 | IT41: 74185.79322 | IU41: 112612.7136 | IV41: 97225.03398 | IW41: 109145.5234 | IX41: 204576.3422 | IY41: 515551.2988 | IZ41: 66623.92578 | JA41: 245504.6645 | JB41: 57615.64386 | JC41: 62649.69324 | JD41: 48451.67024 | JE41: 66124.87958 | JF41: 717661.8118 | JG41: 1164851.091 | JH41: 57611.89413 | JI41: 100623.7644 | JJ41: 212414.2204 | JK41: 207025.3934 | JL41: 112710764.5
A42: =+MATCH(B42,RUT[EMPRESA],0) -> 230 | B42: NUEVA DEGAN | C42: -5139665.018 | D42: -5139665.018 | F42: =IFERROR(INDEX($B$9:$B$511,MATCH(0,INDEX(COUNTIF($F$8:F41,$B$9:$B$511),0,0),0)),"") -> NUEVA DEGAN | G42: -5139665.018 | J42: RAGSA | K42: 2376.945844 | L42: 512.3377251 | M42: 6245.904307 | N42: 66576.39747 | O42: 8574.568104 | P42: 1096.262484 | Q42: 160.9267119 | R42: 1787.775493 | S42: 833.2514313 | T42: 4881.726129 | U42: 669.8530881 | V42: 1007.606178 | W42: 439.0547271 | X42: 1985.980609 | Y42: 1207.776682 | Z42: 13143.77151 | AA42: 644.2428521 | AB42: 0.261351313 | AC42: 149.6689876 | AD42: 193.9442387 | AE42: 983.8415621 | AF42: 1380.338653 | AG42: 144.650688 | AH42: 1319.766139 | AI42: 3482.726201 | AJ42: 3002.261064 | AK42: 107.3905782 | AL42: 353.1410166 | AM42: 10285.69629 | AN42: 2577.686525 | AO42: 182.5622415 | AP42: 16539.9531 | AQ42: 528.8708865 | AR42: 800.739321 | AS42: 1263.454043 | AT42: 6727.118759 | AU42: 2072.264459 | AV42: 104.3555871 | AW42: 12.05436411 | AX42: 416.708714 | AY42: 1777.78776 | AZ42: 3.954369123 | BA42: 654.8237703 | BB42: 8.188214738 | BC42: 1618.201016 | BD42: 12.0876794 | BE42: 0.008199089812 | BF42: 3352.274443 | BG42: 1256.623636 | BH42: 87.51032452 | BI42: 140.1575453 | BJ42: 1865.856644 | BK42: 446.5180696 | BL42: 11399.55111 | BM42: 5158.628623 | BN42: 914.5261938 | BO42: 7.097817129 | BP42: 952.8633232 | BQ42: 691.7672747 | BR42: 61.80799788 | BS42: 813.3683661 | BT42: 3992.154953 | BU42: 308.9259166 | BV42: 330.5858772 | BW42: 151.8189758 | BX42: 78690.33838 | BY42: 8957.548587 | BZ42: 1236.533045 | CA42: 155.5629758 | CB42: 320.2988691 | CC42: 4520.105795 | CD42: 7924.912296 | CE42: 1603.688627 | CF42: 71.20687226 | CG42: 1010.197202 | CH42: 576.195217 | CI42: 618.0184925 | CJ42: 98.52487128 | CK42: 678.9299079 | CL42: 11331.18857 | CM42: 24.03439864 | CN42: 431.8090088 | CO42: 553.5254924 | CP42: 650.7003656 | CQ42: 42.31836801 | CR42: 910.8966057 | CS42: 328.9849707 | CT42: 2997.066491 | CU42: 1960.943395 | CV42: 1804.649795 | CW42: 2221.401871 | CX42: 103.5578391 | CY42: 260.655915 | CZ42: 288.5667584 | DA42: 3978.651318 | DB42: 224.0380326 | DC42: 259.3599814 | DD42: 1942.213777 | DE42: 100.5196994 | DF42: 1048.712512 | DG42: 17.105896 | DH42: 4610.456388 | DI42: 20.66085528 | DJ42: 1081.995839 | DK42: 258.5524976 | DL42: 1913.067317 | DM42: 452.1666223 | DN42: 1652.75997 | DO42: 1853.052687 | DP42: 31.0294035 | DQ42: 1030.545813 | DR42: 406.5914601 | DS42: 382.9812999 | DT42: 147.3901161 | DU42: 479.2587091 | DV42: 1438.753755 | DW42: 1321.996568 | DX42: 999.6629957 | DY42: 474.4158416 | DZ42: 7371.537791 | EA42: 114.2804083 | EB42: 468.0662963 | EC42: 1571.894433 | ED42: 573.59312 | EE42: 7625.032482 | EF42: 15.50393915 | EG42: 1468.877864 | EH42: 531.7019929 | EI42: 443.4291103 | EJ42: 409.8158685 | EK42: 2357.064444 | EL42: 616.8481648 | EM42: 476.7820533 | EN42: 137.1197917 | EO42: 418.8957704 | EP42: 550.4404793 | EQ42: 555.5196841 | ER42: 495.5637236 | ES42: 980.9341779 | ET42: 525.4127822 | EU42: 1334.176729 | EV42: 439.2050576 | EW42: 408.0865272 | EX42: 446.3535781 | EY42: 644.7962044 | EZ42: 513.0947674 | FA42: 443.0274112 | FB42: 61.03225738 | FC42: 443.8584869 | FD42: 513.9154725 | FE42: 425.5765625 | FF42: 9.786454357 | FG42: 569.944712 | FH42: 4087.143745 | FI42: 449.357522 | FJ42: 427.1657223 | FK42: 455.4227586 | FL42: 442.6207862 | FM42: 441.2772641 | FN42: 1143.897456 | FO42: 572.4598522 | FP42: 461.0267421 | FQ42: 119.3470514 | FR42: 1002.547588 | FS42: 997.4584729 | FT42: 1523.057302 | FU42: 533.2390272 | FV42: 503.161938 | FW42: 516.3946788 | FX42: 4.144292786e-05 | FY42: 198.7278651 | FZ42: 336.0733022 | GA42: 448.0520085 | GB42: 655.0972372 | GC42: 470.0361397 | GD42: 122.3879297 | GE42: 155.3494901 | GF42: 1977.155538 | GG42: 1985.8974 | GH42: 543.529311 | GI42: 1250.994083 | GJ42: 14.25721643 | GK42: 219.9524158 | GL42: 4.82611306 | GM42: 1501.096894 | GN42: 537.9437303 | GO42: 446.9201647 | GP42: 1894.28971 | GQ42: 488.6399146 | GR42: 366.4606101 | GS42: 658.9534755 | GT42: 2244.027696 | GU42: 2177.22924 | GV42: 1389.669758 | GW42: 90549.49519 | GX42: 7125.521717 | GY42: 47.94613849 | GZ42: 6143.652079 | HA42: 2197.970801 | HB42: 52825.44983 | HC42: 15375.30767 | HD42: 3534.471076 | HE42: 1305.126404 | HF42: 1748.421949 | HG42: 2551.753648 | HH42: 677.1590913 | HI42: 809.4298387 | HJ42: 2424.199353 | HK42: 43.44214049 | HL42: 7014.852324 | HM42: 2399.156104 | HN42: 36.86325552 | HO42: 441.4196271 | HP42: 202.4897037 | HQ42: 243.9147286 | HR42: 402.7143356 | HS42: 256.9436785 | HT42: 211.8626089 | HU42: 400.6053 | HV42: 325.1885219 | HW42: 465.9496209 | HX42: 9.22920685 | HY42: 205.6600604 | HZ42: 340.4356425 | IA42: 398.5807961 | IB42: 1007.12221 | IC42: 501.9856412 | ID42: 487.3874499 | IE42: 360.9336064 | IF42: 575.8663046 | IG42: 269.3958523 | IH42: 505.7790361 | II42: 310.9723876 | IJ42: 204.8349439 | IK42: 380.1568989 | IL42: 311.3963198 | IM42: 126.1447404 | IN42: 2679.204696 | IO42: 10162.30209 | IP42: 499.3300771 | IQ42: 2076.858669 | IR42: 959.7111219 | IS42: 1084.550466 | IT42: 442.8471962 | IU42: 672.234161 | IV42: 580.3784233 | IW42: 651.5369979 | IX42: 1221.204972 | IY42: 3077.549451 | IZ42: 397.7071276 | JA42: 1465.523891 | JB42: 343.9327833 | JC42: 373.9832088 | JD42: 289.2290476 | JE42: 394.7281043 | JF42: 4284.034818 | JG42: 6953.501705 | JH42: 343.9103995 | JI42: 600.6669201 | JJ42: 1267.992669 | JK42: 1235.824422 | JL42: 672819.4696
A43: =+MATCH(B43,RUT[EMPRESA],0) -> 23 | B43: BARRICK | C43: 7210464.975 | D43: 7210464.975 | F43: =IFERROR(INDEX($B$9:$B$511,MATCH(0,INDEX(COUNTIF($F$8:F42,$B$9:$B$511),0,0),0)),"") -> BARRICK | H43: 7210464.975 | J43: ENERKEY | K43: 456.9482576 | L43: 98.4927071 | M43: 1200.72365 | N43: 12798.76397 | O43: 1648.390082 | P43: 210.7474317 | Q43: 30.93683468 | R43: 343.6851112 | S43: 160.1857235 | T43: 938.4716335 | U43: 128.773738 | V43: 193.7039872 | W43: 84.40465442 | X43: 381.7884119 | Y43: 232.1851176 | Z43: 2526.781798 | AA43: 123.8503812 | AB43: 0.05024263695 | AC43: 28.77262993 | AD43: 37.28418221 | AE43: 189.1354356 | AF43: 265.358735 | AG43: 27.80790316 | AH43: 253.7141682 | AI43: 669.5254221 | AJ43: 577.1599574 | AK43: 20.644954 | AL43: 67.88845132 | AM43: 1977.340381 | AN43: 495.5389998 | AO43: 35.096087 | AP43: 3179.66973 | AQ43: 101.6710712 | AR43: 153.9355381 | AS43: 242.8886316 | AT43: 1293.233165 | AU43: 398.3757713 | AV43: 20.06150196 | AW43: 2.317352199 | AX43: 80.10881748 | AY43: 341.7650517 | AZ43: 0.7601948885 | BA43: 125.8844755 | BB43: 1.57411683 | BC43: 311.0858148 | BD43: 2.323756789 | BE43: 0.001576207474 | BF43: 644.4471462 | BG43: 241.5755422 | BH43: 16.82313899 | BI43: 26.94413349 | BJ43: 358.6955692 | BK43: 85.83942054 | BL43: 2191.469794 | BM43: 991.7038568 | BN43: 175.810127 | BO43: 1.364496872 | BP43: 183.1801244 | BQ43: 132.9865599 | BR43: 11.88207843 | BS43: 156.363368 | BT43: 767.458903 | BU43: 59.38846259 | BV43: 63.55241158 | BW43: 29.18594744 | BX43: 15127.56932 | BY43: 1722.014925 | BZ43: 237.7132915 | CA43: 29.9057006 | CB43: 61.57481901 | CC43: 868.9531031 | CD43: 1523.499105 | CE43: 308.2959277 | CF43: 13.6889346 | CG43: 194.2020903 | CH43: 110.7687839 | CI43: 118.808964 | CJ43: 18.94059487 | CK43: 130.5186819 | CL43: 2178.327658 | CM43: 4.620415148 | CN43: 83.01172477 | CO43: 106.4107161 | CP43: 125.0917849 | CQ43: 8.135357639 | CR43: 175.1123686 | CS43: 63.2446505 | CT43: 576.1613435 | CU43: 376.9752138 | CV43: 346.9290566 | CW43: 427.0462102 | CX43: 19.90814147 | CY43: 50.10895242 | CZ43: 55.47458213 | DA43: 764.8629405 | DB43: 43.06946619 | DC43: 49.85981986 | DD43: 373.3745991 | DE43: 19.32408415 | DF43: 201.6063412 | DG43: 3.28846759 | DH43: 886.3222604 | DI43: 3.971879227 | DJ43: 208.0047867 | DK43: 49.70458775 | DL43: 367.7714321 | DM43: 86.92530827 | DN43: 317.7294891 | DO43: 356.234114 | DP43: 5.965147208 | DQ43: 198.113943 | DR43: 78.16385877 | DS43: 73.62499997 | DT43: 28.33453565 | DU43: 92.13353877 | DV43: 276.5885571 | DW43: 254.1429497 | DX43: 192.1769759 | DY43: 91.20253739 | DZ43: 1417.117415 | EA43: 21.96946708 | EB43: 89.98188962 | EC43: 302.1837557 | ED43: 110.2685522 | EE43: 1465.849681 | EF43: 2.980504582 | EG43: 282.379669 | EH43: 102.2153281 | EI43: 85.24559356 | EJ43: 78.78372472 | EK43: 453.1262223 | EL43: 118.5839782 | EM43: 91.65742209 | EN43: 26.36015038 | EO43: 80.52926107 | EP43: 105.8176477 | EQ43: 106.794083 | ER43: 95.2680435 | ES43: 188.5765149 | ET43: 101.0062791 | EU43: 256.4844854 | EV43: 84.43355423 | EW43: 78.4512731 | EX43: 85.8077984 | EY43: 123.9567586 | EZ43: 98.63824224 | FA43: 85.16837021 | FB43: 11.73294871 | FC43: 85.32813768 | FD43: 98.79601604 | FE43: 81.81358832 | FF43: 1.881365231 | FG43: 109.5671758 | FH43: 785.7197158 | FI43: 86.38528187 | FJ43: 82.11909118 | FK43: 87.55127365 | FL43: 85.09019991 | FM43: 84.83191886 | FN43: 219.9048626 | FO43: 110.0506908 | FP43: 88.62859331 | FQ43: 22.94348748 | FR43: 192.731515 | FS43: 191.7531745 | FT43: 292.7952196 | FU43: 102.5108103 | FV43: 96.72873761 | FW43: 99.27262302 | FX43: 7.967061482e-06 | FY43: 38.20379498 | FZ43: 64.60732383 | GA43: 86.13430765 | GB43: 125.9370473 | GC43: 90.36057577 | GD43: 23.52807128 | GE43: 29.86465972 | GF43: 380.0918647 | GG43: 381.7724156 | GH43: 104.4890325 | GI43: 240.493307 | GJ43: 2.740832411 | GK43: 42.28404001 | GL43: 0.927780479 | GM43: 288.573512 | GN43: 103.4152507 | GO43: 85.91672 | GP43: 364.161592 | GQ43: 93.93699826 | GR43: 70.44903344 | GS43: 126.6783773 | GT43: 431.3958387 | GU43: 418.5543858 | GV43: 267.1525632 | GW43: 17407.39452 | GX43: 1369.822851 | GY43: 9.217250153 | GZ43: 1181.066502 | HA43: 422.54178 | HB43: 10155.25756 | HC43: 2955.776241 | HD43: 679.472948 | HE43: 250.8997998 | HF43: 336.1197164 | HG43: 490.5536179 | HH43: 130.178257 | HI43: 155.6062185 | HJ43: 466.0323555 | HK43: 8.35139364 | HL43: 1348.547572 | HM43: 461.2179972 | HN43: 7.0866572 | HO43: 84.85928698 | HP43: 38.92697746 | HQ43: 46.89059724 | HR43: 77.41851353 | HS43: 49.39530553 | HT43: 40.72884128 | HU43: 77.01306881 | HV43: 62.51481448 | HW43: 89.5749762 | HX43: 1.774238988 | HY43: 39.53645243 | HZ43: 65.44594781 | IA43: 76.6238746 | IB43: 193.6109483 | IC43: 96.50260425 | ID43: 93.69622224 | IE43: 69.38651251 | IF43: 110.7055532 | IG43: 51.78913336 | IH43: 97.23185316 | II43: 59.78187978 | IJ43: 39.37783058 | IK43: 73.08203215 | IL43: 59.86337724 | IM43: 24.25028718 | IN43: 515.055032 | IO43: 1953.618861 | IP43: 95.99209392 | IQ43: 399.2589702 | IR43: 184.4965572 | IS43: 208.4958928 | IT43: 85.13372536 | IU43: 129.2314797 | IV43: 111.5729708 | IW43: 125.2526206 | IX43: 234.7665959 | IY43: 591.6335296 | IZ43: 76.45591904 | JA43: 281.7348953 | JB43: 66.11824432 | JC43: 71.89519108 | JD43: 55.60190177 | JE43: 75.88322634 | JF43: 823.5704026 | JG43: 1336.753421 | JH43: 66.11394123 | JI43: 115.4732672 | JJ43: 243.7611451 | JK43: 237.5770646 | JL43: 129344.0005
A44: =+MATCH(B44,RUT[EMPRESA],0) -> 36 | B44: CARRAN | C44: 9343472.967 | D44: 9343472.967 | F44: =IFERROR(INDEX($B$9:$B$511,MATCH(0,INDEX(COUNTIF($F$8:F43,$B$9:$B$511),0,0),0)),"") -> CARRAN | H44: 9343472.967 | J44: EMBALSE_ANCOA | K44: 105811.3174 | L44: 22807.05291 | M44: 278040.5639 | N44: 2963692.395 | O44: 381702.574 | P44: 48800.85001 | Q44: 7163.759087 | R44: 79584.00928 | S44: 37092.73893 | T44: 217313.2695 | U44: 29818.95354 | V44: 44854.25586 | W44: 19544.81175 | X44: 88407.24118 | Y44: 53764.97832 | Z44: 585103.6878 | AA44: 28678.89694 | AB44: 11.63422667 | AC44: 6662.61404 | AD44: 8633.556142 | AE44: 43796.35827 | AF44: 61446.68867 | AG44: 6439.221111 | AH44: 58750.26312 | AI44: 155035.8618 | AJ44: 133647.6382 | AK44: 4780.562663 | AL44: 15720.30607 | AM44: 457874.5779 | AN44: 114747.4216 | AO44: 8126.879003 | AP44: 736286.9589 | AQ44: 23543.03753 | AR44: 35645.44082 | AS44: 56243.49289 | AT44: 299462.1437 | AU44: 92248.22387 | AV44: 4645.458025 | AW44: 536.6079964 | AX44: 18550.06419 | AY44: 79139.3987 | AZ44: 176.0313586 | BA44: 29149.91351 | BB44: 364.5037982 | BC44: 72035.28919 | BD44: 538.0910485 | BE44: 0.3649879093 | BF44: 149228.7154 | BG44: 55939.43283 | BH44: 3895.580012 | BI44: 6239.205888 | BJ44: 83059.84339 | BK44: 19877.04738 | BL44: 507458.5624 | BM44: 229639.7672 | BN44: 40710.73877 | BO44: 315.964027 | BP44: 42417.34146 | BQ44: 30794.47806 | BR44: 2751.423932 | BS44: 36207.63112 | BT44: 177713.4198 | BU44: 13752.04163 | BV44: 14716.24911 | BW44: 6758.322186 | BX44: 3502952.492 | BY44: 398751.2037 | BZ44: 55045.08684 | CA44: 6924.988824 | CB44: 14258.31614 | CC44: 201215.501 | CD44: 352782.7158 | CE44: 71389.26061 | CF44: 3169.821045 | CG44: 44969.59704 | CH44: 25649.71142 | CI44: 27511.50221 | CJ44: 4385.899851 | CK44: 30223.01418 | CL44: 504415.3583 | CM44: 1069.907162 | CN44: 19222.26381 | CO44: 24640.55363 | CP44: 28966.35742 | CQ44: 1883.830159 | CR44: 40549.16525 | CS44: 14644.9837 | CT44: 133416.3984 | CU44: 87292.69303 | CV44: 80335.17998 | CW44: 98887.17446 | CX44: 4609.945743 | CY44: 11603.27056 | CZ44: 12845.74023 | DA44: 177112.2966 | DB44: 9973.201297 | DC44: 11545.58122 | DD44: 86458.9317 | DE44: 4474.700947 | DF44: 46684.13152 | DG44: 761.4802814 | DH44: 205237.5174 | DI44: 919.7316467 | DJ44: 48165.76086 | DK44: 11509.63555 | DL44: 85161.45772 | DM44: 20128.49645 | DN44: 73573.70391 | DO44: 82489.86677 | DP44: 1381.294433 | DQ44: 45875.42889 | DR44: 18099.68794 | DS44: 17048.66603 | DT44: 6561.168565 | DU44: 21334.51862 | DV44: 64047.07559 | DW44: 58849.55214 | DX44: 44500.65985 | DY44: 21118.93517 | DZ44: 328148.8834 | EA44: 5087.26801 | EB44: 20836.28096 | EC44: 69973.92099 | ED44: 25533.87736 | EE44: 339433.3674 | EF44: 690.168112 | EG44: 65388.07026 | EH44: 23669.06611 | EI44: 19739.54032 | EJ44: 18243.22461 | EK44: 104926.2837 | EL44: 27459.4043 | EM44: 21224.26865 | EN44: 6103.978276 | EO44: 18647.42245 | EP44: 24503.22223 | EQ44: 24729.3264 | ER44: 22060.34713 | ES44: 43666.93413 | ET44: 23389.09773 | EU44: 59391.76008 | EV44: 19551.50382 | EW44: 18166.24184 | EX44: 19869.72494 | EY44: 28703.52978 | EZ44: 22840.75315 | FA44: 19721.65841 | FB44: 2716.89133 | FC44: 19758.6543 | FD44: 22877.28738 | FE44: 18944.82234 | FF44: 435.6504926 | FG44: 25371.46606 | FH44: 181941.9088 | FI44: 20003.44749 | FJ44: 19015.56483 | FK44: 20273.44551 | FL44: 19703.55724 | FM44: 19643.74946 | FN44: 50921.3523 | FO44: 25483.42919 | FP44: 20522.91054 | FQ44: 5312.812981 | FR44: 44629.06941 | FS44: 44402.52406 | FT44: 67799.9038 | FU44: 23737.48821 | FV44: 22398.58667 | FW44: 22987.65089 | FX44: 0.001844859362 | FY44: 8846.502439 | FZ44: 14960.52547 | GA44: 19945.33169 | GB44: 29162.08707 | GC44: 20923.96984 | GD44: 5448.179691 | GE44: 6915.485364 | GF44: 88014.3873 | GG44: 88403.53707 | GH44: 24195.567 | GI44: 55688.82954 | GJ44: 634.6694253 | GK44: 9791.327359 | GL44: 214.8376169 | GM44: 66822.32169 | GN44: 23946.92118 | GO44: 19894.94691 | GP44: 84325.56015 | GQ44: 21752.12919 | GR44: 16313.23659 | GS44: 29333.75007 | GT44: 99894.37805 | GU44: 96920.80057 | GV44: 61862.06901 | GW44: 4030870.706 | GX44: 317197.3151 | GY44: 2134.354087 | GZ44: 273488.7383 | HA44: 97844.12488 | HB44: 2351559.86 | HC44: 684441.9969 | HD44: 157339.3191 | HE44: 58098.56565 | HF44: 77832.1602 | HG44: 113593.0025 | HH44: 30144.18511 | HI44: 36032.30497 | HJ44: 107914.8386 | HK44: 1933.855635 | HL44: 312270.7938 | HM44: 106800.0218 | HN44: 1640.992216 | HO44: 19650.08684 | HP44: 9013.963174 | HQ44: 10858.02557 | HR44: 17927.09518 | HS44: 11438.0179 | HT44: 9431.204252 | HU44: 17833.21006 | HV44: 14475.98227 | HW44: 20742.05575 | HX44: 410.8442511 | HY44: 9155.093701 | HZ44: 15154.71793 | IA44: 17743.08793 | IB44: 44832.7117 | IC44: 22346.22305 | ID44: 21696.3749 | IE44: 16067.19836 | IF44: 25635.06967 | IG44: 11992.33466 | IH44: 22515.08853 | II44: 13843.14164 | IJ44: 9118.363094 | IK44: 16922.93595 | IL44: 13862.01326 | IM44: 5615.416603 | IN44: 119266.5702 | IO44: 452381.6031 | IP44: 22228.00885 | IQ44: 92452.73815 | IR44: 42722.17575 | IS44: 48279.48178 | IT44: 19713.63602 | IU44: 29924.94858 | IV44: 25835.92962 | IW44: 29003.60066 | IX44: 54362.74757 | IY44: 136999.1506 | IZ44: 17704.196 | JA44: 65238.76593 | JB44: 15310.39547 | JC44: 16648.11005 | JD44: 12875.22247 | JE44: 17571.5828 | JF44: 190706.6452 | JG44: 309539.7304 | JH44: 15309.39904 | JI44: 26739.08548 | JJ44: 56445.53284 | JK44: 55013.54205 | JL44: 29951003.98
A45: =+MATCH(B45,RUT[EMPRESA],0) -> 77 | B45: DONGO | C45: 47397628.83 | D45: 47397628.83 | F45: =IFERROR(INDEX($B$9:$B$511,MATCH(0,INDEX(COUNTIF($F$8:F44,$B$9:$B$511),0,0),0)),"") -> DONGO | H45: 47397628.83 | J45: CH_EL_MANZANO | K45: 6.150628684 | L45: 1.325734499 | M45: 16.1620166 | N45: 172.2743078 | O45: 22.18770977 | P45: 2.83670892 | Q45: 0.4164169129 | R45: 4.626080673 | S45: 2.156136694 | T45: 12.63204411 | U45: 1.733324143 | V45: 2.607300236 | W45: 1.136106069 | X45: 5.138959868 | Y45: 3.125265105 | Z45: 34.01106437 | AA45: 1.667054626 | AB45: 0.0006762774534 | AC45: 0.3872862189 | AD45: 0.501853671 | AE45: 2.54580648 | AF45: 3.571789628 | AG45: 0.3743007748 | AH45: 3.415051079 | AI45: 9.011966228 | AJ45: 7.768705822 | AK45: 0.2778858309 | AL45: 0.9137941748 | AM45: 26.61545648 | AN45: 6.670068953 | AO45: 0.4724014061 | AP45: 42.79908616 | AQ45: 1.368516011 | AR45: 2.072007761 | AS45: 3.269336866 | AT45: 17.40721595 | AU45: 5.362229542 | AV45: 0.2700324322 | AW45: 0.03119209378 | AX45: 1.078283115 | AY45: 4.60023623 | AZ45: 0.01023239811 | BA45: 1.694434004 | BB45: 0.02118797471 | BC45: 4.187286644 | BD45: 0.03127830104 | BE45: 2.121611526e-05 | BF45: 8.674406865 | BG45: 3.251662381 | BH45: 0.2264433216 | BI45: 0.3626742362 | BJ45: 4.828124892 | BK45: 1.155418351 | BL45: 29.49768765 | BM45: 13.34856209 | BN45: 2.366444761 | BO45: 0.01836644185 | BP45: 2.465646621 | BQ45: 1.790029694 | BR45: 0.1599355095 | BS45: 2.10468691 | BT45: 10.33017341 | BU45: 0.7993823708 | BV45: 0.8554300822 | BW45: 0.3928495678 | BX45: 203.6205636 | BY45: 23.1787171 | BZ45: 3.199675597 | CA45: 0.4025376109 | CB45: 0.8288112313 | CC45: 11.6963087 | CD45: 20.50664848 | CE45: 4.149734121 | CF45: 0.1842562094 | CG45: 2.614004819 | CH45: 1.490973317 | CI45: 1.599195992 | CJ45: 0.2549447649 | CK45: 1.756811488 | CL45: 29.32079147 | CM45: 0.06219185098 | CN45: 1.117356915 | CO45: 1.432312722 | CP45: 1.683764207 | CQ45: 0.1095037856 | CR45: 2.357052772 | CS45: 0.8512875473 | CT45: 7.755264249 | CU45: 5.074173114 | CV45: 4.669744925 | CW45: 5.748140245 | CX45: 0.2679681647 | CY45: 0.6744780288 | CZ45: 0.7467006393 | DA45: 10.29523116 | DB45: 0.5797249245 | DC45: 0.6711246472 | DD45: 5.025708011 | DE45: 0.2601066189 | DF45: 2.71366774 | DG45: 0.04426353038 | DH45: 11.93010155 | DI45: 0.05346240826 | DJ45: 2.799792288 | DK45: 0.6690351874 | DL45: 4.950288094 | DM45: 1.170034649 | DN45: 4.276712028 | DO45: 4.794993138 | DP45: 0.0802922539 | DQ45: 2.666659256 | DR45: 1.052103523 | DS45: 0.9910094396 | DT45: 0.3813893691 | DU45: 1.24013863 | DV45: 3.722945618 | DW45: 3.420822578 | DX45: 2.586746312 | DY45: 1.227607138 | DZ45: 19.07472646 | EA45: 0.2957140817 | EB45: 1.211176938 | EC45: 4.067462879 | ED45: 1.484240083 | EE45: 19.73067397 | EF45: 0.04011827744 | EG45: 3.800895316 | EH45: 1.375841834 | EI45: 1.147425303 | EJ45: 1.060447062 | EK45: 6.09918321 | EL45: 1.596167631 | EM45: 1.23372999 | EN45: 0.3548136892 | EO45: 1.083942382 | EP45: 1.424329885 | EQ45: 1.437472929 | ER45: 1.282329785 | ES45: 2.538283279 | ET45: 1.359567757 | EU45: 3.452340187 | EV45: 1.136495067 | EW45: 1.055972186 | EX45: 1.154992709 | EY45: 1.668486491 | EZ45: 1.327693436 | FA45: 1.146385859 | FB45: 0.1579281892 | FC45: 1.148536366 | FD45: 1.329817107 | FE45: 1.101229723 | FF45: 0.02532360888 | FG45: 1.474799396 | FH45: 10.57596816 | FI45: 1.16276577 | FJ45: 1.105341862 | FK45: 1.178460287 | FL45: 1.145333669 | FM45: 1.141857146 | FN45: 2.959970048 | FO45: 1.481307618 | FP45: 1.192961258 | FQ45: 0.3088246204 | FR45: 2.594210537 | FS45: 2.581041848 | FT45: 3.941091024 | FU45: 1.379819092 | FV45: 1.301991064 | FW45: 1.336232347 | FX45: 1.072384806e-07 | FY45: 0.5142318706 | FZ45: 0.8696294438 | GA45: 1.159387599 | GB45: 1.695141632 | GC45: 1.21627414 | GD45: 0.3166932528 | GE45: 0.4019851912 | GF45: 5.116123952 | GG45: 5.138744554 | GH45: 1.406446419 | GI45: 3.237095246 | GJ45: 0.03689223487 | GK45: 0.5691529074 | GL45: 0.01248813872 | GM45: 3.884265868 | GN45: 1.391993068 | GO45: 1.156458819 | GP45: 4.901698816 | GQ45: 1.26441361 | GR45: 0.9482601993 | GS45: 1.705120105 | GT45: 5.806687246 | GU45: 5.633838335 | GV45: 3.595934968 | GW45: 234.3075354 | GX45: 18.43813075 | GY45: 0.1240663078 | GZ45: 15.89742686 | HA45: 5.687509579 | HB45: 136.6921034 | HC45: 39.78542828 | HD45: 9.145862215 | HE45: 3.377169033 | HF45: 4.524248719 | HG45: 6.602964566 | HH45: 1.752229291 | HI45: 2.094495504 | HJ45: 6.272902732 | HK45: 0.1124116799 | HL45: 18.1517606 | HM45: 6.208100361 | HN45: 0.09538803644 | HO45: 1.142225527 | HP45: 0.5239660732 | HQ45: 0.6311582277 | HR45: 1.042071005 | HS45: 0.6648721775 | HT45: 0.5482195746 | HU45: 1.036613626 | HV45: 0.8414637866 | HW45: 1.205699789 | HX45: 0.02388166501 | HY45: 0.5321697464 | HZ45: 0.8809175156 | IA45: 1.031374982 | IB45: 2.606047911 | IC45: 1.298947257 | ID45: 1.261172709 | IE45: 0.9339584232 | IF45: 1.490122217 | IG45: 0.6970936509 | IH45: 1.308763115 | II45: 0.8046778567 | IJ45: 0.5300346598 | IK45: 0.9837009678 | IL45: 0.8057748313 | IM45: 0.326414445 | IN45: 6.932759237 | IO45: 26.29615936 | IP45: 1.29207567 | IQ45: 5.374117602 | IR45: 2.48336611 | IS45: 2.806402688 | IT45: 1.145919531 | IU45: 1.739485451 | IV45: 1.501797858 | IW45: 1.685929092 | IX45: 3.160012396 | IY45: 7.963523433 | IZ45: 1.029114262 | JA45: 3.792216514 | JB45: 0.8899667813 | JC45: 0.9677258138 | JD45: 0.748414391 | JE45: 1.021405686 | JF45: 11.08544711 | JG45: 17.99300861 | JH45: 0.8899088607 | JI45: 1.554296745 | JJ45: 3.281081098 | JK45: 3.197841953 | JL45: 1741.000006
A46: =+MATCH(B46,RUT[EMPRESA],0) -> 178 | B46: INACAL | C46: -655360.0023 | D46: -655360.0023 | F46: =IFERROR(INDEX($B$9:$B$511,MATCH(0,INDEX(COUNTIF($F$8:F45,$B$9:$B$511),0,0),0)),"") -> INACAL | G46: -655360.0023 | J46: LIPIGAS | K46: 73034.77466 | L46: 15742.24772 | M46: 191913.5915 | N46: 2045647.022 | O46: 263464.837 | P46: 33684.10083 | Q46: 4944.684025 | R46: 54931.74387 | S46: 25602.74172 | T46: 149997.43 | U46: 20582.11358 | V46: 30960.01969 | W46: 13490.53162 | X46: 61021.85568 | Y46: 37110.52063 | Z46: 403859.597 | AA46: 19795.20554 | AB46: 8.030361439 | AC46: 4598.775699 | AD46: 5959.190785 | AE46: 30229.82075 | AF46: 42412.71323 | AG46: 4444.58187 | AH46: 40551.5434 | AI46: 107011.3246 | AJ46: 92248.40391 | AK46: 3299.716189 | AL46: 10850.72032 | AM46: 316041.4921 | AN46: 79202.79502 | AO46: 5609.46401 | AP46: 508211.725 | AQ46: 16250.25076 | AR46: 24603.76454 | AS46: 38821.28048 | AT46: 206699.5358 | AU46: 63673.04 | AV46: 3206.462111 | AW46: 370.3861276 | AX46: 12803.92109 | AY46: 54624.85767 | AZ46: 121.5031712 | BA46: 20120.31811 | BB46: 251.5936237 | BC46: 49721.34592 | BD46: 371.4097835 | BE46: 0.2519277746 | BF46: 103003.0235 | BG46: 38611.40729 | BH46: 2688.869352 | BI46: 4306.524174 | BJ46: 57330.88951 | BK46: 13719.85259 | BL46: 350266.1405 | BM46: 158505.6218 | BN46: 28100.01526 | BO46: 218.0897288 | BP46: 29277.97378 | BQ46: 21255.45567 | BR46: 1899.131698 | BS46: 24991.80849 | BT46: 122664.1903 | BU46: 9492.153456 | BV46: 10157.68412 | BW46: 4664.836902 | BX46: 2417863.724 | BY46: 275232.414 | BZ46: 37994.09755 | CA46: 4779.876207 | CB46: 9841.602317 | CC46: 138886.1715 | CD46: 243503.3113 | CE46: 49275.43378 | CF46: 2187.924425 | CG46: 31039.63232 | CH46: 17704.35281 | CI46: 18989.42773 | CJ46: 3027.305729 | CK46: 20861.01076 | CL46: 348165.6116 | CM46: 738.4883814 | CN46: 13267.89743 | CO46: 17007.79583 | CP46: 19993.6211 | CQ46: 1300.287291 | CR46: 27988.49141 | CS46: 10108.49417 | CT46: 92088.79383 | CU46: 60252.55449 | CV46: 55450.22889 | CW46: 68255.48234 | CX46: 3181.950257 | CY46: 8008.994426 | CZ46: 8866.591649 | DA46: 122249.2735 | DB46: 6883.862024 | DC46: 7969.175168 | DD46: 59677.06245 | DE46: 3088.599438 | DF46: 32223.06565 | DG46: 525.6010618 | DH46: 141662.3118 | DI46: 634.8318425 | DJ46: 33245.73947 | DK46: 7944.364171 | DL46: 58781.49926 | DM46: 13893.41177 | DN46: 50783.21506 | DO46: 56937.47116 | DP46: 953.4190685 | DQ46: 31664.87002 | DR46: 12493.05521 | DS46: 11767.60211 | DT46: 4528.754386 | DU46: 14725.85163 | DV46: 44207.59376 | DW46: 40620.07625 | DX46: 30715.95502 | DY46: 14577.04818 | DZ46: 226500.1547 | EA46: 3511.415243 | EB46: 14381.95008 | EC46: 48298.5155 | ED46: 17624.39997 | EE46: 234289.1112 | EF46: 476.3788392 | EG46: 45133.19648 | EH46: 16337.24022 | EI46: 13624.94027 | EJ46: 12592.12938 | EK46: 72423.89261 | EL46: 18953.46788 | EM46: 14649.75313 | EN46: 4213.185215 | EO46: 12871.12126 | EP46: 16913.00476 | EQ46: 17069.06998 | ER46: 15226.84456 | ES46: 30140.48756 | ET46: 16143.99598 | EU46: 40994.32766 | EV46: 13495.15072 | EW46: 12538.99311 | EX46: 13714.79837 | EY46: 19812.20801 | EZ46: 15765.50884 | FA46: 13612.59754 | FB46: 1875.296055 | FC46: 13638.13343 | FD46: 15790.72608 | FE46: 13076.39735 | FF46: 300.7016296 | FG46: 17512.29786 | FH46: 125582.8454 | FI46: 13807.09848 | FJ46: 13125.22637 | FK46: 13993.46082 | FL46: 13600.10345 | FM46: 13558.82198 | FN46: 35147.74774 | FO46: 17589.57883 | FP46: 14165.65056 | FQ46: 3667.09449 | FR46: 30804.58791 | FS46: 30648.21817 | FT46: 46797.93068 | FU46: 16384.46761 | FV46: 15460.30964 | FW46: 15866.90294 | FX46: 0.001273388245 | FY46: 6106.173973 | FZ46: 10326.29244 | GA46: 13766.98487 | GB46: 20128.72074 | GC46: 14442.4761 | GD46: 3760.529459 | GE46: 4773.316577 | GF46: 60750.69381 | GG46: 61019.29897 | GH46: 16700.65006 | GI46: 38438.4319 | GJ46: 438.0716507 | GK46: 6758.326095 | GL46: 148.2886456 | GM46: 46123.16837 | GN46: 16529.02577 | GO46: 13732.20749 | GP46: 58204.53271 | GQ46: 15014.10145 | GR46: 11259.98228 | GS46: 20247.20871 | GT46: 68950.69045 | GU46: 66898.22039 | GV46: 42699.42368 | GW46: 2782251.852 | GX46: 218940.9886 | GY46: 1473.207911 | GZ46: 188771.7578 | HA46: 67535.53202 | HB46: 1623131.143 | HC46: 472426.4687 | HD46: 108601.2537 | HE46: 40101.71838 | HF46: 53722.55466 | HG46: 78405.97342 | HH46: 20806.6001 | HI46: 24870.79208 | HJ46: 74486.70063 | HK46: 1334.816672 | HL46: 215540.5265 | HM46: 73717.21399 | HN46: 1132.671814 | HO46: 13563.19627 | HP46: 6221.761392 | HQ46: 7494.599544 | HR46: 12373.92548 | HS46: 7894.931096 | HT46: 6509.756181 | HU46: 12309.1226 | HV46: 9991.843304 | HW46: 14316.91246 | HX46: 283.57947 | HY46: 6319.174754 | HZ46: 10460.33106 | IA46: 12246.91707 | IB46: 30945.14914 | IC46: 15424.16639 | ID46: 14975.61784 | IE46: 11090.15785 | IF46: 17694.24655 | IG46: 8277.540447 | IH46: 15540.72341 | II46: 9555.033958 | IJ46: 6293.821969 | IK46: 11680.81869 | IL46: 9568.059828 | IM46: 3875.962387 | IN46: 82322.07383 | IO46: 312250.0434 | IP46: 15342.5707 | IQ46: 63814.2031 | IR46: 29488.38136 | IS46: 33324.23374 | IT46: 13607.0602 | IU46: 20655.27517 | IV46: 17832.8873 | IW46: 20019.32772 | IX46: 37523.12245 | IY46: 94561.73821 | IZ46: 12220.07246 | JA46: 45030.14127 | JB46: 10567.78529 | JC46: 11491.12398 | JD46: 8886.941352 | JE46: 12128.53806 | JF46: 131632.5815 | JG46: 213655.4484 | JH46: 10567.09752 | JI46: 18456.27794 | JJ46: 38960.73572 | JK46: 37972.32419 | JL46: 20673259.54
A47: =+MATCH(B47,RUT[EMPRESA],0) -> 166 | B47: HIDROLIRCAY | C47: 66499303.99 | D47: 66499303.99 | F47: =IFERROR(INDEX($B$9:$B$511,MATCH(0,INDEX(COUNTIF($F$8:F46,$B$9:$B$511),0,0),0)),"") -> HIDROLIRCAY | H47: 66499303.99 | J47: ERSA | K47: 1875318.757 | L47: 404214.7398 | M47: 4927778.028 | N47: 52526214.38 | O47: 6765004.108 | P47: 864908.8931 | Q47: 126964.9799 | R47: 1410486.034 | S47: 657403.2987 | T47: 3851493.967 | U47: 528488.2968 | V47: 794962.4808 | W47: 346397.2758 | X47: 1566862.239 | Y47: 952889.3018 | Z47: 10369929.68 | AA47: 508282.8066 | AB47: 206.1961238 | AC47: 118083.0689 | AD47: 153014.5374 | AE47: 776213.1141 | AF47: 1089034.053 | AG47: 114123.8237 | AH47: 1041244.672 | AI47: 2747736.886 | AJ47: 2368668.391 | AK47: 84727.03163 | AL47: 278614.666 | AM47: 8115018.372 | AN47: 2033695.426 | AO47: 144034.5798 | AP47: 13049386.2 | AQ47: 417258.7676 | AR47: 631752.4954 | AS47: 996816.596 | AT47: 5307437.703 | AU47: 1634936.875 | AV47: 82332.54048 | AW47: 9510.429186 | AX47: 328767.1318 | AY47: 1402606.097 | AZ47: 3119.844993 | BA47: 516630.7437 | BB47: 6460.186178 | BC47: 1276698.3 | BD47: 9536.713666 | BE47: 6.468766192 | BF47: 2644815.471 | BG47: 991427.6682 | BH47: 69042.27685 | BI47: 110578.9071 | BJ47: 1472089.056 | BK47: 352285.5657 | BL47: 8993806.941 | BM47: 4069959.373 | BN47: 721525.9571 | BO47: 5599.904445 | BP47: 751772.4762 | BQ47: 545777.7463 | BR47: 48764.13069 | BS47: 641716.3257 | BT47: 3149656.558 | BU47: 243730.6544 | BV47: 260819.5294 | BW47: 119779.3268 | BX47: 62083647.36 | BY47: 7067160.965 | BZ47: 975576.9649 | CA47: 122733.1987 | CB47: 252703.476 | CC47: 3566189.445 | CD47: 6252450.688 | CE47: 1265248.584 | CF47: 56179.48071 | CG47: 797006.6996 | CH47: 454595.8424 | CI47: 487592.7965 | CJ47: 77732.33018 | CK47: 535649.5581 | CL47: 8939871.523 | CM47: 18962.21519 | CN47: 340680.6831 | CO47: 436710.3025 | CP47: 513377.5361 | CQ47: 33387.56308 | CR47: 718662.3519 | CS47: 259556.4758 | CT47: 2364570.072 | CU47: 1547108.841 | CV47: 1423799.208 | CW47: 1752600.551 | CX47: 81703.14799 | CY47: 205647.4815 | CZ47: 227668.0624 | DA47: 3139002.71 | DB47: 176757.3822 | DC47: 204625.0398 | DD47: 1532331.894 | DE47: 79306.1728 | DF47: 827393.7957 | DG47: 13495.89336 | DH47: 3637472.585 | DI47: 16300.61936 | DJ47: 853653.0594 | DK47: 203987.9662 | DL47: 1509336.459 | DM47: 356742.0564 | DN47: 1303963.984 | DO47: 1461987.227 | DP47: 24481.00471 | DQ47: 813060.9695 | DR47: 320785.008 | DS47: 302157.5006 | DT47: 116285.127 | DU47: 378116.6698 | DV47: 1135121.32 | DW47: 1043004.394 | DX47: 788695.616 | DY47: 374295.8338 | DZ47: 5815859.509 | EA47: 90162.84231 | EB47: 369286.287 | EC47: 1240164.189 | ED47: 452542.8881 | EE47: 6015857.06 | EF47: 12232.01108 | EG47: 1158888.082 | EH47: 419492.4016 | EI47: 349848.4958 | EJ47: 323328.9421 | EK47: 1859633.098 | EL47: 486669.4531 | EM47: 376162.6837 | EN47: 108182.2365 | EO47: 330492.6351 | EP47: 434276.3459 | EQ47: 438283.643 | ER47: 390980.6985 | ES47: 773919.2999 | ET47: 414530.4565 | EU47: 1052614.073 | EV47: 346515.8808 | EW47: 321964.5584 | EX47: 352155.7882 | EY47: 508719.3803 | EZ47: 404812.0171 | FA47: 349531.5706 | FB47: 48152.1013 | FC47: 350187.2574 | FD47: 405459.5218 | FE47: 335763.5229 | FF47: 7721.135704 | FG47: 449664.4346 | FH47: 3224599.058 | FI47: 354525.7844 | FJ47: 337017.3088 | FK47: 359311.0225 | FL47: 349210.7592 | FM47: 348150.772 | FN47: 902491.0519 | FO47: 451648.7834 | FP47: 363732.3498 | FQ47: 94160.22866 | FR47: 790971.4486 | FS47: 786956.3325 | FT47: 1201633.573 | FU47: 420705.0625 | FV47: 396975.3971 | FW47: 407415.5201 | FX47: 0.03269687451 | FY47: 156788.6345 | FZ47: 265148.8964 | GA47: 353495.7844 | GB47: 516846.4986 | GC47: 370840.4175 | GD47: 96559.36455 | GE47: 122564.7666 | GF47: 1559899.598 | GG47: 1566796.59 | GH47: 428823.7002 | GI47: 986986.1676 | GJ47: 11248.39486 | GK47: 173533.9878 | GL47: 3807.617396 | GM47: 1184307.656 | GN47: 424416.8921 | GO47: 352602.8033 | GP47: 1494521.65 | GQ47: 385518.0798 | GR47: 289123.3124 | GS47: 519888.9221 | GT47: 1770451.456 | GU47: 1717750.046 | GV47: 1096395.936 | GW47: 71440065.5 | GX47: 5621762.298 | GY47: 37827.65732 | GZ47: 4847104.956 | HA47: 1734114.339 | HB47: 41677246.11 | HC47: 12130525.8 | HD47: 2788561.6 | HE47: 1029694.485 | HF47: 1379437.602 | HG47: 2013235.385 | HH47: 534252.452 | HI47: 638608.9792 | HJ47: 1912599.957 | HK47: 34274.1763 | HL47: 5534448.408 | HM47: 1892841.797 | HN47: 29083.68935 | HO47: 348263.0909 | HP47: 159756.5803 | HQ47: 192439.33 | HR47: 317726.1061 | HS47: 202718.6699 | HT47: 167151.4416 | HU47: 316062.1582 | HV47: 256561.2238 | HW47: 367616.3116 | HX47: 7281.488875 | HY47: 162257.8697 | HZ47: 268590.6149 | IA47: 314464.9025 | IB47: 794580.6486 | IC47: 396047.3442 | ID47: 384529.9333 | IE47: 284762.7193 | IF47: 454336.3432 | IG47: 212542.9556 | IH47: 399040.1867 | II47: 245345.2412 | IJ47: 161606.8845 | IK47: 299929.157 | IL47: 245679.7074 | IM47: 99523.34351 | IN47: 2113789.355 | IO47: 8017665.092 | IP47: 393952.2063 | IQ47: 1638561.529 | IR47: 757175.1258 | IS47: 855668.5619 | IT47: 349389.3879 | IU47: 530366.8716 | IV47: 457896.2311 | IW47: 514037.6068 | IX47: 963483.7062 | IY47: 2428068.029 | IZ47: 313775.6117 | JA47: 1156241.927 | JB47: 271349.7244 | JC47: 295058.3532 | JD47: 228190.5831 | JE47: 311425.277 | JF47: 3379938.534 | JG47: 5486045.132 | JH47: 271332.0645 | JI47: 473903.0739 | JJ47: 1000397.397 | JK47: 975017.8891 | JL47: 530828657.6
A48: =+MATCH(B48,RUT[EMPRESA],0) -> 200 | B48: LOS MORROS | C48: 6968702.975 | D48: 6968702.975 | F48: =IFERROR(INDEX($B$9:$B$511,MATCH(0,INDEX(COUNTIF($F$8:F47,$B$9:$B$511),0,0),0)),"") -> LOS MORROS | H48: 6968702.975 | J48: NEOMAS | K48: 255870.6801 | L48: 55151.53089 | M48: 672351.7857 | N48: 7166737.996 | O48: 923025.0564 | P48: 118009.1789 | Q48: 17323.25005 | R48: 192448.3607 | S48: 89696.87337 | T48: 525502.3322 | U48: 72107.56005 | V48: 108465.6087 | W48: 47262.84862 | X48: 213784.5127 | Y48: 130013.3285 | Z48: 1414885.309 | AA48: 69350.69939 | AB48: 28.13363979 | AC48: 16111.39175 | AD48: 20877.48207 | AE48: 105907.4233 | AF48: 148589.0773 | AG48: 15571.18771 | AH48: 142068.6383 | AI48: 374904.4278 | AJ48: 323183.8799 | AK48: 11560.25509 | AL48: 38014.51021 | AM48: 1107222.578 | AN48: 277479.7775 | AO48: 19652.24618 | AP48: 1780473.484 | AQ48: 56931.27326 | AR48: 86197.04783 | AS48: 136006.8198 | AT48: 724152.9949 | AU48: 223072.6955 | AV48: 11233.54792 | AW48: 1297.614058 | AX48: 44857.37119 | AY48: 191373.2129 | AZ48: 425.6752922 | BA48: 70489.70167 | BB48: 881.4353422 | BC48: 174194.2062 | BD48: 1301.200344 | BE48: 0.8826060094 | BF48: 360861.7098 | BG48: 135271.5482 | BH48: 9420.208837 | BI48: 15087.51515 | BJ48: 200853.549 | BK48: 48066.25376 | BL48: 1227125.516 | BM48: 555310.0072 | BN48: 98445.84373 | BO48: 764.0574984 | BP48: 102572.7141 | BQ48: 74466.55272 | BR48: 6653.434907 | BS48: 87556.52447 | BT48: 429742.8169 | BU48: 33254.89496 | BV48: 35586.52101 | BW48: 16342.83115 | BX48: 8470765.308 | BY48: 964251.6906 | BZ48: 133108.8598 | CA48: 16745.86088 | CB48: 34479.15722 | CC48: 486575.0503 | CD48: 853091.6696 | CE48: 172631.9936 | CF48: 7665.193919 | CG48: 108744.5243 | CH48: 62025.58732 | CI48: 66527.73026 | CJ48: 10605.88986 | CK48: 73084.6509 | CL48: 1219766.505 | CM48: 2587.226773 | CN48: 46482.87003 | CO48: 59585.26338 | CP48: 70045.83023 | CQ48: 4555.438076 | CR48: 98055.13008 | CS48: 35414.18851 | CT48: 322624.7005 | CU48: 211089.336 | CV48: 194264.8258 | CW48: 239126.8648 | CX48: 11147.67287 | CY48: 28058.78241 | CZ48: 31063.29616 | DA48: 428289.1935 | DB48: 24116.98353 | DC48: 27919.27926 | DD48: 209073.1521 | DE48: 10820.62678 | DF48: 112890.5752 | DG48: 1841.395441 | DH48: 496301.005 | DI48: 2224.075531 | DJ48: 116473.4198 | DK48: 27832.3562 | DL48: 205935.6281 | DM48: 48674.30255 | DN48: 177914.368 | DO48: 199475.2436 | DP48: 3340.216856 | DQ48: 110934.9877 | DR48: 43768.2809 | DS48: 41226.72206 | DT48: 15866.07845 | DU48: 51590.67975 | DV48: 154877.2777 | DW48: 142308.7369 | DX48: 107610.5504 | DY48: 51069.36043 | DZ48: 793522.6595 | EA48: 12301.92344 | EB48: 50385.85202 | EC48: 169209.4494 | ED48: 61745.47984 | EE48: 820810.5588 | EF48: 1668.949868 | EG48: 158120.0425 | EH48: 57236.03289 | EI48: 47733.7371 | EJ48: 44115.37824 | EK48: 253730.5104 | EL48: 66401.7482 | EM48: 51324.0756 | EN48: 14760.51061 | EO48: 45092.80088 | EP48: 59253.17151 | EQ48: 59799.9318 | ER48: 53345.86284 | ES48: 105594.4526 | ET48: 56559.01931 | EU48: 143619.8926 | EV48: 47279.03122 | EW48: 43929.22013 | EX48: 48048.54677 | EY48: 69410.26601 | EZ48: 55233.02409 | FA48: 47690.49546 | FB48: 6569.928903 | FC48: 47779.95812 | FD48: 55321.37039 | FE48: 45811.96696 | FF48: 1053.480767 | FG48: 61352.74029 | FH48: 439968.0591 | FI48: 48371.91181 | FJ48: 45983.03496 | FK48: 49024.81529 | FL48: 47646.72357 | FM48: 47502.09768 | FN48: 123136.9325 | FO48: 61623.48715 | FP48: 49628.06634 | FQ48: 12847.3315 | FR48: 107921.0676 | FS48: 107373.2405 | FT48: 163952.2872 | FU48: 57401.48976 | FV48: 54163.78651 | FW48: 55588.24908 | FX48: 0.004461199721 | FY48: 21392.42428 | FZ48: 36177.2249 | GA48: 48231.37742 | GB48: 70519.13951 | GC48: 50597.8994 | GD48: 13174.6724 | GE48: 16722.87981 | GF48: 212834.5218 | GG48: 213775.5555 | GH48: 58509.20616 | GI48: 134665.5447 | GJ48: 1534.744123 | GK48: 23677.17984 | GL48: 519.5157617 | GM48: 161588.3189 | GN48: 57907.93612 | GO48: 48109.53802 | GP48: 203914.2783 | GQ48: 52600.53676 | GR48: 39448.3222 | GS48: 70934.25133 | GT48: 241562.4631 | GU48: 234371.8212 | GV48: 149593.5412 | GW48: 9747365.92 | GX48: 767039.8095 | GY48: 5161.249716 | GZ48: 661344.6576 | HA48: 236604.5844 | HB48: 5686492.103 | HC48: 1655103.098 | HD48: 380474.5994 | HE48: 140492.7173 | HF48: 188212.0765 | HG48: 274688.1856 | HH48: 72894.02812 | HI48: 87132.55449 | HJ48: 260957.3704 | HK48: 4676.408618 | HL48: 755126.6004 | HM48: 258261.5441 | HN48: 3968.21252 | HO48: 47517.42261 | HP48: 21797.37428 | HQ48: 26256.6468 | HR48: 43350.92075 | HS48: 27659.17192 | HT48: 22806.33779 | HU48: 43123.88976 | HV48: 35005.51283 | HW48: 50157.99862 | HX48: 993.4948409 | HY48: 22138.65312 | HZ48: 36646.81699 | IA48: 42905.95833 | IB48: 108413.5111 | IC48: 54037.1619 | ID48: 52465.71291 | IE48: 38853.35779 | IF48: 61990.18095 | IG48: 28999.60893 | IH48: 54445.50882 | II48: 33475.19107 | IJ48: 22049.83195 | IK48: 40922.68425 | IL48: 33520.82602 | IM48: 13579.08115 | IN48: 288407.8867 | IO48: 1093939.583 | IP48: 53751.29884 | IQ48: 223567.2475 | IR48: 103309.8579 | IS48: 116748.4173 | IT48: 47671.09588 | IU48: 72363.87499 | IV48: 62475.89621 | IW48: 70135.89104 | IX48: 131458.8414 | IY48: 331288.4359 | IZ48: 42811.91069 | JA48: 157758.998 | JB48: 37023.27311 | JC48: 40258.10609 | JD48: 31134.58949 | JE48: 42491.22828 | JF48: 461162.7585 | JG48: 748522.4009 | JH48: 37020.86357 | JI48: 64659.88853 | JJ48: 136495.3885 | JK48: 133032.5788 | JL48: 72426881.61
A49: =+MATCH(B49,RUT[EMPRESA],0) -> 75 | B49: DIUTO | C49: 63581157.78 | D49: 63581157.78 | F49: =IFERROR(INDEX($B$9:$B$511,MATCH(0,INDEX(COUNTIF($F$8:F48,$B$9:$B$511),0,0),0)),"") -> DIUTO | H49: 63581157.78 | J49: ENGIE | K49: =$JL49*K$63/$JL$63 -> 39834305.52 | L49: 8586067.505 | M49: 104672666.8 | N49: 1115727800 | O49: 143697832.4 | P49: 18371834.1 | Q49: 2696907.81 | R49: 29960630.1 | S49: 13964134.76 | T49: 81810938.43 | U49: =$JL49*U$63/$JL$63 -> 11225805.85 | V49: 16886077.75 | W49: 7357946.41 | X49: 33282272.1 | Y49: 20240656.92 | Z49: 220271324.9 | AA49: 10796613.93 | AB49: 4379.884412 | AC49: 2508244.012 | AD49: 3250235.624 | AE49: =$JL49*AE$63/$JL$63 -> 16487815.85 | AF49: 23132555.48 | AG49: 2424144.292 | AH49: 22117444.42 | AI49: 58365645.94 | AJ49: 50313718.67 | AK49: 1799716.689 | AL49: 5918152.146 | AM49: 172373960.4 | AN49: 43198440.06 | AO49: =$JL49*AO$63/$JL$63 -> 3059489.185 | AP49: 277186603.5 | AQ49: 8863140.289 | AR49: 13419277.03 | AS49: 21173732.03 | AT49: 112737151.6 | AU49: 34728269.39 | AV49: 1748854.46 | AW49: 202014.3724 | AX49: 6983458.318 | AY49: =$JL49*AY$63/$JL$63 -> 29793249.58 | AZ49: 66269.72516 | BA49: 10973935.4 | BB49: 137223.0875 | BC49: 27118797.77 | BD49: 202572.6903 | BE49: 137.4053386 | BF49: 56179455.96 | BG49: 21059263.92 | BH49: 1466551.294 | BI49: =$JL49*BI$63/$JL$63 -> 2348845.471 | BJ49: 31269161.57 | BK49: 7483021.647 | BL49: 191040617.5 | BM49: 86451439 | BN49: 15326186.71 | BO49: 118949.5405 | BP49: 15968663.67 | BQ49: 11593057.13 | BR49: 1035816.057 | BS49: =$JL49*BS$63/$JL$63 -> 13630922.25 | BT49: 66902963.1 | BU49: 5177168.583 | BV49: 5540159.388 | BW49: 2544274.823 | BX49: 1318740597 | BY49: 150116052.5 | BZ49: 20722573.55 | CA49: 2607019.054 | CB49: 5367763.444 | CC49: =$JL49*CC$63/$JL$63 -> 75750684.71 | CD49: 132810504.9 | CE49: 26875590.33 | CF49: 1193328.116 | CG49: 16929499.72 | CH49: 9656230.23 | CI49: 10357130.14 | CJ49: 1651139.774 | CK49: 11377920.72 | CL49: 189894956.4 | CM49: =$JL49*CM$63/$JL$63 -> 402783.0845 | CN49: 7236518.252 | CO49: 9276317.184 | CP49: 10904832.87 | CQ49: 709196.9743 | CR49: 15265359.87 | CS49: 5513330.423 | CT49: 50226664.84 | CU49: 32862683.22 | CV49: 30243419.92 | CW49: =$JL49*CW$63/$JL$63 -> 37227604.93 | CX49: 1735485.312 | CY49: 4368230.509 | CZ49: 4835977.414 | DA49: 66676660.97 | DB49: 3754565.744 | DC49: 4346512.465 | DD49: 32548800.89 | DE49: 1684570.319 | DF49: 17574962.72 | DG49: =$JL49*DG$63/$JL$63 -> 286671.0191 | DH49: 77264834.96 | DI49: 346247.191 | DJ49: 18132744.98 | DK49: 4332980.16 | DL49: 32060346.75 | DM49: 7577683.533 | DN49: 27697957.77 | DO49: 31054585.06 | DP49: 520009.6343 | DQ49: =$JL49*DQ$63/$JL$63 -> 17270514.12 | DR49: 6813907.218 | DS49: 6418233.78 | DT49: 2470053.296 | DU49: 8031709.216 | DV49: 24111511.32 | DW49: 22154823.3 | DX49: 16752961.07 | DY49: 7950549.495 | DZ49: 123536718 | EA49: =$JL49*EA$63/$JL$63 -> 1915180.656 | EB49: 7844139.949 | EC49: 26342763.86 | ED49: 9612622.705 | EE49: 127784936.4 | EF49: 259824.4509 | EG49: 24616349.49 | EH49: 8910585.694 | EI49: 7431254.987 | EJ49: 6867943.817 | EK49: =$JL49*EK$63/$JL$63 -> 39501120.92 | EL49: 10337517.08 | EM49: 7990203.91 | EN49: 2297936.947 | EO49: 7020110.341 | EP49: 9224616.656 | EQ49: 9309737.063 | ER49: 8304958.577 | ES49: 16439092.14 | ET49: 8805187.272 | EU49: =$JL49*EU$63/$JL$63 -> 22358945.86 | EV49: 7360465.741 | EW49: 6838962.462 | EX49: 7480264.998 | EY49: 10805887.34 | EZ49: 8598754.481 | FA49: 7424523.068 | FB49: 1022815.725 | FC49: 7438450.742 | FD49: 8612508.357 | FE49: =$JL49*FE$63/$JL$63 -> 7132071.123 | FF49: 164007.36 | FG49: 9551480.462 | FH49: 68494843.1 | FI49: 7530606.919 | FJ49: 7158703.229 | FK49: 7632251.847 | FL49: 7417708.6 | FM49: 7395193.039 | FN49: 19170129.96 | FO49: =$JL49*FO$63/$JL$63 -> 9593630.712 | FP49: 7726166.814 | FQ49: 2000090.546 | FR49: 16801302.83 | FS49: 16716016.34 | FT49: 25524321.49 | FU49: 8936344.251 | FV49: 8432294.078 | FW49: 8654056.404 | FX49: 0.6945258153 | FY49: =$JL49*FY$63/$JL$63 -> 3330402.548 | FZ49: 5632120.997 | GA49: 7508728.329 | GB49: 10978518.32 | GC49: 7877151.783 | GD49: 2051051.435 | GE49: 2603441.33 | GF49: 33134376.18 | GG49: 33280877.63 | GH49: 9108795.09 | GI49: =$JL49*GI$63/$JL$63 -> 20964920.44 | GJ49: 238931.1127 | GK49: 3686096.49 | GL49: 80878.94076 | GM49: 25156295.6 | GN49: 9015188.528 | GO49: 7489760.201 | GP49: 31745660.2 | GQ49: 8188925.17 | GR49: 6141370.002 | GS49: =$JL49*GS$63/$JL$63 -> 11043143.51 | GT49: 37606782.28 | GU49: 36487333.09 | GV49: 23288931.83 | GW49: 1517483566 | GX49: 119413830.9 | GY49: 803510.5781 | GZ49: 102959061.7 | HA49: 36834932.79 | HB49: 885281048 | HC49: =$JL49*HC$63/$JL$63 -> 257668766.4 | HD49: 59232818.05 | HE49: 21872102.83 | HF49: 29301119.44 | HG49: 42763841.13 | HH49: 11348244.3 | HI49: 13564918.01 | HJ49: 40626208.6 | HK49: 728029.8376 | HL49: 117559165.8 | HM49: =$JL49*HM$63/$JL$63 -> 40206518.58 | HN49: 617776.8781 | HO49: 7397578.845 | HP49: 3393445.729 | HQ49: 4087671.515 | HR49: 6748932.006 | HS49: 4306018.59 | HT49: 3550522.581 | HU49: 6713587.503 | HV49: 5449707.222 | HW49: =$JL49*HW$63/$JL$63 -> 7808667.414 | HX49: 154668.6671 | HY49: 3446576.497 | HZ49: 5705227.751 | IA49: 6679659.634 | IB49: 16877967.12 | IC49: 8412580.981 | ID49: 8167935.604 | IE49: 6048745.11 | IF49: 9650718.116 | IG49: =$JL49*IG$63/$JL$63 -> 4514699.699 | IH49: 8476153.001 | II49: 5211464.59 | IJ49: 3432748.693 | IK49: 6370900.749 | IL49: 5218569.102 | IM49: 2114010.355 | IN49: 44899743.38 | IO49: 170306045.1 | IP49: 8368077.42 | IQ49: =$JL49*IQ$63/$JL$63 -> 34805261.95 | IR49: 16083423.25 | IS49: 18175556.98 | IT49: 7421502.916 | IU49: 11265709.32 | IV49: 9726334.948 | IW49: 10918853.66 | IX49: 20465696.39 | IY49: 51575447.29 | IZ49: 6665018.166 | JA49: =$JL49*JA$63/$JL$63 -> 24560141.57 | JB49: 5763834.966 | JC49: 6267438.291 | JD49: 4847076.46 | JE49: 6615093.879 | JF49: 71794463.57 | JG49: 116531014.8 | JH49: 5763459.845 | JI49: 10066341.93 | JJ49: 21249793.09 | JK49: 20710698.03 | JL49: 1.127551828e+10
A50: =+MATCH(B50,RUT[EMPRESA],0) -> 195 | B50: LICAN | C50: 167784092.6 | D50: 167784092.6 | F50: =IFERROR(INDEX($B$9:$B$511,MATCH(0,INDEX(COUNTIF($F$8:F49,$B$9:$B$511),0,0),0)),"") -> LICAN | H50: 167784092.6 | J50: GEOTERMICA_DEL_NORTE | K50: 1113985.642 | L50: 240113.5353 | M50: 2927221.813 | N50: 31201868.18 | O50: 4018579.465 | P50: 513777.2366 | Q50: 75420.33278 | R50: 837863.5282 | S50: 390513.7903 | T50: 2287882.507 | U50: 313935.0964 | V50: 472227.3408 | W50: 205768.5342 | X50: 930754.8551 | Y50: 566039.7716 | Z50: 6159994.259 | AA50: 301932.5364 | AB50: 122.4855884 | AC50: 70144.25834 | AD50: 90894.41304 | AE50: 461089.754 | AF50: 646913.1152 | AG50: 67792.36895 | AH50: 618525.0428 | AI50: 1632223.55 | AJ50: 1407047.505 | AK50: 50329.94865 | AL50: 165503.9904 | AM50: 4820521.268 | AN50: 1208065.294 | AO50: 85560.09651 | AP50: 7751657.585 | AQ50: 247862.0099 | AR50: 375276.5799 | AS50: 592133.6689 | AT50: 3152749.034 | AU50: 971192.8694 | AV50: 48907.56179 | AW50: 5649.429744 | AX50: 195295.7934 | AY50: 833182.6509 | AZ50: 1853.264953 | BA50: 306891.4171 | BB50: 3837.510088 | BC50: 758390.3112 | BD50: 5665.043374 | BE50: 3.842606828 | BF50: 1571085.689 | BG50: 588932.5127 | BH50: 41012.81706 | BI50: 65686.60095 | BJ50: 874457.2442 | BK50: 209266.3238 | BL50: 5342543.375 | BM50: 2417656.353 | BN50: 428604.2326 | BO50: 3326.481499 | BP50: 446571.4117 | BQ50: 324205.4563 | BR50: 28967.09759 | BS50: 381195.3411 | BT50: 1870973.759 | BU50: 144782.0263 | BV50: 154933.2399 | BW50: 71151.87741 | BX50: 36879219.34 | BY50: 4198068.097 | BZ50: 579516.8036 | CA50: 72906.55022 | CB50: 150112.1039 | CC50: 2118404.578 | CD50: 3714110.078 | CE50: 751588.8973 | CF50: 33371.99858 | CG50: 473441.6572 | CH50: 270041.1541 | CI50: 289642.1595 | CJ50: 46174.92329 | CK50: 318189.0624 | CL50: 5310504.405 | CM50: 11264.02399 | CN50: 202372.737 | CO50: 259416.7018 | CP50: 304958.9315 | CQ50: 19833.03679 | CR50: 426903.1804 | CS50: 154182.9549 | CT50: 1404613.003 | CU50: 919020.849 | CV50: 845771.8824 | CW50: 1041087.998 | CX50: 48533.68711 | CY50: 122159.6814 | CZ50: 135240.45 | DA50: 1864645.11 | DB50: 104998.249 | DC50: 121552.3257 | DD50: 910242.9775 | DE50: 47109.82467 | DF50: 491492.3425 | DG50: 8016.893859 | DH50: 2160748.523 | DI50: 9682.970355 | DJ50: 507090.9935 | DK50: 121173.8883 | DL50: 896583.1212 | DM50: 211913.5892 | DN50: 774586.8008 | DO50: 868456.5083 | DP50: 14542.32122 | DQ50: 482978.2899 | DR50: 190554.2148 | DS50: 179489.0155 | DT50: 69076.23646 | DU50: 224610.6373 | DV50: 674290.0894 | DW50: 619570.3614 | DX50: 468504.6684 | DY50: 222340.9664 | DZ50: 3454764.139 | EA50: 53558.9544 | EB50: 219365.1719 | EC50: 736688.147 | ED50: 268821.6485 | EE50: 3573567.622 | EF50: 7266.116582 | EG50: 688408.1331 | EH50: 249188.8436 | EI50: 207818.6441 | EJ50: 192065.3744 | EK50: 1104667.974 | EL50: 289093.6707 | EM50: 223449.9213 | EN50: 64262.91941 | EO50: 196320.7849 | EP50: 257970.8715 | EQ50: 260351.3049 | ER50: 232252.188 | ES50: 459727.1718 | ET50: 246241.3257 | EU50: 625278.7476 | EV50: 205838.9885 | EW50: 191254.8968 | EX50: 209189.2327 | EY50: 302191.8719 | EZ50: 240468.3327 | FA50: 207630.3827 | FB50: 28603.53702 | FC50: 208019.8768 | FD50: 240852.9665 | FE50: 199451.8224 | FF50: 4586.545239 | FG50: 267111.7761 | FH50: 1915491.454 | FI50: 210597.069 | FJ50: 200196.6022 | FK50: 213439.6186 | FL50: 207439.8128 | FM50: 206810.1542 | FN50: 536101.9668 | FO50: 268290.5283 | FP50: 216065.9961 | FQ50: 55933.50059 | FR50: 469856.5691 | FS50: 467471.491 | FT50: 713800.0099 | FU50: 249909.1941 | FV50: 235813.187 | FW50: 242014.8778 | FX50: 0.01942275073 | FY50: 93136.31989 | FZ50: 157504.9908 | GA50: 209985.2236 | GB50: 307019.5808 | GC50: 220288.3639 | GD50: 57358.64654 | GE50: 72806.49742 | GF50: 926618.8742 | GG50: 930715.858 | GH50: 254731.8653 | GI50: 586294.1517 | GJ50: 6681.824261 | GK50: 103083.4732 | GL50: 2261.818741 | GM50: 703507.9876 | GN50: 252114.1125 | GO50: 209454.7707 | GP50: 887782.7592 | GQ50: 229007.2576 | GR50: 171746.3859 | GS50: 308826.8555 | GT50: 1051691.876 | GU50: 1020385.938 | GV50: 651286.2556 | GW50: 42437162.72 | GX50: 3339465.603 | GY50: 22470.56239 | GZ50: 2879300.016 | HA50: 1030106.732 | HB50: 24757313.18 | HC50: 7205831.82 | HD50: 1656474.438 | HE50: 611663.9466 | HF50: 819419.9934 | HG50: 1195911.524 | HH50: 317359.1469 | HI50: 379349.5006 | HJ50: 1136131.595 | HK50: 20359.70693 | HL50: 3287598.997 | HM50: 1124394.761 | HN50: 17276.42953 | HO50: 206876.8744 | HP50: 94899.35298 | HQ50: 114313.7132 | HR50: 188737.1515 | HS50: 120419.8949 | HT50: 99292.08319 | HU50: 187748.7254 | HV50: 152403.7013 | HW50: 218373.1653 | HX50: 4325.384168 | HY50: 96385.18063 | HZ50: 159549.4566 | IA50: 186799.9161 | IB50: 472000.523 | IC50: 235261.9007 | ID50: 228420.2742 | IE50: 169156.0859 | IF50: 269887.0052 | IG50: 126255.7632 | IH50: 237039.723 | II50: 145741.1307 | IJ50: 95998.47939 | IK50: 178165.3243 | IL50: 145939.8119 | IM50: 59119.32322 | IN50: 1255643.065 | IO50: 4762691.017 | IP50: 234017.337 | IQ50: 973346.0036 | IR50: 449780.719 | IS50: 508288.2518 | IT50: 207545.9227 | IU50: 315051.0162 | IV50: 272001.6665 | IW50: 305351.0297 | IX50: 572333.1094 | IY50: 1442332.357 | IZ50: 186390.4603 | JA50: 686836.2514 | JB50: 161188.4358 | JC50: 175271.9466 | JD50: 135550.8402 | JE50: 184994.3035 | JF50: 2007766.938 | JG50: 3258846.256 | JH50: 161177.9453 | JI50: 281510.1263 | JJ50: 594260.7533 | JK50: 579184.6988 | JL50: 315325328.5
A51: =+MATCH(B51,RUT[EMPRESA],0) -> 111 | B51: ENERGIA PACIFICO | C51: 144637166.2 | D51: 144637166.2 | F51: =IFERROR(INDEX($B$9:$B$511,MATCH(0,INDEX(COUNTIF($F$8:F50,$B$9:$B$511),0,0),0)),"") -> ENERGIA PACIFICO | H51: 144637166.2 | J51: TAMAKAYA_ENERGIA | K51: 11819339.31 | L51: 2547594.187 | M51: 31057696.36 | N51: 331050467 | O51: 42636953.68 | P51: 5451154.178 | Q51: 800206.4569 | R51: 8889695.664 | S51: 4143334.364 | T51: 24274334.09 | U51: 3330837.745 | V51: 5010311.587 | W51: 2183195.216 | X51: 9875268.609 | Y51: 6005657.405 | Z51: 65357271.69 | AA51: 3203491.104 | AB51: 1299.566776 | AC51: 744227.5361 | AD51: 964385.7768 | AE51: 4892142.275 | AF51: 6863720.071 | AG51: 719274.0917 | AH51: 6562523.854 | AI51: 17317821.02 | AJ51: 14928712.95 | AK51: 533998.5704 | AL51: 1755990.154 | AM51: 51145521.4 | AN51: 12817520.32 | AO51: 907788.91 | AP51: 82244750.49 | AQ51: 2629805.165 | AR51: 3981668.222 | AS51: 6282512.523 | AT51: 33450530.39 | AU51: 10304314.19 | AV51: 518907.1076 | AW51: 59940.20434 | AX51: 2072079.89 | AY51: 8840031.759 | AZ51: 19663.0607 | BA51: 3256104.614 | BB51: 40715.81545 | BC51: 8046488.28 | BD51: 60105.86428 | BE51: 40.76989165 | BF51: 16669150.96 | BG51: 6248548.395 | BH51: 435144.2087 | BI51: 696931.9847 | BJ51: 9277953.402 | BK51: 2220306.611 | BL51: 56684153.29 | BM51: 25651228.96 | BN51: 4547472.303 | BO51: 35293.8243 | BP51: 4738103.293 | BQ51: 3439805.817 | BR51: 307339.648 | BS51: 4044466.022 | BT51: 19850950.36 | BU51: 1536131.014 | BV51: 1643834.95 | BW51: 754918.3307 | BX51: 391286916.3 | BY51: 44541320.28 | BZ51: 6148648.13 | CA51: 773535.333 | CB51: 1592682.906 | CC51: 22476180.61 | CD51: 39406546.71 | CE51: 7974325.575 | CF51: 354075.4563 | CG51: 5023195.431 | CH51: 2865124.923 | CI51: 3073090.74 | CJ51: 489913.9317 | CK51: 3375972.14 | CL51: 56344221.21 | CM51: 119510.8056 | CN51: 2147165.954 | CO51: 2752399.945 | CP51: 3235601.025 | CQ51: 210427.6594 | CR51: 4529424.212 | CS51: 1635874.459 | CT51: 14902882.99 | CU51: 9750771.315 | CV51: 8973602.958 | CW51: 11045898.47 | CX51: 514940.3135 | CY51: 1296108.916 | CZ51: 1434895.304 | DA51: 19783803.67 | DB51: 1114026.865 | DC51: 1289664.9 | DD51: 9657638.479 | DE51: 499833.1948 | DF51: 5214712.419 | DG51: 85058.89584 | DH51: 22925448.03 | DI51: 102735.8951 | DJ51: 5380213.429 | DK51: 1285649.695 | DL51: 9512707.996 | DM51: 2248393.983 | DN51: 8218332.333 | DO51: 9214285.855 | DP51: 154293.3969 | DQ51: 5124378.691 | DR51: 2021771.947 | DS51: 1904370.663 | DT51: 732895.8703 | DU51: 2383109.112 | DV51: 7154188.578 | DW51: 6573614.64 | DX51: 4970814.194 | DY51: 2359028.002 | DZ51: 36654897.54 | EA51: 568258.1813 | EB51: 2327454.952 | EC51: 7816229.261 | ED51: 2852186.022 | EE51: 37915397.34 | EF51: 77093.18152 | EG51: 7303980.409 | EH51: 2643882.814 | EI51: 2204946.792 | EJ51: 2037805.285 | EK51: 11720479.25 | EL51: 3067271.297 | EM51: 2370793.966 | EN51: 681826.7854 | EO51: 2082955.006 | EP51: 2737059.748 | EQ51: 2762316.044 | ER51: 2464185.633 | ES51: 4877685.336 | ET51: 2612609.776 | EU51: 6634180.369 | EV51: 2183942.733 | EW51: 2029206.153 | EX51: 2219488.679 | EY51: 3206242.643 | EZ51: 2551358.572 | FA51: 2202949.347 | FB51: 303482.2861 | FC51: 2207081.863 | FD51: 2555439.52 | FE51: 2116175.178 | FF51: 48663.04588 | FG51: 2834044.349 | FH51: 20323281.18 | FI51: 2234425.76 | FJ51: 2124077.259 | FK51: 2264585.088 | FL51: 2200927.409 | FM51: 2194246.759 | FN51: 5688018.597 | FO51: 2846550.859 | FP51: 2292450.84 | FQ51: 593452.0132 | FR51: 4985157.802 | FS51: 4959852.227 | FT51: 7573387.12 | FU51: 2651525.701 | FV51: 2501967.677 | FW51: 2567767.348 | FX51: 0.2060745421 | FY51: 988172.3111 | FZ51: 1671121.116 | GA51: 2227934.107 | GB51: 3257464.425 | GC51: 2337249.978 | GD51: 608572.7499 | GE51: 772473.7772 | GF51: 9831386.032 | GG51: 9874854.853 | GH51: 2702694.033 | GI51: 6220555.499 | GJ51: 70893.86536 | GK51: 1093711.176 | GL51: 23997.79866 | GM51: 7464189.21 | GN51: 2674919.79 | GO51: 2222306.025 | GP51: 9419336.538 | GQ51: 2429757.062 | GR51: 1822221.699 | GS51: 3276639.531 | GT51: 11158405.16 | GU51: 10826250.5 | GV51: 6910118.9 | GW51: 450256454.4 | GX51: 35431585.09 | GY51: 238411.6915 | GZ51: 30549248.18 | HA51: 10929387.71 | HB51: 262674018.1 | HC51: 76453562.81 | HD51: 17575121.89 | HE51: 6489727.922 | HF51: 8694010.56 | HG51: 12688569.36 | HH51: 3367166.772 | HI51: 4024881.734 | HJ51: 12054306.91 | HK51: 216015.6068 | HL51: 34881282.64 | HM51: 11929779.6 | HN51: 183302.1674 | HO51: 2194954.657 | HP51: 1006878.016 | HQ51: 1212863.535 | HR51: 2002492.985 | HS51: 1277649.858 | HT51: 1053484.693 | HU51: 1992005.826 | HV51: 1616996.655 | HW51: 2316929.805 | HX51: 45892.13826 | HY51: 1022642.583 | HZ51: 1692812.809 | IA51: 1981939.001 | IB51: 5007905.06 | IC51: 2496118.553 | ID51: 2423529.194 | IE51: 1794738.728 | IF51: 2863489.409 | IG51: 1339568.167 | IH51: 2514981.171 | II51: 1546307.071 | IJ51: 1018539.699 | IK51: 1890326.357 | IL51: 1548415.069 | IM51: 627253.453 | IN51: 13322318.41 | IO51: 50531944.94 | IP51: 2482913.787 | IQ51: 10327158.85 | IR51: 4772153.904 | IS51: 5392916.287 | IT51: 2202053.23 | IU51: 3342677.606 | IV51: 2885925.874 | IW51: 3239761.171 | IX51: 6072429.446 | IY51: 15303083.7 | IZ51: 1977594.693 | JA51: 7287302.812 | JB51: 1710202.307 | JC51: 1859627.745 | JD51: 1438188.531 | JE51: 1962781.529 | JF51: 21302320.06 | JG51: 34576217.31 | JH51: 1710091.003 | JI51: 2986810.22 | JJ51: 6305080.796 | JK51: 6145124.512 | JL51: 3345588047
A52: =+MATCH(B52,RUT[EMPRESA],0) -> 78 | B52: DONGUIL | C52: 5173656.982 | D52: 5173656.982 | F52: =IFERROR(INDEX($B$9:$B$511,MATCH(0,INDEX(COUNTIF($F$8:F51,$B$9:$B$511),0,0),0)),"") -> DONGUIL | H52: 5173656.982 | J52: POZO_ALMONTE_SOLAR_2 | K52: 8796.232946 | L52: 1895.980082 | M52: 23113.87505 | N52: 246375.6178 | O52: 31731.43328 | P52: 4056.878369 | Q52: 595.5326449 | R52: 6615.922585 | S52: 3083.567811 | T52: 18065.53579 | U52: 2478.888536 | V52: 3728.792845 | W52: 1624.785716 | X52: 7349.409372 | Y52: 4469.552836 | Z52: 48640.4334 | AA52: 2384.114142 | AB52: 0.9671684508 | AC52: 553.871803 | AD52: 717.7187929 | AE52: 3640.848438 | AF52: 5108.143445 | AG52: 535.3008571 | AH52: 4883.98607 | AI52: 12888.33359 | AJ52: 11110.30264 | AK52: 397.4144151 | AL52: 1306.849566 | AM52: 38063.7114 | AN52: 9539.102958 | AO52: 675.5980609 | AP52: 61208.49609 | AQ52: 1957.163445 | AR52: 2963.25203 | AS52: 4675.594988 | AT52: 24894.67895 | AU52: 7668.715278 | AV52: 386.1829901 | AW52: 44.60892326 | AX52: 1542.091053 | AY52: 6578.961528 | AZ52: 14.63371665 | BA52: 2423.270365 | BB52: 30.30167659 | BC52: 5988.38763 | BD52: 44.73221132 | BE52: 0.03034192138 | BF52: 12405.57793 | BG52: 4650.318078 | BH52: 323.844652 | BI52: 518.6733306 | BJ52: 6904.873213 | BK52: 1652.404898 | BL52: 42185.69276 | BM52: 19090.25364 | BN52: 3384.336861 | BO52: 26.26650204 | BP52: 3526.20897 | BQ52: 2559.985162 | BR52: 228.7294633 | BS52: 3009.987643 | BT52: 14773.54859 | BU52: 1143.225174 | BV52: 1223.381 | BW52: 561.8281461 | BX52: 291205.0137 | BY52: 33148.70812 | BZ52: 4575.969929 | CA52: 575.6833613 | CB52: 1185.312434 | CC52: 16727.30728 | CD52: 29327.28771 | CE52: 5934.682431 | CF52: 263.5113616 | CG52: 3738.381308 | CH52: 2132.293996 | CI52: 2287.067094 | CJ52: 364.6055803 | CK52: 2512.478624 | CL52: 41932.70723 | CM52: 88.94277912 | CN52: 1597.971884 | CO52: 2048.401391 | CP52: 2408.011107 | CQ52: 156.6052604 | CR52: 3370.905043 | CS52: 1217.456614 | CT52: 11091.07937 | CU52: 7256.75553 | CV52: 6678.368386 | CW52: 8220.619907 | CX52: 383.2308078 | CY52: 964.5950297 | CZ52: 1067.883155 | DA52: 14723.57643 | DB52: 829.0852435 | DC52: 959.7992394 | DD52: 7187.443862 | DE52: 371.9877313 | DF52: 3880.912798 | DG52: 63.30284988 | DH52: 17061.66275 | DI52: 76.45849247 | DJ52: 4004.082579 | DK52: 956.8110285 | DL52: 7079.583155 | DM52: 1673.308187 | DN52: 6116.278054 | DO52: 6857.490312 | DP52: 114.8288094 | DQ52: 3813.684292 | DR52: 1504.650687 | DS52: 1417.277864 | DT52: 545.4385082 | DU52: 1773.566384 | DV52: 5324.317005 | DW52: 4892.240095 | DX52: 3699.397948 | DY52: 1755.644651 | DZ52: 27279.44507 | EA52: 422.9112309 | EB52: 1732.147237 | EC52: 5817.023401 | ED52: 2122.664558 | EE52: 28217.53895 | EF52: 57.37457615 | EG52: 5435.795642 | EH52: 1967.640365 | EI52: 1640.973756 | EJ52: 1516.583078 | EK52: 8722.658942 | EL52: 2282.736127 | EM52: 1764.40116 | EN52: 507.4316826 | EO52: 1550.184572 | EP52: 2036.984852 | EQ52: 2055.781187 | ER52: 1833.905456 | ES52: 3630.08924 | ET52: 1944.366228 | EU52: 4937.31455 | EV52: 1625.342036 | EW52: 1510.183399 | EX52: 1651.796173 | EY52: 2386.161902 | EZ52: 1898.781627 | FA52: 1639.48721 | FB52: 225.8587231 | FC52: 1642.562726 | FD52: 1901.818766 | FE52: 1574.907813 | FF52: 36.21619418 | FG52: 2109.163095 | FH52: 15125.0684 | FI52: 1662.912703 | FJ52: 1580.788729 | FK52: 1685.357992 | FL52: 1637.982435 | FM52: 1633.010537 | FN52: 4233.158493 | FO52: 2118.470736 | FP52: 1706.096346 | FQ52: 441.6610788 | FR52: 3710.072802 | FS52: 3691.239792 | FT52: 5636.294513 | FU52: 1973.328383 | FV52: 1862.023751 | FW52: 1910.993428 | FX52: 0.0001533655671 | FY52: 735.4212966 | FZ52: 1243.688013 | GA52: 1658.081461 | GB52: 2424.282369 | GC52: 1739.436928 | GD52: 452.9142901 | GE52: 574.8933262 | GF52: 7316.750916 | GG52: 7349.101445 | GH52: 2011.409071 | GI52: 4629.4851 | GJ52: 52.76089787 | GK52: 813.9658256 | GL52: 17.85973156 | GM52: 5555.026836 | GN52: 1990.738819 | GO52: 1653.892909 | GP52: 7010.093899 | GQ52: 1808.282897 | GR52: 1356.140654 | GS52: 2438.552938 | GT52: 8304.350056 | GU52: 8057.152678 | GV52: 5142.674556 | GW52: 335091.544 | GX52: 26369.02689 | GY52: 177.4316416 | GZ52: 22735.47584 | HA52: 8133.909833 | HB52: 195488.2411 | HC52: 56898.55672 | HD52: 13079.823 | HE52: 4829.809608 | HF52: 6470.289085 | HG52: 9443.134586 | HH52: 2505.92546 | HI52: 2995.412551 | HJ52: 8971.101413 | HK52: 160.7639435 | HL52: 25959.47875 | HM52: 8878.425236 | HN52: 136.4178252 | HO52: 1633.537372 | HP52: 749.3425261 | HQ52: 902.6418406 | HR52: 1490.302825 | HS52: 950.8573599 | HT52: 784.0283216 | HU52: 1482.498033 | HV52: 1203.407304 | HW52: 1724.314173 | HX52: 34.15401893 | HY52: 761.074891 | HZ52: 1259.831486 | IA52: 1475.006062 | IB52: 3727.001851 | IC52: 1857.670694 | ID52: 1803.647969 | IE52: 1335.687175 | IF52: 2131.076808 | IG52: 996.9384356 | IH52: 1871.708702 | II52: 1150.798437 | IJ52: 758.0214278 | IK52: 1406.825758 | IL52: 1152.367259 | IM52: 466.8169129 | IN52: 9914.785681 | IO52: 37607.07323 | IP52: 1847.843394 | IQ52: 7685.716816 | IR52: 3551.550243 | IS52: 4013.536347 | IT52: 1638.820298 | IU52: 2487.700041 | IV52: 2147.774557 | IW52: 2411.107186 | IX52: 4519.246174 | IY52: 11388.91824 | IZ52: 1471.772926 | JA52: 5423.383779 | JB52: 1272.773163 | JC52: 1383.979122 | JD52: 1070.334052 | JE52: 1460.748617 | JF52: 15853.69238 | JG52: 25732.44188 | JH52: 1272.690328 | JI52: 2222.855083 | JJ52: 4692.390833 | JK52: 4573.347569 | JL52: 2489866.061
A53: =+MATCH(B53,RUT[EMPRESA],0) -> 245 | B53: PEHUI | C53: 17012949.52 | D53: 17012949.52 | F53: =IFERROR(INDEX($B$9:$B$511,MATCH(0,INDEX(COUNTIF($F$8:F52,$B$9:$B$511),0,0),0)),"") -> PEHUI | H53: 17012949.52 | J53: INERSA | K53: 390.8634442 | L53: 84.24848565 | M53: 1027.072483 | N53: 10947.77994 | O53: 1409.996458 | P53: 180.268697 | Q53: 26.4626849 | R53: 293.9806511 | S53: 137.0193289 | T53: 802.7479016 | U53: 110.1502105 | V53: 165.6901111 | W53: 72.19787664 | X53: 326.5733727 | Y53: 198.6060199 | Z53: 2161.353325 | AA53: 105.9388798 | AB53: 0.04297644164 | AC53: 24.61147197 | AD53: 31.89206574 | AE53: 161.782273 | AF53: 226.9819993 | AG53: 23.78626601 | AH53: 217.0214941 | AI53: 572.6972542 | AJ53: 493.6898764 | AK53: 17.65923754 | AL53: 58.0702814 | AM53: 1691.373276 | AN53: 423.8731125 | AO53: 30.02041744 | AP53: 2719.819239 | AQ53: 86.96718806 | AR53: 131.6730584 | AS53: 207.7615693 | AT53: 1106.203078 | AU53: 340.7618334 | AV53: 17.16016555 | AW53: 1.982211874 | AX53: 68.52331263 | AY53: 292.3382746 | AZ53: 0.6502539126 | BA53: 107.6787992 | BB53: 1.34646476 | BC53: 266.0959332 | BD53: 1.987690218 | BE53: 0.00134825305 | BF53: 551.2458511 | BG53: 206.6383817 | BH53: 14.39014142 | BI53: 23.04741651 | BJ53: 306.8202653 | BK53: 73.42514388 | BL53: 1874.534846 | BM53: 848.2815694 | BN53: 150.3840985 | BO53: 1.167160479 | BP53: 156.6882314 | BQ53: 113.7537653 | BR53: 10.16366738 | BS53: 133.7497704 | BT53: 656.4673901 | BU53: 50.79957883 | BV53: 54.3613288 | BW53: 24.96501463 | BX53: 12939.78858 | BY53: 1472.973522 | BZ53: 203.3346977 | CA53: 25.58067559 | CB53: 52.66973981 | CC53: 743.2832866 | CD53: 1303.167476 | CE53: 263.7095254 | CF53: 11.70921223 | CG53: 166.1161776 | CH53: 94.7491705 | CI53: 101.626563 | CJ53: 16.2013664 | CK53: 111.6427969 | CL53: 1863.293352 | CM53: 3.952201039 | CN53: 71.00639539 | CO53: 91.02137559 | CP53: 107.0007492 | CQ53: 6.95880519 | CR53: 149.7872514 | CS53: 54.09807677 | CT53: 492.8356841 | CU53: 322.4562694 | CV53: 296.7554503 | CW53: 365.2858934 | CX53: 17.02898438 | CY53: 42.86209084 | CZ53: 47.45173195 | DA53: 654.2468611 | DB53: 36.84066984 | DC53: 42.64898835 | DD53: 319.3763831 | DE53: 16.52939466 | DF53: 172.4496102 | DG53: 2.812882524 | DH53: 758.14048 | DI53: 3.39745774 | DJ53: 177.9226991 | DK53: 42.51620624 | DL53: 314.5835578 | DM53: 74.35398825 | DN53: 271.7787854 | DO53: 304.7147908 | DP53: 5.102455134 | DQ53: 169.4622899 | DR53: 66.85963791 | DS53: 62.97719838 | DT53: 24.2367358 | DU53: 78.80899356 | DV53: 236.5877411 | DW53: 217.3882644 | DX53: 164.3839394 | DY53: 78.01263555 | DZ53: 1212.170928 | EA53: 18.79219676 | EB53: 76.96852041 | EC53: 258.4813085 | ED53: 94.32128335 | EE53: 1253.855432 | EF53: 2.549457771 | EG53: 241.5413302 | EH53: 87.43273339 | EI53: 72.9171974 | EJ53: 67.38985756 | EK53: 387.5941596 | EL53: 101.4341151 | EM53: 78.40173387 | EN53: 22.54789026 | EO53: 68.88295078 | EP53: 90.51407801 | EQ53: 91.34929919 | ER53: 81.49017965 | ES53: 161.3041846 | ET53: 86.39853962 | EU53: 219.3911623 | EV53: 72.22259689 | EW53: 67.10548578 | EX53: 73.39809499 | EY53: 106.0298727 | EZ53: 84.3729732 | FA53: 72.85114225 | FB53: 10.03610511 | FC53: 72.98780381 | FD53: 84.50792942 | FE53: 69.98153594 | FF53: 1.609278253 | FG53: 93.72134148 | FH53: 672.0872859 | FI53: 73.8920616 | FJ53: 70.24285634 | FK53: 74.88942521 | FL53: 72.78427711 | FM53: 72.5633492 | FN53: 188.1017611 | FO53: 94.13492952 | FP53: 75.81094065 | FQ53: 19.6253523 | FR53: 164.8582799 | FS53: 164.0214291 | FT53: 250.4505621 | FU53: 87.68548232 | FV53: 82.73962512 | FW53: 84.9156085 | FX53: 6.814848375e-06 | FY53: 32.67868219 | FZ53: 55.26367743 | GA53: 73.6773838 | GB53: 107.7237679 | GC53: 77.29244017 | GD53: 20.12539236 | GE53: 25.54557012 | GF53: 325.1221837 | GG53: 326.5596898 | GH53: 89.37760995 | GI53: 205.7126616 | GJ53: 2.344447491 | GK53: 36.16883364 | GL53: 0.7936029243 | GM53: 246.8394067 | GN53: 88.45912065 | GO53: 73.49126413 | GP53: 311.4957804 | GQ53: 80.35163296 | GR53: 60.26054677 | GS53: 108.3578852 | GT53: 369.0064696 | GU53: 358.0221745 | GV53: 228.5164003 | GW53: 14889.90069 | GX53: 1171.716203 | GY53: 7.884232144 | GZ53: 1010.258192 | HA53: 361.4329034 | HB53: 8686.582959 | HC53: 2528.305695 | HD53: 581.2061481 | HE53: 214.6141456 | HF53: 287.5093795 | HG53: 419.608727 | HH53: 111.351605 | HI53: 133.1021215 | HJ53: 398.6337809 | HK53: 7.143597612 | HL53: 1153.5178 | HM53: 394.5156851 | HN53: 6.061770003 | HO53: 72.58675928 | HP53: 33.29727651 | HQ53: 40.10918093 | HR53: 66.22208606 | HS53: 42.25165306 | HT53: 34.838551 | HU53: 65.87527761 | HV53: 53.47379117 | HW53: 76.62045566 | HX53: 1.517644832 | HY53: 33.81860792 | HZ53: 55.98101786 | IA53: 65.54236948 | IB53: 165.6105277 | IC53: 82.54619564 | ID53: 80.14567847 | IE53: 59.35168985 | IF53: 94.69508436 | IG53: 44.2992805 | IH53: 83.16997905 | II53: 51.1360992 | IJ53: 33.6829263 | IK53: 62.5127557 | IL53: 51.20581033 | IM53: 20.74315989 | IN53: 440.5666953 | IO53: 1671.082412 | IP53: 82.10951638 | IQ53: 341.5173023 | IR53: 157.814279 | IS53: 178.3427804 | IT53: 72.82150781 | IU53: 110.5417526 | IV53: 95.43705425 | IW53: 107.1383244 | IX53: 200.8141594 | IY53: 506.0702502 | IZ53: 65.398704 | JA53: 240.9898051 | JB53: 56.55608544 | JC53: 61.49755807 | JD53: 47.56063836 | JE53: 64.90883532 | JF53: 704.4639272 | JG53: 1143.429343 | JH53: 56.55240467 | JI53: 98.7732816 | JJ53: 208.5078981 | JK53: 203.2181723 | JL53: 110638.0004
A54: =+MATCH(B54,RUT[EMPRESA],0) -> 61 | B54: COMASA | C54: 495524517.4 | D54: 495524517.4 | F54: =IFERROR(INDEX($B$9:$B$511,MATCH(0,INDEX(COUNTIF($F$8:F53,$B$9:$B$511),0,0),0)),"") -> COMASA | H54: 495524517.4 | J54: HORNITOS | K54: 6065707.622 | L54: 1307430.227 | M54: 15938869.39 | N54: 169895735.1 | O54: 21881366.47 | P54: 2797542.788 | Q54: 410667.4898 | R54: 4562208.879 | S54: 2126367.149 | T54: 12457634.85 | U54: 1709392.325 | V54: 2571301.524 | W54: 1120419.976 | X54: 5068006.807 | Y54: 3082114.909 | Z54: 33541477.29 | AA54: 1644037.784 | AB54: 666.940164 | AC54: 381939.0002 | AD54: 494924.6319 | AE54: 2510656.806 | AF54: 3522474.316 | AG54: 369132.8446 | AH54: 3367899.839 | AI54: 8887538.989 | AJ54: 7661444.144 | AK54: 274049.0914 | AL54: 901177.5179 | AM54: 26247979.76 | AN54: 6577976.035 | AO54: 465879.0112 | AP54: 42208163.83 | AQ54: 1349621.059 | AR54: 2043399.775 | AS54: 3224197.487 | AT54: 17166876.41 | AU54: 5288193.82 | AV54: 266304.1237 | AW54: 30761.42793 | AX54: 1063395.377 | AY54: 4536721.268 | AZ54: 10091.1205 | BA54: 1671039.138 | BB54: 20895.43465 | BC54: 4129473.232 | BD54: 30846.44493 | BE54: 20.92318665 | BF54: 8554640.27 | BG54: 3206767.031 | BH54: 223316.8432 | BI54: 357666.8324 | BJ54: 4761463.496 | BK54: 1139465.615 | BL54: 29090416.28 | BM54: 13164259.94 | BN54: 2333771.515 | BO54: 18112.85838 | BP54: 2431603.705 | BQ54: 1765314.949 | BR54: 157727.2973 | BS54: 2075627.726 | BT54: 10187545.83 | BU54: 788345.3852 | BV54: 843619.2519 | BW54: 387425.5364 | BX54: 200809196.6 | BY54: 22858691.07 | BZ54: 3155498.023 | CA54: 396979.8178 | CB54: 817367.9246 | CC54: 11534819.04 | CD54: 20223515.41 | CE54: 4092439.192 | CF54: 181712.2039 | CG54: 2577913.538 | CH54: 1470387.61 | CI54: 1577116.067 | CJ54: 251424.7702 | CK54: 1732555.383 | CL54: 28915962.48 | CM54: 61333.17484 | CN54: 1101929.689 | CO54: 1412536.935 | CP54: 1660516.657 | CQ54: 107991.8788 | CR54: 2324509.2 | CS54: 839533.9126 | CT54: 7648188.157 | CU54: 5004114.556 | CV54: 4605270.264 | CW54: 5668776.297 | CX54: 264268.3573 | CY54: 665165.5839 | CZ54: 736391.0246 | DA54: 10153086.02 | DB54: 571720.7254 | DC54: 661858.5021 | DD54: 4956318.606 | DE54: 256515.355 | DF54: 2676200.424 | DG54: 43652.38862 | DH54: 11765383.94 | DI54: 52724.2586 | DJ54: 2761135.86 | DK54: 659797.8912 | DL54: 4881940.004 | DM54: 1153880.108 | DN54: 4217663.929 | DO54: 4728789.188 | DP54: 79183.66747 | DQ54: 2629840.981 | DR54: 1037577.244 | DS54: 977326.6798 | DT54: 376123.5675 | DU54: 1223016.171 | DV54: 3671543.312 | DW54: 3373591.652 | DX54: 2551031.386 | DY54: 1210657.699 | DZ54: 18811363.78 | EA54: 291631.1894 | EB54: 1194454.349 | EC54: 4011303.861 | ED54: 1463747.341 | EE54: 19458254.7 | EF54: 39564.36874 | EG54: 3748416.767 | EH54: 1356845.735 | EI54: 1131582.926 | EJ54: 1045805.584 | EK54: 6014972.449 | EL54: 1574129.518 | EM54: 1216696.014 | EN54: 349914.8151 | EO54: 1068976.508 | EP54: 1404664.317 | EQ54: 1417625.896 | ER54: 1264624.797 | ES54: 2503237.478 | ET54: 1340796.352 | EU54: 3404674.101 | EV54: 1120803.603 | EW54: 1041392.493 | EX54: 1139045.85 | EY54: 1645449.879 | EZ54: 1309362.117 | FA54: 1130557.834 | FB54: 155747.6918 | FC54: 1132678.649 | FD54: 1311456.467 | FE54: 1086025.163 | FF54: 24973.96856 | FG54: 1454437 | FH54: 10429946.91 | FI54: 1146711.589 | FJ54: 1090080.527 | FK54: 1162189.414 | FL54: 1129520.171 | FM54: 1126091.649 | FN54: 2919102.062 | FO54: 1460855.365 | FP54: 1176490.171 | FQ54: 304560.7124 | FR54: 2558392.554 | FS54: 2545405.684 | FT54: 3886676.808 | FU54: 1360768.08 | FV54: 1284014.615 | FW54: 1317783.132 | FX54: 0.1057578506 | FY54: 507131.9269 | FZ54: 857622.5645 | GA54: 1143380.06 | GB54: 1671736.996 | GC54: 1199481.175 | GD54: 312320.7035 | GE54: 396435.0253 | GF54: 5045486.184 | GG54: 5067794.466 | GH54: 1387027.766 | GI54: 3192401.023 | GJ54: 36382.86779 | GK54: 561294.675 | GL54: 12315.71634 | GM54: 3830636.231 | GN54: 1372773.971 | GO54: 1140491.718 | GP54: 4834021.592 | GQ54: 1246955.988 | GR54: 935167.6737 | GS54: 1681577.697 | GT54: 5726514.945 | GU54: 5556052.541 | GV54: 3546286.284 | GW54: 231072476.7 | GX54: 18183557.48 | GY54: 122353.3378 | GZ54: 15677932.81 | HA54: 5608982.751 | HB54: 134804810.3 | HC54: 39236115.19 | HD54: 9019586.288 | HE54: 3330540.827 | HF54: 4461782.908 | HG54: 6511798.151 | HH54: 1728036.451 | HI54: 2065577.032 | HJ54: 6186293.445 | HK54: 110859.6241 | HL54: 17901141.21 | HM54: 6122385.793 | HN54: 94071.02418 | HO54: 1126454.944 | HP54: 516731.7304 | HQ54: 622443.8945 | HR54: 1027683.244 | HS54: 655692.3595 | HT54: 540650.3665 | HU54: 1022301.214 | HV54: 829845.7874 | HW54: 1189052.823 | HX54: 23551.93345 | HY54: 524822.1364 | HZ54: 868754.7831 | IA54: 1017134.9 | IB54: 2570066.49 | IC54: 1281012.833 | ID54: 1243759.835 | IE54: 921063.3606 | IF54: 1469548.262 | IG54: 687468.9545 | IH54: 1290693.165 | II54: 793567.7569 | IJ54: 522716.5288 | IK54: 970119.1153 | IL54: 794649.5857 | IM54: 321907.6762 | IN54: 6837039.383 | IO54: 25933091.15 | IP54: 1274236.122 | IQ54: 5299917.744 | IR54: 2449078.544 | IS54: 2767654.991 | IT54: 1130097.945 | IU54: 1715468.564 | IV54: 1481062.698 | IW54: 1662651.652 | IX54: 3116382.448 | IY54: 7853571.93 | IZ54: 1014905.393 | JA54: 3739857.792 | JB54: 877679.1066 | JC54: 954364.5286 | JD54: 738081.1147 | JE54: 1007303.249 | JF54: 10932391.54 | JG54: 17744581.1 | JH54: 877621.9857 | JI54: 1532836.738 | JJ54: 3235779.568 | JK54: 3153689.696 | JL54: 1716962208
A55: =+MATCH(B55,RUT[EMPRESA],0) -> 44 | B55: CHACAYES | C55: -316949184.5 | D55: -316949184.5 | F55: =IFERROR(INDEX($B$9:$B$511,MATCH(0,INDEX(COUNTIF($F$8:F54,$B$9:$B$511),0,0),0)),"") -> CHACAYES | G55: -316949184.5 | J55: ON GROUP | K55: 151989.0378 | L55: 32760.40893 | M55: 399381.8319 | N55: 4257094.293 | O55: 548283.5709 | P55: 70098.30723 | Q55: 10290.13604 | R55: 114315.7206 | S55: 53280.59264 | T55: 312152.1926 | U55: 42832.41309 | V55: 64429.35743 | W55: 28074.4745 | X55: 126989.5494 | Y55: 77228.85909 | Z55: 840452.1247 | AA55: 41194.81789 | AB55: 16.71158587 | AC55: 9570.283425 | AD55: 12401.37561 | AE55: 62909.77672 | AF55: 88262.98845 | AG55: 9249.398314 | AH55: 84389.80046 | AI55: 222695.9463 | AJ55: 191973.5661 | AK55: 6866.875276 | AL55: 22580.89448 | AM55: 657698.2333 | AN55: 164824.9982 | AO55: 11673.57661 | AP55: 1057614.149 | AQ55: 33817.58879 | AR55: 51201.67091 | AS55: 80789.03634 | AT55: 430152.1255 | AU55: 132506.7973 | AV55: 6672.808851 | AW55: 770.792152 | AX55: 26645.60348 | AY55: 113677.075 | AZ55: 252.8542076 | BA55: 41871.39349 | BB55: 523.5789793 | BC55: 103472.6205 | BD55: 772.9224313 | BE55: 0.5242743641 | BF55: 214354.4701 | BG55: 80352.27969 | BH55: 5595.672299 | BI55: 8962.093308 | BJ55: 119308.4633 | BK55: 28551.70298 | BL55: 728921.4473 | BM55: 329858.1675 | BN55: 58477.54442 | BO55: 453.8556897 | BP55: 60928.93532 | BQ55: 44233.67183 | BR55: 3952.188539 | BS55: 52009.20989 | BT55: 255270.3468 | BU55: 19753.64854 | BV55: 21138.6513 | BW55: 9707.760109 | BX55: 5031695.964 | BY55: 572772.4903 | BZ55: 79067.62708 | CA55: 9947.162685 | CB55: 20480.86919 | CC55: 289029.1051 | CD55: 506742.6324 | CE55: 102544.6549 | CF55: 4553.180723 | CG55: 64595.03531 | CH55: 36843.64825 | CI55: 39517.95377 | CJ55: 6299.975415 | CK55: 43412.81214 | CL55: 724550.1412 | CM55: 1536.831448 | CN55: 27611.16157 | CO55: 35394.07815 | CP55: 41607.73064 | CQ55: 2705.963221 | CR55: 58245.45769 | CS55: 21036.28455 | CT55: 191641.4096 | CU55: 125388.595 | CV55: 115394.714 | CW55: 142043.0902 | CX55: 6621.798452 | CY55: 16667.12004 | CZ55: 18451.82297 | DA55: 254406.8839 | DB55: 14325.66294 | DC55: 16584.25416 | DD55: 124190.9671 | DE55: 6427.530704 | DF55: 67057.81956 | DG55: 1093.802233 | DH55: 294806.3927 | DI55: 1321.116979 | DJ55: 69186.05521 | DK55: 16532.62123 | DL55: 122327.2551 | DM55: 28912.88836 | DN55: 105682.4236 | DO55: 118489.7399 | DP55: 1984.113013 | DQ55: 65896.1864 | DR55: 25998.67596 | DS55: 24488.97159 | DT55: 9424.565552 | DU55: 30645.23755 | DV55: 91998.22507 | DW55: 84532.42076 | DX55: 63921.44657 | DY55: 30335.57009 | DZ55: 471358.2088 | EA55: 7307.431651 | EB55: 29929.56115 | EC55: 100511.6389 | ED55: 36677.26237 | EE55: 487567.4187 | EF55: 991.3683134 | EG55: 93924.45086 | EH55: 33998.61822 | EI55: 28354.18567 | EJ55: 26204.85429 | EK55: 150717.7615 | EL55: 39443.11952 | EM55: 30486.87275 | EN55: 8767.850242 | EO55: 26785.45042 | EP55: 35196.81317 | EQ55: 35521.59274 | ER55: 31687.82902 | ES55: 62723.86986 | ET55: 33596.46724 | EU55: 85311.25677 | EV55: 28084.08709 | EW55: 26094.27503 | EX55: 28541.1849 | EY55: 41230.20089 | EZ55: 32808.81648 | FA55: 28328.49982 | FB55: 3902.585368 | FC55: 28381.64129 | FD55: 32861.29482 | FE55: 27212.64028 | FF55: 625.7752083 | FG55: 36443.97223 | FH55: 261344.2147 | FI55: 28733.26607 | FJ55: 27314.25592 | FK55: 29121.09547 | FL55: 28302.499 | FM55: 28216.59018 | FN55: 73144.23003 | FO55: 36604.79783 | FP55: 29479.43096 | FQ55: 7631.40799 | FR55: 64105.89607 | FS55: 63780.48279 | FT55: 97388.84643 | FU55: 34096.90079 | FV55: 32173.68161 | FW55: 33019.82269 | FX55: 0.002649984956 | FY55: 12707.25501 | FZ55: 21489.5337 | GA55: 28649.78763 | GB55: 41888.87979 | GC55: 30055.51883 | GD55: 7825.850857 | GE55: 9933.511765 | GF55: 126425.2479 | GG55: 126984.2288 | GH55: 34754.89236 | GI55: 79992.3092 | GJ55: 911.6491283 | GK55: 14064.41637 | GL55: 308.5961264 | GM55: 95984.63214 | GN55: 34397.7336 | GO55: 28577.41414 | GP55: 121126.5587 | GQ55: 31245.09993 | GR55: 23432.58919 | GS55: 42135.45921 | GT55: 143489.8532 | GU55: 139218.5598 | GV55: 88859.6473 | GW55: 5790005.977 | GX55: 455627.2041 | GY55: 3065.819725 | GZ55: 392843.5181 | HA55: 140544.8373 | HB55: 3377817.508 | HC55: 983143.2316 | HD55: 226004.6686 | HE55: 83453.69198 | HF55: 111799.3371 | HG55: 163166.7724 | HH55: 43299.58082 | HI55: 51757.36865 | HJ55: 155010.5687 | HK55: 2777.8206 | HL55: 448550.6716 | HM55: 153409.2283 | HN55: 2357.146987 | HO55: 28225.6933 | HP55: 12947.79824 | HQ55: 15596.63843 | HR55: 25750.76101 | HS55: 16429.74851 | HT55: 13547.12988 | HU55: 25615.90295 | HV55: 20793.52824 | HW55: 29794.21458 | HX55: 590.1431334 | HY55: 13150.52035 | HZ55: 21768.4748 | IA55: 25486.45011 | IB55: 64398.41106 | IC55: 32098.46567 | ID55: 31165.01359 | IE55: 23079.17602 | IF55: 36822.61661 | IG55: 17225.97781 | IH55: 32341.0267 | II55: 19884.50603 | IJ55: 13097.75993 | IK55: 24308.37093 | IL55: 19911.61352 | IM55: 8066.072583 | IN55: 171316.3742 | IO55: 649808.038 | IP55: 31928.66094 | IQ55: 132800.5648 | IR55: 61366.80409 | IS55: 69349.40572 | IT55: 28316.97633 | IU55: 42984.66603 | IV55: 37111.13499 | IW55: 41661.22742 | IX55: 78087.50423 | IY55: 196787.7311 | IZ55: 25430.58513 | JA55: 93709.98778 | JB55: 21992.09246 | JC55: 23913.60669 | JD55: 18494.17173 | JE55: 25240.09745 | JF55: 273934.0197 | JG55: 444627.7292 | JH55: 21990.66118 | JI55: 38408.44225 | JJ55: 81079.2497 | JK55: 79022.31563 | JL55: 43022092.41
A56: =+MATCH(B56,RUT[EMPRESA],0) -> 109 | B56: ENERBOSCH | C56: 124182829.7 | D56: 124182829.7 | F56: =IFERROR(INDEX($B$9:$B$511,MATCH(0,INDEX(COUNTIF($F$8:F55,$B$9:$B$511),0,0),0)),"") -> ENERBOSCH | H56: 124182829.7 | J56: EL_ARREBOL | K56: 0.000579430106 | L56: 0.0001248930021 | M56: 0.001522569395 | N56: 0.01622938492 | O56: 0.002090229745 | P56: 0.0002672368362 | Q56: 3.922924116e-05 | R56: 0.0004358075495 | S56: 0.0002031224087 | T56: 0.001190022522 | U56: 0.0001632906559 | V56: 0.0002456250132 | W56: 0.0001070287435 | X56: 0.0004841241788 | Y56: 0.0002944207469 | Z56: 0.003204068339 | AA56: 0.0001570476269 | AB56: 6.37098314e-08 | AC56: 3.648493616e-05 | AD56: 4.727795169e-05 | AE56: 0.0002398318927 | AF56: 0.000336486325 | AG56: 3.5261621e-05 | AH56: 0.0003217205119 | AI56: 0.0008489871222 | AJ56: 0.0007318637279 | AK56: 2.617869241e-05 | AL56: 8.608548536e-05 | AM56: 0.002507352916 | AN56: 0.0006283648321 | AO56: 4.450335256e-05 | AP56: 0.004031958407 | AQ56: 0.0001289233049 | AR56: 0.000195196904 | AS56: 0.0003079932644 | AT56: 0.00163987545 | AU56: 0.0005051576662 | AV56: 2.543885005e-05 | AW56: 2.938502572e-06 | AX56: 0.0001015814369 | AY56: 0.0004333728312 | AZ56: 9.639599177e-07 | BA56: 0.0001596269463 | BB56: 1.996048057e-06 | BC56: 0.0003944702352 | BD56: 2.946623868e-06 | BE56: 1.998699083e-09 | BF56: 0.0008171867864 | BG56: 0.0003063282104 | BH56: 2.133246609e-05 | BI56: 3.416632378e-05 | BJ56: 0.0004548414579 | BK56: 0.0001088480888 | BL56: 0.002778878251 | BM56: 0.001257523278 | BN56: 0.0002229348265 | BO56: 1.730240906e-06 | BP56: 0.0002322803011 | BQ56: 0.0001686326957 | BR56: 1.506698811e-05 | BS56: 0.000198275497 | BT56: 0.0009731710015 | BU56: 7.530713292e-05 | BV56: 8.058719989e-05 | BW56: 3.70090406e-05 | BX56: 0.01918241058 | BY56: 0.002183589222 | BZ56: 0.0003014307098 | CA56: 3.792171866e-05 | CB56: 7.807952719e-05 | CC56: 0.001101870026 | CD56: 0.001931862597 | CE56: 0.0003909325379 | CF56: 1.735815969e-05 | CG56: 0.0002462566295 | CH56: 0.0001404595971 | CI56: 0.0001506548925 | CJ56: 2.40174915e-05 | CK56: 0.0001655033199 | CL56: 0.002762213455 | CM56: 5.858885758e-06 | CN56: 0.0001052624486 | CO56: 0.0001349333791 | CP56: 0.0001586217804 | CQ56: 1.031598449e-05 | CR56: 0.0002220500387 | CS56: 8.019694556e-05 | CT56: 0.0007305974424 | CU56: 0.0004780208359 | CV56: 0.0004399210123 | CW56: 0.0005415130196 | CX56: 2.524438233e-05 | CY56: 6.354031365e-05 | CZ56: 7.034416362e-05 | DA56: 0.000969879209 | DB56: 5.461394138e-05 | DC56: 6.322440281e-05 | DD56: 0.0004734551011 | DE56: 2.450377246e-05 | DF56: 0.0002556455391 | DG56: 4.169918787e-06 | DH56: 0.001123894867 | DI56: 5.036514229e-06 | DJ56: 0.000263759044 | DK56: 6.30275618e-05 | DL56: 0.0004663500436 | DM56: 0.0001102250413 | DN56: 0.0004028947008 | DO56: 0.0004517202265 | DP56: 7.564064029e-06 | DQ56: 0.0002512170275 | DR56: 9.911514534e-05 | DS56: 9.335967656e-05 | DT56: 3.592941371e-05 | DU56: 0.0001168293023 | DV56: 0.000350726224 | DW56: 0.0003222642254 | DX56: 0.000243688697 | DY56: 0.0001156487524 | DZ56: 0.001796966024 | EA56: 2.785823214e-05 | EB56: 0.0001141009184 | EC56: 0.0003831820401 | ED56: 0.0001398252817 | EE56: 0.00185876064 | EF56: 3.779408406e-06 | EG56: 0.0003580696037 | EH56: 0.0001296134461 | EI56: 0.0001080950906 | EJ56: 9.990116212e-05 | EK56: 0.0005745836003 | EL56: 0.0001503696007 | EM56: 0.0001162255658 | EN56: 3.342580801e-05 | EO56: 0.0001021145775 | EP56: 0.0001341813429 | EQ56: 0.0001354195049 | ER56: 0.0001208039896 | ES56: 0.0002391231572 | ET56: 0.0001280803199 | EU56: 0.0003252333937 | EV56: 0.0001070653897 | EW56: 9.947959912e-05 | EX56: 0.0001088079906 | EY56: 0.0001571825181 | EZ56: 0.000125077547 | FA56: 0.0001079971681 | FB56: 1.487788519e-05 | FC56: 0.0001081997601 | FD56: 0.000125277611 | FE56: 0.0001037431599 | FF56: 2.385652285e-06 | FG56: 0.0001389359062 | FH56: 0.0009963264999 | FI56: 0.0001095402646 | FJ56: 0.0001041305507 | FK56: 0.0001110187924 | FL56: 0.0001078980448 | FM56: 0.0001075705332 | FN56: 0.0002788488537 | FO56: 0.0001395490241 | FP56: 0.0001123848803 | FQ56: 2.909333203e-05 | FR56: 0.0002443918766 | FS56: 0.0002431512986 | FT56: 0.0003712769713 | FU56: 0.0001299881303 | FV56: 0.0001226562127 | FW56: 0.0001258819692 | FX56: 1.01025777e-11 | FY56: 4.844406036e-05 | FZ56: 8.192487413e-05 | GA56: 0.0001092220184 | GB56: 0.0001596936096 | GC56: 0.0001145811087 | GD56: 2.983460951e-05 | GE56: 3.786967705e-05 | GF56: 0.0004819728837 | GG56: 0.0004841038948 | GH56: 0.0001324966015 | GI56: 0.0003049558895 | GJ56: 3.475493752e-06 | GK56: 5.36179871e-05 | GL56: 1.176465677e-06 | GM56: 0.0003659236639 | GN56: 0.0001311349997 | GO56: 0.0001089461079 | GP56: 0.0004617726106 | GQ56: 0.0001191161668 | GR56: 8.933241397e-05 | GS56: 0.000160633648 | GT56: 0.0005470285363 | GU56: 0.0005307450199 | GV56: 0.0003387609766 | GW56: 0.0220733273 | GX56: 0.001736994477 | GY56: 1.168787088e-05 | GZ56: 0.001497643282 | HA56: 0.0005358012078 | HB56: 0.01287730474 | HC56: 0.003748051803 | HD56: 0.0008616010143 | HE56: 0.0003181517714 | HF56: 0.0004262143025 | HG56: 0.0006220431528 | HH56: 0.0001650716465 | HI56: 0.0001973153988 | HJ56: 0.0005909491341 | HK56: 1.058992746e-05 | HL56: 0.001710016505 | HM56: 0.0005848443199 | HN56: 8.986187088e-06 | HO56: 0.0001076052372 | HP56: 4.936108695e-05 | HQ56: 5.945930043e-05 | HR56: 9.817001542e-05 | HS56: 6.26353786e-05 | HT56: 5.164592801e-05 | HU56: 9.765589403e-05 | HV56: 7.9271482e-05 | HW56: 0.0001135849346 | HX56: 2.249811588e-06 | HY56: 5.01339275e-05 | HZ56: 8.298828553e-05 | IA56: 9.716237898e-05 | IB56: 0.0002455070359 | IC56: 0.0001223694659 | ID56: 0.0001188108524 | IE56: 8.798509159e-05 | IF56: 0.0001403794179 | IG56: 6.567085557e-05 | IH56: 0.0001232941849 | II56: 7.580600289e-05 | IJ56: 4.993278815e-05 | IK56: 9.267116993e-05 | IL56: 7.590934518e-05 | IM56: 3.075041043e-05 | IN56: 0.000653112003 | IO56: 0.002477273006 | IP56: 0.0001217221167 | IQ56: 0.0005062776005 | IR56: 0.0002339495948 | IS56: 0.0002643817877 | IT56: 0.0001079532369 | IU56: 0.000163871092 | IV56: 0.0001414793409 | IW56: 0.000158825727 | IX56: 0.0002976941727 | IY56: 0.0007502168419 | IZ56: 9.694940408e-05 | JA56: 0.0003572520029 | JB56: 8.384078651e-05 | JC56: 9.116620425e-05 | JD56: 7.050561043e-05 | JE56: 9.622320503e-05 | JF56: 0.001044322804 | JG56: 0.001695061013 | JH56: 8.383533e-05 | JI56: 0.000146425085 | JJ56: 0.0003090996492 | JK56: 0.0003012579683 | JL56: 0.1640137732
A57: =+MATCH(B57,RUT[EMPRESA],0) -> 168 | B57: HIDROMUCHI | C57: 8795132.969 | D57: 8795132.969 | F57: =IFERROR(INDEX($B$9:$B$511,MATCH(0,INDEX(COUNTIF($F$8:F56,$B$9:$B$511),0,0),0)),"") -> HIDROMUCHI | H57: 8795132.969 | J57: LA HIGUERA | K57: 619885.3943 | L57: 133612.9191 | M57: 1628873.819 | N57: 17362505.97 | O57: 2236167.704 | P57: 285895.0715 | Q57: 41968.19146 | R57: 466235.2402 | S57: 217304.2324 | T57: 1273108.823 | U57: 174691.4624 | V57: 262774.3305 | W57: 114501.394 | X57: 517925.2931 | Y57: 314976.9383 | Z57: 3427773.506 | AA57: 168012.5508 | AB57: 68.15799447 | AC57: 39032.28156 | AD57: 50578.85571 | AE57: 256576.7395 | AF57: 359979.4973 | AG57: 37723.55563 | AH57: 344182.7484 | AI57: 908262.6388 | AJ57: 782961.7945 | AK57: 28006.46514 | AL57: 92095.89645 | AM57: 2682414.04 | AN57: 672236.6989 | AO57: 47610.53657 | AP57: 4313466.113 | AQ57: 137924.614 | AR57: 208825.3761 | AS57: 329497.0768 | AT57: 1754370.078 | AU57: 540427.3196 | AV57: 27214.96765 | AW57: 3143.666176 | AX57: 108673.7614 | AY57: 463630.5321 | AZ57: 1031.262731 | BA57: 170771.956 | BB57: 2135.410335 | BC57: 422011.7919 | BD57: 3152.354494 | BE57: 2.138246454 | BF57: 874242.0321 | BG57: 327715.7703 | BH57: 22821.87966 | BI57: 36551.78575 | BJ57: 486598.079 | BK57: 116447.7644 | BL57: 2972897.029 | BM57: 1345322.421 | BN57: 238499.9354 | BO57: 1851.044768 | BP57: 248497.9026 | BQ57: 180406.4787 | BR57: 16118.95165 | BS57: 212118.9137 | BT57: 1041116.925 | BU57: 80565.00914 | BV57: 86213.72563 | BW57: 39592.9785 | BX57: 20521709.22 | BY57: 2336045.456 | BZ57: 322476.3306 | CA57: 40569.37891 | CB57: 83530.96948 | CC57: 1178801.599 | CD57: 2066743.504 | CE57: 418227.0958 | CF57: 18570.09077 | CG57: 263450.0457 | CH57: 150266.3597 | CI57: 161173.4815 | CJ57: 25694.37113 | CK57: 177058.6127 | CL57: 2955068.712 | CM57: 6267.947887 | CN57: 112611.778 | CO57: 144354.3062 | CP57: 169696.6103 | CQ57: 11036.23724 | CR57: 237553.3725 | CS57: 85796.2241 | CT57: 781607.098 | CU57: 511395.8203 | CV57: 470635.9013 | CW57: 579320.9711 | CX57: 27006.92238 | CY57: 67976.64114 | CZ57: 75255.5298 | DA57: 1037595.302 | DB57: 58427.0376 | DC57: 67638.67369 | DD57: 506511.31 | DE57: 26214.60379 | DF57: 273494.4805 | DG57: 4461.058762 | DH57: 1202364.195 | DI57: 5388.159118 | DJ57: 282174.463 | DK57: 67428.08942 | DL57: 498910.1838 | DM57: 117920.8545 | DN57: 431024.4461 | DO57: 483258.926 | DP57: 8092.18017 | DQ57: 268756.7741 | DR57: 106035.2756 | DS57: 99877.96513 | DT57: 38437.97303 | DU57: 124986.219 | DV57: 375213.6132 | DW57: 344764.4235 | DX57: 260702.8224 | DY57: 123723.2442 | DZ57: 1922428.574 | EA57: 29803.26883 | EB57: 122067.3417 | EC57: 409935.4652 | ED57: 149587.757 | EE57: 1988537.635 | EF57: 4043.283298 | EG57: 383069.7011 | EH57: 138662.9403 | EI57: 115642.1925 | EJ57: 106876.1713 | EK57: 614700.51 | EL57: 160868.2709 | EM57: 124340.3302 | EN57: 35759.56783 | EO57: 109244.1254 | EP57: 143549.7634 | EQ57: 144874.3729 | ER57: 129238.4153 | ES57: 255818.5207 | ET57: 137022.7725 | EU57: 347940.8964 | EV57: 114540.5988 | EW57: 106425.1752 | EX57: 116404.8665 | EY57: 168156.86 | EZ57: 133810.3487 | FA57: 115537.4331 | FB57: 15916.64574 | FC57: 115754.1699 | FD57: 134024.381 | FE57: 110986.4139 | FF57: 2552.21638 | FG57: 148636.2861 | FH57: 1065889.119 | FI57: 117188.2672 | FJ57: 111400.852 | FK57: 118770.0246 | FL57: 115431.3891 | FM57: 115081.011 | FN57: 298317.8297 | FO57: 149292.2113 | FP57: 120231.4914 | FQ57: 31124.60228 | FR57: 261455.0974 | FS57: 260127.9034 | FT57: 397199.1952 | FU57: 139063.7845 | FV57: 131219.9591 | FW57: 134670.9349 | FX57: 0.01080793058 | FY57: 51826.38104 | FZ57: 87644.79509 | GA57: 116847.8014 | GB57: 170843.2736 | GC57: 122581.0586 | GD57: 31917.63509 | GE57: 40513.70381 | GF57: 515623.7965 | GG57: 517903.5929 | GH57: 141747.3949 | GI57: 326247.6351 | GJ57: 3718.149597 | GK57: 57361.54669 | GL57: 1258.605451 | GM57: 391472.1247 | GN57: 140290.7274 | GO57: 116552.6271 | GP57: 494013.1585 | GQ57: 127432.7503 | GR57: 95569.52269 | GS57: 171848.9447 | GT57: 585221.5762 | GU57: 567801.1594 | GV57: 362412.963 | GW57: 23614467.14 | GX57: 1858269.868 | GY57: 12503.9075 | GZ57: 1602207.388 | HA57: 573210.3658 | HB57: 13776386.57 | HC57: 4009737.405 | HD57: 921757.2214 | HE57: 340364.8416 | HF57: 455972.2014 | HG57: 665473.6457 | HH57: 176596.8002 | HI57: 211091.7823 | HJ57: 632208.6706 | HK57: 11329.30666 | HL57: 1829408.318 | HM57: 625677.6238 | HN57: 9613.59458 | HO57: 115118.138 | HP57: 52807.4336 | HQ57: 63610.69525 | HR57: 105024.1575 | HS57: 67008.52435 | HT57: 55251.8002 | HU57: 104474.1406 | HV57: 84806.14551 | HW57: 121515.3325 | HX57: 2406.891407 | HY57: 53634.23318 | HZ57: 88782.45291 | IA57: 103946.1688 | IB57: 262648.1161 | IC57: 130913.1918 | ID57: 127106.1191 | IE57: 94128.13147 | IF57: 150180.5824 | IG57: 70255.93559 | IH57: 131902.4739 | II57: 81098.70976 | IJ57: 53419.05047 | IK57: 99141.38759 | IL57: 81209.26732 | IM57: 32897.3764 | IN57: 698711.695 | IO57: 2650233.977 | IP57: 130220.6453 | IQ57: 541625.4468 | IR57: 250283.7449 | IS57: 282840.6861 | IT57: 115490.4347 | IU57: 175312.4241 | IV57: 151357.3011 | IW57: 169914.7963 | IX57: 318478.9118 | IY57: 802596.3063 | IZ57: 103718.3242 | JA57: 382195.0161 | JB57: 89694.47474 | JC57: 97531.34655 | JD57: 75428.24867 | JE57: 102941.4226 | JF57: 1117236.482 | JG57: 1813408.647 | JH57: 89688.63727 | JI57: 156648.3526 | JJ57: 330680.7084 | JK57: 322291.5285 | JL57: 175465067.2
A58: =+MATCH(B58,RUT[EMPRESA],0) -> 184 | B58: LA ARENA SPA | C58: -119833422.6 | D58: -119833422.6 | F58: =IFERROR(INDEX($B$9:$B$511,MATCH(0,INDEX(COUNTIF($F$8:F57,$B$9:$B$511),0,0),0)),"") -> LA ARENA SPA | G58: -119833422.6 | J58: LA CONFLUENCIA | K58: 332425.287 | L58: 71652.45929 | M58: 873514.4459 | N58: 9310972.773 | O58: 1199187.297 | P58: 153316.6487 | Q58: 22506.2378 | R58: 250027.4808 | S58: 116533.5116 | T58: 682728.7267 | U58: 93681.60642 | V58: 140917.7132 | W58: 61403.54187 | X58: 277747.251 | Y58: 168912.3507 | Z58: 1838208.485 | AA58: 90099.91353 | AB58: 36.55101585 | AC58: 20931.80049 | AD58: 27123.86964 | AE58: 137594.1377 | AF58: 193045.8256 | AG58: 20229.97142 | AH58: 184574.5197 | AI58: 487073.0479 | AJ58: 419878.0962 | AK58: 15018.99754 | AL58: 49388.16931 | AM58: 1438495.349 | AN58: 360499.6659 | AO58: 25532.05226 | AP58: 2313177.926 | AQ58: 73964.68736 | AR58: 111986.5643 | AS58: 176699.0501 | AT58: 940814.1922 | AU58: 289814.389 | AV58: 14594.54202 | AW58: 1685.850546 | AX58: 58278.36347 | AY58: 248630.6567 | AZ58: 553.0341779 | BA58: 91579.69683 | BB58: 1145.15425 | BC58: 226311.8188 | BD58: 1690.509821 | BE58: 1.146675172 | BF58: 468828.853 | BG58: 175743.7907 | BH58: 12238.66535 | BI58: 19601.58762 | BJ58: 260947.4389 | BK58: 62447.31987 | BL58: 1594272.356 | BM58: 721454.6367 | BN58: 127900.109 | BO58: 992.6578268 | BP58: 133261.7083 | BQ58: 96746.39218 | BR58: 8644.093211 | BS58: 113752.7863 | BT58: 558318.6757 | BU58: 43204.51253 | BV58: 46233.74377 | BW58: 21232.48484 | BX58: 11005155.37 | BY58: 1252748.634 | BZ58: 172934.0419 | CA58: 21756.09807 | CB58: 44795.06496 | CC58: 632154.6912 | CD58: 1108330.361 | CE58: 224282.2038 | CF58: 9958.563005 | CG58: 141280.0783 | CH58: 80583.18234 | CI58: 86432.33301 | CJ58: 13779.09332 | CK58: 94951.03561 | CL58: 1584711.583 | CM58: 3361.305806 | CN58: 60390.19948 | CO58: 77412.73161 | CP58: 91003.02235 | CQ58: 5918.391312 | CR58: 127392.4967 | CS58: 46009.85066 | CT58: 419151.6146 | CU58: 274245.6975 | CV58: 252387.4187 | CW58: 310671.8465 | CX58: 14482.9738 | CY58: 36453.76169 | CZ58: 40357.20364 | DA58: 556430.139 | DB58: 31332.60587 | DC58: 36272.52025 | DD58: 271626.2863 | DE58: 14058.07794 | DF58: 146666.5968 | DG58: 2392.32728 | DH58: 644790.5794 | DI58: 2889.502411 | DJ58: 151321.4019 | DK58: 36159.59044 | DL58: 267550.0384 | DM58: 63237.29233 | DN58: 231145.0254 | DO58: 259156.7549 | DP58: 4339.58493 | DQ58: 144125.912 | DR58: 56863.42545 | DS58: 53561.45108 | DT58: 20613.09128 | DU58: 67026.22793 | DV58: 201215.4089 | DW58: 184886.454 | DX58: 139806.8278 | DY58: 66348.93374 | DZ58: 1030938.745 | EA58: 15982.56756 | EB58: 65460.92469 | EC58: 219835.6598 | ED58: 80219.26878 | EE58: 1066390.981 | EF58: 2168.287272 | EG58: 205428.3848 | EH58: 74360.62881 | EI58: 62015.31668 | EJ58: 57314.37174 | EK58: 329644.7945 | EL58: 86268.65805 | EM58: 66679.85781 | EN58: 19176.74575 | EO58: 58584.23196 | EP58: 76981.28031 | EQ58: 77691.62722 | ER58: 69306.54877 | ES58: 137187.5285 | ET58: 73481.05779 | EU58: 186589.8978 | EV58: 61424.56619 | EW58: 57072.5165 | EX58: 62424.31508 | EY58: 90177.30204 | EZ58: 71758.33465 | FA58: 61959.13747 | FB58: 8535.602831 | FC58: 62075.3667 | FD58: 71873.1135 | FE58: 59518.56719 | FF58: 1368.674388 | FG58: 79709.02447 | FH58: 571603.2344 | FI58: 62844.42853 | FJ58: 59740.81747 | FK58: 63692.67589 | FL58: 61902.26936 | FM58: 61714.37247 | FN58: 159978.5881 | FO58: 80060.77679 | FP58: 64476.41517 | FQ58: 16691.15766 | FR58: 140210.2495 | FS58: 139498.5165 | FT58: 213005.5937 | FU58: 74575.58914 | FV58: 70369.18913 | FW58: 72219.84031 | FX58: 0.005795957541 | FY58: 27792.87873 | FZ58: 47001.18188 | GA58: 62661.8473 | GB58: 91617.94226 | GC58: 65736.41508 | GD58: 17116.43653 | GE58: 21726.24124 | GF58: 276513.0299 | GG58: 277735.6139 | GH58: 76014.72606 | GI58: 174956.4754 | GJ58: 1993.928165 | GK58: 30761.21618 | GL58: 674.9510188 | GM58: 209934.3437 | GN58: 75233.56048 | GO58: 62503.55446 | GP58: 264923.9158 | GQ58: 68338.22667 | GR58: 51250.96719 | GS58: 92157.25245 | GT58: 313836.1578 | GU58: 304494.1292 | GV58: 194350.8176 | GW58: 12663705.4 | GX58: 996532.4232 | GY58: 6705.457294 | GZ58: 859214.0669 | HA58: 307394.9186 | HB58: 7387848.303 | HC58: 2150297.652 | HD58: 494309.7735 | HE58: 182527.0948 | HF58: 244523.7318 | HG58: 356872.8505 | HH58: 94703.3799 | HI58: 113201.9676 | HJ58: 339033.8774 | HK58: 6075.555342 | HL58: 981054.8704 | HM58: 335531.4798 | HN58: 5155.472232 | HO58: 61734.28251 | HP58: 28318.98675 | HQ58: 34112.44049 | HR58: 56321.19425 | HS58: 35934.59072 | HT58: 29629.82466 | HU58: 56026.23727 | HV58: 45478.90226 | HW58: 65164.89925 | HX58: 1290.741118 | HY58: 28762.37369 | HZ58: 47611.27244 | IA58: 55743.10238 | IB58: 140850.0284 | IC58: 70204.67937 | ID58: 68163.06452 | IE58: 50477.99385 | IF58: 80537.18265 | IG58: 37676.07652 | IH58: 70735.20065 | II58: 43490.7196 | IJ58: 28646.97788 | IK58: 53166.44742 | IL58: 43550.00819 | IM58: 17641.84137 | IN58: 374697.3842 | IO58: 1421238.181 | IP58: 69833.28821 | IQ58: 290456.9074 | IR58: 134219.4 | IS58: 151678.6766 | IT58: 61933.93369 | IU58: 94014.6089 | IV58: 81168.22031 | IW58: 91120.02869 | IX58: 170790.3503 | IY58: 430407.4752 | IZ58: 55620.91638 | JA58: 204959.3184 | JB58: 48100.36143 | JC58: 52303.03241 | JD58: 40449.82741 | JE58: 55204.28817 | JF58: 599139.2305 | JG58: 972474.7435 | JH58: 48097.23097 | JI58: 84005.64691 | JJ58: 177333.7949 | JK58: 172834.9382 | JL58: 94096466.62
A59: =+MATCH(B59,RUT[EMPRESA],0) -> 34 | B59: CARDONES SA | C59: -1734882.006 | D59: -1734882.006 | F59: =IFERROR(INDEX($B$9:$B$511,MATCH(0,INDEX(COUNTIF($F$8:F58,$B$9:$B$511),0,0),0)),"") -> CARDONES SA | G59: -1734882.006 | J59: TRANSELEC | K59: 117806.8097 | L59: 25392.61593 | M59: 309561.138 | N59: 3299676.772 | O59: 424974.9803 | P59: 54333.2471 | Q59: 7975.89166 | R59: 88606.19519 | S59: 41297.82472 | T59: 241949.3834 | U59: 33199.43343 | V59: 49939.24013 | W59: 21760.54487 | X59: 98429.68882 | Y59: 59860.14284 | Z59: 651435.0312 | AA59: 31930.13223 | AB59: 12.95316192 | AC59: 7417.933394 | AD59: 9612.314932 | AE59: 48761.41205 | AF59: 68412.70425 | AG59: 7169.21512 | AH59: 65410.59352 | AI59: 172611.7842 | AJ59: 148798.8457 | AK59: 5322.519842 | AL59: 17502.46715 | AM59: 509782.3619 | AN59: 127755.9717 | AO59: 9048.197417 | AP59: 819757.4687 | AQ59: 26212.03679 | AR59: 39686.45103 | AS59: 62619.63872 | AT59: 333411.2141 | AU59: 102706.1115 | AV59: 5172.09882 | AW59: 597.4415375 | AX59: 20653.02594 | AY59: 88111.18053 | AZ59: 195.9874737 | BA59: 32454.54646 | BB59: 405.826434 | BC59: 80201.70072 | BD59: 599.0927186 | BE59: 0.4063654273 | BF59: 166146.3001 | BG59: 62281.10834 | BH59: 4337.209523 | BI59: 6946.524808 | BJ59: 92476.07355 | BK59: 22130.445 | BL59: 564987.525 | BM59: 255673.297 | BN59: 45325.98569 | BO59: 351.7838634 | BP59: 47226.0605 | BQ59: 34285.55006 | BR59: 3063.344108 | BS59: 40312.37506 | BT59: 197860.2248 | BU59: 15311.06684 | BV59: 16384.58345 | BW59: 7524.491668 | BX59: 3900071.07 | BY59: 443956.3589 | BZ59: 61285.3732 | CA59: 7710.052773 | CB59: 15874.73607 | CC59: 224026.6621 | CD59: 392776.5698 | CE59: 79482.43394 | CF59: 3529.173571 | CG59: 50067.65717 | CH59: 28557.5376 | CI59: 30630.39368 | CJ59: 4883.115362 | CK59: 33649.30113 | CL59: 561599.3225 | CM59: 1191.199133 | CN59: 21401.4307 | CO59: 27433.97479 | CP59: 32250.1812 | CQ59: 2097.393991 | CR59: 45146.0951 | CS59: 16305.23891 | CT59: 148541.3909 | CU59: 97188.78789 | CV59: 89442.52372 | CW59: 110097.6988 | CX59: 5132.560624 | CY59: 12918.69643 | CZ59: 14302.02093 | DA59: 197190.9541 | DB59: 11103.83139 | DC59: 12854.46703 | DD59: 96260.50569 | DE59: 4981.983556 | DF59: 51976.56297 | DG59: 847.806878 | DH59: 228504.6417 | DI59: 1023.998697 | DJ59: 53626.15991 | DK59: 12814.44631 | DL59: 94815.94121 | DM59: 22410.40004 | DN59: 81914.52062 | DO59: 91841.4805 | DP59: 1537.887388 | DQ59: 51076.18029 | DR59: 20151.59197 | DS59: 18981.41905 | DT59: 7304.987369 | DU59: 23753.14511 | DV59: 71307.88877 | DW59: 65521.13861 | DX59: 49545.55807 | DY59: 23513.12165 | DZ59: 365350.0782 | EA59: 5663.995397 | EB59: 23198.42383 | EC59: 77906.64177 | ED59: 28428.57179 | EE59: 377913.8482 | EF59: 768.4102749 | EG59: 72800.90773 | EH59: 26352.35282 | EI59: 21977.3492 | EJ59: 20311.40094 | EK59: 116821.4426 | EL59: 30572.3896 | EM59: 23630.39645 | EN59: 6795.966872 | EO59: 20761.42141 | EP59: 27281.07457 | EQ59: 27532.81145 | ER59: 24561.2585 | ES59: 48617.31552 | ET59: 26040.64532 | EU59: 66124.81495 | EV59: 21767.99559 | EW59: 20225.69087 | EX59: 22122.29243 | EY59: 31957.55762 | EZ59: 25430.13666 | FA59: 21957.44008 | FB59: 3024.896655 | FC59: 21998.63007 | FD59: 25470.81266 | FE59: 21092.53657 | FF59: 485.0388028 | FG59: 28247.74844 | FH59: 202568.0841 | FI59: 22271.17468 | FJ59: 21171.29892 | FK59: 22571.78152 | FL59: 21937.28683 | FM59: 21870.69883 | FN59: 56694.14399 | FO59: 28372.40447 | FP59: 22849.52761 | FQ59: 5915.109685 | FR59: 49688.525 | FS59: 49436.29694 | FT59: 75486.16316 | FU59: 26428.53172 | FV59: 24937.84318 | FW59: 25593.68773 | FX59: 0.002054005198 | FY59: 9849.402272 | FZ59: 16656.55264 | GA59: 22206.47048 | GB59: 32468.1001 | GC59: 23296.05372 | GD59: 6065.822487 | GE59: 7699.471936 | GF59: 97992.29834 | GG59: 98425.56479 | GH59: 26938.54144 | GI59: 62002.09496 | GJ59: 706.6198787 | GK59: 10901.33899 | GL59: 239.1930739 | GM59: 74397.75568 | GN59: 26661.70744 | GO59: 22150.37374 | GP59: 93885.28059 | GQ59: 24218.09887 | GR59: 18162.61632 | GS59: 32659.22398 | GT59: 111219.0858 | GU59: 107908.4033 | GV59: 68875.17494 | GW59: 4487837.693 | GX59: 353156.9654 | GY59: 2376.319019 | GZ59: 304493.2864 | HA59: 108936.402 | HB59: 2618148.72 | HC59: 762035.0083 | HD59: 175176.3771 | HE59: 64685.01518 | HF59: 86655.74455 | HG59: 126470.6797 | HH59: 33561.53546 | HI59: 40117.17274 | HJ59: 120148.8005 | HK59: 2153.090695 | HL59: 347671.9401 | HM59: 118907.6004 | HN59: 1827.026283 | HO59: 21877.75467 | HP59: 10035.8475 | HQ59: 12088.96538 | HR59: 19959.43292 | HS59: 12734.7096 | HT59: 10500.38987 | HU59: 19854.90434 | HV59: 16117.07832 | HW59: 23093.51661 | HX59: 457.4203566 | HY59: 10192.97754 | HZ59: 16872.76008 | IA59: 19754.56535 | IB59: 49915.25357 | IC59: 24879.54325 | ID59: 24156.02389 | IE59: 17888.68552 | IF59: 28541.23595 | IG59: 13351.86748 | IH59: 25067.55247 | II59: 15412.49457 | IJ59: 10152.08291 | IK59: 18841.43536 | IL59: 15433.5056 | IM59: 6252.018516 | IN59: 132787.4418 | IO59: 503666.666 | IP59: 24747.92749 | IQ59: 102933.8109 | IR59: 47565.45288 | IS59: 53752.77301 | IT59: 21948.50822 | IU59: 33317.44478 | IV59: 28764.86676 | IW59: 32291.64659 | IX59: 60525.67929 | IY59: 152530.3084 | IZ59: 19711.26437 | JA59: 72634.67724 | JB59: 17046.08629 | JC59: 18535.45332 | JD59: 14334.84548 | JE59: 19563.61723 | JF59: 212326.4508 | JG59: 344631.2647 | JH59: 17044.9769 | JI59: 29770.41052 | JJ59: 62844.5833 | JK59: 61250.25226 | JL59: 33346454
A60: =+MATCH(B60,RUT[EMPRESA],0) -> 32 | B60: CAPULLO | C60: -7562186.523 | D60: -7562186.523 | F60: =IFERROR(INDEX($B$9:$B$511,MATCH(0,INDEX(COUNTIF($F$8:F59,$B$9:$B$511),0,0),0)),"") -> CAPULLO | G60: -7562186.523 | J60: STS | K60: 5894.248839 | L60: 1270.473221 | M60: 15488.32688 | N60: 165093.3085 | O60: 21262.84796 | P60: 2718.464911 | Q60: 399.0591907 | R60: 4433.249353 | S60: 2066.26133 | T60: 12105.49607 | U60: 1661.073094 | V60: 2498.618788 | W60: 1088.74917 | X60: 4924.749939 | Y60: 2994.993059 | Z60: 32593.36353 | AA60: 1597.565924 | AB60: 0.6480878296 | AC60: 371.1427666 | AD60: 480.9346442 | AE60: 2439.688308 | AF60: 3422.904868 | AG60: 358.6986014 | AH60: 3272.699734 | AI60: 8636.315766 | AJ60: 7444.878829 | AK60: 266.3025717 | AL60: 875.7040184 | AM60: 25506.0306 | AN60: 6392.03701 | AO60: 452.7100533 | AP60: 41015.06966 | AQ60: 1311.471448 | AR60: 1985.639187 | AS60: 3133.059402 | AT60: 16681.62194 | AU60: 5138.712947 | AV60: 258.7765303 | AW60: 29.89189756 | AX60: 1033.336481 | AY60: 4408.482198 | AZ60: 9.805875751 | BA60: 1623.804033 | BB60: 20.30478538 | BC60: 4012.745803 | BD60: 29.97451139 | BE60: 0.02033175292 | BF60: 8312.827065 | BG60: 3116.121651 | BH60: 217.0043672 | BI60: 347.5566979 | BJ60: 4626.871658 | BK60: 1107.256448 | BL60: 28268.12024 | BM60: 12792.14705 | BN60: 2267.803017 | BO60: 17.60086393 | BP60: 2362.869794 | BQ60: 1715.414958 | BR60: 153.2688347 | BS60: 2016.956154 | BT60: 9899.575439 | BU60: 766.0613009 | BV60: 819.7727465 | BW60: 376.4742155 | BX60: 195132.942 | BY60: 22212.54661 | BZ60: 3066.30186 | CA60: 385.7584269 | CB60: 794.2634629 | CC60: 11208.7654 | CD60: 19651.85922 | CE60: 3976.758602 | CF60: 176.5757622 | CG60: 2505.0439 | CH60: 1428.824303 | CI60: 1532.535876 | CJ60: 244.3177701 | CK60: 1683.581404 | CL60: 28098.59771 | CM60: 59.5994758 | CN60: 1070.781547 | CO60: 1372.608888 | CP60: 1613.57899 | CQ60: 104.9392825 | CR60: 2258.802519 | CS60: 815.802887 | CT60: 7431.997547 | CU60: 4862.663724 | CV60: 4475.093526 | CW60: 5508.537534 | CX60: 256.7983087 | CY60: 646.3634114 | CZ60: 715.5755293 | DA60: 9866.089702 | DB60: 555.5599498 | DC60: 643.1498105 | DD60: 4816.218818 | DE60: 249.2644598 | DF60: 2600.55252 | DG60: 42.41847069 | DH60: 11432.81294 | DI60: 51.23390697 | DJ60: 2683.087094 | DK60: 641.1474467 | DL60: 4743.942669 | DM60: 1121.263488 | DN60: 4098.443622 | DO60: 4595.120952 | DP60: 76.94539024 | DQ60: 2555.503515 | DR60: 1008.248146 | DS60: 949.7006792 | DT60: 365.4917183 | DU60: 1188.445289 | DV60: 3567.760145 | DW60: 3278.230656 | DX60: 2478.921624 | DY60: 1176.436153 | DZ60: 18279.62474 | EA60: 283.3876782 | EB60: 1160.690821 | EC60: 3897.916715 | ED60: 1422.371734 | EE60: 18908.23006 | EF60: 38.44600648 | EG60: 3642.460625 | EH60: 1318.491905 | EI60: 1099.596579 | EJ60: 1016.243897 | EK60: 5844.947793 | EL60: 1529.633748 | EM60: 1182.303783 | EN60: 340.0238062 | EO60: 1038.75985 | EP60: 1364.958804 | EQ60: 1377.553999 | ER60: 1228.877768 | ES60: 2432.478701 | ET60: 1302.896189 | EU60: 3308.4345 | EV60: 1089.121953 | EW60: 1011.95555 | EX60: 1106.848549 | EY60: 1598.938103 | EZ60: 1272.350502 | FA60: 1098.600463 | FB60: 151.3451866 | FC60: 1100.661329 | FD60: 1274.385651 | FE60: 1055.326593 | FF60: 24.26803176 | FG60: 1413.324567 | FH60: 10135.12459 | FI60: 1114.297601 | FJ60: 1059.267324 | FK60: 1129.337916 | FL60: 1097.592131 | FM60: 1094.260523 | FN60: 2836.588081 | FO60: 1419.561505 | FP60: 1143.234435 | FQ60: 295.9517236 | FR60: 2486.074714 | FS60: 2473.454943 | FT60: 3776.812483 | FU60: 1322.303377 | FV60: 1247.719495 | FW60: 1280.533481 | FX60: 0.0001027684034 | FY60: 492.7968768 | FZ60: 833.3802287 | GA60: 1111.060245 | GB60: 1624.482165 | GC60: 1165.575555 | GD60: 303.4923637 | GE60: 385.229034 | GF60: 4902.865904 | GG60: 4924.5436 | GH60: 1347.820784 | GI60: 3102.161726 | GJ60: 35.35443671 | GK60: 545.4286116 | GL60: 11.96758915 | GM60: 3722.356 | GN60: 1333.969899 | GO60: 1108.253547 | GP60: 4697.378762 | GQ60: 1211.708402 | GR60: 908.7333777 | GS60: 1634.0447 | GT60: 5564.64409 | GU60: 5399.00013 | GV60: 3446.043746 | GW60: 224540.7729 | GX60: 17669.56459 | GY60: 118.8947875 | GZ60: 15234.76617 | HA60: 5450.434167 | HB60: 130994.2955 | HC60: 38127.03164 | HD60: 8764.630498 | HE60: 3236.396745 | HF60: 4335.662113 | HG60: 6327.72977 | HH60: 1679.190209 | HI60: 2007.189562 | HJ60: 6011.426074 | HK60: 107.7259656 | HL60: 17395.13135 | HM60: 5949.324894 | HN60: 91.41192745 | HO60: 1094.613548 | HP60: 502.1253236 | HQ60: 604.8493319 | HR60: 998.6338188 | HS60: 637.1579657 | HT60: 525.3678538 | HU60: 993.4039223 | HV60: 806.3886152 | HW60: 1155.44198 | HX60: 22.88619318 | HY60: 509.9870388 | HZ60: 844.1977739 | IA60: 988.3836438 | IB60: 2497.418664 | IC60: 1244.802565 | ID60: 1208.602593 | IE60: 895.0277499 | IF60: 1428.00868 | IG60: 668.0363347 | IH60: 1254.209263 | II60: 771.1360523 | IJ60: 507.9409502 | IK60: 942.6968502 | IL60: 772.1873011 | IM60: 312.8083424 | IN60: 6643.777438 | IO60: 25200.04292 | IP60: 1238.21741 | IQ60: 5150.105471 | IR60: 2379.850673 | IS60: 2689.421949 | IT60: 1098.153573 | IU60: 1666.977577 | IV60: 1439.197639 | IW60: 1615.653635 | IX60: 3028.291961 | IY60: 7631.575756 | IZ60: 986.2171581 | JA60: 3634.143586 | JB60: 852.8698345 | JC60: 927.3875969 | JD60: 717.2178458 | JE60: 978.8299031 | JF60: 10623.36667 | JG60: 17242.9967 | JH60: 852.8143281 | JI60: 1489.508188 | JJ60: 3144.314093 | JK60: 3064.544648 | JL60: 1668429
A61: =+MATCH(B61,RUT[EMPRESA],0) -> 24 | B61: BE FORESTALES | C61: 796830087.5 | D61: 796830087.5 | F61: =IFERROR(INDEX($B$9:$B$511,MATCH(0,INDEX(COUNTIF($F$8:F60,$B$9:$B$511),0,0),0)),"") -> BE FORESTALES | H61: 796830087.5 | J61: INTERCHILE | K61: 1362.305957 | L61: 293.6376261 | M61: 3579.733492 | N61: 38157.12635 | O61: 4914.367418 | P61: 628.3041393 | Q61: 92.23239936 | R61: 1024.633023 | S61: 477.5638417 | T61: 2797.878044 | U61: 383.914869 | V61: 577.4922899 | W61: 251.6367261 | X61: 1138.230903 | Y61: 692.2165992 | Z61: 7533.128397 | AA61: 369.2367992 | AB61: 0.1497890461 | AC61: 85.78022676 | AD61: 111.1558315 | AE61: 563.872006 | AF61: 791.1175488 | AG61: 82.90407395 | AH61: 756.4014458 | AI61: 1996.065103 | AJ61: 1720.694707 | AK61: 61.54907772 | AL61: 202.3967487 | AM61: 5895.071346 | AN61: 1477.357054 | AO61: 104.632434 | AP61: 9479.591931 | AQ61: 303.1133255 | AR61: 458.9300804 | AS61: 724.1271287 | AT61: 3855.533345 | AU61: 1187.68302 | AV61: 59.80962433 | AW61: 6.908753131 | AX61: 238.8294899 | AY61: 1018.908724 | AZ61: 2.266379197 | BA61: 375.301072 | BB61: 4.692935578 | BC61: 927.4443041 | BD61: 6.927847221 | BE61: 0.004699168441 | BF61: 1921.298904 | BG61: 720.2123977 | BH61: 50.15504948 | BI61: 80.32890585 | BJ61: 1069.383902 | BK61: 255.9142135 | BL61: 6533.458233 | BM61: 2956.579984 | BN61: 524.1450852 | BO61: 4.067992791 | BP61: 546.1173568 | BQ61: 396.4746112 | BR61: 35.42419948 | BS61: 466.1682021 | BT61: 2288.035501 | BU61: 177.0556185 | BV61: 189.4696554 | BW61: 87.0124558 | BX61: 45100.0249 | BY61: 5133.866148 | BZ61: 708.6978179 | CA61: 89.15826552 | CB61: 183.5738322 | CC61: 2590.621518 | CD61: 4542.028275 | CE61: 919.1267762 | CF61: 40.81100397 | CG61: 578.9772915 | CH61: 330.2364581 | CI61: 354.2067549 | CJ61: 56.46784904 | CK61: 389.1170934 | CL61: 6494.277405 | CM61: 13.77490553 | CN61: 247.4839663 | CO61: 317.2436922 | CP61: 372.9378129 | CQ61: 24.25405063 | CR61: 522.0648487 | CS61: 188.5521232 | CT61: 1717.717526 | CU61: 1123.881251 | CV61: 1034.304241 | CW61: 1273.158583 | CX61: 59.35240866 | CY61: 149.3904906 | CZ61: 165.3871143 | DA61: 2280.296123 | DB61: 128.4035761 | DC61: 148.6477484 | DD61: 1113.14669 | DE61: 57.61115077 | DF61: 601.0516839 | DG61: 9.803952446 | DH61: 2642.404419 | DI61: 11.84141671 | DJ61: 620.1274551 | DK61: 148.1849528 | DL61: 1096.441894 | DM61: 259.1515851 | DN61: 947.2511791 | DO61: 1062.045533 | DP61: 17.78397322 | DQ61: 590.6397503 | DR61: 233.0309585 | DS61: 219.499198 | DT61: 84.47413042 | DU61: 274.6789525 | DV61: 824.5971679 | DW61: 757.6797781 | DX61: 572.9397907 | DY61: 271.9033456 | DZ61: 4224.871119 | EA61: 65.49786628 | EB61: 268.264212 | EC61: 900.904476 | ED61: 328.7451106 | EE61: 4370.157276 | EF61: 8.885818209 | EG61: 841.8622872 | EH61: 304.7359259 | EI61: 254.1438292 | EJ61: 234.8789731 | EK61: 1350.911272 | EL61: 353.5360016 | EM61: 273.2594994 | EN61: 78.5878692 | EO61: 240.082964 | EP61: 315.4755696 | EQ61: 318.3866292 | ER61: 284.0238934 | ES61: 562.2056883 | ET61: 301.131372 | EU61: 764.6606298 | EV61: 251.7228855 | EW61: 233.8878307 | EX61: 255.819938 | EY61: 369.5539437 | EZ61: 294.071512 | FA61: 253.9136022 | FB61: 34.97959704 | FC61: 254.3899191 | FD61: 294.5418851 | FE61: 243.911946 | FF61: 5.608939347 | FG61: 326.6540878 | FH61: 2342.476706 | FI61: 257.5415972 | FJ61: 244.8227458 | FK61: 261.0177841 | FL61: 253.680552 | FM61: 252.9105353 | FN61: 655.6053107 | FO61: 328.0955975 | FP61: 264.2296117 | FQ61: 68.40172634 | FR61: 574.5930458 | FS61: 571.6763061 | FT61: 872.9143077 | FU61: 305.6168508 | FV61: 288.3786803 | FW61: 295.9627999 | FX61: 2.375230704e-05 | FY61: 113.8974854 | FZ61: 192.6146794 | GA61: 256.7933644 | GB61: 375.4578049 | GC61: 269.3931941 | GD61: 70.14455385 | GE61: 89.0359098 | GF61: 1133.172964 | GG61: 1138.183213 | GH61: 311.5145514 | GI61: 716.9859154 | GJ61: 8.171280356 | GK61: 126.0619745 | GL61: 2.766004362 | GM61: 860.3280744 | GN61: 308.3132711 | GO61: 256.1446675 | GP61: 1085.679829 | GQ61: 280.0556304 | GR61: 210.0306465 | GS61: 377.667942 | GT61: 1286.126189 | GU61: 1247.841793 | GV61: 796.4655128 | GW61: 51896.8983 | GX61: 4083.871203 | GY61: 27.47951126 | GZ61: 3521.129372 | HA61: 1259.729465 | HB61: 30276.00531 | HC61: 8812.095275 | HD61: 2025.721795 | HE61: 748.0109318 | HF61: 1002.07821 | HG61: 1462.494068 | HH61: 388.1021801 | HI61: 463.9109023 | HJ61: 1389.3885 | HK61: 24.89812165 | HL61: 4020.442929 | HM61: 1375.035389 | HN61: 21.12754598 | HO61: 252.9921282 | HP61: 116.053519 | HQ61: 139.7955653 | HR61: 230.8088507 | HS61: 147.2628856 | HT61: 121.4254397 | HU61: 229.600093 | HV61: 186.3762533 | HW61: 267.0510756 | HX61: 5.289562446 | HY61: 117.8705549 | HZ61: 195.1148803 | IA61: 228.4397831 | IB61: 577.2149119 | IC61: 287.7045059 | ID61: 279.3378016 | IE61: 206.8629386 | IF61: 330.0479476 | IG61: 154.3996366 | IH61: 289.8786254 | II61: 178.2285184 | IJ61: 117.3976534 | IK61: 217.8804407 | IL61: 178.4714879 | IM61: 72.29770578 | IN61: 1535.540462 | IO61: 5824.350062 | IP61: 286.1825146 | IQ61: 1190.316113 | IR61: 550.0420558 | IS61: 621.5915961 | IT61: 253.810315 | IU61: 385.2795404 | IV61: 332.6339914 | IW61: 373.4173144 | IX61: 699.9127949 | IY61: 1763.844961 | IZ61: 227.9390549 | JA61: 839.9400148 | JB61: 197.1192069 | JC61: 214.3420956 | JD61: 165.7666941 | JE61: 226.2316785 | JF61: 2455.321466 | JG61: 3985.280868 | JH61: 197.106378 | JI61: 344.2619972 | JJ61: 726.7283649 | JK61: 708.291683 | JL61: 385615
